Workbook

Sheet Introduction
F2: Alaska Permanent Fund Protection Act Model ("The Model")
F3: The model is created and maintained by:
F4: Department of Revenue, Economic Research Group
F5: Contact:
F7: Department of Revenue, (907) 465-2300
F8: Last updated : 30 March 2018
F9: Next update : TBD
F11: Scope of the model
F12: The model is intended to generate the projections for the Permanent Fund Balance and probabilistic confidence in the sufficiency of the Permanent Fund Earnings Reserve for next 25 years for given assumptions on total returns, oil prices, oil production, statutory earnings given an annual POMV draw.
F14: Contents
F15: There are three parts to the model
F16: Assumptions | G16: Contains the assumptions made with respect to inputs
F17: Projections model | G17: Contains the model calculations and outputs
F18: Back-up | G18: Contains the key definitions and other crucial model related analysis
F20: Technical requirements
F21: The probabilistic model requires "@Risk," a plug-in in Excel to generate the Monte Carlo simulations
F22: The deterministic model does not require @Risk, but is unable to generate the probabilistic outcomes or calculate Earnings Reserve depletion percentages.
F23: A Trial version of @Risk is available from the Palisade company's website at: http://www.palisade.com/risk/

Sheet Assumptions
B1: Legend
B2: Input
B3: Probabilistic Input
B4: Calculation
B5: Note about source
B6: Other important notes
B8: Assumptions
A10: 1 | B10: General
B12: Start year | C12: 2019
B14: Inflation Rate | C14: 0.0225
B15: Source | C15: Callan
A17: 2 | B17: Fund related
B19: Asset Base | C19: Million $
B20: Starting value | C20: 62632
B21: Source | C21: APFC
B23: Payout | C23: Million $
B24: Initial POMV % | C24: 0.0525
B25: Years of initial POMV | C25: 2
B26: Long-term POMV % | C26: 0.05
B27: Amount excluded from POMV ($mil) | C27: 424.4
B28: Source | C28: APFPA Legislation
B30: Principal, earnings | C30: Million $
B31: Principal | C31: 41555
B32: Unrealized earnings | C32: =6084+1915 -> 7999
B33: Earnings Reserve | C33: =C20-C32-C31 -> 13078
B34: Source | C34: APFC
B36: Fund Expenses | C36: Million $
B37: Initial 2017 Expenses | C37: 26.6
B38: Source | C38: APFC
P39: Times Payout
B40: Inflation Method Used | C40: Times Payout | P40: Separate POMV
B41: Times Payout Rule, Number of Years | C41: 4 | P41: Current Statutory Calculation
B42: Separate POMV, POMV | C42: 0.0025 | P42: None
B43: Current Statutory Calculation | C43: 0.0225 | P43: =MATCH(C40, P39:P42, 0) -> 1
B44: Source | C44: APFPA Legislation
A46: 2 | B46: Returns
B48: Total Return | C48: Percentage
B49: Long Run Geometric Mean | C49: =6.5% -> 0.065
B50: Standard Deviation | C50: 0.1238
B51: Source | C51: Callan
B52: Distribution | C52: Normal
B54: Statutory Return | C54: Percentage
B55: Median Return | C55: =6.53% -> 0.0653
B56: Standard Deviation | C56: 0.0224
B57: Source | C57: Callan
B58: Distribution | C58: Normal
B61: Correlation matrix | C61: Statutory rate | D61: Earn rate | E61: Oil Price
B62: Statutory rate | C62: 1
B63: Earn rate | C63: 0.75 | D63: 1
B64: Oil Price | C64: 0 | D64: 0 | E64: 1
B65: Source | C65: DOR analysis
A67: 3 | B67: Oil
B68: Mean | C68: Scenario
B69: Petroleum Deposited in PF | C69: % of Revenue
B70: Royalty Deposts (Min 25%) | C70: 0.25
B71: Production Tax Deposits | C71: 0
B73: Static Values, Mean or Scenario | C73: Scenario
C75: Price | F75: Production
C76: $/barrel | F76: mmbbls/day
B77: Distribution Type | C77: PERT | F77: PERT
B78: Year | C78: High | D78: Medium | E78: Low | F78: High | G78: Mean | H78: Low
B79: 2019 | C79: 80.18178993 | D79: 63 | E79: 45.81816942 | F79: 0.5873124491 | G79: 0.5266436124 | H79: 0.4711586996
B80: =B79+1 -> 2020 | C80: 82.48274854 | D80: 64 | E80: 42.68333217 | F80: 0.6194579947 | G80: 0.536139828 | H80: 0.4599846574
B81: 2021 | C81: 88.59081544 | D81: 66 | E81: 41.99430702 | F81: 0.6020727976 | G81: 0.5253024177 | H81: 0.4440415194
B82: 2022 | C82: 91.81504807 | D82: 67 | E82: 40.16909001 | F82: 0.5800751813 | G82: 0.5087433137 | H82: 0.4304835065
B83: 2023 | C83: 95.47244558 | D83: 69 | E83: 40.66413405 | F83: 0.5836036577 | G83: 0.4969373322 | H83: 0.4191230177
B84: 2024 | C84: 101.6634567 | D84: 70 | E84: 38.12380156 | F84: 0.6119135223 | G84: 0.4938856272 | H84: 0.409552015
B85: 2025 | C85: 109.2799928 | D85: 72 | E85: 36.42657901 | F85: 0.6510402254 | G85: 0.4952839641 | H85: 0.4014057963
B86: 2026 | C86: 113.5462521 | D86: 74 | E86: 36.8258128 | F86: 0.6716414406 | G86: 0.4958527656 | H86: 0.394363446
B87: 2027 | C87: 115.9555432 | D87: 75 | E87: 36.61749781 | F87: 0.6864186874 | G87: 0.4930285784 | H87: 0.3881945651
B88: 2028 | C88: 120.5058559 | D88: 76.97 | E88: 36.88951746 | F88: 0.694297329 | G88: 0.489551683 | H88: 0.382648326
B89: 2029 | C89: 123.2140921 | D89: 78.69981587 | E89: 37.71856869 | F89: 0.6977208239 | G89: 0.4856733909 | H89: 0.3777880459
B90: 2030 | C90: 125.9864091 | D90: 80.47056172 | E90: 38.56723648 | F90: 0.6948997896 | G90: 0.4813407103 | H90: 0.3735393599
B91: 2031 | C91: 128.8211034 | D91: 82.28114936 | E91: 39.4349993 | F91: 0.6908752685 | G91: 0.4767059195 | H91: 0.3696149332
B92: 2032 | C92: 131.7195782 | D92: 84.13247522 | E92: 40.32228679 | F92: 0.6847013499 | G92: 0.4718631439 | H92: 0.3662017775
B93: 2033 | C93: 134.6832687 | D93: 86.02545592 | E93: 41.22953824 | F93: 0.6674813305 | G93: 0.4649886003 | H93: 0.3629934982
B94: 2034 | C94: 137.7136422 | D94: 87.96102867 | E94: 42.15720285 | F94: 0.6401469904 | G94: 0.4558754262 | H94: 0.3597035714
B95: 2035 | C95: 140.8121992 | D95: 89.94015182 | E95: 43.10573991 | F95: 0.6106411131 | G95: 0.447026628 | H95: 0.356922431
B96: 2036 | C96: 143.9804737 | D96: 91.96380524 | E96: 44.07561906 | F96: 0.5858442758 | G96: 0.4389908446 | H96: 0.3544726824
B97: 2037 | C97: 147.2200343 | D97: 94.03299085 | E97: 45.06732049 | F97: 0.5637582531 | G97: 0.4307119422 | H97: 0.3512953492
B98: 2038 | C98: 150.5324851 | D98: 96.14873315 | E98: 46.0813352 | F98: 0.5548458694 | G98: 0.423902871 | H98: 0.3457417649
B99: 2039 | C99: 153.919466 | D99: 98.31207964 | E99: 47.11816524 | F99: 0.5473148771 | G99: 0.4181491844 | H99: 0.3410489688
B100: 2040 | C100: 157.382654 | D100: 100.5241014 | E100: 48.17832396 | F100: 0.540338965 | G100: 0.4128195797 | H100: 0.3367020604
B101: 2041 | C101: 160.9237637 | D101: 102.7858937 | E101: 49.26233625 | F101: 0.5338564337 | G101: 0.4078669184 | H101: 0.3326625929
B102: 2042 | C102: 164.5445484 | D102: 105.0985763 | E102: 50.37073882 | F102: 0.5278133991 | G102: 0.4032500332 | H102: 0.3288969897
B103: 2043 | C103: 168.2468007 | D103: 107.4632943 | E103: 51.50408044 | F103: 0.5221626358 | G103: 0.3989328436 | H103: 0.3253758228
B104: Source | C104: DOR/ERG (Spring 2018); Price High and Low values are calculated based off of the official forecast using ratios determined by the Fall 2017 price forecasting session. Production based off of DNR's spring 2018 forecast.
B105: Link in the model | C105: Goes as input into Petroleum Model
A107: 4 | B107: Dividend Inputs
B110: Dividend Floor | C110: 0
B111: % of POMV | C111: 0.3
B112: % of Total Royalties | C112: 0
B113: Source | C113: APFPA Legislation
D115: Million $ | E115: Million $ | F115: Million $
B116: Fiscal Year | C116: Number of Recipients* | D116: Program Costs | E116: HH Provision | F116: total
B117: =C12 -> 2019 | C117: 656240.6912 | D117: 8.246 | E117: 17.725 | F117: =D117 + E117 -> 25.971
B118: =B117+1 -> 2020 | C118: 663013.6283 | D118: 8.431535 | E118: 17.725 | F118: =D118 + E118 -> 26.156535
B119: =B118+1 -> 2021 | C119: 669717.8674 | D119: 8.621244537 | E119: 17.725 | F119: 26.34624454
B120: 2022 | C120: 676356.1002 | D120: 8.81522254 | E120: 17.725 | F120: 26.54022254
B121: 2023 | C121: 682898.8716 | D121: 9.013565047 | E121: 17.725 | F121: 26.73856505
B122: 2024 | C122: 689356.887 | D122: 9.21637026 | E122: 18.1238125 | F122: 27.34018276
B123: 2025 | C123: 695681.9824 | D123: 9.423738591 | E123: 18.53159828 | F123: 27.95533687
B124: 2026 | C124: 701889.3185 | D124: 9.635772709 | E124: 18.94855924 | F124: 28.58433195
B125: 2027 | C125: 707972.6558 | D125: 9.852577595 | E125: 19.37490183 | F125: 29.22747942
B126: 2028 | C126: 713931.984 | D126: 10.07426059 | E126: 19.81083712 | F126: 29.88509771
B127: 2029 | C127: 719763.7347 | D127: 10.30093145 | E127: 20.25658095 | F127: 30.55751241
B128: 2030 | C128: 725466.1338 | D128: 10.53270241 | E128: 20.71235402 | F128: 31.24505644
B129: 2031 | C129: 731072.1844 | D129: 10.76968822 | E129: 21.17838199 | F129: 31.94807021
B130: 2032 | C130: 736564.0444 | D130: 11.0120062 | E130: 21.65489558 | F130: 32.66690178
B131: 2033 | C131: 741943.4978 | D131: 11.25977634 | E131: 22.14213073 | F131: 33.40190708
B132: 2034 | C132: 747250.6951 | D132: 11.51312131 | E132: 22.64032868 | F132: 34.15344998
B133: 2035 | C133: 752449.0441 | D133: 11.77216654 | E133: 23.14973607 | F133: 34.92190261
B134: 2036 | C134: 757577.8183 | D134: 12.03704029 | E134: 23.67060513 | F134: 35.70764542
B135: 2037 | C135: 762661.0896 | D135: 12.30787369 | E135: 24.20319375 | F135: 36.51106744
B136: 2038 | C136: 767693.5052 | D136: 12.58480085 | E136: 24.74776561 | F136: 37.33256646
B137: 2039 | C137: 772693.8149 | D137: 12.86795887 | E137: 25.30459033 | F137: 38.1725492
B138: 2040 | C138: 777689.6589 | D138: 13.15748794 | E138: 25.87394362 | F138: 39.03143156
B139: 2041 | C139: 782674.7975 | D139: 13.45353142 | E139: 26.45610735 | F139: 39.90963877
B140: 2042 | C140: 787645.6623 | D140: 13.75623588 | E140: 27.05136976 | F140: 40.80760564
B141: 2043 | C141: 792636.1536 | D141: 14.06575119 | E141: 27.66002558 | F141: 41.72577677
B142: Source | C142: DOR and DOL Estimates
C143: *Number of recipients includes individuals ineligible for a dividend because of a criminal conviction.
A144: 5 | B144: Revenue Reduction
B147: Enable POMV Reductions | C147: TRUE
B148: Start of Reduction | C148: 1200
B149: % of Reduction | C149: 0.8
B150: Increase the Level with Inflation | C150: FALSE
B151: Source | C151: APFPA Legislation
A153: 5 | B153: Budget and Revenue
B156: Fiscal Year | C156: UGF Budget (Excl. Dividend) | D156: Total SQ UGF Rev Excl Prod. Tax & Royalty | E156: New UGF Revenue | G156: Enable Budget | H156: TRUE
B157: 2019 | C157: 4583.1 | D157: 909.3972461 | E157: 0
B158: 2020 | C158: 4720.6 | D158: 929.4823712 | E158: =E157 -> 0
B159: 2021 | C159: 4873.3 | D159: 986.7370133 | E159: =E158 -> 0
B160: 2022 | C160: 4981.6 | D160: 1016.994598 | E160: 0
B161: 2023 | C161: 5105.5 | D161: 1047.300139 | E161: 0
B162: 2024 | C162: 5211.7 | D162: 1067.605168 | E162: 0
B163: 2025 | C163: 5311.5 | D163: 1087.971249 | E163: 0
B164: 2026 | C164: 5421.1 | D164: 1113.138955 | E164: 0
B165: 2027 | C165: 5542.4 | D165: 1143.46124 | E165: 0
B166: 2028 | C166: 5601.7 | D166: 1166.874541 | E166: 0
B167: 2029 | C167: =C166*1.0225 -> 5727.73825 | D167: 1177.529625 | E167: 0
B168: 2030 | C168: =C167*1.0225 -> 5856.612361 | D168: 1188.443792 | E168: 0
B169: 2031 | C169: 5988.386139 | D169: 1194.618708 | E169: 0
B170: 2032 | C170: 6123.124827 | D170: 1206.056186 | E170: 0
B171: 2033 | C171: 6260.895135 | D171: 1212.758184 | E171: 0
B172: 2034 | C172: 6401.765276 | D172: 1224.726808 | E172: 0
B173: 2035 | C173: 6545.804995 | D173: 1236.964311 | E173: 0
B174: 2036 | C174: 6693.085607 | D174: 1244.473093 | E174: 0
B175: 2037 | C175: 6843.680033 | D175: 1257.255703 | E175: 0
B176: 2038 | C176: 6997.662834 | D176: 1270.314839 | E176: 0
B177: 2039 | C177: 7155.110248 | D177: 1278.653349 | E177: 0
B178: 2040 | C178: 7316.100228 | D178: 1292.274232 | E178: 0
B179: 2041 | C179: 7480.712483 | D179: 1306.180638 | E179: 0
B180: 2042 | C180: 7649.028514 | D180: 1315.37587 | E180: 0
B181: 2043 | C181: 7821.131656 | D181: 1329.863387 | E181: 0
B182: Source | C182: OMB 10-year budget projection; adjusted for inflation post-10-year window. DOR Revenue Forecast.
A185: 5 | B185: Other Reserves
B188: Total Other Reserves | C188: Million $
B189: Starting value (BOY 2019) | C189: 2000
B190: Yearly deposit (status quo) | C190: 100
B191: Long-term earn rate | C191: 0.05
B192: Short-term earn rate | C192: 0.0225
B193: Threshold for long-term earn rate | C193: Five times prior year's draw
B194: Source | C194: DOR, Treasury Division

Sheet Fund Model
B1: Legend
B2: Cell linked to assumptions sheet
B3: All values in millions of nominal dollars unless otherwise specified.
B4: Assumptions
J6: @RISK Correlations | K6: Statitory Earn Rate | L6: Total Return | M6: Price of Oil | Q6: Initial POMV | R6: =Assumptions!C24 -> 0.0525 | W6: Dividend Floor | X6: =Assumptions!C110 -> 0
D7: Starting Assets | E7: =Assumptions!C20 -> 62632 | H7: Calculated | J7: Statitory Earn Rate | K7: =Assumptions!C62 -> 1 | Q7: Years of initial | R7: =Assumptions!C25 -> 2 | W7: % of POMV | X7: =Assumptions!C111 -> 0.3
D8: Long Run Geometric Mean | E8: =Assumptions!C49 -> 0.065 | G8: Arithmetic Mean | H8: =E8 + E9^2/2 -> 0.07266322 | J8: Total Return | K8: =Assumptions!C63 -> 0.75 | L8: =Assumptions!D63 -> 1 | Q8: Long-term POMV | R8: =Assumptions!C26 -> 0.05 | W8: % of Total Royalties | X8: =Assumptions!C112 -> 0
D9: Standard Deviation | E9: =Assumptions!C50 -> 0.1238 | J9: Price of Oil | K9: =Assumptions!C64 -> 0 | L9: =Assumptions!D64 -> 0 | M9: =Assumptions!E64 -> 1 | Q9: Inflation Rate | R9: =Assumptions!C14 -> 0.0225
B11: Model
T12: Excluded Amount | W12: Dividend Calculation | AE12: General Fund Revenues | AJ12: Petroleum Reduction Level | AN12: General Fund Revenues (Continued) | AU12: Median Results from prior run | BD12: Results from current iteration | BO12: Budget Handling
B13: Fiscal Year | C13: Year No. | D13: Total Return | E13: Petroleum Deposits | F13: Asset Base BOY | G13: Asset Base BOY Real | H13: Investment Revenue | I13: Expenses | J13: AM HESS Transfer | K13: General Fund Transfer | L13: General Fund Transfer Real | M13: Additional Dividend payment | N13: Unplanned Withdrawal and Lost Earnings | O13: Change in Asset Base | P13: Asset Base EOY | Q13: Asset Base EOY Real | S13: Payout Amount | T13: =Assumptions!C27 -> 424.4 | W13: Funds for Dividend | X13: Program Costs | Y13: Number of Recipients | Z13: Per Person Dividend | AB13: Median values | AI13: Enable | AJ13: =Assumptions!C147 -> TRUE | BT13: Starting value (BOY 2019) | BU13: =Assumptions!C189 -> 2000 | BW13: High-balance earn rate | BX13: =Assumptions!C191 -> 0.05
B14: =B15-1 -> 2013 | F14: 40333 | P14: =F15 -> 44853 | AI14: Level | AJ14: =Assumptions!C148 -> 1200 | BT14: Yearly deposit (status quo) | BU14: =Assumptions!C190 -> 100 | BW14: Short-term earn rate | BX14: =Assumptions!C192 -> 0.0225
B15: 2014 | F15: 44853 | P15: 51214 | AI15: % of Reduction | AJ15: =Assumptions!C149 -> 0.8 | BT15: Enable Budget | BU15: =Assumptions!H156 -> TRUE | BW15: Long term threshold | BX15: 5X last year's draw
B16: 2015 | F16: 51214 | P16: 52800 | AI16: Inflate | AJ16: =Assumptions!C150 -> FALSE
B17: 2016 | F17: 52800 | P17: 52769 | AE17: POMV After Dividend | AF17: Unrestricted Royalty | AG17: Unrestricted Production Tax | AH17: Subtotal UGF Deposits | AN17: Subtotal GF Deposits | AO17: Other Status Quo UGF | AP17: Other New UGF | AQ17: Total UGF | AR17: Including Dividend Transfer | AV17: POMV Withdrawal | AW17: Dividend Dedicated Funds | AX17: Unrestricted Royalties | AY17: Production Tax | AZ17: Other New Revenues | BA17: Other UGF Revenues | BE17: POMV Withdrawal | BF17: Dividend Dedicated Funds | BG17: Unrestricted Royalties | BH17: Production Tax | BI17: Other New Revenues | BJ17: Other UGF Revenues
B18: 2017 | F18: 52769 | P18: 59785 | AJ18: Reduction of POMV Amount | BO18: UGF Budget | BP18: UGF Revenue | BQ18: Surplus or Deficit | BU18: BoY Balance | BV18: Investment Earnings | BW18: Settlement Deposits | BX18: Deposit or Withdrawal | BY18: EoY Balance | CA18: Uncovered Withdrawal
B19: =B20-1 -> 2018 | F19: 59785 | P19: =F20 -> 62632 | T19: POMV Percentage | V19: CY | W19: =M19 -> 0 | AJ19: Amount Reduced | AK19: Threshold
B20: =Assumptions!C12 -> 2019 | C20: Year 1 | D20: =IF(F20<0,0,_xll.RiskNormal($H$8,$E$9,_xll.RiskCorrmat('Fund Model'!$K$7:$M$9,2,'Fund Model'!C20),_xll.RiskStatic($E$8))) ->  | E20: ='Petroleum Model'!D337 ->  | F20: =_xll.RiskOutput(,"Asset Base Nominal",1) + E7 -> 62632 | G20: =_xll.RiskOutput(,,1)+F20/(1+$R$9)^($B20-$B$20) -> 62632 | H20: =_xll.RiskOutput(,,1)+((F20-M20+(0.5*E20))-(0.5*K20))*D20 ->  | I20: =Assumptions!C37 -> 26.6 | J20: =(MAX(424.4*I57,0)) ->  | K20: =MAX(S20*(1-$X$7)-AJ20,0) ->  | L20: =_xll.RiskOutput(,,1)+IF(F20>0,K20/((1+$R$9)^(B20-$B$19+0.5)),0) ->  | M20: =MAX(S20*$X$7,Y20*$X$6/1000000+X20 - 'Petroleum Model'!E337) ->  | N20: =CA20*$BU$15*(1+D20*0.5) ->  | O20: =H20-K20-I20-J20+E20+N20-M20 ->  | P20: =_xll.RiskOutput(,,1)+F20+O20 ->  | Q20: =_xll.RiskOutput(,,1)+P20/((1+$R$9)^($B20-$B$19)) ->  | S20: =_xll.RiskOutput(,"Year 1",11)+(AVERAGE(F15:F19)-$T$13)*T20 -> 2722.6395 | T20: =IF(COUNT($B$20:B20) - 1 < $R$7, $R$6, $R$8) -> 0.0525 | V20: =B20-1 -> 2018 | W20: =M20 + 'Petroleum Model'!E337 ->  | X20: =Assumptions!F117 -> 25.971 | Y20: =Assumptions!C117 -> 656240.6912 | Z20: =_xll.RiskOutput(,,1)+(W20-X20)*1000000/Y20 ->  | AB20: =_xll.RiskPercentile(Z20,0.5,_xll.RiskStatic(NA())) ->  | AD20: =B20 -> 2019 | AE20: =_xll.RiskOutput()+K20 ->  | AF20: ='Petroleum Model'!F337 ->  | AG20: ='Petroleum Model'!G337 ->  | AH20: =_xll.RiskOutput(,,4)+SUM(AE20:AG20) ->  | AJ20: =$AJ$13*$AJ$15*MAX(AF20+AG20-AK20,0) ->  | AK20: =AJ14 -> 1200 | AN20: =AH20 ->  | AO20: =Assumptions!D157 -> 909.3972461 | AP20: =Assumptions!E157 -> 0 | AQ20: =_xll.RiskOutput(,,1)+AN20+AO20+AP20 ->  | AR20: =_xll.RiskOutput(,,1)+AQ20+W20 ->  | AU20: FY 2019 | AV20: =_xll.RiskPercentile(AE20,0.5, _xll.RiskStatic(NA())) ->  | AW20: =_xll.RiskPercentile(W20,0.5, _xll.RiskStatic(NA())) ->  | AX20: =_xll.RiskPercentile(AF20,0.5, _xll.RiskStatic(NA())) ->  | AY20: =_xll.RiskPercentile(AG20,0.5, _xll.RiskStatic(NA())) ->  | AZ20: =_xll.RiskPercentile(AP20, 0.5, _xll.RiskStatic(NA())) ->  | BA20: =_xll.RiskPercentile(AO20, 0.5, _xll.RiskStatic(NA())) ->  | BD20: FY 2019 | BE20: =AE20 ->  | BF20: =W20 ->  | BG20: =AF20 ->  | BH20: =AG20 ->  | BI20: =AP20 -> 0 | BJ20: =AO20 -> 909.3972461 | BN20: FY 2019 | BO20: =Assumptions!C157 -> 4583.1 | BP20: =AQ20 ->  | BQ20: =BP20-BO20 ->  | BT20: =BN20 -> FY 2019 | BU20: =_xll.RiskOutput(,BU18,1)+$BU$13 -> 2000 | BV20: =BU20*BX14 -> 45 | BW20: =BU14 -> 100 | BX20: =-(MIN(-BQ20,BU20+BV20+BW20)) ->  | BY20: =BU20+BV20+BW20+BX20 ->  | CA20: =BQ20-BX20 -> 
B21: =B20+1 -> 2020 | C21: Year 2 | D21: =IF(F21<0,0,_xll.RiskNormal($H$8,$E$9,_xll.RiskCorrmat('Fund Model'!$K$7:$M$9,2,'Fund Model'!C21),_xll.RiskStatic($E$8))) ->  | E21: ='Petroleum Model'!D338 ->  | F21: =_xll.RiskOutput(,"Asset Base Nominal",2)+O20+F20 ->  | G21: =_xll.RiskOutput(,,1)+F21/(1+$R$9)^($B21-$B$20) ->  | H21: =_xll.RiskOutput(,,1)+((F21-M21+(0.5*E21))-(0.5*K21))*D21 ->  | I21: =I20*F21/F20 ->  | J21: =(MAX(424.4*I58,0)) ->  | L21: =_xll.RiskOutput(,,1)+IF(F21>0,K21/((1+$R$9)^(B21-$B$19+0.5)),0) ->  | M21: =MAX(S21*$X$7,Y21*$X$6/1000000+X21 - 'Petroleum Model'!E338) ->  | O21: =H21-K21-I21-J21+E21+N21-M21 ->  | P21: =_xll.RiskOutput(,,2)+F21+O21 ->  | Q21: =_xll.RiskOutput(,,1)+P21/((1+$R$9)^($B21-$B$19)) ->  | S21: =_xll.RiskOutput(,"Year 1",11)+(AVERAGE(F16:F20)-$T$13)*T21 -> 2909.319 | T21: =IF(COUNT($B$20:B21) - 1 < $R$7, $R$6, $R$8) -> 0.0525 | V21: =V20+1 -> 2019 | W21: =M21 + 'Petroleum Model'!E337 ->  | X21: =Assumptions!F118 -> 26.156535 | Y21: =Assumptions!C118 -> 663013.6283 | Z21: =_xll.RiskOutput(,,1)+(W21-X21)*1000000/Y21 ->  | AB21: =_xll.RiskPercentile(Z21,0.5,_xll.RiskStatic(NA())) ->  | AD21: =B21 -> 2020 | AE21: =_xll.RiskOutput()+K21 ->  | AF21: ='Petroleum Model'!F338 ->  | AG21: ='Petroleum Model'!G338 ->  | AH21: =_xll.RiskOutput(,,4)+SUM(AE21:AG21) ->  | AK21: =AK20*(1+$R$9*$AJ$16) -> 1200 | AO21: =Assumptions!D158 -> 929.4823712 | AP21: =Assumptions!E158 -> 0 | AQ21: =_xll.RiskOutput(,,1)+AN21+AO21+AP21 ->  | AR21: =_xll.RiskOutput(,,1)+AQ21+W21 ->  | AU21: FY 2020 | AV21: =_xll.RiskPercentile(AE21,0.5, _xll.RiskStatic(NA())) ->  | AW21: =_xll.RiskPercentile(W21,0.5, _xll.RiskStatic(NA())) ->  | AX21: =_xll.RiskPercentile(AF21,0.5, _xll.RiskStatic(NA())) ->  | AY21: =_xll.RiskPercentile(AG21,0.5, _xll.RiskStatic(NA())) ->  | AZ21: =_xll.RiskPercentile(AP21, 0.5, _xll.RiskStatic(NA())) ->  | BA21: =_xll.RiskPercentile(AO21, 0.5, _xll.RiskStatic(NA())) ->  | BD21: FY 2020 | BE21: =AE21 ->  | BF21: =W21 ->  | BG21: =AF21 ->  | BH21: =AG21 ->  | BI21: =AP21 -> 0 | BJ21: =AO21 -> 929.4823712 | BN21: FY 2020 | BO21: =Assumptions!C158 -> 4720.6 | BP21: =AQ21 ->  | BQ21: =BP21-BO21 ->  | BT21: =BN21 -> FY 2020 | BU21: =_xll.RiskOutput(,BU18,2)+BY20 ->  | BV21: =MAX(BU21+5*MIN(BX20,0),0)*$BX$13+(MIN(-5*MIN(BX20,0),BU21)*$BX$14) ->  | BW21: =BW20 -> 100 | BX21: =-(MIN(-BQ21,BU21+BV21+BW21)) ->  | BY21: =BU21+BV21+BW21+BX21 ->  | CA21: =BQ21-BX21 -> 
B22: =B21+1 -> 2021 | C22: Year 3 | D22: =IF(F22<0,0,_xll.RiskNormal($H$8,$E$9,_xll.RiskCorrmat('Fund Model'!$K$7:$M$9,2,'Fund Model'!C22),_xll.RiskStatic($E$8))) ->  | E22: ='Petroleum Model'!D339 ->  | F22: =_xll.RiskOutput(,"Asset Base Nominal",2)+O21+F21 ->  | G22: =_xll.RiskOutput(,,1)+F22/(1+$R$9)^($B22-$B$20) ->  | H22: =_xll.RiskOutput(,,1)+((F22-M22+(0.5*E22))-(0.5*K22))*D22 ->  | I22: =I21*F22/F21 ->  | J22: =(MAX(424.4*I59,0)) ->  | L22: =_xll.RiskOutput(,,1)+IF(F22>0,K22/((1+$R$9)^(B22-$B$19+0.5)),0) ->  | M22: =MAX(S22*$X$7,Y22*$X$6/1000000+X22 - 'Petroleum Model'!E339) ->  | O22: =H22-K22-I22-J22+E22+N22-M22 ->  | P22: =_xll.RiskOutput(,,2)+F22+O22 ->  | Q22: =_xll.RiskOutput(,,1)+P22/((1+$R$9)^($B22-$B$19)) ->  | S22: =_xll.RiskOutput(,"Year 1",11)+(AVERAGE(F17:F21)-$T$13)*T22 ->  | T22: =IF(COUNT($B$20:B22) - 1 < $R$7, $R$6, $R$8) -> 0.05 | V22: =V21+1 -> 2020 | W22: =M22 + 'Petroleum Model'!E338 ->  | X22: =Assumptions!F119 -> 26.34624454 | Y22: =Assumptions!C119 -> 669717.8674 | Z22: =_xll.RiskOutput(,,1)+(W22-X22)*1000000/Y22 ->  | AB22: =_xll.RiskPercentile(Z22,0.5,_xll.RiskStatic(NA())) ->  | AD22: 2021 | AE22: =_xll.RiskOutput()+K22 ->  | AF22: ='Petroleum Model'!F339 ->  | AG22: ='Petroleum Model'!G339 ->  | AH22: =_xll.RiskOutput(,,4)+SUM(AE22:AG22) ->  | AK22: 1200 | AO22: =Assumptions!D159 -> 986.7370133 | AP22: =Assumptions!E159 -> 0 | AQ22: =_xll.RiskOutput(,,1)+AN22+AO22+AP22 ->  | AR22: =_xll.RiskOutput(,,1)+AQ22+W22 ->  | AU22: FY 2021 | AV22: =_xll.RiskPercentile(AE22,0.5, _xll.RiskStatic(NA())) ->  | AW22: =_xll.RiskPercentile(W22,0.5, _xll.RiskStatic(NA())) ->  | AX22: =_xll.RiskPercentile(AF22,0.5, _xll.RiskStatic(NA())) ->  | AY22: =_xll.RiskPercentile(AG22,0.5, _xll.RiskStatic(NA())) ->  | AZ22: =_xll.RiskPercentile(AP22, 0.5, _xll.RiskStatic(NA())) ->  | BA22: =_xll.RiskPercentile(AO22, 0.5, _xll.RiskStatic(NA())) ->  | BD22: FY 2021 | BI22: 0 | BJ22: 986.7370133 | BN22: FY 2021 | BO22: =Assumptions!C159 -> 4873.3 | BT22: FY 2021 | BU22: =_xll.RiskOutput(,BU18,3)+BY21 ->  | BV22: =MAX(BU22+5*MIN(BX21,0),0)*$BX$13+(MIN(-5*MIN(BX21,0),BU22)*$BX$14) ->  | BW22: =BW21 -> 100 | BY22: =BU22+BV22+BW22+BX22 -> 
B23: 2022 | C23: Year 4 | D23: =IF(F23<0,0,_xll.RiskNormal($H$8,$E$9,_xll.RiskCorrmat('Fund Model'!$K$7:$M$9,2,'Fund Model'!C23),_xll.RiskStatic($E$8))) ->  | E23: ='Petroleum Model'!D340 ->  | F23: =_xll.RiskOutput(,"Asset Base Nominal",2)+O22+F22 ->  | G23: =_xll.RiskOutput(,,1)+F23/(1+$R$9)^($B23-$B$20) ->  | H23: =_xll.RiskOutput(,,1)+((F23-M23+(0.5*E23))-(0.5*K23))*D23 ->  | L23: =_xll.RiskOutput(,,1)+IF(F23>0,K23/((1+$R$9)^(B23-$B$19+0.5)),0) ->  | M23: =MAX(S23*$X$7,Y23*$X$6/1000000+X23 - 'Petroleum Model'!E340) ->  | O23: =H23-K23-I23-J23+E23+N23-M23 ->  | P23: =_xll.RiskOutput(,,2)+F23+O23 ->  | Q23: =_xll.RiskOutput(,,1)+P23/((1+$R$9)^($B23-$B$19)) ->  | S23: =_xll.RiskOutput(,"Year 1",11)+(AVERAGE(F18:F22)-$T$13)*T23 ->  | T23: =IF(COUNT($B$20:B23) - 1 < $R$7, $R$6, $R$8) -> 0.05 | V23: 2021 | W23: =M23 + 'Petroleum Model'!E339 ->  | X23: =Assumptions!F120 -> 26.54022254 | Y23: =Assumptions!C120 -> 676356.1002 | Z23: =_xll.RiskOutput(,,1)+(W23-X23)*1000000/Y23 ->  | AB23: =_xll.RiskPercentile(Z23,0.5,_xll.RiskStatic(NA())) ->  | AD23: 2022 | AE23: =_xll.RiskOutput()+K23 ->  | AF23: ='Petroleum Model'!F340 ->  | AG23: ='Petroleum Model'!G340 ->  | AH23: =_xll.RiskOutput(,,4)+SUM(AE23:AG23) ->  | AK23: 1200 | AO23: =Assumptions!D160 -> 1016.994598 | AP23: =Assumptions!E160 -> 0 | AQ23: =_xll.RiskOutput(,,1)+AN23+AO23+AP23 ->  | AR23: =_xll.RiskOutput(,,1)+AQ23+W23 ->  | AU23: FY 2022 | AV23: =_xll.RiskPercentile(AE23,0.5, _xll.RiskStatic(NA())) ->  | AW23: =_xll.RiskPercentile(W23,0.5, _xll.RiskStatic(NA())) ->  | AX23: =_xll.RiskPercentile(AF23,0.5, _xll.RiskStatic(NA())) ->  | AY23: =_xll.RiskPercentile(AG23,0.5, _xll.RiskStatic(NA())) ->  | AZ23: =_xll.RiskPercentile(AP23, 0.5, _xll.RiskStatic(NA())) ->  | BA23: =_xll.RiskPercentile(AO23, 0.5, _xll.RiskStatic(NA())) ->  | BD23: FY 2022 | BI23: 0 | BJ23: 1016.994598 | BN23: FY 2022 | BO23: =Assumptions!C160 -> 4981.6 | BT23: FY 2022 | BU23: =_xll.RiskOutput(,BU18,4)+BY22 ->  | BW23: =BW22 -> 100
B24: 2023 | C24: Year 5 | D24: =IF(F24<0,0,_xll.RiskNormal($H$8,$E$9,_xll.RiskCorrmat('Fund Model'!$K$7:$M$9,2,'Fund Model'!C24),_xll.RiskStatic($E$8))) ->  | E24: ='Petroleum Model'!D341 ->  | F24: =_xll.RiskOutput(,"Asset Base Nominal",2)+O23+F23 ->  | G24: =_xll.RiskOutput(,,1)+F24/(1+$R$9)^($B24-$B$20) ->  | H24: =_xll.RiskOutput(,,1)+((F24-M24+(0.5*E24))-(0.5*K24))*D24 ->  | L24: =_xll.RiskOutput(,,1)+IF(F24>0,K24/((1+$R$9)^(B24-$B$19+0.5)),0) ->  | M24: =MAX(S24*$X$7,Y24*$X$6/1000000+X24 - 'Petroleum Model'!E341) ->  | P24: =_xll.RiskOutput(,,2)+F24+O24 ->  | Q24: =_xll.RiskOutput(,,1)+P24/((1+$R$9)^($B24-$B$19)) ->  | S24: =_xll.RiskOutput(,"Year 1",11)+(AVERAGE(F19:F23)-$T$13)*T24 ->  | T24: =IF(COUNT($B$20:B24) - 1 < $R$7, $R$6, $R$8) -> 0.05 | V24: 2022 | W24: =M24 + 'Petroleum Model'!E340 ->  | X24: =Assumptions!F121 -> 26.73856505 | Y24: =Assumptions!C121 -> 682898.8716 | Z24: =_xll.RiskOutput(,,1)+(W24-X24)*1000000/Y24 ->  | AB24: =_xll.RiskPercentile(Z24,0.5,_xll.RiskStatic(NA())) ->  | AD24: 2023 | AE24: =_xll.RiskOutput()+K24 ->  | AF24: ='Petroleum Model'!F341 ->  | AG24: ='Petroleum Model'!G341 ->  | AH24: =_xll.RiskOutput(,,4)+SUM(AE24:AG24) ->  | AK24: 1200 | AO24: =Assumptions!D161 -> 1047.300139 | AP24: =Assumptions!E161 -> 0 | AQ24: =_xll.RiskOutput(,,1)+AN24+AO24+AP24 ->  | AR24: =_xll.RiskOutput(,,1)+AQ24+W24 ->  | AU24: FY 2023 | AV24: =_xll.RiskPercentile(AE24,0.5, _xll.RiskStatic(NA())) ->  | AW24: =_xll.RiskPercentile(W24,0.5, _xll.RiskStatic(NA())) ->  | AX24: =_xll.RiskPercentile(AF24,0.5, _xll.RiskStatic(NA())) ->  | AY24: =_xll.RiskPercentile(AG24,0.5, _xll.RiskStatic(NA())) ->  | AZ24: =_xll.RiskPercentile(AP24, 0.5, _xll.RiskStatic(NA())) ->  | BA24: =_xll.RiskPercentile(AO24, 0.5, _xll.RiskStatic(NA())) ->  | BD24: FY 2023 | BI24: 0 | BJ24: 1047.300139 | BN24: FY 2023 | BO24: =Assumptions!C161 -> 5105.5 | BT24: FY 2023 | BU24: =_xll.RiskOutput(,BU18,5)+BY23 ->  | BW24: 100
B25: 2024 | C25: Year 6 | D25: =IF(F25<0,0,_xll.RiskNormal($H$8,$E$9,_xll.RiskCorrmat('Fund Model'!$K$7:$M$9,2,'Fund Model'!C25),_xll.RiskStatic($E$8))) ->  | E25: ='Petroleum Model'!D342 ->  | F25: =_xll.RiskOutput(,"Asset Base Nominal",2)+O24+F24 ->  | G25: =_xll.RiskOutput(,,1)+F25/(1+$R$9)^($B25-$B$20) ->  | H25: =_xll.RiskOutput(,,1)+((F25-M25+(0.5*E25))-(0.5*K25))*D25 ->  | L25: =_xll.RiskOutput(,,1)+IF(F25>0,K25/((1+$R$9)^(B25-$B$19+0.5)),0) ->  | M25: =MAX(S25*$X$7,Y25*$X$6/1000000+X25 - 'Petroleum Model'!E342) ->  | P25: =_xll.RiskOutput(,,2)+F25+O25 ->  | Q25: =_xll.RiskOutput(,,1)+P25/((1+$R$9)^($B25-$B$19)) ->  | S25: =_xll.RiskOutput(,"Year 1",11)+(AVERAGE(F20:F24)-$T$13)*T25 ->  | T25: =IF(COUNT($B$20:B25) - 1 < $R$7, $R$6, $R$8) -> 0.05 | V25: 2023 | W25: =M25 + 'Petroleum Model'!E341 ->  | X25: =Assumptions!F122 -> 27.34018276 | Y25: =Assumptions!C122 -> 689356.887 | Z25: =_xll.RiskOutput(,,1)+(W25-X25)*1000000/Y25 ->  | AB25: =_xll.RiskPercentile(Z25,0.5,_xll.RiskStatic(NA())) ->  | AD25: 2024 | AE25: =_xll.RiskOutput()+K25 ->  | AF25: ='Petroleum Model'!F342 ->  | AG25: ='Petroleum Model'!G342 ->  | AH25: =_xll.RiskOutput(,,4)+SUM(AE25:AG25) ->  | AK25: 1200 | AO25: =Assumptions!D162 -> 1067.605168 | AP25: =Assumptions!E162 -> 0 | AQ25: =_xll.RiskOutput(,,1)+AN25+AO25+AP25 ->  | AR25: =_xll.RiskOutput(,,1)+AQ25+W25 ->  | AU25: FY 2024 | AV25: =_xll.RiskPercentile(AE25,0.5, _xll.RiskStatic(NA())) ->  | AW25: =_xll.RiskPercentile(W25,0.5, _xll.RiskStatic(NA())) ->  | AX25: =_xll.RiskPercentile(AF25,0.5, _xll.RiskStatic(NA())) ->  | AY25: =_xll.RiskPercentile(AG25,0.5, _xll.RiskStatic(NA())) ->  | AZ25: =_xll.RiskPercentile(AP25, 0.5, _xll.RiskStatic(NA())) ->  | BA25: =_xll.RiskPercentile(AO25, 0.5, _xll.RiskStatic(NA())) ->  | BD25: FY 2024 | BI25: 0 | BJ25: 1067.605168 | BN25: FY 2024 | BO25: =Assumptions!C162 -> 5211.7 | BT25: FY 2024 | BU25: =_xll.RiskOutput(,BU18,6)+BY24 ->  | BW25: 100
B26: 2025 | C26: Year 7 | D26: =IF(F26<0,0,_xll.RiskNormal($H$8,$E$9,_xll.RiskCorrmat('Fund Model'!$K$7:$M$9,2,'Fund Model'!C26),_xll.RiskStatic($E$8))) ->  | E26: ='Petroleum Model'!D343 ->  | F26: =_xll.RiskOutput(,"Asset Base Nominal",2)+O25+F25 ->  | G26: =_xll.RiskOutput(,,1)+F26/(1+$R$9)^($B26-$B$20) ->  | H26: =_xll.RiskOutput(,,1)+((F26-M26+(0.5*E26))-(0.5*K26))*D26 ->  | L26: =_xll.RiskOutput(,,1)+IF(F26>0,K26/((1+$R$9)^(B26-$B$19+0.5)),0) ->  | M26: =MAX(S26*$X$7,Y26*$X$6/1000000+X26 - 'Petroleum Model'!E343) ->  | P26: =_xll.RiskOutput(,,2)+F26+O26 ->  | Q26: =_xll.RiskOutput(,,1)+P26/((1+$R$9)^($B26-$B$19)) ->  | S26: =_xll.RiskOutput(,"Year 1",11)+(AVERAGE(F21:F25)-$T$13)*T26 ->  | T26: =IF(COUNT($B$20:B26) - 1 < $R$7, $R$6, $R$8) -> 0.05 | V26: 2024 | W26: =M26 + 'Petroleum Model'!E342 ->  | X26: =Assumptions!F123 -> 27.95533687 | Y26: =Assumptions!C123 -> 695681.9824 | Z26: =_xll.RiskOutput(,,1)+(W26-X26)*1000000/Y26 ->  | AB26: =_xll.RiskPercentile(Z26,0.5,_xll.RiskStatic(NA())) ->  | AD26: 2025 | AE26: =_xll.RiskOutput()+K26 ->  | AF26: ='Petroleum Model'!F343 ->  | AG26: ='Petroleum Model'!G343 ->  | AH26: =_xll.RiskOutput(,,4)+SUM(AE26:AG26) ->  | AK26: 1200 | AO26: =Assumptions!D163 -> 1087.971249 | AP26: =Assumptions!E163 -> 0 | AQ26: =_xll.RiskOutput(,,1)+AN26+AO26+AP26 ->  | AR26: =_xll.RiskOutput(,,1)+AQ26+W26 ->  | AU26: FY 2025 | AV26: =_xll.RiskPercentile(AE26,0.5, _xll.RiskStatic(NA())) ->  | AW26: =_xll.RiskPercentile(W26,0.5, _xll.RiskStatic(NA())) ->  | AX26: =_xll.RiskPercentile(AF26,0.5, _xll.RiskStatic(NA())) ->  | AY26: =_xll.RiskPercentile(AG26,0.5, _xll.RiskStatic(NA())) ->  | AZ26: =_xll.RiskPercentile(AP26, 0.5, _xll.RiskStatic(NA())) ->  | BA26: =_xll.RiskPercentile(AO26, 0.5, _xll.RiskStatic(NA())) ->  | BD26: FY 2025 | BI26: 0 | BJ26: 1087.971249 | BN26: FY 2025 | BO26: =Assumptions!C163 -> 5311.5 | BT26: FY 2025 | BU26: =_xll.RiskOutput(,BU18,7)+BY25 ->  | BW26: 100
B27: 2026 | C27: Year 8 | D27: =IF(F27<0,0,_xll.RiskNormal($H$8,$E$9,_xll.RiskCorrmat('Fund Model'!$K$7:$M$9,2,'Fund Model'!C27),_xll.RiskStatic($E$8))) ->  | E27: ='Petroleum Model'!D344 ->  | F27: =_xll.RiskOutput(,"Asset Base Nominal",2)+O26+F26 ->  | G27: =_xll.RiskOutput(,,1)+F27/(1+$R$9)^($B27-$B$20) ->  | H27: =_xll.RiskOutput(,,1)+((F27-M27+(0.5*E27))-(0.5*K27))*D27 ->  | L27: =_xll.RiskOutput(,,1)+IF(F27>0,K27/((1+$R$9)^(B27-$B$19+0.5)),0) ->  | M27: =MAX(S27*$X$7,Y27*$X$6/1000000+X27 - 'Petroleum Model'!E344) ->  | P27: =_xll.RiskOutput(,,2)+F27+O27 ->  | Q27: =_xll.RiskOutput(,,1)+P27/((1+$R$9)^($B27-$B$19)) ->  | S27: =_xll.RiskOutput(,"Year 1",11)+(AVERAGE(F22:F26)-$T$13)*T27 ->  | T27: =IF(COUNT($B$20:B27) - 1 < $R$7, $R$6, $R$8) -> 0.05 | V27: 2025 | W27: =M27 + 'Petroleum Model'!E343 ->  | X27: =Assumptions!F124 -> 28.58433195 | Y27: =Assumptions!C124 -> 701889.3185 | Z27: =_xll.RiskOutput(,,1)+(W27-X27)*1000000/Y27 ->  | AB27: =_xll.RiskPercentile(Z27,0.5,_xll.RiskStatic(NA())) ->  | AD27: 2026 | AE27: =_xll.RiskOutput()+K27 ->  | AF27: ='Petroleum Model'!F344 ->  | AG27: ='Petroleum Model'!G344 ->  | AH27: =_xll.RiskOutput(,,4)+SUM(AE27:AG27) ->  | AK27: 1200 | AO27: =Assumptions!D164 -> 1113.138955 | AP27: =Assumptions!E164 -> 0 | AQ27: =_xll.RiskOutput(,,1)+AN27+AO27+AP27 ->  | AR27: =_xll.RiskOutput(,,1)+AQ27+W27 ->  | AU27: FY 2026 | AV27: =_xll.RiskPercentile(AE27,0.5, _xll.RiskStatic(NA())) ->  | AW27: =_xll.RiskPercentile(W27,0.5, _xll.RiskStatic(NA())) ->  | AX27: =_xll.RiskPercentile(AF27,0.5, _xll.RiskStatic(NA())) ->  | AY27: =_xll.RiskPercentile(AG27,0.5, _xll.RiskStatic(NA())) ->  | AZ27: =_xll.RiskPercentile(AP27, 0.5, _xll.RiskStatic(NA())) ->  | BA27: =_xll.RiskPercentile(AO27, 0.5, _xll.RiskStatic(NA())) ->  | BD27: FY 2026 | BI27: 0 | BJ27: 1113.138955 | BN27: FY 2026 | BO27: =Assumptions!C164 -> 5421.1 | BT27: FY 2026 | BU27: =_xll.RiskOutput(,BU18,8)+BY26 ->  | BW27: 100
B28: 2027 | C28: Year 9 | D28: =IF(F28<0,0,_xll.RiskNormal($H$8,$E$9,_xll.RiskCorrmat('Fund Model'!$K$7:$M$9,2,'Fund Model'!C28),_xll.RiskStatic($E$8))) ->  | E28: ='Petroleum Model'!D345 ->  | F28: =_xll.RiskOutput(,"Asset Base Nominal",2)+O27+F27 ->  | G28: =_xll.RiskOutput(,,1)+F28/(1+$R$9)^($B28-$B$20) ->  | H28: =_xll.RiskOutput(,,1)+((F28-M28+(0.5*E28))-(0.5*K28))*D28 ->  | L28: =_xll.RiskOutput(,,1)+IF(F28>0,K28/((1+$R$9)^(B28-$B$19+0.5)),0) ->  | M28: =MAX(S28*$X$7,Y28*$X$6/1000000+X28 - 'Petroleum Model'!E345) ->  | P28: =_xll.RiskOutput(,,2)+F28+O28 ->  | Q28: =_xll.RiskOutput(,,1)+P28/((1+$R$9)^($B28-$B$19)) ->  | S28: =_xll.RiskOutput(,"Year 1",11)+(AVERAGE(F23:F27)-$T$13)*T28 ->  | T28: =IF(COUNT($B$20:B28) - 1 < $R$7, $R$6, $R$8) -> 0.05 | V28: 2026 | W28: =M28 + 'Petroleum Model'!E344 ->  | X28: =Assumptions!F125 -> 29.22747942 | Y28: =Assumptions!C125 -> 707972.6558 | Z28: =_xll.RiskOutput(,,1)+(W28-X28)*1000000/Y28 ->  | AB28: =_xll.RiskPercentile(Z28,0.5,_xll.RiskStatic(NA())) ->  | AD28: 2027 | AE28: =_xll.RiskOutput()+K28 ->  | AF28: ='Petroleum Model'!F345 ->  | AG28: ='Petroleum Model'!G345 ->  | AH28: =_xll.RiskOutput(,,4)+SUM(AE28:AG28) ->  | AK28: 1200 | AO28: =Assumptions!D165 -> 1143.46124 | AP28: =Assumptions!E165 -> 0 | AQ28: =_xll.RiskOutput(,,1)+AN28+AO28+AP28 ->  | AR28: =_xll.RiskOutput(,,1)+AQ28+W28 ->  | AU28: FY 2027 | AV28: =_xll.RiskPercentile(AE28,0.5, _xll.RiskStatic(NA())) ->  | AW28: =_xll.RiskPercentile(W28,0.5, _xll.RiskStatic(NA())) ->  | AX28: =_xll.RiskPercentile(AF28,0.5, _xll.RiskStatic(NA())) ->  | AY28: =_xll.RiskPercentile(AG28,0.5, _xll.RiskStatic(NA())) ->  | AZ28: =_xll.RiskPercentile(AP28, 0.5, _xll.RiskStatic(NA())) ->  | BA28: =_xll.RiskPercentile(AO28, 0.5, _xll.RiskStatic(NA())) ->  | BD28: FY 2027 | BI28: 0 | BJ28: 1143.46124 | BN28: FY 2027 | BO28: =Assumptions!C165 -> 5542.4 | BT28: FY 2027 | BU28: =_xll.RiskOutput(,BU18,9)+BY27 ->  | BW28: 100 | CA28: =BQ28-BX28 -> 
B29: 2028 | C29: Year 10 | D29: =IF(F29<0,0,_xll.RiskNormal($H$8,$E$9,_xll.RiskCorrmat('Fund Model'!$K$7:$M$9,2,'Fund Model'!C29),_xll.RiskStatic($E$8))) ->  | E29: ='Petroleum Model'!D346 ->  | F29: =_xll.RiskOutput(,"Asset Base Nominal",2)+O28+F28 ->  | G29: =_xll.RiskOutput(,,1)+F29/(1+$R$9)^($B29-$B$20) ->  | H29: =_xll.RiskOutput(,,1)+((F29-M29+(0.5*E29))-(0.5*K29))*D29 ->  | L29: =_xll.RiskOutput(,,1)+IF(F29>0,K29/((1+$R$9)^(B29-$B$19+0.5)),0) ->  | M29: =MAX(S29*$X$7,Y29*$X$6/1000000+X29 - 'Petroleum Model'!E346) ->  | P29: =_xll.RiskOutput(,,2)+F29+O29 ->  | Q29: =_xll.RiskOutput(,,1)+P29/((1+$R$9)^($B29-$B$19)) ->  | S29: =_xll.RiskOutput(,"Year 1",11)+(AVERAGE(F24:F28)-$T$13)*T29 ->  | T29: =IF(COUNT($B$20:B29) - 1 < $R$7, $R$6, $R$8) -> 0.05 | V29: 2027 | W29: =M29 + 'Petroleum Model'!E345 ->  | X29: =Assumptions!F126 -> 29.88509771 | Y29: =Assumptions!C126 -> 713931.984 | Z29: =_xll.RiskOutput(,,1)+(W29-X29)*1000000/Y29 ->  | AB29: =_xll.RiskPercentile(Z29,0.5,_xll.RiskStatic(NA())) ->  | AD29: 2028 | AE29: =_xll.RiskOutput()+K29 ->  | AF29: ='Petroleum Model'!F346 ->  | AG29: ='Petroleum Model'!G346 ->  | AH29: =_xll.RiskOutput(,,4)+SUM(AE29:AG29) ->  | AK29: 1200 | AO29: =Assumptions!D166 -> 1166.874541 | AP29: =Assumptions!E166 -> 0 | AQ29: =_xll.RiskOutput(,,1)+AN29+AO29+AP29 ->  | AR29: =_xll.RiskOutput(,,1)+AQ29+W29 ->  | AU29: FY 2028 | AV29: =_xll.RiskPercentile(AE29,0.5, _xll.RiskStatic(NA())) ->  | AW29: =_xll.RiskPercentile(W29,0.5, _xll.RiskStatic(NA())) ->  | AX29: =_xll.RiskPercentile(AF29,0.5, _xll.RiskStatic(NA())) ->  | AY29: =_xll.RiskPercentile(AG29,0.5, _xll.RiskStatic(NA())) ->  | AZ29: =_xll.RiskPercentile(AP29, 0.5, _xll.RiskStatic(NA())) ->  | BA29: =_xll.RiskPercentile(AO29, 0.5, _xll.RiskStatic(NA())) ->  | BD29: FY 2028 | BI29: 0 | BJ29: 1166.874541 | BN29: FY 2028 | BO29: =Assumptions!C166 -> 5601.7 | BT29: FY 2028 | BU29: =_xll.RiskOutput(,BU18,10)+BY28 ->  | BW29: 100 | BY29: =BU29+BV29+BW29+BX29 -> 
B30: 2029 | C30: Year 11 | D30: =IF(F30<0,0,_xll.RiskNormal($H$8,$E$9,_xll.RiskCorrmat('Fund Model'!$K$7:$M$9,2,'Fund Model'!C30),_xll.RiskStatic($E$8))) ->  | E30: ='Petroleum Model'!D347 ->  | F30: =_xll.RiskOutput(,"Asset Base Nominal",2)+O29+F29 ->  | G30: =_xll.RiskOutput(,,1)+F30/(1+$R$9)^($B30-$B$20) ->  | H30: =_xll.RiskOutput(,,1)+((F30-M30+(0.5*E30))-(0.5*K30))*D30 ->  | L30: =_xll.RiskOutput(,,1)+IF(F30>0,K30/((1+$R$9)^(B30-$B$19+0.5)),0) ->  | M30: =MAX(S30*$X$7,Y30*$X$6/1000000+X30 - 'Petroleum Model'!E347) ->  | P30: =_xll.RiskOutput(,,2)+F30+O30 ->  | Q30: =_xll.RiskOutput(,,1)+P30/((1+$R$9)^($B30-$B$19)) ->  | S30: =_xll.RiskOutput(,"Year 1",11)+(AVERAGE(F25:F29)-$T$13)*T30 ->  | T30: =IF(COUNT($B$20:B30) - 1 < $R$7, $R$6, $R$8) -> 0.05 | V30: 2028 | W30: =M30 + 'Petroleum Model'!E346 ->  | X30: =Assumptions!F127 -> 30.55751241 | Y30: =Assumptions!C127 -> 719763.7347 | Z30: =_xll.RiskOutput(,,1)+(W30-X30)*1000000/Y30 ->  | AB30: =_xll.RiskPercentile(Z30,0.5,_xll.RiskStatic(NA())) ->  | AD30: 2029 | AE30: =_xll.RiskOutput()+K30 ->  | AF30: ='Petroleum Model'!F347 ->  | AG30: ='Petroleum Model'!G347 ->  | AH30: =_xll.RiskOutput(,,4)+SUM(AE30:AG30) ->  | AK30: 1200 | AO30: =Assumptions!D167 -> 1177.529625 | AP30: =Assumptions!E167 -> 0 | AQ30: =_xll.RiskOutput(,,1)+AN30+AO30+AP30 ->  | AR30: =_xll.RiskOutput(,,1)+AQ30+W30 ->  | AU30: FY 2029 | AV30: =_xll.RiskPercentile(AE30,0.5, _xll.RiskStatic(NA())) ->  | AW30: =_xll.RiskPercentile(W30,0.5, _xll.RiskStatic(NA())) ->  | AX30: =_xll.RiskPercentile(AF30,0.5, _xll.RiskStatic(NA())) ->  | AY30: =_xll.RiskPercentile(AG30,0.5, _xll.RiskStatic(NA())) ->  | AZ30: =_xll.RiskPercentile(AP30, 0.5, _xll.RiskStatic(NA())) ->  | BA30: =_xll.RiskPercentile(AO30, 0.5, _xll.RiskStatic(NA())) ->  | BD30: FY 2029 | BI30: 0 | BJ30: 1177.529625 | BN30: FY 2029 | BO30: =Assumptions!C167 -> 5727.73825 | BT30: FY 2029 | BU30: =_xll.RiskOutput(,BU18,11)+BY29 ->  | BW30: 100
B31: 2030 | C31: Year 12 | D31: =IF(F31<0,0,_xll.RiskNormal($H$8,$E$9,_xll.RiskCorrmat('Fund Model'!$K$7:$M$9,2,'Fund Model'!C31),_xll.RiskStatic($E$8))) ->  | E31: ='Petroleum Model'!D348 ->  | F31: =_xll.RiskOutput(,"Asset Base Nominal",2)+O30+F30 ->  | G31: =_xll.RiskOutput(,,1)+F31/(1+$R$9)^($B31-$B$20) ->  | H31: =_xll.RiskOutput(,,1)+((F31-M31+(0.5*E31))-(0.5*K31))*D31 ->  | L31: =_xll.RiskOutput(,,1)+IF(F31>0,K31/((1+$R$9)^(B31-$B$19+0.5)),0) ->  | M31: =MAX(S31*$X$7,Y31*$X$6/1000000+X31 - 'Petroleum Model'!E348) ->  | P31: =_xll.RiskOutput(,,2)+F31+O31 ->  | Q31: =_xll.RiskOutput(,,1)+P31/((1+$R$9)^($B31-$B$19)) ->  | S31: =_xll.RiskOutput(,"Year 1",11)+(AVERAGE(F26:F30)-$T$13)*T31 ->  | T31: =IF(COUNT($B$20:B31) - 1 < $R$7, $R$6, $R$8) -> 0.05 | V31: 2029 | W31: =M31 + 'Petroleum Model'!E347 ->  | X31: =Assumptions!F128 -> 31.24505644 | Y31: =Assumptions!C128 -> 725466.1338 | Z31: =_xll.RiskOutput(,,1)+(W31-X31)*1000000/Y31 ->  | AB31: =_xll.RiskPercentile(Z31,0.5,_xll.RiskStatic(NA())) ->  | AD31: 2030 | AE31: =_xll.RiskOutput()+K31 ->  | AF31: ='Petroleum Model'!F348 ->  | AG31: ='Petroleum Model'!G348 ->  | AH31: =_xll.RiskOutput(,,4)+SUM(AE31:AG31) ->  | AK31: 1200 | AO31: =Assumptions!D168 -> 1188.443792 | AP31: =Assumptions!E168 -> 0 | AQ31: =_xll.RiskOutput(,,1)+AN31+AO31+AP31 ->  | AR31: =_xll.RiskOutput(,,1)+AQ31+W31 ->  | AU31: FY 2030 | AV31: =_xll.RiskPercentile(AE31,0.5, _xll.RiskStatic(NA())) ->  | AW31: =_xll.RiskPercentile(W31,0.5, _xll.RiskStatic(NA())) ->  | AX31: =_xll.RiskPercentile(AF31,0.5, _xll.RiskStatic(NA())) ->  | AY31: =_xll.RiskPercentile(AG31,0.5, _xll.RiskStatic(NA())) ->  | AZ31: =_xll.RiskPercentile(AP31, 0.5, _xll.RiskStatic(NA())) ->  | BA31: =_xll.RiskPercentile(AO31, 0.5, _xll.RiskStatic(NA())) ->  | BD31: FY 2030 | BI31: 0 | BJ31: 1188.443792 | BN31: FY 2030 | BO31: =Assumptions!C168 -> 5856.612361 | BT31: FY 2030 | BU31: =_xll.RiskOutput(,BU18,12)+BY30 ->  | BW31: 100
B32: 2031 | C32: Year 13 | D32: =IF(F32<0,0,_xll.RiskNormal($H$8,$E$9,_xll.RiskCorrmat('Fund Model'!$K$7:$M$9,2,'Fund Model'!C32),_xll.RiskStatic($E$8))) ->  | E32: ='Petroleum Model'!D349 ->  | F32: =_xll.RiskOutput(,"Asset Base Nominal",2)+O31+F31 ->  | G32: =_xll.RiskOutput(,,1)+F32/(1+$R$9)^($B32-$B$20) ->  | H32: =_xll.RiskOutput(,,1)+((F32-M32+(0.5*E32))-(0.5*K32))*D32 ->  | L32: =_xll.RiskOutput(,,1)+IF(F32>0,K32/((1+$R$9)^(B32-$B$19+0.5)),0) ->  | M32: =MAX(S32*$X$7,Y32*$X$6/1000000+X32 - 'Petroleum Model'!E349) ->  | P32: =_xll.RiskOutput(,,2)+F32+O32 ->  | Q32: =_xll.RiskOutput(,,1)+P32/((1+$R$9)^($B32-$B$19)) ->  | S32: =_xll.RiskOutput(,"Year 1",11)+(AVERAGE(F27:F31)-$T$13)*T32 ->  | T32: =IF(COUNT($B$20:B32) - 1 < $R$7, $R$6, $R$8) -> 0.05 | V32: 2030 | W32: =M32 + 'Petroleum Model'!E348 ->  | X32: =Assumptions!F129 -> 31.94807021 | Y32: =Assumptions!C129 -> 731072.1844 | Z32: =_xll.RiskOutput(,,1)+(W32-X32)*1000000/Y32 ->  | AB32: =_xll.RiskPercentile(Z32,0.5,_xll.RiskStatic(NA())) ->  | AD32: 2031 | AE32: =_xll.RiskOutput()+K32 ->  | AF32: ='Petroleum Model'!F349 ->  | AG32: ='Petroleum Model'!G349 ->  | AH32: =_xll.RiskOutput(,,4)+SUM(AE32:AG32) ->  | AK32: 1200 | AO32: =Assumptions!D169 -> 1194.618708 | AP32: =Assumptions!E169 -> 0 | AQ32: =_xll.RiskOutput(,,1)+AN32+AO32+AP32 ->  | AR32: =_xll.RiskOutput(,,1)+AQ32+W32 ->  | AU32: FY 2031 | AV32: =_xll.RiskPercentile(AE32,0.5, _xll.RiskStatic(NA())) ->  | AW32: =_xll.RiskPercentile(W32,0.5, _xll.RiskStatic(NA())) ->  | AX32: =_xll.RiskPercentile(AF32,0.5, _xll.RiskStatic(NA())) ->  | AY32: =_xll.RiskPercentile(AG32,0.5, _xll.RiskStatic(NA())) ->  | AZ32: =_xll.RiskPercentile(AP32, 0.5, _xll.RiskStatic(NA())) ->  | BA32: =_xll.RiskPercentile(AO32, 0.5, _xll.RiskStatic(NA())) ->  | BD32: FY 2031 | BI32: 0 | BJ32: 1194.618708 | BN32: FY 2031 | BO32: =Assumptions!C169 -> 5988.386139 | BT32: FY 2031 | BU32: =_xll.RiskOutput(,BU18,13)+BY31 ->  | BW32: 100
B33: 2032 | C33: Year 14 | D33: =IF(F33<0,0,_xll.RiskNormal($H$8,$E$9,_xll.RiskCorrmat('Fund Model'!$K$7:$M$9,2,'Fund Model'!C33),_xll.RiskStatic($E$8))) ->  | E33: ='Petroleum Model'!D350 ->  | F33: =_xll.RiskOutput(,"Asset Base Nominal",2)+O32+F32 ->  | G33: =_xll.RiskOutput(,,1)+F33/(1+$R$9)^($B33-$B$20) ->  | H33: =_xll.RiskOutput(,,1)+((F33-M33+(0.5*E33))-(0.5*K33))*D33 ->  | L33: =_xll.RiskOutput(,,1)+IF(F33>0,K33/((1+$R$9)^(B33-$B$19+0.5)),0) ->  | M33: =MAX(S33*$X$7,Y33*$X$6/1000000+X33 - 'Petroleum Model'!E350) ->  | P33: =_xll.RiskOutput(,,2)+F33+O33 ->  | Q33: =_xll.RiskOutput(,,1)+P33/((1+$R$9)^($B33-$B$19)) ->  | S33: =_xll.RiskOutput(,"Year 1",11)+(AVERAGE(F28:F32)-$T$13)*T33 ->  | T33: =IF(COUNT($B$20:B33) - 1 < $R$7, $R$6, $R$8) -> 0.05 | V33: 2031 | W33: =M33 + 'Petroleum Model'!E349 ->  | X33: =Assumptions!F130 -> 32.66690178 | Y33: =Assumptions!C130 -> 736564.0444 | Z33: =_xll.RiskOutput(,,1)+(W33-X33)*1000000/Y33 ->  | AB33: =_xll.RiskPercentile(Z33,0.5,_xll.RiskStatic(NA())) ->  | AD33: 2032 | AE33: =_xll.RiskOutput()+K33 ->  | AF33: ='Petroleum Model'!F350 ->  | AG33: ='Petroleum Model'!G350 ->  | AH33: =_xll.RiskOutput(,,4)+SUM(AE33:AG33) ->  | AK33: 1200 | AO33: =Assumptions!D170 -> 1206.056186 | AP33: =Assumptions!E170 -> 0 | AQ33: =_xll.RiskOutput(,,1)+AN33+AO33+AP33 ->  | AR33: =_xll.RiskOutput(,,1)+AQ33+W33 ->  | AU33: FY 2032 | AV33: =_xll.RiskPercentile(AE33,0.5, _xll.RiskStatic(NA())) ->  | AW33: =_xll.RiskPercentile(W33,0.5, _xll.RiskStatic(NA())) ->  | AX33: =_xll.RiskPercentile(AF33,0.5, _xll.RiskStatic(NA())) ->  | AY33: =_xll.RiskPercentile(AG33,0.5, _xll.RiskStatic(NA())) ->  | AZ33: =_xll.RiskPercentile(AP33, 0.5, _xll.RiskStatic(NA())) ->  | BA33: =_xll.RiskPercentile(AO33, 0.5, _xll.RiskStatic(NA())) ->  | BD33: FY 2032 | BI33: 0 | BJ33: 1206.056186 | BN33: FY 2032 | BO33: =Assumptions!C170 -> 6123.124827 | BT33: FY 2032 | BU33: =_xll.RiskOutput(,BU18,14)+BY32 ->  | BW33: 100 | CA33: =BQ33-BX33 -> 
B34: 2033 | C34: Year 15 | D34: =IF(F34<0,0,_xll.RiskNormal($H$8,$E$9,_xll.RiskCorrmat('Fund Model'!$K$7:$M$9,2,'Fund Model'!C34),_xll.RiskStatic($E$8))) ->  | E34: ='Petroleum Model'!D351 ->  | F34: =_xll.RiskOutput(,"Asset Base Nominal",2)+O33+F33 ->  | G34: =_xll.RiskOutput(,,1)+F34/(1+$R$9)^($B34-$B$20) ->  | H34: =_xll.RiskOutput(,,1)+((F34-M34+(0.5*E34))-(0.5*K34))*D34 ->  | L34: =_xll.RiskOutput(,,1)+IF(F34>0,K34/((1+$R$9)^(B34-$B$19+0.5)),0) ->  | M34: =MAX(S34*$X$7,Y34*$X$6/1000000+X34 - 'Petroleum Model'!E351) ->  | P34: =_xll.RiskOutput(,,2)+F34+O34 ->  | Q34: =_xll.RiskOutput(,,1)+P34/((1+$R$9)^($B34-$B$19)) ->  | S34: =_xll.RiskOutput(,"Year 1",11)+(AVERAGE(F29:F33)-$T$13)*T34 ->  | T34: =IF(COUNT($B$20:B34) - 1 < $R$7, $R$6, $R$8) -> 0.05 | V34: 2032 | W34: =M34 + 'Petroleum Model'!E350 ->  | X34: =Assumptions!F131 -> 33.40190708 | Y34: =Assumptions!C131 -> 741943.4978 | Z34: =_xll.RiskOutput(,,1)+(W34-X34)*1000000/Y34 ->  | AB34: =_xll.RiskPercentile(Z34,0.5,_xll.RiskStatic(NA())) ->  | AD34: 2033 | AE34: =_xll.RiskOutput()+K34 ->  | AF34: ='Petroleum Model'!F351 ->  | AG34: ='Petroleum Model'!G351 ->  | AH34: =_xll.RiskOutput(,,4)+SUM(AE34:AG34) ->  | AK34: 1200 | AO34: =Assumptions!D171 -> 1212.758184 | AP34: =Assumptions!E171 -> 0 | AQ34: =_xll.RiskOutput(,,1)+AN34+AO34+AP34 ->  | AR34: =_xll.RiskOutput(,,1)+AQ34+W34 ->  | AU34: FY 2033 | AV34: =_xll.RiskPercentile(AE34,0.5, _xll.RiskStatic(NA())) ->  | AW34: =_xll.RiskPercentile(W34,0.5, _xll.RiskStatic(NA())) ->  | AX34: =_xll.RiskPercentile(AF34,0.5, _xll.RiskStatic(NA())) ->  | AY34: =_xll.RiskPercentile(AG34,0.5, _xll.RiskStatic(NA())) ->  | AZ34: =_xll.RiskPercentile(AP34, 0.5, _xll.RiskStatic(NA())) ->  | BA34: =_xll.RiskPercentile(AO34, 0.5, _xll.RiskStatic(NA())) ->  | BD34: FY 2033 | BI34: 0 | BJ34: 1212.758184 | BN34: FY 2033 | BO34: =Assumptions!C171 -> 6260.895135 | BT34: FY 2033 | BU34: =_xll.RiskOutput(,BU18,15)+BY33 ->  | BW34: 100
B35: 2034 | C35: Year 16 | D35: =IF(F35<0,0,_xll.RiskNormal($H$8,$E$9,_xll.RiskCorrmat('Fund Model'!$K$7:$M$9,2,'Fund Model'!C35),_xll.RiskStatic($E$8))) ->  | E35: ='Petroleum Model'!D352 ->  | F35: =_xll.RiskOutput(,"Asset Base Nominal",2)+O34+F34 ->  | G35: =_xll.RiskOutput(,,1)+F35/(1+$R$9)^($B35-$B$20) ->  | H35: =_xll.RiskOutput(,,1)+((F35-M35+(0.5*E35))-(0.5*K35))*D35 ->  | L35: =_xll.RiskOutput(,,1)+IF(F35>0,K35/((1+$R$9)^(B35-$B$19+0.5)),0) ->  | M35: =MAX(S35*$X$7,Y35*$X$6/1000000+X35 - 'Petroleum Model'!E352) ->  | P35: =_xll.RiskOutput(,,2)+F35+O35 ->  | Q35: =_xll.RiskOutput(,,1)+P35/((1+$R$9)^($B35-$B$19)) ->  | S35: =_xll.RiskOutput(,"Year 1",11)+(AVERAGE(F30:F34)-$T$13)*T35 ->  | T35: =IF(COUNT($B$20:B35) - 1 < $R$7, $R$6, $R$8) -> 0.05 | V35: 2033 | W35: =M35 + 'Petroleum Model'!E351 ->  | X35: =Assumptions!F132 -> 34.15344998 | Y35: =Assumptions!C132 -> 747250.6951 | Z35: =_xll.RiskOutput(,,1)+(W35-X35)*1000000/Y35 ->  | AB35: =_xll.RiskPercentile(Z35,0.5,_xll.RiskStatic(NA())) ->  | AD35: 2034 | AE35: =_xll.RiskOutput()+K35 ->  | AF35: ='Petroleum Model'!F352 ->  | AG35: ='Petroleum Model'!G352 ->  | AH35: =_xll.RiskOutput(,,4)+SUM(AE35:AG35) ->  | AK35: 1200 | AO35: =Assumptions!D172 -> 1224.726808 | AP35: =Assumptions!E172 -> 0 | AQ35: =_xll.RiskOutput(,,1)+AN35+AO35+AP35 ->  | AR35: =_xll.RiskOutput(,,1)+AQ35+W35 ->  | AU35: FY 2034 | AV35: =_xll.RiskPercentile(AE35,0.5, _xll.RiskStatic(NA())) ->  | AW35: =_xll.RiskPercentile(W35,0.5, _xll.RiskStatic(NA())) ->  | AX35: =_xll.RiskPercentile(AF35,0.5, _xll.RiskStatic(NA())) ->  | AY35: =_xll.RiskPercentile(AG35,0.5, _xll.RiskStatic(NA())) ->  | AZ35: =_xll.RiskPercentile(AP35, 0.5, _xll.RiskStatic(NA())) ->  | BA35: =_xll.RiskPercentile(AO35, 0.5, _xll.RiskStatic(NA())) ->  | BD35: FY 2034 | BI35: 0 | BJ35: 1224.726808 | BN35: FY 2034 | BO35: =Assumptions!C172 -> 6401.765276 | BT35: FY 2034 | BU35: =_xll.RiskOutput(,BU18,16)+BY34 ->  | BW35: 100
B36: 2035 | C36: Year 17 | D36: =IF(F36<0,0,_xll.RiskNormal($H$8,$E$9,_xll.RiskCorrmat('Fund Model'!$K$7:$M$9,2,'Fund Model'!C36),_xll.RiskStatic($E$8))) ->  | E36: ='Petroleum Model'!D353 ->  | F36: =_xll.RiskOutput(,"Asset Base Nominal",2)+O35+F35 ->  | G36: =_xll.RiskOutput(,,1)+F36/(1+$R$9)^($B36-$B$20) ->  | H36: =_xll.RiskOutput(,,1)+((F36-M36+(0.5*E36))-(0.5*K36))*D36 ->  | L36: =_xll.RiskOutput(,,1)+IF(F36>0,K36/((1+$R$9)^(B36-$B$19+0.5)),0) ->  | M36: =MAX(S36*$X$7,Y36*$X$6/1000000+X36 - 'Petroleum Model'!E353) ->  | P36: =_xll.RiskOutput(,,2)+F36+O36 ->  | Q36: =_xll.RiskOutput(,,1)+P36/((1+$R$9)^($B36-$B$19)) ->  | S36: =_xll.RiskOutput(,"Year 1",11)+(AVERAGE(F31:F35)-$T$13)*T36 ->  | T36: =IF(COUNT($B$20:B36) - 1 < $R$7, $R$6, $R$8) -> 0.05 | V36: 2034 | W36: =M36 + 'Petroleum Model'!E352 ->  | X36: =Assumptions!F133 -> 34.92190261 | Y36: =Assumptions!C133 -> 752449.0441 | Z36: =_xll.RiskOutput(,,1)+(W36-X36)*1000000/Y36 ->  | AB36: =_xll.RiskPercentile(Z36,0.5,_xll.RiskStatic(NA())) ->  | AD36: 2035 | AE36: =_xll.RiskOutput()+K36 ->  | AF36: ='Petroleum Model'!F353 ->  | AG36: ='Petroleum Model'!G353 ->  | AH36: =_xll.RiskOutput(,,4)+SUM(AE36:AG36) ->  | AK36: 1200 | AO36: =Assumptions!D173 -> 1236.964311 | AP36: =Assumptions!E173 -> 0 | AQ36: =_xll.RiskOutput(,,1)+AN36+AO36+AP36 ->  | AR36: =_xll.RiskOutput(,,1)+AQ36+W36 ->  | AU36: FY 2035 | AV36: =_xll.RiskPercentile(AE36,0.5, _xll.RiskStatic(NA())) ->  | AW36: =_xll.RiskPercentile(W36,0.5, _xll.RiskStatic(NA())) ->  | AX36: =_xll.RiskPercentile(AF36,0.5, _xll.RiskStatic(NA())) ->  | AY36: =_xll.RiskPercentile(AG36,0.5, _xll.RiskStatic(NA())) ->  | AZ36: =_xll.RiskPercentile(AP36, 0.5, _xll.RiskStatic(NA())) ->  | BA36: =_xll.RiskPercentile(AO36, 0.5, _xll.RiskStatic(NA())) ->  | BD36: FY 2035 | BI36: 0 | BJ36: 1236.964311 | BN36: FY 2035 | BO36: =Assumptions!C173 -> 6545.804995 | BT36: FY 2035 | BU36: =_xll.RiskOutput(,BU18,17)+BY35 ->  | BW36: 100
B37: 2036 | C37: Year 18 | D37: =IF(F37<0,0,_xll.RiskNormal($H$8,$E$9,_xll.RiskCorrmat('Fund Model'!$K$7:$M$9,2,'Fund Model'!C37),_xll.RiskStatic($E$8))) ->  | E37: ='Petroleum Model'!D354 ->  | F37: =_xll.RiskOutput(,"Asset Base Nominal",2)+O36+F36 ->  | G37: =_xll.RiskOutput(,,1)+F37/(1+$R$9)^($B37-$B$20) ->  | H37: =_xll.RiskOutput(,,1)+((F37-M37+(0.5*E37))-(0.5*K37))*D37 ->  | L37: =_xll.RiskOutput(,,1)+IF(F37>0,K37/((1+$R$9)^(B37-$B$19+0.5)),0) ->  | M37: =MAX(S37*$X$7,Y37*$X$6/1000000+X37 - 'Petroleum Model'!E354) ->  | P37: =_xll.RiskOutput(,,2)+F37+O37 ->  | Q37: =_xll.RiskOutput(,,1)+P37/((1+$R$9)^($B37-$B$19)) ->  | S37: =_xll.RiskOutput(,"Year 1",11)+(AVERAGE(F32:F36)-$T$13)*T37 ->  | T37: =IF(COUNT($B$20:B37) - 1 < $R$7, $R$6, $R$8) -> 0.05 | V37: 2035 | W37: =M37 + 'Petroleum Model'!E353 ->  | X37: =Assumptions!F134 -> 35.70764542 | Y37: =Assumptions!C134 -> 757577.8183 | Z37: =_xll.RiskOutput(,,1)+(W37-X37)*1000000/Y37 ->  | AB37: =_xll.RiskPercentile(Z37,0.5,_xll.RiskStatic(NA())) ->  | AD37: 2036 | AE37: =_xll.RiskOutput()+K37 ->  | AF37: ='Petroleum Model'!F354 ->  | AG37: ='Petroleum Model'!G354 ->  | AH37: =_xll.RiskOutput(,,4)+SUM(AE37:AG37) ->  | AK37: 1200 | AO37: =Assumptions!D174 -> 1244.473093 | AP37: =Assumptions!E174 -> 0 | AQ37: =_xll.RiskOutput(,,1)+AN37+AO37+AP37 ->  | AR37: =_xll.RiskOutput(,,1)+AQ37+W37 ->  | AU37: FY 2036 | AV37: =_xll.RiskPercentile(AE37,0.5, _xll.RiskStatic(NA())) ->  | AW37: =_xll.RiskPercentile(W37,0.5, _xll.RiskStatic(NA())) ->  | AX37: =_xll.RiskPercentile(AF37,0.5, _xll.RiskStatic(NA())) ->  | AY37: =_xll.RiskPercentile(AG37,0.5, _xll.RiskStatic(NA())) ->  | AZ37: =_xll.RiskPercentile(AP37, 0.5, _xll.RiskStatic(NA())) ->  | BA37: =_xll.RiskPercentile(AO37, 0.5, _xll.RiskStatic(NA())) ->  | BD37: FY 2036 | BI37: 0 | BJ37: 1244.473093 | BN37: FY 2036 | BO37: =Assumptions!C174 -> 6693.085607 | BT37: FY 2036 | BU37: =_xll.RiskOutput(,BU18,18)+BY36 ->  | BW37: 100
B38: 2037 | C38: Year 19 | D38: =IF(F38<0,0,_xll.RiskNormal($H$8,$E$9,_xll.RiskCorrmat('Fund Model'!$K$7:$M$9,2,'Fund Model'!C38),_xll.RiskStatic($E$8))) ->  | E38: ='Petroleum Model'!D355 ->  | F38: =_xll.RiskOutput(,"Asset Base Nominal",2)+O37+F37 ->  | G38: =_xll.RiskOutput(,,1)+F38/(1+$R$9)^($B38-$B$20) ->  | H38: =_xll.RiskOutput(,,1)+((F38-M38+(0.5*E38))-(0.5*K38))*D38 ->  | L38: =_xll.RiskOutput(,,1)+IF(F38>0,K38/((1+$R$9)^(B38-$B$19+0.5)),0) ->  | M38: =MAX(S38*$X$7,Y38*$X$6/1000000+X38 - 'Petroleum Model'!E355) ->  | P38: =_xll.RiskOutput(,,2)+F38+O38 ->  | Q38: =_xll.RiskOutput(,,1)+P38/((1+$R$9)^($B38-$B$19)) ->  | S38: =_xll.RiskOutput(,"Year 1",11)+(AVERAGE(F33:F37)-$T$13)*T38 ->  | T38: =IF(COUNT($B$20:B38) - 1 < $R$7, $R$6, $R$8) -> 0.05 | V38: 2036 | W38: =M38 + 'Petroleum Model'!E354 ->  | X38: =Assumptions!F135 -> 36.51106744 | Y38: =Assumptions!C135 -> 762661.0896 | Z38: =_xll.RiskOutput(,,1)+(W38-X38)*1000000/Y38 ->  | AB38: =_xll.RiskPercentile(Z38,0.5,_xll.RiskStatic(NA())) ->  | AD38: 2037 | AE38: =_xll.RiskOutput()+K38 ->  | AF38: ='Petroleum Model'!F355 ->  | AG38: ='Petroleum Model'!G355 ->  | AH38: =_xll.RiskOutput(,,4)+SUM(AE38:AG38) ->  | AK38: 1200 | AO38: =Assumptions!D175 -> 1257.255703 | AP38: =Assumptions!E175 -> 0 | AQ38: =_xll.RiskOutput(,,1)+AN38+AO38+AP38 ->  | AR38: =_xll.RiskOutput(,,1)+AQ38+W38 ->  | AU38: FY 2037 | AV38: =_xll.RiskPercentile(AE38,0.5, _xll.RiskStatic(NA())) ->  | AW38: =_xll.RiskPercentile(W38,0.5, _xll.RiskStatic(NA())) ->  | AX38: =_xll.RiskPercentile(AF38,0.5, _xll.RiskStatic(NA())) ->  | AY38: =_xll.RiskPercentile(AG38,0.5, _xll.RiskStatic(NA())) ->  | AZ38: =_xll.RiskPercentile(AP38, 0.5, _xll.RiskStatic(NA())) ->  | BA38: =_xll.RiskPercentile(AO38, 0.5, _xll.RiskStatic(NA())) ->  | BD38: FY 2037 | BI38: 0 | BJ38: 1257.255703 | BN38: FY 2037 | BO38: =Assumptions!C175 -> 6843.680033 | BT38: FY 2037 | BU38: =_xll.RiskOutput(,BU18,19)+BY37 ->  | BW38: 100
B39: 2038 | C39: Year 20 | D39: =IF(F39<0,0,_xll.RiskNormal($H$8,$E$9,_xll.RiskCorrmat('Fund Model'!$K$7:$M$9,2,'Fund Model'!C39),_xll.RiskStatic($E$8))) ->  | E39: ='Petroleum Model'!D356 ->  | F39: =_xll.RiskOutput(,"Asset Base Nominal",2)+O38+F38 ->  | G39: =_xll.RiskOutput(,,1)+F39/(1+$R$9)^($B39-$B$20) ->  | H39: =_xll.RiskOutput(,,1)+((F39-M39+(0.5*E39))-(0.5*K39))*D39 ->  | L39: =_xll.RiskOutput(,,1)+IF(F39>0,K39/((1+$R$9)^(B39-$B$19+0.5)),0) ->  | M39: =MAX(S39*$X$7,Y39*$X$6/1000000+X39 - 'Petroleum Model'!E356) ->  | P39: =_xll.RiskOutput(,,2)+F39+O39 ->  | Q39: =_xll.RiskOutput(,,1)+P39/((1+$R$9)^($B39-$B$19)) ->  | S39: =_xll.RiskOutput(,"Year 1",11)+(AVERAGE(F34:F38)-$T$13)*T39 ->  | T39: =IF(COUNT($B$20:B39) - 1 < $R$7, $R$6, $R$8) -> 0.05 | V39: 2037 | W39: =M39 + 'Petroleum Model'!E355 ->  | X39: =Assumptions!F136 -> 37.33256646 | Y39: =Assumptions!C136 -> 767693.5052 | Z39: =_xll.RiskOutput(,,1)+(W39-X39)*1000000/Y39 ->  | AB39: =_xll.RiskPercentile(Z39,0.5,_xll.RiskStatic(NA())) ->  | AD39: 2038 | AE39: =_xll.RiskOutput()+K39 ->  | AF39: ='Petroleum Model'!F356 ->  | AG39: ='Petroleum Model'!G356 ->  | AH39: =_xll.RiskOutput(,,4)+SUM(AE39:AG39) ->  | AK39: 1200 | AO39: =Assumptions!D176 -> 1270.314839 | AP39: =Assumptions!E176 -> 0 | AQ39: =_xll.RiskOutput(,,1)+AN39+AO39+AP39 ->  | AR39: =_xll.RiskOutput(,,1)+AQ39+W39 ->  | AU39: FY 2038 | AV39: =_xll.RiskPercentile(AE39,0.5, _xll.RiskStatic(NA())) ->  | AW39: =_xll.RiskPercentile(W39,0.5, _xll.RiskStatic(NA())) ->  | AX39: =_xll.RiskPercentile(AF39,0.5, _xll.RiskStatic(NA())) ->  | AY39: =_xll.RiskPercentile(AG39,0.5, _xll.RiskStatic(NA())) ->  | AZ39: =_xll.RiskPercentile(AP39, 0.5, _xll.RiskStatic(NA())) ->  | BA39: =_xll.RiskPercentile(AO39, 0.5, _xll.RiskStatic(NA())) ->  | BD39: FY 2038 | BI39: 0 | BJ39: 1270.314839 | BN39: FY 2038 | BO39: =Assumptions!C176 -> 6997.662834 | BT39: FY 2038 | BU39: =_xll.RiskOutput(,BU18,20)+BY38 ->  | BW39: 100
B40: 2039 | C40: Year 21 | D40: =IF(F40<0,0,_xll.RiskNormal($H$8,$E$9,_xll.RiskCorrmat('Fund Model'!$K$7:$M$9,2,'Fund Model'!C40),_xll.RiskStatic($E$8))) ->  | E40: ='Petroleum Model'!D357 ->  | F40: =_xll.RiskOutput(,"Asset Base Nominal",2)+O39+F39 ->  | G40: =_xll.RiskOutput(,,1)+F40/(1+$R$9)^($B40-$B$20) ->  | H40: =_xll.RiskOutput(,,1)+((F40-M40+(0.5*E40))-(0.5*K40))*D40 ->  | L40: =_xll.RiskOutput(,,1)+IF(F40>0,K40/((1+$R$9)^(B40-$B$19+0.5)),0) ->  | M40: =MAX(S40*$X$7,Y40*$X$6/1000000+X40 - 'Petroleum Model'!E357) ->  | P40: =_xll.RiskOutput(,,2)+F40+O40 ->  | Q40: =_xll.RiskOutput(,,1)+P40/((1+$R$9)^($B40-$B$19)) ->  | S40: =_xll.RiskOutput(,"Year 1",11)+(AVERAGE(F35:F39)-$T$13)*T40 ->  | T40: =IF(COUNT($B$20:B40) - 1 < $R$7, $R$6, $R$8) -> 0.05 | V40: 2038 | W40: =M40 + 'Petroleum Model'!E356 ->  | X40: =Assumptions!F137 -> 38.1725492 | Y40: =Assumptions!C137 -> 772693.8149 | Z40: =_xll.RiskOutput(,,1)+(W40-X40)*1000000/Y40 ->  | AB40: =_xll.RiskPercentile(Z40,0.5,_xll.RiskStatic(NA())) ->  | AD40: 2039 | AE40: =_xll.RiskOutput()+K40 ->  | AF40: ='Petroleum Model'!F357 ->  | AG40: ='Petroleum Model'!G357 ->  | AH40: =_xll.RiskOutput(,,4)+SUM(AE40:AG40) ->  | AK40: 1200 | AO40: =Assumptions!D177 -> 1278.653349 | AP40: =Assumptions!E177 -> 0 | AQ40: =_xll.RiskOutput(,,1)+AN40+AO40+AP40 ->  | AR40: =_xll.RiskOutput(,,1)+AQ40+W40 ->  | AU40: FY 2039 | AV40: =_xll.RiskPercentile(AE40,0.5, _xll.RiskStatic(NA())) ->  | AW40: =_xll.RiskPercentile(W40,0.5, _xll.RiskStatic(NA())) ->  | AX40: =_xll.RiskPercentile(AF40,0.5, _xll.RiskStatic(NA())) ->  | AY40: =_xll.RiskPercentile(AG40,0.5, _xll.RiskStatic(NA())) ->  | AZ40: =_xll.RiskPercentile(AP40, 0.5, _xll.RiskStatic(NA())) ->  | BA40: =_xll.RiskPercentile(AO40, 0.5, _xll.RiskStatic(NA())) ->  | BD40: FY 2039 | BI40: 0 | BJ40: 1278.653349 | BN40: FY 2039 | BO40: =Assumptions!C177 -> 7155.110248 | BT40: FY 2039 | BU40: =_xll.RiskOutput(,BU18,21)+BY39 ->  | BW40: 100
B41: 2040 | C41: Year 22 | D41: =IF(F41<0,0,_xll.RiskNormal($H$8,$E$9,_xll.RiskCorrmat('Fund Model'!$K$7:$M$9,2,'Fund Model'!C41),_xll.RiskStatic($E$8))) ->  | E41: ='Petroleum Model'!D358 ->  | F41: =_xll.RiskOutput(,"Asset Base Nominal",2)+O40+F40 ->  | G41: =_xll.RiskOutput(,,1)+F41/(1+$R$9)^($B41-$B$20) ->  | H41: =_xll.RiskOutput(,,1)+((F41-M41+(0.5*E41))-(0.5*K41))*D41 ->  | L41: =_xll.RiskOutput(,,1)+IF(F41>0,K41/((1+$R$9)^(B41-$B$19+0.5)),0) ->  | M41: =MAX(S41*$X$7,Y41*$X$6/1000000+X41 - 'Petroleum Model'!E358) ->  | P41: =_xll.RiskOutput(,,2)+F41+O41 ->  | Q41: =_xll.RiskOutput(,,1)+P41/((1+$R$9)^($B41-$B$19)) ->  | S41: =_xll.RiskOutput(,"Year 1",11)+(AVERAGE(F36:F40)-$T$13)*T41 ->  | T41: =IF(COUNT($B$20:B41) - 1 < $R$7, $R$6, $R$8) -> 0.05 | V41: 2039 | W41: =M41 + 'Petroleum Model'!E357 ->  | X41: =Assumptions!F138 -> 39.03143156 | Y41: =Assumptions!C138 -> 777689.6589 | Z41: =_xll.RiskOutput(,,1)+(W41-X41)*1000000/Y41 ->  | AB41: =_xll.RiskPercentile(Z41,0.5,_xll.RiskStatic(NA())) ->  | AD41: 2040 | AE41: =_xll.RiskOutput()+K41 ->  | AF41: ='Petroleum Model'!F358 ->  | AG41: ='Petroleum Model'!G358 ->  | AH41: =_xll.RiskOutput(,,4)+SUM(AE41:AG41) ->  | AK41: 1200 | AO41: =Assumptions!D178 -> 1292.274232 | AP41: =Assumptions!E178 -> 0 | AQ41: =_xll.RiskOutput(,,1)+AN41+AO41+AP41 ->  | AR41: =_xll.RiskOutput(,,1)+AQ41+W41 ->  | AU41: FY 2040 | AV41: =_xll.RiskPercentile(AE41,0.5, _xll.RiskStatic(NA())) ->  | AW41: =_xll.RiskPercentile(W41,0.5, _xll.RiskStatic(NA())) ->  | AX41: =_xll.RiskPercentile(AF41,0.5, _xll.RiskStatic(NA())) ->  | AY41: =_xll.RiskPercentile(AG41,0.5, _xll.RiskStatic(NA())) ->  | AZ41: =_xll.RiskPercentile(AP41, 0.5, _xll.RiskStatic(NA())) ->  | BA41: =_xll.RiskPercentile(AO41, 0.5, _xll.RiskStatic(NA())) ->  | BD41: FY 2040 | BI41: 0 | BJ41: 1292.274232 | BN41: FY 2040 | BO41: =Assumptions!C178 -> 7316.100228 | BT41: FY 2040 | BU41: =_xll.RiskOutput(,BU18,22)+BY40 ->  | BW41: 100 | BX41: =-(MIN(-BQ41,BU41+BV41+BW41)) ->  | BY41: =BU41+BV41+BW41+BX41 ->  | CA41: =BQ41-BX41 -> 
B42: 2041 | C42: Year 23 | D42: =IF(F42<0,0,_xll.RiskNormal($H$8,$E$9,_xll.RiskCorrmat('Fund Model'!$K$7:$M$9,2,'Fund Model'!C42),_xll.RiskStatic($E$8))) ->  | E42: ='Petroleum Model'!D359 ->  | F42: =_xll.RiskOutput(,"Asset Base Nominal",2)+O41+F41 ->  | G42: =_xll.RiskOutput(,,1)+F42/(1+$R$9)^($B42-$B$20) ->  | H42: =_xll.RiskOutput(,,1)+((F42-M42+(0.5*E42))-(0.5*K42))*D42 ->  | L42: =_xll.RiskOutput(,,1)+IF(F42>0,K42/((1+$R$9)^(B42-$B$19+0.5)),0) ->  | M42: =MAX(S42*$X$7,Y42*$X$6/1000000+X42 - 'Petroleum Model'!E359) ->  | P42: =_xll.RiskOutput(,,2)+F42+O42 ->  | Q42: =_xll.RiskOutput(,,1)+P42/((1+$R$9)^($B42-$B$19)) ->  | S42: =_xll.RiskOutput(,"Year 1",11)+(AVERAGE(F37:F41)-$T$13)*T42 ->  | T42: =IF(COUNT($B$20:B42) - 1 < $R$7, $R$6, $R$8) -> 0.05 | V42: 2040 | W42: =M42 + 'Petroleum Model'!E358 ->  | X42: =Assumptions!F139 -> 39.90963877 | Y42: =Assumptions!C139 -> 782674.7975 | Z42: =_xll.RiskOutput(,,1)+(W42-X42)*1000000/Y42 ->  | AB42: =_xll.RiskPercentile(Z42,0.5,_xll.RiskStatic(NA())) ->  | AD42: 2041 | AE42: =_xll.RiskOutput()+K42 ->  | AF42: ='Petroleum Model'!F359 ->  | AG42: ='Petroleum Model'!G359 ->  | AH42: =_xll.RiskOutput(,,4)+SUM(AE42:AG42) ->  | AK42: 1200 | AO42: =Assumptions!D179 -> 1306.180638 | AP42: =Assumptions!E179 -> 0 | AQ42: =_xll.RiskOutput(,,1)+AN42+AO42+AP42 ->  | AR42: =_xll.RiskOutput(,,1)+AQ42+W42 ->  | AU42: FY 2041 | AV42: =_xll.RiskPercentile(AE42,0.5, _xll.RiskStatic(NA())) ->  | AW42: =_xll.RiskPercentile(W42,0.5, _xll.RiskStatic(NA())) ->  | AX42: =_xll.RiskPercentile(AF42,0.5, _xll.RiskStatic(NA())) ->  | AY42: =_xll.RiskPercentile(AG42,0.5, _xll.RiskStatic(NA())) ->  | AZ42: =_xll.RiskPercentile(AP42, 0.5, _xll.RiskStatic(NA())) ->  | BA42: =_xll.RiskPercentile(AO42, 0.5, _xll.RiskStatic(NA())) ->  | BD42: FY 2041 | BI42: 0 | BJ42: 1306.180638 | BN42: FY 2041 | BO42: =Assumptions!C179 -> 7480.712483 | BT42: FY 2041 | BU42: =_xll.RiskOutput(,BU18,23)+BY41 ->  | BW42: 100
B43: 2042 | C43: Year 24 | D43: =IF(F43<0,0,_xll.RiskNormal($H$8,$E$9,_xll.RiskCorrmat('Fund Model'!$K$7:$M$9,2,'Fund Model'!C43),_xll.RiskStatic($E$8))) ->  | E43: ='Petroleum Model'!D360 ->  | F43: =_xll.RiskOutput(,"Asset Base Nominal",2)+O42+F42 ->  | G43: =_xll.RiskOutput(,,1)+F43/(1+$R$9)^($B43-$B$20) ->  | H43: =_xll.RiskOutput(,,1)+((F43-M43+(0.5*E43))-(0.5*K43))*D43 ->  | L43: =_xll.RiskOutput(,,1)+IF(F43>0,K43/((1+$R$9)^(B43-$B$19+0.5)),0) ->  | M43: =MAX(S43*$X$7,Y43*$X$6/1000000+X43 - 'Petroleum Model'!E360) ->  | P43: =_xll.RiskOutput(,,2)+F43+O43 ->  | Q43: =_xll.RiskOutput(,,1)+P43/((1+$R$9)^($B43-$B$19)) ->  | S43: =_xll.RiskOutput(,"Year 1",11)+(AVERAGE(F38:F42)-$T$13)*T43 ->  | T43: =IF(COUNT($B$20:B43) - 1 < $R$7, $R$6, $R$8) -> 0.05 | V43: 2041 | W43: =M43 + 'Petroleum Model'!E359 ->  | X43: =Assumptions!F140 -> 40.80760564 | Y43: =Assumptions!C140 -> 787645.6623 | Z43: =_xll.RiskOutput(,,1)+(W43-X43)*1000000/Y43 ->  | AB43: =_xll.RiskPercentile(Z43,0.5,_xll.RiskStatic(NA())) ->  | AD43: 2042 | AE43: =_xll.RiskOutput()+K43 ->  | AF43: ='Petroleum Model'!F360 ->  | AG43: ='Petroleum Model'!G360 ->  | AH43: =_xll.RiskOutput(,,4)+SUM(AE43:AG43) ->  | AK43: 1200 | AO43: =Assumptions!D180 -> 1315.37587 | AP43: =Assumptions!E180 -> 0 | AQ43: =_xll.RiskOutput(,,1)+AN43+AO43+AP43 ->  | AR43: =_xll.RiskOutput(,,1)+AQ43+W43 ->  | AU43: FY 2042 | AV43: =_xll.RiskPercentile(AE43,0.5, _xll.RiskStatic(NA())) ->  | AW43: =_xll.RiskPercentile(W43,0.5, _xll.RiskStatic(NA())) ->  | AX43: =_xll.RiskPercentile(AF43,0.5, _xll.RiskStatic(NA())) ->  | AY43: =_xll.RiskPercentile(AG43,0.5, _xll.RiskStatic(NA())) ->  | AZ43: =_xll.RiskPercentile(AP43, 0.5, _xll.RiskStatic(NA())) ->  | BA43: =_xll.RiskPercentile(AO43, 0.5, _xll.RiskStatic(NA())) ->  | BD43: FY 2042 | BI43: 0 | BJ43: 1315.37587 | BN43: FY 2042 | BO43: =Assumptions!C180 -> 7649.028514 | BT43: FY 2042 | BU43: =_xll.RiskOutput(,BU18,24)+BY42 ->  | BW43: 100
B44: 2043 | C44: Year 25 | D44: =IF(F44<0,0,_xll.RiskNormal($H$8,$E$9,_xll.RiskCorrmat('Fund Model'!$K$7:$M$9,2,'Fund Model'!C44),_xll.RiskStatic($E$8))) ->  | E44: ='Petroleum Model'!D361 ->  | F44: =_xll.RiskOutput(,"Asset Base Nominal",2)+O43+F43 ->  | G44: =_xll.RiskOutput(,,1)+F44/(1+$R$9)^($B44-$B$20) ->  | H44: =_xll.RiskOutput(,,1)+((F44-M44+(0.5*E44))-(0.5*K44))*D44 ->  | L44: =_xll.RiskOutput(,,1)+IF(F44>0,K44/((1+$R$9)^(B44-$B$19+0.5)),0) ->  | M44: =MAX(S44*$X$7,Y44*$X$6/1000000+X44 - 'Petroleum Model'!E361) ->  | P44: =_xll.RiskOutput(,,2)+F44+O44 ->  | Q44: =_xll.RiskOutput(,,1)+P44/((1+$R$9)^($B44-$B$19)) ->  | S44: =_xll.RiskOutput(,"Year 1",11)+(AVERAGE(F39:F43)-$T$13)*T44 ->  | T44: =IF(COUNT($B$20:B44) - 1 < $R$7, $R$6, $R$8) -> 0.05 | V44: 2042 | W44: =M44 + 'Petroleum Model'!E360 ->  | X44: =Assumptions!F141 -> 41.72577677 | Y44: =Assumptions!C141 -> 792636.1536 | Z44: =_xll.RiskOutput(,,1)+(W44-X44)*1000000/Y44 ->  | AB44: =_xll.RiskPercentile(Z44,0.5,_xll.RiskStatic(NA())) ->  | AD44: 2043 | AE44: =_xll.RiskOutput()+K44 ->  | AF44: ='Petroleum Model'!F361 ->  | AG44: ='Petroleum Model'!G361 ->  | AH44: =_xll.RiskOutput(,,4)+SUM(AE44:AG44) ->  | AK44: 1200 | AO44: =Assumptions!D181 -> 1329.863387 | AP44: =Assumptions!E181 -> 0 | AQ44: =_xll.RiskOutput(,,1)+AN44+AO44+AP44 ->  | AR44: =_xll.RiskOutput(,,1)+AQ44+W44 ->  | AU44: FY 2043 | AV44: =_xll.RiskPercentile(AE44,0.5, _xll.RiskStatic(NA())) ->  | AW44: =_xll.RiskPercentile(W44,0.5, _xll.RiskStatic(NA())) ->  | AX44: =_xll.RiskPercentile(AF44,0.5, _xll.RiskStatic(NA())) ->  | AY44: =_xll.RiskPercentile(AG44,0.5, _xll.RiskStatic(NA())) ->  | AZ44: =_xll.RiskPercentile(AP44, 0.5, _xll.RiskStatic(NA())) ->  | BA44: =_xll.RiskPercentile(AO44, 0.5, _xll.RiskStatic(NA())) ->  | BD44: FY 2043 | BI44: 0 | BJ44: 1329.863387 | BN44: FY 2043 | BO44: =Assumptions!C181 -> 7821.131656 | BT44: FY 2043 | BU44: =_xll.RiskOutput(,BU18,25)+BY43 ->  | BW44: 100
S45: =_xll.RiskOutput(,"Year 1",11)+(AVERAGE(F40:F44)-$T$13)*T45 ->  | T45: =IF(COUNT($B$20:B45) - 1 < $R$7, $R$6, $R$8) -> 0.05
D46: Totals Over Time Horizon | E46: =_xll.RiskOutput()+SUM(E20:E44) ->  | H46: =_xll.RiskOutput()+SUM(H20:H44) ->  | I46: =_xll.RiskOutput("Total $ in / all")+SUM(H46,E46) ->  | J46: =_xll.RiskOutput("Total $ in / all")+SUM(I46,F46) ->  | K46: =_xll.RiskOutput("Total $ in / all")+SUM(J46,G46) -> 
B48: Key outputs
B49: End of Year Account Balances
C50: Principal | D50: Earnings Reserve | E50: Unrealized Earnings | G50: Principal Deposits | H50: Statutory Earning | I50: Statutory Return | AP50: Standard deviation of payout | AQ50: =_xll.RiskOutput()+_xlfn.STDEV.S(AQ20:AQ44) -> 
F51: =F52-1 -> 2013 | H51: 2928 | AP51: Standard deviation divided by average payout | AQ51: =_xll.RiskOutput()+AQ50/AVERAGE(AQ20:AQ44) -> 
F52: 2014 | H52: 3531
F53: 2015 | H53: 2907
F54: 2016 | H54: 2198 | N54: Principal Deposits Breakdown
F55: 2017 | H55: 3214 | N55: Automatic deposits | P55: Inflation proofing based on N times draw | U55: Based on principal, actual inflation | V55: N Times Payout | W55: Separate POMV | X55: Status quo | Y55: None
B56: Initial Value | C56: =Assumptions!C31 -> 41555 | D56: =Assumptions!C33 -> 13078 | E56: =Assumptions!C32 -> 7999 | F56: =F57-1 -> 2018 | H56: 4391 | N56: Petroleum Royalties | O56: 0.25% market value | P56: N times draw | Q56: URG allocation factor | R56: N times draw adjusted | S56: ERA value EOY | T56: Over the waterfall | U56: Last year's principal + automatic deposits | V56: 1 | W56: 2 | X56: 3 | Y56: 4 | Z56: Inflation-proofing | AA56: total Deposits
B57: =B20 -> 2019 | C57: =_xll.RiskOutput(,,1)+$C$56+SUM($G$57:G57) ->  | D57: =_xll.RiskOutput(,,1)+P20-C57-E57 ->  | E57: =_xll.RiskOutput(,,1)+E56+H20-H57 ->  | F57: =B57 -> 2019 | G57: =AA57 ->  | H57: =I57*((F20-M20+(0.5*E20))-(0.5*K20)) ->  | I57: =_xll.RiskNormal($L$58,$L$59,_xll.RiskCorrmat('Fund Model'!$K$7:$M$9,1,'Fund Model'!C20),_xll.RiskStatic($L$58)) ->  | K57: Statutory Rate | N57: ='Petroleum Model'!H337 ->  | O57: =S20*Assumptions!$C$42/T20 -> 129.6495 | P57: =$L$62*S20 -> 10890.558 | Q57: =(C56+D56)/(C56+D56+E56) -> 0.8722857325 | R57: =P57*Q57 -> 9499.678363 | S57: =D56 -> 13078 | T57: =MAX(S57-R57,0) -> 3578.321637 | U57: =(C56+N57)*Assumptions!$C$43 ->  | V57: =T57 -> 3578.321637 | W57: =O57 -> 129.6495 | X57: =U57 ->  | Y57: 0 | Z57: =INDEX(V57:Y57, 0, Assumptions!$P$43) -> 3578.321637 | AA57: =N57+Z57 -> 
B58: =B21 -> 2020 | C58: =_xll.RiskOutput(,,1)+$C$56+SUM($G$57:G58) ->  | D58: =_xll.RiskOutput(,,1)+P21-C58-E58 ->  | E58: =_xll.RiskOutput(,,1)+E57+H21-H58 ->  | F58: =B58 -> 2020 | G58: =AA58 ->  | H58: =I58*((F21-M21+(0.5*E21))-(0.5*K21)) ->  | I58: =_xll.RiskNormal($L$58,$L$59,_xll.RiskCorrmat('Fund Model'!$K$7:$M$9,1,'Fund Model'!C21),_xll.RiskStatic($L$58)) ->  | K58: Median Return | L58: =Assumptions!C55 -> 0.0653 | N58: ='Petroleum Model'!H338 ->  | O58: =S21*Assumptions!$C$42/T21 -> 138.539 | P58: 11637.276 | Q58: =(C57+D57)/(C57+D57+E57) ->  | R58: =P58*Q58 ->  | S58: =D57 ->  | T58: =MAX(S58-R58,0) ->  | U58: =(C57+N58)*Assumptions!$C$43 ->  | V58: =T58 ->  | W58: =O58 -> 138.539 | X58: =U58 ->  | Y58: 0 | Z58: =INDEX(V58:Y58, 0, Assumptions!$P$43) ->  | AA58: =N58+Z58 -> 
B59: 2021 | C59: =_xll.RiskOutput(,,1)+$C$56+SUM($G$57:G59) ->  | D59: =_xll.RiskOutput(,,1)+P22-C59-E59 ->  | E59: =_xll.RiskOutput(,,1)+E58+H22-H59 ->  | F59: 2021 | I59: =_xll.RiskNormal($L$58,$L$59,_xll.RiskCorrmat('Fund Model'!$K$7:$M$9,1,'Fund Model'!C22),_xll.RiskStatic($L$58)) ->  | K59: Standard Deviation | L59: =Assumptions!C56 -> 0.0224 | N59: ='Petroleum Model'!H339 ->  | O59: =S22*Assumptions!$C$42/T22 ->  | U59: =(C58+N59)*Assumptions!$C$43 ->  | Y59: 0 | Z59: =INDEX(V59:Y59, 0, Assumptions!$P$43) -> 
B60: 2022 | C60: =_xll.RiskOutput(,,1)+$C$56+SUM($G$57:G60) ->  | D60: =_xll.RiskOutput(,,1)+P23-C60-E60 ->  | E60: =_xll.RiskOutput(,,1)+E59+H23-H60 ->  | F60: 2022 | I60: =_xll.RiskNormal($L$58,$L$59,_xll.RiskCorrmat('Fund Model'!$K$7:$M$9,1,'Fund Model'!C23),_xll.RiskStatic($L$58)) ->  | N60: ='Petroleum Model'!H340 ->  | O60: =S23*Assumptions!$C$42/T23 ->  | U60: =(C59+N60)*Assumptions!$C$43 ->  | Y60: 0 | Z60: =INDEX(V60:Y60, 0, Assumptions!$P$43) -> 
B61: 2023 | C61: =_xll.RiskOutput(,,1)+$C$56+SUM($G$57:G61) ->  | D61: =_xll.RiskOutput(,,1)+P24-C61-E61 ->  | E61: =_xll.RiskOutput(,,1)+E60+H24-H61 ->  | F61: 2023 | I61: =_xll.RiskNormal($L$58,$L$59,_xll.RiskCorrmat('Fund Model'!$K$7:$M$9,1,'Fund Model'!C24),_xll.RiskStatic($L$58)) ->  | K61: Inflation-proofing Input | N61: ='Petroleum Model'!H341 ->  | O61: =S24*Assumptions!$C$42/T24 ->  | U61: =(C60+N61)*Assumptions!$C$43 ->  | Y61: 0 | Z61: =INDEX(V61:Y61, 0, Assumptions!$P$43) -> 
B62: 2024 | C62: =_xll.RiskOutput(,,1)+$C$56+SUM($G$57:G62) ->  | D62: =_xll.RiskOutput(,,1)+P25-C62-E62 ->  | E62: =_xll.RiskOutput(,,1)+E61+H25-H62 ->  | F62: 2024 | I62: =_xll.RiskNormal($L$58,$L$59,_xll.RiskCorrmat('Fund Model'!$K$7:$M$9,1,'Fund Model'!C25),_xll.RiskStatic($L$58)) ->  | K62: Years in ER | L62: =Assumptions!C41 -> 4 | N62: ='Petroleum Model'!H342 ->  | O62: =S25*Assumptions!$C$42/T25 ->  | U62: =(C61+N62)*Assumptions!$C$43 ->  | Y62: 0 | Z62: =INDEX(V62:Y62, 0, Assumptions!$P$43) -> 
B63: 2025 | C63: =_xll.RiskOutput(,,1)+$C$56+SUM($G$57:G63) ->  | D63: =_xll.RiskOutput(,,1)+P26-C63-E63 ->  | E63: =_xll.RiskOutput(,,1)+E62+H26-H63 ->  | F63: 2025 | I63: =_xll.RiskNormal($L$58,$L$59,_xll.RiskCorrmat('Fund Model'!$K$7:$M$9,1,'Fund Model'!C26),_xll.RiskStatic($L$58)) ->  | K63: Inf-proofing POMV | L63: =Assumptions!C42 -> 0.0025 | N63: ='Petroleum Model'!H343 ->  | O63: =S26*Assumptions!$C$42/T26 ->  | U63: =(C62+N63)*Assumptions!$C$43 ->  | Y63: 0 | Z63: =INDEX(V63:Y63, 0, Assumptions!$P$43) -> 
B64: 2026 | C64: =_xll.RiskOutput(,,1)+$C$56+SUM($G$57:G64) ->  | D64: =_xll.RiskOutput(,,1)+P27-C64-E64 ->  | E64: =_xll.RiskOutput(,,1)+E63+H27-H64 ->  | F64: 2026 | I64: =_xll.RiskNormal($L$58,$L$59,_xll.RiskCorrmat('Fund Model'!$K$7:$M$9,1,'Fund Model'!C27),_xll.RiskStatic($L$58)) ->  | N64: ='Petroleum Model'!H344 ->  | O64: =S27*Assumptions!$C$42/T27 ->  | U64: =(C63+N64)*Assumptions!$C$43 ->  | Y64: 0 | Z64: =INDEX(V64:Y64, 0, Assumptions!$P$43) -> 
B65: 2027 | C65: =_xll.RiskOutput(,,1)+$C$56+SUM($G$57:G65) ->  | D65: =_xll.RiskOutput(,,1)+P28-C65-E65 ->  | E65: =_xll.RiskOutput(,,1)+E64+H28-H65 ->  | F65: 2027 | I65: =_xll.RiskNormal($L$58,$L$59,_xll.RiskCorrmat('Fund Model'!$K$7:$M$9,1,'Fund Model'!C28),_xll.RiskStatic($L$58)) ->  | N65: ='Petroleum Model'!H345 ->  | O65: =S28*Assumptions!$C$42/T28 ->  | U65: =(C64+N65)*Assumptions!$C$43 ->  | Y65: 0 | Z65: =INDEX(V65:Y65, 0, Assumptions!$P$43) -> 
B66: 2028 | C66: =_xll.RiskOutput(,,1)+$C$56+SUM($G$57:G66) ->  | D66: =_xll.RiskOutput(,,1)+P29-C66-E66 ->  | E66: =_xll.RiskOutput(,,1)+E65+H29-H66 ->  | F66: 2028 | I66: =_xll.RiskNormal($L$58,$L$59,_xll.RiskCorrmat('Fund Model'!$K$7:$M$9,1,'Fund Model'!C29),_xll.RiskStatic($L$58)) ->  | N66: ='Petroleum Model'!H346 ->  | O66: =S29*Assumptions!$C$42/T29 ->  | U66: =(C65+N66)*Assumptions!$C$43 ->  | Y66: 0 | Z66: =INDEX(V66:Y66, 0, Assumptions!$P$43) -> 
B67: 2029 | C67: =_xll.RiskOutput(,,1)+$C$56+SUM($G$57:G67) ->  | D67: =_xll.RiskOutput(,,1)+P30-C67-E67 ->  | E67: =_xll.RiskOutput(,,1)+E66+H30-H67 ->  | F67: 2029 | I67: =_xll.RiskNormal($L$58,$L$59,_xll.RiskCorrmat('Fund Model'!$K$7:$M$9,1,'Fund Model'!C30),_xll.RiskStatic($L$58)) ->  | N67: ='Petroleum Model'!H347 ->  | O67: =S30*Assumptions!$C$42/T30 ->  | U67: =(C66+N67)*Assumptions!$C$43 ->  | Y67: 0 | Z67: =INDEX(V67:Y67, 0, Assumptions!$P$43) -> 
B68: 2030 | C68: =_xll.RiskOutput(,,1)+$C$56+SUM($G$57:G68) ->  | D68: =_xll.RiskOutput(,,1)+P31-C68-E68 ->  | E68: =_xll.RiskOutput(,,1)+E67+H31-H68 ->  | F68: 2030 | I68: =_xll.RiskNormal($L$58,$L$59,_xll.RiskCorrmat('Fund Model'!$K$7:$M$9,1,'Fund Model'!C31),_xll.RiskStatic($L$58)) ->  | N68: ='Petroleum Model'!H348 ->  | O68: =S31*Assumptions!$C$42/T31 ->  | U68: =(C67+N68)*Assumptions!$C$43 ->  | Y68: 0 | Z68: =INDEX(V68:Y68, 0, Assumptions!$P$43) -> 
B69: 2031 | C69: =_xll.RiskOutput(,,1)+$C$56+SUM($G$57:G69) ->  | D69: =_xll.RiskOutput(,,1)+P32-C69-E69 ->  | E69: =_xll.RiskOutput(,,1)+E68+H32-H69 ->  | F69: 2031 | I69: =_xll.RiskNormal($L$58,$L$59,_xll.RiskCorrmat('Fund Model'!$K$7:$M$9,1,'Fund Model'!C32),_xll.RiskStatic($L$58)) ->  | N69: ='Petroleum Model'!H349 ->  | O69: =S32*Assumptions!$C$42/T32 ->  | U69: =(C68+N69)*Assumptions!$C$43 ->  | Y69: 0 | Z69: =INDEX(V69:Y69, 0, Assumptions!$P$43) -> 
B70: 2032 | C70: =_xll.RiskOutput(,,1)+$C$56+SUM($G$57:G70) ->  | D70: =_xll.RiskOutput(,,1)+P33-C70-E70 ->  | E70: =_xll.RiskOutput(,,1)+E69+H33-H70 ->  | F70: 2032 | I70: =_xll.RiskNormal($L$58,$L$59,_xll.RiskCorrmat('Fund Model'!$K$7:$M$9,1,'Fund Model'!C33),_xll.RiskStatic($L$58)) ->  | N70: ='Petroleum Model'!H350 ->  | O70: =S33*Assumptions!$C$42/T33 ->  | S70: =D69 ->  | T70: =MAX(S70-R70,0) ->  | U70: =(C69+N70)*Assumptions!$C$43 ->  | Y70: 0 | Z70: =INDEX(V70:Y70, 0, Assumptions!$P$43) -> 
B71: 2033 | C71: =_xll.RiskOutput(,,1)+$C$56+SUM($G$57:G71) ->  | D71: =_xll.RiskOutput(,,1)+P34-C71-E71 ->  | E71: =_xll.RiskOutput(,,1)+E70+H34-H71 ->  | F71: 2033 | I71: =_xll.RiskNormal($L$58,$L$59,_xll.RiskCorrmat('Fund Model'!$K$7:$M$9,1,'Fund Model'!C34),_xll.RiskStatic($L$58)) ->  | N71: ='Petroleum Model'!H351 ->  | O71: =S34*Assumptions!$C$42/T34 ->  | U71: =(C70+N71)*Assumptions!$C$43 ->  | Y71: 0 | Z71: =INDEX(V71:Y71, 0, Assumptions!$P$43) -> 
B72: 2034 | C72: =_xll.RiskOutput(,,1)+$C$56+SUM($G$57:G72) ->  | D72: =_xll.RiskOutput(,,1)+P35-C72-E72 ->  | E72: =_xll.RiskOutput(,,1)+E71+H35-H72 ->  | F72: =B72 -> 2034 | I72: =_xll.RiskNormal($L$58,$L$59,_xll.RiskCorrmat('Fund Model'!$K$7:$M$9,1,'Fund Model'!C35),_xll.RiskStatic($L$58)) ->  | N72: ='Petroleum Model'!H352 ->  | O72: =S35*Assumptions!$C$42/T35 ->  | U72: =(C71+N72)*Assumptions!$C$43 ->  | Y72: 0 | Z72: =INDEX(V72:Y72, 0, Assumptions!$P$43) -> 
B73: 2035 | C73: =_xll.RiskOutput(,,1)+$C$56+SUM($G$57:G73) ->  | D73: =_xll.RiskOutput(,,1)+P36-C73-E73 ->  | E73: =_xll.RiskOutput(,,1)+E72+H36-H73 ->  | F73: 2035 | I73: =_xll.RiskNormal($L$58,$L$59,_xll.RiskCorrmat('Fund Model'!$K$7:$M$9,1,'Fund Model'!C36),_xll.RiskStatic($L$58)) ->  | N73: ='Petroleum Model'!H353 ->  | O73: =S36*Assumptions!$C$42/T36 ->  | U73: =(C72+N73)*Assumptions!$C$43 ->  | Y73: 0 | Z73: =INDEX(V73:Y73, 0, Assumptions!$P$43) -> 
B74: 2036 | C74: =_xll.RiskOutput(,,1)+$C$56+SUM($G$57:G74) ->  | D74: =_xll.RiskOutput(,,1)+P37-C74-E74 ->  | E74: =_xll.RiskOutput(,,1)+E73+H37-H74 ->  | F74: 2036 | I74: =_xll.RiskNormal($L$58,$L$59,_xll.RiskCorrmat('Fund Model'!$K$7:$M$9,1,'Fund Model'!C37),_xll.RiskStatic($L$58)) ->  | N74: ='Petroleum Model'!H354 ->  | O74: =S37*Assumptions!$C$42/T37 ->  | U74: =(C73+N74)*Assumptions!$C$43 ->  | Y74: 0 | Z74: =INDEX(V74:Y74, 0, Assumptions!$P$43) -> 
B75: 2037 | C75: =_xll.RiskOutput(,,1)+$C$56+SUM($G$57:G75) ->  | D75: =_xll.RiskOutput(,,1)+P38-C75-E75 ->  | E75: =_xll.RiskOutput(,,1)+E74+H38-H75 ->  | F75: 2037 | I75: =_xll.RiskNormal($L$58,$L$59,_xll.RiskCorrmat('Fund Model'!$K$7:$M$9,1,'Fund Model'!C38),_xll.RiskStatic($L$58)) ->  | N75: ='Petroleum Model'!H355 ->  | O75: =S38*Assumptions!$C$42/T38 ->  | U75: =(C74+N75)*Assumptions!$C$43 ->  | Y75: 0 | Z75: =INDEX(V75:Y75, 0, Assumptions!$P$43) -> 
B76: 2038 | C76: =_xll.RiskOutput(,,1)+$C$56+SUM($G$57:G76) ->  | D76: =_xll.RiskOutput(,,1)+P39-C76-E76 ->  | E76: =_xll.RiskOutput(,,1)+E75+H39-H76 ->  | F76: 2038 | I76: =_xll.RiskNormal($L$58,$L$59,_xll.RiskCorrmat('Fund Model'!$K$7:$M$9,1,'Fund Model'!C39),_xll.RiskStatic($L$58)) ->  | N76: ='Petroleum Model'!H356 ->  | O76: =S39*Assumptions!$C$42/T39 ->  | U76: =(C75+N76)*Assumptions!$C$43 ->  | Y76: 0 | Z76: =INDEX(V76:Y76, 0, Assumptions!$P$43) -> 
B77: 2039 | C77: =_xll.RiskOutput(,,1)+$C$56+SUM($G$57:G77) ->  | D77: =_xll.RiskOutput(,,1)+P40-C77-E77 ->  | E77: =_xll.RiskOutput(,,1)+E76+H40-H77 ->  | F77: 2039 | I77: =_xll.RiskNormal($L$58,$L$59,_xll.RiskCorrmat('Fund Model'!$K$7:$M$9,1,'Fund Model'!C40),_xll.RiskStatic($L$58)) ->  | N77: ='Petroleum Model'!H357 ->  | O77: =S40*Assumptions!$C$42/T40 ->  | U77: =(C76+N77)*Assumptions!$C$43 ->  | Y77: 0 | Z77: =INDEX(V77:Y77, 0, Assumptions!$P$43) -> 
B78: 2040 | C78: =_xll.RiskOutput(,,1)+$C$56+SUM($G$57:G78) ->  | D78: =_xll.RiskOutput(,,1)+P41-C78-E78 ->  | E78: =_xll.RiskOutput(,,1)+E77+H41-H78 ->  | F78: 2040 | I78: =_xll.RiskNormal($L$58,$L$59,_xll.RiskCorrmat('Fund Model'!$K$7:$M$9,1,'Fund Model'!C41),_xll.RiskStatic($L$58)) ->  | N78: ='Petroleum Model'!H358 ->  | O78: =S41*Assumptions!$C$42/T41 ->  | U78: =(C77+N78)*Assumptions!$C$43 ->  | Y78: 0 | Z78: =INDEX(V78:Y78, 0, Assumptions!$P$43) -> 
B79: 2041 | C79: =_xll.RiskOutput(,,1)+$C$56+SUM($G$57:G79) ->  | D79: =_xll.RiskOutput(,,1)+P42-C79-E79 ->  | E79: =_xll.RiskOutput(,,1)+E78+H42-H79 ->  | F79: 2041 | I79: =_xll.RiskNormal($L$58,$L$59,_xll.RiskCorrmat('Fund Model'!$K$7:$M$9,1,'Fund Model'!C42),_xll.RiskStatic($L$58)) ->  | N79: ='Petroleum Model'!H359 ->  | O79: =S42*Assumptions!$C$42/T42 ->  | U79: =(C78+N79)*Assumptions!$C$43 ->  | Y79: 0 | Z79: =INDEX(V79:Y79, 0, Assumptions!$P$43) -> 
B80: 2042 | C80: =_xll.RiskOutput(,,1)+$C$56+SUM($G$57:G80) ->  | D80: =_xll.RiskOutput(,,1)+P43-C80-E80 ->  | E80: =_xll.RiskOutput(,,1)+E79+H43-H80 ->  | F80: 2042 | G80: =AA80 ->  | H80: =I80*((F43-M43+(0.5*E43))-(0.5*K43)) ->  | I80: =_xll.RiskNormal($L$58,$L$59,_xll.RiskCorrmat('Fund Model'!$K$7:$M$9,1,'Fund Model'!C43),_xll.RiskStatic($L$58)) ->  | N80: ='Petroleum Model'!H360 ->  | O80: =S43*Assumptions!$C$42/T43 ->  | U80: =(C79+N80)*Assumptions!$C$43 ->  | Y80: 0 | Z80: =INDEX(V80:Y80, 0, Assumptions!$P$43) -> 
B81: 2043 | C81: =_xll.RiskOutput(,,1)+$C$56+SUM($G$57:G81) ->  | D81: =_xll.RiskOutput(,,1)+P44-C81-E81 ->  | E81: =_xll.RiskOutput(,,1)+E80+H44-H81 ->  | F81: 2043 | I81: =_xll.RiskNormal($L$58,$L$59,_xll.RiskCorrmat('Fund Model'!$K$7:$M$9,1,'Fund Model'!C44),_xll.RiskStatic($L$58)) ->  | N81: ='Petroleum Model'!H361 ->  | O81: =S44*Assumptions!$C$42/T44 ->  | U81: =(C80+N81)*Assumptions!$C$43 ->  | Y81: 0 | Z81: =INDEX(V81:Y81, 0, Assumptions!$P$43) -> 
B83: Earning Reserve Depletion Analysis
C84: Binary Fail Checker | D84: Mean Result from Last Run | E84: Lowest Earning Reserve | F84: Risk Target Result from Last Run | G84: Did the ER decrease? | H84: Mean Result from Last Run
B85: Entire Period | C85: =_xll.RiskOutput()+IF(MIN(D57:D81)<0,1,0) ->  | D85: =_xll.RiskMean(C85,_xll.RiskStatic(NA())) ->  | E85: =MIN($D$57:D81) ->  | F85: =_xll.RiskTarget(E85,0,_xll.RiskStatic(NA())) -> 
B86: =B20 -> 2019 | C86: =_xll.RiskOutput()+IF(MIN($D$57:D57)<0,1,0) ->  | D86: =_xll.RiskMean(C86,_xll.RiskStatic(NA())) ->  | E86: =MIN($D$57:D57) ->  | F86: =_xll.RiskTarget(E86,0,_xll.RiskStatic(NA())) ->  | G86: =_xll.RiskOutput(,,1)+(D57<D56) ->  | H86: =_xll.RiskMean(G86,_xll.RiskStatic(NA())) -> 
B87: 2020 | C87: =_xll.RiskOutput()+IF(MIN($D$57:D58)<0,1,0) ->  | D87: =_xll.RiskMean(C87,_xll.RiskStatic(NA())) ->  | E87: =MIN($D$57:D58) ->  | F87: =_xll.RiskTarget(E87,0,_xll.RiskStatic(NA())) ->  | G87: =_xll.RiskOutput(,,1)+(D58<D57) ->  | H87: =_xll.RiskMean(G87,_xll.RiskStatic(NA())) -> 
B88: 2021 | C88: =_xll.RiskOutput()+IF(MIN($D$57:D59)<0,1,0) ->  | D88: =_xll.RiskMean(C88,_xll.RiskStatic(NA())) ->  | E88: =MIN($D$57:D59) ->  | F88: =_xll.RiskTarget(E88,0,_xll.RiskStatic(NA())) ->  | G88: =_xll.RiskOutput(,,1)+(D59<D58) ->  | H88: =_xll.RiskMean(G88,_xll.RiskStatic(NA())) -> 
B89: 2022 | C89: =_xll.RiskOutput()+IF(MIN($D$57:D60)<0,1,0) ->  | D89: =_xll.RiskMean(C89,_xll.RiskStatic(NA())) ->  | E89: =MIN($D$57:D60) ->  | F89: =_xll.RiskTarget(E89,0,_xll.RiskStatic(NA())) ->  | G89: =_xll.RiskOutput(,,1)+(D60<D59) ->  | H89: =_xll.RiskMean(G89,_xll.RiskStatic(NA())) -> 
B90: 2023 | C90: =_xll.RiskOutput()+IF(MIN($D$57:D61)<0,1,0) ->  | D90: =_xll.RiskMean(C90,_xll.RiskStatic(NA())) ->  | E90: =MIN($D$57:D61) ->  | F90: =_xll.RiskTarget(E90,0,_xll.RiskStatic(NA())) ->  | G90: =_xll.RiskOutput(,,1)+(D61<D60) ->  | H90: =_xll.RiskMean(G90,_xll.RiskStatic(NA())) -> 
B91: 2024 | C91: =_xll.RiskOutput()+IF(MIN($D$57:D62)<0,1,0) ->  | D91: =_xll.RiskMean(C91,_xll.RiskStatic(NA())) ->  | E91: =MIN($D$57:D62) ->  | F91: =_xll.RiskTarget(E91,0,_xll.RiskStatic(NA())) ->  | G91: =_xll.RiskOutput(,,1)+(D62<D61) ->  | H91: =_xll.RiskMean(G91,_xll.RiskStatic(NA())) -> 
B92: 2025 | C92: =_xll.RiskOutput()+IF(MIN($D$57:D63)<0,1,0) ->  | D92: =_xll.RiskMean(C92,_xll.RiskStatic(NA())) ->  | E92: =MIN($D$57:D63) ->  | F92: =_xll.RiskTarget(E92,0,_xll.RiskStatic(NA())) ->  | G92: =_xll.RiskOutput(,,1)+(D63<D62) ->  | H92: =_xll.RiskMean(G92,_xll.RiskStatic(NA())) -> 
B93: 2026 | C93: =_xll.RiskOutput()+IF(MIN($D$57:D64)<0,1,0) ->  | D93: =_xll.RiskMean(C93,_xll.RiskStatic(NA())) ->  | E93: =MIN($D$57:D64) ->  | F93: =_xll.RiskTarget(E93,0,_xll.RiskStatic(NA())) ->  | G93: =_xll.RiskOutput(,,1)+(D64<D63) ->  | H93: =_xll.RiskMean(G93,_xll.RiskStatic(NA())) -> 
B94: 2027 | C94: =_xll.RiskOutput()+IF(MIN($D$57:D65)<0,1,0) ->  | D94: =_xll.RiskMean(C94,_xll.RiskStatic(NA())) ->  | E94: =MIN($D$57:D65) ->  | F94: =_xll.RiskTarget(E94,0,_xll.RiskStatic(NA())) ->  | G94: =_xll.RiskOutput(,,1)+(D65<D64) ->  | H94: =_xll.RiskMean(G94,_xll.RiskStatic(NA())) -> 
B95: 2028 | C95: =_xll.RiskOutput()+IF(MIN($D$57:D66)<0,1,0) ->  | D95: =_xll.RiskMean(C95,_xll.RiskStatic(NA())) ->  | E95: =MIN($D$57:D66) ->  | F95: =_xll.RiskTarget(E95,0,_xll.RiskStatic(NA())) ->  | G95: =_xll.RiskOutput(,,1)+(D66<D65) ->  | H95: =_xll.RiskMean(G95,_xll.RiskStatic(NA())) -> 
B96: 2029 | C96: =_xll.RiskOutput()+IF(MIN($D$57:D67)<0,1,0) ->  | D96: =_xll.RiskMean(C96,_xll.RiskStatic(NA())) ->  | E96: =MIN($D$57:D67) ->  | F96: =_xll.RiskTarget(E96,0,_xll.RiskStatic(NA())) ->  | G96: =_xll.RiskOutput(,,1)+(D67<D66) ->  | H96: =_xll.RiskMean(G96,_xll.RiskStatic(NA())) -> 
B97: 2030 | C97: =_xll.RiskOutput()+IF(MIN($D$57:D68)<0,1,0) ->  | D97: =_xll.RiskMean(C97,_xll.RiskStatic(NA())) ->  | E97: =MIN($D$57:D68) ->  | F97: =_xll.RiskTarget(E97,0,_xll.RiskStatic(NA())) ->  | G97: =_xll.RiskOutput(,,1)+(D68<D67) ->  | H97: =_xll.RiskMean(G97,_xll.RiskStatic(NA())) -> 
B98: 2031 | C98: =_xll.RiskOutput()+IF(MIN($D$57:D69)<0,1,0) ->  | D98: =_xll.RiskMean(C98,_xll.RiskStatic(NA())) ->  | E98: =MIN($D$57:D69) ->  | F98: =_xll.RiskTarget(E98,0,_xll.RiskStatic(NA())) ->  | G98: =_xll.RiskOutput(,,1)+(D69<D68) ->  | H98: =_xll.RiskMean(G98,_xll.RiskStatic(NA())) -> 
B99: 2032 | C99: =_xll.RiskOutput()+IF(MIN($D$57:D70)<0,1,0) ->  | D99: =_xll.RiskMean(C99,_xll.RiskStatic(NA())) ->  | E99: =MIN($D$57:D70) ->  | F99: =_xll.RiskTarget(E99,0,_xll.RiskStatic(NA())) ->  | G99: =_xll.RiskOutput(,,1)+(D70<D69) ->  | H99: =_xll.RiskMean(G99,_xll.RiskStatic(NA())) -> 
B100: 2033 | C100: =_xll.RiskOutput()+IF(MIN($D$57:D71)<0,1,0) ->  | D100: =_xll.RiskMean(C100,_xll.RiskStatic(NA())) ->  | E100: =MIN($D$57:D71) ->  | F100: =_xll.RiskTarget(E100,0,_xll.RiskStatic(NA())) ->  | G100: =_xll.RiskOutput(,,1)+(D71<D70) ->  | H100: =_xll.RiskMean(G100,_xll.RiskStatic(NA())) -> 
B101: 2034 | C101: =_xll.RiskOutput()+IF(MIN($D$57:D72)<0,1,0) ->  | D101: =_xll.RiskMean(C101,_xll.RiskStatic(NA())) ->  | E101: =MIN($D$57:D72) ->  | F101: =_xll.RiskTarget(E101,0,_xll.RiskStatic(NA())) ->  | G101: =_xll.RiskOutput(,,1)+(D72<D71) ->  | H101: =_xll.RiskMean(G101,_xll.RiskStatic(NA())) -> 
B102: 2035 | C102: =_xll.RiskOutput()+IF(MIN($D$57:D73)<0,1,0) ->  | D102: =_xll.RiskMean(C102,_xll.RiskStatic(NA())) ->  | E102: =MIN($D$57:D73) ->  | F102: =_xll.RiskTarget(E102,0,_xll.RiskStatic(NA())) ->  | G102: =_xll.RiskOutput(,,1)+(D73<D72) ->  | H102: =_xll.RiskMean(G102,_xll.RiskStatic(NA())) -> 
B103: 2036 | C103: =_xll.RiskOutput()+IF(MIN($D$57:D74)<0,1,0) ->  | D103: =_xll.RiskMean(C103,_xll.RiskStatic(NA())) ->  | E103: =MIN($D$57:D74) ->  | F103: =_xll.RiskTarget(E103,0,_xll.RiskStatic(NA())) ->  | G103: =_xll.RiskOutput(,,1)+(D74<D73) ->  | H103: =_xll.RiskMean(G103,_xll.RiskStatic(NA())) -> 
B104: 2037 | C104: =_xll.RiskOutput()+IF(MIN($D$57:D75)<0,1,0) ->  | D104: =_xll.RiskMean(C104,_xll.RiskStatic(NA())) ->  | E104: =MIN($D$57:D75) ->  | F104: =_xll.RiskTarget(E104,0,_xll.RiskStatic(NA())) ->  | G104: =_xll.RiskOutput(,,1)+(D75<D74) ->  | H104: =_xll.RiskMean(G104,_xll.RiskStatic(NA())) -> 
B105: 2038 | C105: =_xll.RiskOutput()+IF(MIN($D$57:D76)<0,1,0) ->  | D105: =_xll.RiskMean(C105,_xll.RiskStatic(NA())) ->  | E105: =MIN($D$57:D76) ->  | F105: =_xll.RiskTarget(E105,0,_xll.RiskStatic(NA())) ->  | G105: =_xll.RiskOutput(,,1)+(D76<D75) ->  | H105: =_xll.RiskMean(G105,_xll.RiskStatic(NA())) -> 
B106: 2039 | C106: =_xll.RiskOutput()+IF(MIN($D$57:D77)<0,1,0) ->  | D106: =_xll.RiskMean(C106,_xll.RiskStatic(NA())) ->  | E106: =MIN($D$57:D77) ->  | F106: =_xll.RiskTarget(E106,0,_xll.RiskStatic(NA())) ->  | G106: =_xll.RiskOutput(,,1)+(D77<D76) ->  | H106: =_xll.RiskMean(G106,_xll.RiskStatic(NA())) -> 
B107: 2040 | C107: =_xll.RiskOutput()+IF(MIN($D$57:D78)<0,1,0) ->  | D107: =_xll.RiskMean(C107,_xll.RiskStatic(NA())) ->  | E107: =MIN($D$57:D78) ->  | F107: =_xll.RiskTarget(E107,0,_xll.RiskStatic(NA())) ->  | G107: =_xll.RiskOutput(,,1)+(D78<D77) ->  | H107: =_xll.RiskMean(G107,_xll.RiskStatic(NA())) -> 
B108: 2041 | C108: =_xll.RiskOutput()+IF(MIN($D$57:D79)<0,1,0) ->  | D108: =_xll.RiskMean(C108,_xll.RiskStatic(NA())) ->  | E108: =MIN($D$57:D79) ->  | F108: =_xll.RiskTarget(E108,0,_xll.RiskStatic(NA())) ->  | G108: =_xll.RiskOutput(,,1)+(D79<D78) ->  | H108: =_xll.RiskMean(G108,_xll.RiskStatic(NA())) -> 
B109: 2042 | C109: =_xll.RiskOutput()+IF(MIN($D$57:D80)<0,1,0) ->  | D109: =_xll.RiskMean(C109,_xll.RiskStatic(NA())) ->  | E109: =MIN($D$57:D80) ->  | F109: =_xll.RiskTarget(E109,0,_xll.RiskStatic(NA())) ->  | G109: =_xll.RiskOutput(,,1)+(D80<D79) ->  | H109: =_xll.RiskMean(G109,_xll.RiskStatic(NA())) -> 
B110: 2043 | C110: =_xll.RiskOutput()+IF(MIN($D$57:D81)<0,1,0) ->  | D110: =_xll.RiskMean(C110,_xll.RiskStatic(NA())) ->  | E110: =MIN($D$57:D81) ->  | F110: =_xll.RiskTarget(E110,0,_xll.RiskStatic(NA())) ->  | G110: =_xll.RiskOutput(,,1)+(D81<D80) ->  | H110: =_xll.RiskMean(G110,_xll.RiskStatic(NA())) -> 
B111: Note: Does not include the value of unrealized gains. Assumes no reduction of withdrawal amounts through the periodic review. NA columns are unavailable in deterministic version

Sheet Petroleum Model
A2: FALL 2017 | C2: REVENUE FORECAST | H2: =CONCATENATE("Assumptions based on ",A2," Revenue Sources Book by DOR") -> Assumptions based on FALL 2017 Revenue Sources Book by DOR | P2: =NOW() -> 43208.38827 | R2: =TRUNC(NOW()) -> 2018-04-18
A4: PRODUCTION/REVENUE MONTH/FY | C4: 2019 | D4: =C4+1 -> 2020 | E4: =D4+1 -> 2021 | F4: 2022 | G4: 2023 | H4: 2024 | I4: 2025 | J4: 2026 | K4: 2027 | L4: 2028 | M4: 2029 | N4: 2030 | O4: 2031 | P4: 2032 | Q4: 2033 | R4: 2034 | S4: 2035 | T4: 2036 | U4: 2037 | V4: 2038 | W4: 2039 | X4: 2040 | Y4: 2041 | Z4: 2042 | AA4: 2043 | AB4: 2044 | AC4: 2045 | AD4: 2046 | AE4: 2047 | AF4: 2048 | AG4: 2049 | AH4: 2050
A5: Days in Production Month/Year | C5: 365 | D5: 366 | E5: 365 | F5: 365 | G5: 365 | H5: 366 | I5: 365 | J5: 365 | K5: 365 | L5: 366 | M5: 365 | N5: 365 | O5: 365 | P5: 366 | Q5: 365 | R5: 365 | S5: 365 | T5: 366 | U5: 365 | V5: 365 | W5: 365 | X5: 366 | Y5: 365 | Z5: 365 | AA5: 365 | AB5: 366 | AC5: 365 | AD5: 365 | AE5: 365 | AF5: 366 | AG5: 365 | AH5: 365
A8: Oil Price - Choose inputs from dropdown menus | C8: User Input | D8: =C8 -> User Input | E8: =D8 -> User Input | F8: User Input | G8: User Input | H8: User Input | I8: User Input | J8: User Input | K8: User Input | L8: User Input | M8: User Input | N8: User Input | O8: User Input | P8: User Input | Q8: User Input | R8: User Input | S8: User Input | T8: User Input | U8: User Input | V8: User Input | W8: User Input | X8: User Input | Y8: User Input | Z8: User Input | AA8: User Input | AB8: User Input | AC8: User Input | AD8: User Input | AE8: User Input | AF8: User Input | AG8: User Input | AH8: User Input
A9: ANS WC Sales Price $/bbl | B9: 61 | C9: =IF(C8="actual",C137,IF(C8="user input",C143,C140)) ->  | M9: =IF(M8="actual",M137,IF(M8="user input",M143,M140)) -> 
A11: Netback Costs | C11: 1.1125
A12: 0.2034652845 | B12: Bunker | C12: =C11*C9/B9 ->  | D12: =C12*D9/C9 ->  | E12: =D12*E9/D9 -> 
A13: 0.006184610505 | B13: CPI | C13: 254.3204881 | D13: =C13*1.0225 -> 260.0426991 | E13: =D13*1.0225 -> 265.8936598 | F13: 271.8762672 | G13: 277.9934832 | H13: 284.2483366 | I13: 290.6439241 | J13: 297.1834124 | K13: 303.8700392 | L13: 310.7071151 | M13: 317.6980252 | N13: 324.8462307 | O13: 332.1552709 | P13: 339.6287645 | Q13: 347.2704117 | R13: 355.083996 | S13: 363.0733859 | T13: 371.2425371 | U13: 379.5954942 | V13: 388.1363928 | W13: 396.8694616 | X13: 405.7990245 | Y13: 414.9295026 | Z13: 424.2654164 | AA13: 433.8113882 | AB13: 443.5721445 | AC13: 453.5525177 | AD13: 463.7574494 | AE13: 474.191992 | AF13: 484.8613118 | AG13: 495.7706913 | AH13: 506.9255319
A14: 1.644374708 | B14: Intercept
A15: AVG Marine Costs $/bbl | C15: =$A$14+$A$13*C13+$A$12*C12 ->  | D15: =$A$14+$A$13*D13+$A$12*D12 -> 
C16: 2.64164436 | D16: 2.736993822 | E16: 2.729996665 | F16: 2.841331407 | G16: 2.960007219 | H16: 2.999614357 | I16: 3.024451527 | J16: 3.074782999 | K16: 3.138126901 | L16: 3.217088885 | M16: 3.297965161 | N16: 3.38117782 | O16: 3.468988976 | P16: 3.555724721 | Q16: 3.644813143 | R16: 3.753222384 | S16: 3.866109792 | T16: 3.953112556 | U16: 4.024141676 | V16: 4.101346833 | W16: 4.127503513 | X16: 4.092753668 | Y16: 4.004925794 | Z16: 3.837862236 | AA16: 3.548341126 | AB16: 3.182815156 | AC16: 3.182815156 | AD16: 3.182815156 | AE16: 3.182815156 | AF16: 3.182815156 | AG16: 3.182815156 | AH16: 3.182815156
A17: AVG. TAPS Tariff $/bbl | C17: =C16/C29 ->  | D17: =D16/D29 -> 
C18: 0.2217824052 | D18: 0.2203301823 | E18: 0.2211217905 | F18: 0.2212458327 | G18: 0.2215955442 | H18: 0.2245980563 | I18: 0.230766515 | J18: 0.2360816861 | K18: 0.2406123518 | L18: 0.2438192491 | M18: 0.2482974641 | N18: 0.2524337715 | O18: 0.2570704691 | P18: 0.261124713 | Q18: 0.2646898669 | R18: 0.2649757769 | S18: 0.2630680459 | T18: 0.2599798152 | U18: 0.2595030935 | V18: 0.258243444 | W18: 0.2569257442 | X18: 0.25486734 | Y18: 0.2541770643 | Z18: 0.2527726674 | AA18: 0.2513635633 | AB18: 0.2492766178 | AC18: 0.2485692313 | AD18: 0.2471999125 | AE18: 0.2458578488 | AF18: 0.2438800709 | AG18: 0.243275307 | AH18: 0.2420424206
A19: AVG. Feeder Tariff $/bbl | C19: =C18/C29 ->  | D19: =D18/D29 -> 
A20: AVG. Quality Bank $/bbl | C20: -0.18776828 | D20: -0.2246541397 | E20: -0.2297207916 | F20: -0.2212572471 | G20: -0.2205888953 | H20: -0.2188797408 | I20: -0.2206955853 | J20: -0.2222377268 | K20: -0.2222095596 | L20: -0.2235628976 | M20: -0.2235306483 | N20: -0.2200536894 | O20: -0.2198770726 | P20: -0.2212580129 | Q20: -0.223286009 | R20: -0.2246672793 | S20: -0.2262201146 | T20: -0.2275554485 | U20: -0.2273063107 | V20: -0.2301494896 | W20: -0.2330888532 | X20: -0.2384767702 | Y20: -0.2415676223 | Z20: -0.2447333507 | AA20: -0.2479683757 | AB20: -0.2535731173 | AC20: -0.2569217705 | AD20: -0.2626117494 | AE20: -0.2660632355 | AF20: -0.2718326971 | AG20: -0.2776363693 | AH20: -0.2834741977
A21: AVG. Other netback costs $/bbl | C21: 0.1493672589 | D21: 0.1507713676 | E21: 0.1556634163 | F21: 0.1588260159 | G21: 0.1641130455 | H21: 0.1661288745 | I21: 0.1700229427 | J21: 0.1739995193 | K21: 0.1759785124 | L21: 0.1804422827 | M21: 0.1850275345 | N21: 0.1873881077 | O21: 0.1922100518 | P21: 0.1971295424 | Q21: 0.2024429943 | R21: 0.2081982899 | S21: 0.2140265208 | T21: 0.219836894 | U21: 0.2257793412 | V21: 0.2313583911 | W21: 0.2369101727 | X21: 0.2448604603 | Y21: 0.2503683562 | Z21: 0.2558527789 | AA21: 0.2613151818 | AB21: 0.2692043048 | AC21: 0.2746316733 | AD21: 0.2824973638 | AE21: 0.2878938376 | AF21: 0.2957389485 | AG21: 0.3035766586 | AH21: 0.3114074509
A22: Total Netback - Tax $/bbl | C22: =C15+C17+C19+C20+C21 ->  | D22: =D15+D17+D19+D20+D21 -> 
A23: ANS Wellhead - Tax $/bbl | C23: =C9-C22 ->  | M23: =M9-M22 -> 
A25: AVG. roy field costs $/bbl | C25: 0.8011170433 | D25: 0.7884693464 | E25: 0.810586284 | F25: 0.8461549634 | G25: 0.8773591213 | H25: 0.8952318748 | I25: 0.9061797964 | J25: 0.9194815759 | K25: 0.9399456363 | L25: 0.9626991397 | M25: 0.9872772577 | N25: 1.013810484 | O25: 1.042162494 | P25: 1.072165472 | Q25: 1.108174425 | R25: 1.150902118 | S25: 1.195676067 | T25: 1.240697246 | U25: 1.287927964 | V25: 1.329045972 | W25: 1.370401277 | X25: 1.412047131 | Y25: 1.454035108 | Z25: 1.496415296 | AA25: 1.539236418 | AB25: 1.582545926 | AC25: 1.626390073 | AD25: 1.670813975 | AE25: 1.715861667 | AF25: 1.761576173 | AG25: 1.807999559 | AH25: 1.855173012
A26: ANS Wellhead - Royalty $/bbl | C26: =C23-C25 -> 
A28: ANS Oil and NGL Production - Choose inputs from dropdown menus | C28: User Input | D28: User Input | E28: User Input | F28: User Input | G28: User Input | H28: User Input | I28: User Input | J28: User Input | K28: User Input | L28: User Input | M28: User Input | N28: User Input | O28: User Input | P28: User Input | Q28: User Input | R28: User Input | S28: User Input | T28: User Input | U28: User Input | V28: User Input | W28: User Input | X28: User Input | Y28: User Input | Z28: User Input | AA28: User Input | AB28: User Input | AC28: User Input | AD28: User Input | AE28: User Input | AF28: User Input | AG28: User Input | AH28: User Input
A29: ANS Production (including Federal OCS) mmbbls/day | C29: =IF(C28="actual",C138,IF(C28="user input",C144,C141)) -> 
A30: Federal OCS Production mmbbls/day | C30: 0.001404277368 | D30: 0.001348177925 | E30: 0.00130134174 | F30: 0.001261367242 | G30: 0.001253771043 | H30: 0.001544416967 | I30: 0.002067105015 | J30: 0.002592685309 | K30: 0.003083511814 | L30: 0.00361307856 | M30: 0.003828629248 | N30: 0.003522633721 | O30: 0.003108684703 | P30: 0.002782075392 | Q30: 0.002497488241 | R30: 0.002261215777 | S30: 0.002070138883 | T30: 0.00190050671 | U30: 0.001759475131 | V30: 0.001634319457 | W30: 0.001526388117 | X30: 0.001433141643 | Y30: 0.001352416747 | Z30: 0.001282370578 | AA30: 0.001221433242 | AB30: 0.001168267355 | AC30: 0.001121733589 | AD30: 0.001080861325 | AE30: 0.001044823654 | AF30: 0.001012916086 | AG30: 0.0009845384061 | AH30: 0.0009591792265
A31: ANS Production-State lands mmbbls/day | C31: =C29-C30 -> 
A32: Gas Production in mmboe/day | C32: 0 | D32: 0 | E32: 0 | F32: 0 | G32: 0 | H32: 0 | I32: 0 | J32: 0 | K32: 0 | L32: 0 | M32: 0 | N32: 0 | O32: 0 | P32: 0 | Q32: 0 | R32: 0 | S32: 0 | T32: 0 | U32: 0 | V32: 0 | W32: 0 | X32: 0 | Y32: 0 | Z32: 0 | AA32: 0 | AB32: 0 | AC32: 0 | AD32: 0 | AE32: 0 | AF32: 0 | AG32: 0 | AH32: 0
A33: Total ANS Oil and Gas Production in mmboe/day subject to tax | C33: =C31+C32 ->  | D33: =D31+D32 -> 
A34: Royalty barrels | C34: =IF(C$28="actual",C33-C35,C33*C50) ->  | D34: =IF(D$28="actual",D33-D35,D33*D50) -> 
A35: ACES ANS Taxable BOES per day | C35: =IF(C$28="actual",#REF!,C33*(1-C50)) ->  | D35: =IF(D$28="actual",#REF!,D33*(1-D50)) ->  | E35: =IF(E$28="actual",#REF!,E33*(1-E50)) ->  | F35: =IF(F$28="actual",#REF!,F33*(1-F50)) ->  | G35: =IF(G$28="actual",#REF!,G33*(1-G50)) ->  | H35: =IF(H$28="actual",#REF!,H33*(1-H50)) ->  | I35: =IF(I$28="actual",#REF!,I33*(1-I50)) ->  | J35: =IF(J$28="actual",#REF!,J33*(1-J50)) ->  | K35: =IF(K$28="actual",#REF!,K33*(1-K50)) ->  | L35: =IF(L$28="actual",#REF!,L33*(1-L50)) ->  | M35: =IF(M$28="actual",#REF!,M33*(1-M50)) ->  | N35: =IF(N$28="actual",#REF!,N33*(1-N50)) ->  | O35: =IF(O$28="actual",#REF!,O33*(1-O50)) ->  | P35: =IF(P$28="actual",#REF!,P33*(1-P50)) ->  | Q35: =IF(Q$28="actual",#REF!,Q33*(1-Q50)) ->  | R35: =IF(R$28="actual",#REF!,R33*(1-R50)) ->  | S35: =IF(S$28="actual",#REF!,S33*(1-S50)) ->  | T35: =IF(T$28="actual",#REF!,T33*(1-T50)) ->  | U35: =IF(U$28="actual",#REF!,U33*(1-U50)) ->  | V35: =IF(V$28="actual",#REF!,V33*(1-V50)) ->  | W35: =IF(W$28="actual",#REF!,W33*(1-W50)) ->  | X35: =IF(X$28="actual",#REF!,X33*(1-X50)) ->  | Y35: =IF(Y$28="actual",#REF!,Y33*(1-Y50)) ->  | Z35: =IF(Z$28="actual",#REF!,Z33*(1-Z50)) ->  | AA35: =IF(AA$28="actual",#REF!,AA33*(1-AA50)) ->  | AB35: =IF(AB$28="actual",#REF!,AB33*(1-AB50)) ->  | AC35: =IF(AC$28="actual",#REF!,AC33*(1-AC50)) ->  | AD35: =IF(AD$28="actual",#REF!,AD33*(1-AD50)) ->  | AE35: =IF(AE$28="actual",#REF!,AE33*(1-AE50)) ->  | AF35: =IF(AF$28="actual",#REF!,AF33*(1-AF50)) ->  | AG35: =IF(AG$28="actual",#REF!,AG33*(1-AG50)) ->  | AH35: =IF(AH$28="actual",#REF!,AH33*(1-AH50)) -> 
A38: North Slope Lease Expenditures
A39: Total North Slope Opex | C39: 2767.982012 | D39: 2854.374094 | E39: 2899.43973 | F39: 3219.176249 | G39: 3541.538681 | H39: 3573.30612 | I39: 3650.01526 | J39: 3683.344456 | K39: 3732.701915 | L39: 3778.155407 | M39: 3813.08016 | N39: 3846.38622 | O39: 3884.553014 | P39: 3928.597087 | Q39: 3975.922077 | R39: 4022.36871 | S39: 4071.914414 | T39: 4123.750185 | U39: 4169.408401 | V39: 4221.992188 | W39: 4275.7743 | X39: 4330.623285 | Y39: 4386.73155 | Z39: 4443.861904 | AA39: 4502.08052 | AB39: 4561.321105 | AC39: 4621.788839 | AD39: 4683.297791 | AE39: 4745.924065 | AF39: 4809.621799 | AG39: 4874.582733 | AH39: 4940.649942
A40: Total North Slope Capex | C40: 2169.546305 | D40: 2967.073729 | E40: 3122.179794 | F40: 2850.182891 | G40: 2581.306539 | H40: 2350.014231 | I40: 1791.372246 | J40: 1660.621303 | K40: 1588.063735 | L40: 1597.309641 | M40: 1603.715926 | N40: 1610.833695 | O40: 1621.202171 | P40: 1634.3348 | Q40: 1649.588664 | R40: 1664.583301 | S40: 1682.020539 | T40: 1700.95693 | U40: 1715.761467 | V40: 1736.353511 | W40: 1757.565201 | X40: 1779.284471 | Y40: 1801.713147 | Z40: 1824.61753 | AA40: 1848.062777 | AB40: 1871.978901 | AC40: 1896.565227 | AD40: 1921.629068 | AE40: 1947.238604 | AF40: 1973.339516 | AG40: 2000.114367 | AH40: 2027.397015
A41: Total North Slope Lease Expenditures | C41: =C40+C39 -> 4937.528316 | D41: 5821.447823 | E41: 6021.619524 | F41: 6069.359139 | G41: 6122.845219 | H41: 5923.320351 | I41: 5441.387507 | J41: 5343.965758 | K41: 5320.765651 | L41: 5375.465048 | M41: 5416.796086 | N41: 5457.219915 | O41: 5505.755185 | P41: 5562.931887 | Q41: 5625.510741 | R41: 5686.952011 | S41: 5753.934954 | T41: 5824.707115 | U41: 5885.169868 | V41: 5958.345699 | W41: 6033.339501 | X41: 6109.907756 | Y41: 6188.444697 | Z41: 6268.479434 | AA41: 6350.143298 | AB41: 6433.300006 | AC41: 6518.354067 | AD41: 6604.92686 | AE41: 6693.162669 | AF41: 6782.961314 | AG41: 6874.6971 | AH41: 6968.046957
A43: deductible opex | C43: 2716.587433 | D43: 2802.088686 | E43: 2845.755774 | F43: 2893.180435 | G43: 2962.058875 | H43: 3009.994601 | I43: 3189.662433 | J43: 3307.829387 | K43: 3403.94667 | L43: 3483.40967 | M43: 3548.740085 | N43: 3603.729798 | O43: 3666.136112 | P43: 3726.655921 | Q43: 3749.813357 | R43: 3734.860713 | S43: 3709.296756 | T43: 3690.080898 | U43: 3667.797141 | V43: 3670.491916 | W43: 3676.93808 | X43: 3692.507225 | Y43: 3704.201589 | Z43: 3720.051628 | AA43: 3739.146552 | AB43: 3764.993153 | AC43: 3784.277995 | AD43: 3809.340793 | AE43: 3833.142929 | AF43: 3862.021837 | AG43: 3890.881821 | AH43: 3921.780559
A44: deductible capex | C44: 1770.807798 | D44: 2011.004874 | E44: 2021.317979 | F44: 1763.70712 | G44: 1649.355405 | H44: 1641.171696 | I44: 1500.59955 | J44: 1415.677863 | K44: 1357.425136 | L44: 1376.568672 | M44: 1392.507295 | N44: 1405.416091 | O44: 1421.746294 | P44: 1438.091388 | Q44: 1443.13738 | R44: 1435.879811 | S44: 1426.195017 | T44: 1419.328929 | U44: 1408.226689 | V44: 1408.980426 | W44: 1411.193577 | X44: 1417.977059 | Y44: 1422.21957 | Z44: 1428.265633 | AA44: 1435.789382 | AB44: 1447.115347 | AC44: 1453.788333 | AD44: 1463.698606 | AE44: 1472.123099 | AF44: 1483.552787 | AG44: 1494.602265 | AH44: 1506.549484
A45: ACES ANS AVG Deductible Costs | C45: =INDEX(C372:C398,MATCH(C9,$B$372:$B$398,1))*(1-MOD(C9,10)/10)+INDEX(C372:C398,MATCH(C9,$B$372:$B$398,1)+1)*(MOD(C9,10)/10) ->  | D45: =INDEX(D372:D398,MATCH(D9,$B$372:$B$398,1))*(1-MOD(D9,10)/10)+INDEX(D372:D398,MATCH(D9,$B$372:$B$398,1)+1)*(MOD(D9,10)/10) -> 
A47: Royalties - North Slope
A48: Avg. ANS Oil Royalty Rate | C48: 0.1136741819 | D48: 0.1094088769 | E48: 0.109429034 | F48: 0.1108170007 | G48: 0.1117371713 | H48: 0.112777688 | I48: 0.1138766573 | J48: 0.1150199366 | K48: 0.1162428025 | L48: 0.1172841741 | M48: 0.1181956649 | N48: 0.1190603593 | O48: 0.1197861867 | P48: 0.1203509162 | Q48: 0.1207191772 | R48: 0.1209878596 | S48: 0.1211284099 | T48: 0.1212576433 | U48: 0.1215269626 | V48: 0.1216234146 | W48: 0.1217125629 | X48: 0.1217952533 | Y48: 0.1218722419 | Z48: 0.1219441965 | AA48: 0.1220117014 | AB48: 0.1220752638 | AC48: 0.1221353212 | AD48: 0.1221922498 | AE48: 0.1222463712 | AF48: 0.1222979601 | AG48: 0.1223472505 | AH48: 0.1223944413
A49: Royalty Rate Adj. Factor | C49: 1 | D49: 1 | E49: 1 | F49: 1 | G49: 1 | H49: 1 | I49: 1 | J49: 1 | K49: 1 | L49: 1 | M49: 1 | N49: 1 | O49: 1 | P49: 1 | Q49: 1 | R49: 1 | S49: 1 | T49: 1 | U49: 1 | V49: 1 | W49: 1 | X49: 1 | Y49: 1 | Z49: 1 | AA49: 1 | AB49: 1 | AC49: 1 | AD49: 1 | AE49: 1 | AF49: 1 | AG49: 1 | AH49: 1
A50: Effective Royalty Rate | C50: =C49*C48 -> 0.1136741819 | D50: =D49*D48 -> 0.1094088769 | E50: 0.109429034 | F50: 0.1108170007 | G50: 0.1117371713 | H50: 0.112777688 | I50: 0.1138766573 | J50: 0.1150199366 | K50: 0.1162428025 | L50: 0.1172841741 | M50: 0.1181956649 | N50: 0.1190603593 | O50: 0.1197861867 | P50: 0.1203509162 | Q50: 0.1207191772 | R50: 0.1209878596 | S50: 0.1211284099 | T50: 0.1212576433 | U50: 0.1215269626 | V50: 0.1216234146 | W50: 0.1217125629 | X50: 0.1217952533 | Y50: 0.1218722419 | Z50: 0.1219441965 | AA50: 0.1220117014 | AB50: 0.1220752638 | AC50: 0.1221353212 | AD50: 0.1221922498 | AE50: 0.1222463712 | AF50: 0.1222979601 | AG50: 0.1223472505 | AH50: 0.1223944413
A51: ANS Oil & NGL Royalties - Restricted & Unrestricted | C51: =C33*C5*C26*C50 + 45 ->  | D51: =D33*D5*D26*D50 -> 
A52: ANS NPSL Royalties - Restricted & Unrestricted | C52: 5.664383777 | D52: 5.358648845 | E52: 6.022668627 | F52: 5.921444235 | G52: 5.862116749 | H52: 5.798244982 | I52: 5.97270366 | J52: 6.160597529 | K52: 6.037493603 | L52: 6.226108507 | M52: 6.31571314 | N52: 6.162708229 | O52: 6.275967704 | P52: 6.425404727 | Q52: 6.467902485 | R52: 6.524531206 | S52: 6.572326233 | T52: 6.677777082 | U52: 6.690918763 | V52: 6.76436826 | W52: 6.86189103 | X52: 7.297497157 | Y52: 7.399147337 | Z52: 7.595359659 | AA52: =Z52 -> 7.595359659 | AB52: =AA52 -> 7.595359659 | AC52: 7.595359659 | AD52: 7.595359659 | AE52: 7.595359659 | AF52: 7.595359659 | AG52: 7.595359659 | AH52: 7.595359659
A53: ANS Gas Royalties - Restricted & Unrestricted | C53: 0 | D53: 0 | E53: 0 | F53: 0 | G53: 0 | H53: 0 | I53: 0 | J53: 0 | K53: 0 | L53: 0 | M53: 0 | N53: 0 | O53: 0 | P53: 0 | Q53: 0 | R53: 0 | S53: 0 | T53: 0 | U53: 0 | V53: 0 | W53: 0 | X53: 0 | Y53: 0 | Z53: 0 | AA53: 0 | AB53: 0 | AC53: 0 | AD53: 0 | AE53: 0 | AF53: 0 | AG53: 0 | AH53: 0
A54: TOTAL ANS ROYALTIES - Restricted & Unrestricted | C54: =SUM(C51:C53) ->  | AA54: =SUM(AA51:AA53) -> 
A55: NPRA Special Revenue Fund Royalty Share | C55: 0.3118531001 | D55: 2.747766783 | E55: 3.954756621 | F55: 4.054011572 | G55: 4.100038809 | H55: 4.128183337 | I55: 4.823167409 | J55: 6.237680463 | K55: 8.185468357 | L55: 10.98883472 | M55: 13.67466548 | N55: 15.54950953 | O55: 16.31048262 | P55: 15.95923635 | Q55: 14.47336806 | R55: 12.73452696 | S55: 11.21085007 | T55: 9.954920527 | U55: 8.832832466 | V55: 7.842121313 | W55: 6.970250406 | X55: 6.296395579 | Y55: 5.593061976 | Z55: 4.991471184 | AA55: 4.46779835 | AB55: 4.059929944 | AC55: 3.590728226 | AD55: 3.216488099 | AE55: 2.850502108 | AF55: 2.557545703 | AG55: 2.280036837 | AH55: 2.037074612
A56: After Perm Fund & School Fund | C56: 0.6972992235 | D56: 0.6978885458 | E56: 0.6992523683 | F56: 0.7004889822 | G56: 0.7011064835 | H56: 0.6985249194 | I56: 0.6946575967 | J56: 0.6915619071 | K56: 0.6902083832 | L56: 0.6896556118 | M56: 0.6893489895 | N56: 0.6889909441 | O56: 0.6886986157 | P56: 0.6886137716 | Q56: 0.6895378645 | R56: 0.691516833 | S56: 0.6938222985 | T56: 0.6959912554 | U56: 0.6979836124 | V56: 0.6992919103 | W56: 0.7004975392 | X56: 0.701606422 | Y56: 0.7026338802 | Z56: 0.7035807562 | AA56: 0.7044553923 | AB56: 0.7052615413 | AC56: 0.7060126657 | AD56: 0.7067063427 | AE56: 0.707350529 | AF56: 0.7079465754 | AG56: 0.7085036693 | AH56: 0.7090210172
A57: TOTAL ANS ROYALTIES - Unrestricted Only | C57: =(C54-C55)*C56 ->  | D57: =(D54-D55)*D56 ->  | E57: =(E54-E55)*E56 -> 
A59: Production Tax - North Slope
A61: Taxable BOEs per day (from above) | C61: =C35 -> 
A62: Adjustment for companies without tax liability | C62: 0 | D62: 0 | E62: 0 | F62: 0 | G62: 0 | H62: 0 | I62: 0 | J62: 0 | K62: 0 | L62: 0 | M62: 0 | N62: 0 | O62: 0 | P62: 0 | Q62: 0 | R62: 0 | S62: 0 | T62: 0 | U62: 0 | V62: 0 | W62: 0 | X62: 0 | Y62: 0 | Z62: 0 | AA62: 0 | AB62: 0 | AC62: 0 | AD62: 0 | AE62: 0 | AF62: 0 | AG62: 0 | AH62: 0
A63: "Effectively Taxable" barrels for Shortcut calculation & income stmt | C63: =C61-C62 -> 
A65: Effectively taxable barrels GVR eligible | C65: 0.03513307327 | D65: 0.04596729574 | E65: 0.04964499104 | F65: 0.04945449526 | G65: 0.03471096119 | H65: 0.02486230849 | I65: 0.02685916725 | J65: 0.02887230195 | K65: 0.02881026489 | L65: 0.01442450189 | M65: 0 | N65: 0 | O65: 0 | P65: 0 | Q65: 0 | R65: 0 | S65: 0 | T65: 0 | U65: 0 | V65: 0 | W65: 0 | X65: 0 | Y65: 0 | Z65: 0 | AA65: 0 | AB65: 0 | AC65: 0 | AD65: 0 | AE65: 0 | AF65: 0 | AG65: 0 | AH65: 0
A66: Effectively taxable barrels non-GVR | C66: =C63-C65 ->  | D66: =D63-D65 -> 
A68: ANS AVG Value at Pt. of Production | C68: =C63*C23*C5 ->  | D68: =D63*D23*D5 -> 
A69: Minimum Production Tax | C69: =MAX(LOOKUP(C9,$C$171:$C$176,$D$171:$D$176)*C68,0) -> 
A71: Deductible lease expenditures (from above) | C71: =C45 -> 
A72: ANS AVG Production Tax Value | C72: =C68-C71 -> 
A73: Production Tax Value / taxable barrel | C73: =C72/(C63*C5) -> 
C75: 1.206749668 | D75: 2.354756381 | E75: 2.893222337 | F75: 2.755352515 | G75: 2.167873558 | H75: 1.411721511 | I75: 1.067255937 | J75: 0.812139834 | K75: 0.5594705248 | L75: 0.195802746 | M75: 0 | N75: 0 | O75: 0 | P75: 0 | Q75: 0 | R75: 0 | S75: 0 | T75: 0 | U75: 0 | V75: 0 | W75: 0 | X75: 0 | Y75: 0 | Z75: 0 | AA75: 0 | AB75: 0 | AC75: 0 | AD75: 0 | AE75: 0 | AF75: 0 | AG75: 0 | AH75: 0
A76: GVR deduction (company specific) | C76: =C75*C23 ->  | D76: =D75*D23 -> 
A77: Production tax value after GVR deduction | C77: =C72-C76 ->  | D77: =D72-D76 -> 
A79: Base Tax Rate | C79: 0.35 | D79: 0.35 | E79: 0.35 | F79: 0.35 | G79: 0.35 | H79: 0.35 | I79: 0.35 | J79: 0.35 | K79: 0.35 | L79: 0.35 | M79: 0.35 | N79: 0.35 | O79: 0.35 | P79: 0.35 | Q79: 0.35 | R79: 0.35 | S79: 0.35 | T79: 0.35 | U79: 0.35 | V79: 0.35 | W79: 0.35 | X79: 0.35 | Y79: 0.35 | Z79: 0.35 | AA79: 0.35 | AB79: 0.35 | AC79: 0.35 | AD79: 0.35 | AE79: 0.35 | AF79: 0.35 | AG79: 0.35 | AH79: 0.35
A80: Progressive Surcharge Tax Rate | C80: 0 | D80: 0 | E80: 0 | F80: 0 | G80: 0 | H80: 0 | I80: 0 | J80: 0 | K80: 0 | L80: 0 | M80: 0 | N80: 0 | O80: 0 | P80: 0 | Q80: 0 | R80: 0 | S80: 0 | T80: 0 | U80: 0 | V80: 0 | W80: 0 | X80: 0 | Y80: 0 | Z80: 0 | AA80: 0 | AB80: 0 | AC80: 0 | AD80: 0 | AE80: 0 | AF80: 0 | AG80: 0 | AH80: 0
A81: Tax before credits (or min tax) (from company specific) | C81: =MAX(C79*C77,C69)+C82 -> 
C82: 157.5020473 | D82: -18.2924323 | E82: -42.7138404 | F82: -48.63991894 | G82: -36.53929254 | H82: -38.81788431 | I82: -57.69065274 | J82: -66.85372953 | K82: -79.91005373 | L82: -90.4439324 | M82: -86.30131711 | N82: -85.02816941 | O82: -99.05341664 | P82: -91.25108287 | Q82: -91.66586304 | R82: -89.89519573 | S82: -88.27911242 | T82: -83.38768841 | U82: -83.86412222 | V82: -88.97557542 | W82: -78.82972565 | X82: -79.48402933 | Y82: -80.88706081 | Z82: -92.03402528 | AA82: -87.53940537 | AB82: -70.67869592 | AC82: -73.10757069 | AD82: -67.40767006 | AE82: -70.92178363 | AF82: -70.94241187 | AG82: -70.31115815 | AH82: -72.20776134
A85: 024j Per-taxable barrel credit RATE - average (from company specific) | C85: =IFERROR(INDEX(C401:C430,MATCH(C9,$B$401:$B$430,1))*(1-MOD(C9,5)/5)+INDEX(C401:C430,MATCH(C9,$B$401:$B$430,1)+1)*(MOD(C9,5)/5),0) -> 0 | D85: =IFERROR(INDEX(D401:D430,MATCH(D9,$B$401:$B$430,1))*(1-MOD(D9,5)/5)+INDEX(D401:D430,MATCH(D9,$B$401:$B$430,1)+1)*(MOD(D9,5)/5),0) -> 0 | E85: =IFERROR(INDEX(E401:E430,MATCH(E9,$B$401:$B$430,1))*(1-MOD(E9,5)/5)+INDEX(E401:E430,MATCH(E9,$B$401:$B$430,1)+1)*(MOD(E9,5)/5),0) -> 0 | F85: 0 | G85: 0 | H85: 0 | I85: 0 | J85: 0 | K85: 0 | L85: 0 | M85: 0 | N85: 0 | O85: 0 | P85: 0 | Q85: 0 | R85: 0 | S85: 0 | T85: 0 | U85: 0 | V85: 0 | W85: 0 | X85: 0 | Y85: 0 | Z85: 0 | AA85: 0 | AB85: 0 | AC85: 0 | AD85: 0 | AE85: 0 | AF85: 0 | AG85: 0 | AH85: 0
A86: 024j Per-taxable barrel credit amount (company specific) | C86: =C85*C66*C5 ->  | D86: =D85*D66*D5 ->  | E86: =E85*E66*E5 -> 
A87: 024i per-taxable barrel credit for GVR eligible oil (company specific) | C87: 44.55295979 | D87: 31.88678213 | E87: 42.50620775 | F87: 48.02086347 | G87: 54.44390835 | H87: 39.41875804 | I87: 36.13622447 | J87: 37.94072379 | K87: 34.8120202 | L87: 26.3917102 | M87: 0 | N87: 0 | O87: 0 | P87: 0 | Q87: 0 | R87: 0 | S87: 0 | T87: 0 | U87: 0 | V87: 0 | W87: 0 | X87: 0 | Y87: 0 | Z87: 0 | AA87: 0 | AB87: 0 | AC87: 0 | AD87: 0 | AE87: 0 | AF87: 0 | AG87: 0 | AH87: 0
A88: 023b CFAL credit against liability (company specific) | C88: 42.64389638 | D88: 15.92988209 | E88: 0 | F88: 0 | G88: 0 | H88: 0 | I88: 0 | J88: 0 | K88: 0 | L88: 0 | M88: 0 | N88: 0 | O88: 0 | P88: 0 | Q88: 0 | R88: 1.776356839e-15 | S88: 1.776356839e-15 | T88: 0 | U88: 0 | V88: 0 | W88: 0 | X88: 0 | Y88: 0 | Z88: 0 | AA88: 0 | AB88: 5.139246498 | AC88: 5.078266413 | AD88: 3.316482983 | AE88: 0 | AF88: 0 | AG88: 0 | AH88: 0
A89: Purchased credits against liability (company specific) | C89: 125 | D89: 0 | E89: 0 | F89: 0 | G89: 0 | H89: 0 | I89: 0 | J89: 0 | K89: 0 | L89: 0 | M89: 0 | N89: 0 | O89: 0 | P89: 0 | Q89: 0 | R89: 0 | S89: 0 | T89: 0 | U89: 0 | V89: 0 | W89: 0 | X89: 0 | Y89: 0 | Z89: 0 | AA89: 0 | AB89: 0 | AC89: 0 | AD89: 0 | AE89: 0 | AF89: 0 | AG89: 0 | AH89: 0
A90: ANS Small producer Credits | C90: 13.17993578 | D90: 13.22023099 | E90: 13.20871838 | F90: 7.175035514 | G90: 1.24785639 | H90: 1.773063487 | I90: 2.570726317 | J90: 0 | K90: 0 | L90: 0 | M90: 0 | N90: 0 | O90: 0 | P90: 0 | Q90: 0 | R90: 0 | S90: 0 | T90: 0 | U90: 0 | V90: 0 | W90: 0 | X90: 0 | Y90: 0 | Z90: 0 | AA90: 0 | AB90: 0 | AC90: 0 | AD90: 0 | AE90: 0 | AF90: 0 | AG90: 0 | AH90: 0
A91: ANS Private landowner royalty | C91: =C92*C26 ->  | D91: =D92*D26 -> 
C92: 0.5868929632 | D92: 0.8930876017 | E92: 0.913559615 | F92: 0.8219619684 | G92: 0.7586069136 | H92: 0.7229320868 | I92: 0.6962640384 | J92: 0.6602993418 | K92: 0.6015005548 | L92: 0.5495525018 | M92: 0.5016108838 | N92: 0.4603696856 | O92: 0.4250865367 | P92: 0.3951790831 | Q92: 0.3612322577 | R92: 0.3229941582 | S92: 0.2896979971 | T92: 0.2604472071 | U92: 0.2278356425 | V92: 0.2087800033 | W92: 0.1917462041 | X92: 0.1770044196 | Y92: 0.1628203975 | Z92: 0.1505137351 | AA92: 0.139426941 | AB92: 0.1298034389 | AC92: 0.1203754436 | AD92: 0.1121742886 | AE92: 0.1047012414 | AF92: 0.09818902118 | AG92: 0.09171017697 | AH92: 0.08603612557
A93: Company Specific Adjustment
A94: ANS AVG Production Tax before surcharge | C94: =MAX(0,C81-C86-C87-C88-C89-C90+C93)+C91 ->  | D94: =MAX(0,D81-D86-D87-D88-D89-D90+D93)+D91 -> 
A95: North Slope only - Hazardous Release surcharge | C95: =0.05*(C$31)*C$5*(1-C$48) -> 
A96: ANS TOTAL PRODUCTION TAX | C96: =C94+C95 ->  | D96: =D94+D95 -> 
A97: ANS TOTAL PRODUCTION TAX
A98: Cook Inlet & Middle Earth | C98: 1.279829011 | D98: 1.19367339 | E98: 1.125416702 | F98: 1.095540182 | G98: 1.066881057 | H98: 1.05982794 | I98: 1.039540684 | J98: 1.022587771 | K98: 1.016779711 | L98: 1.005939123 | M98: 0.9914516409 | N98: 0.9904352513 | O98: 0.9812090905 | P98: 0.9758178051 | Q98: 0.9660107337 | R98: 0.9595154247 | S98: 0.9538061103 | T98: 0.9516444647 | U98: 0.9400237737 | V98: 0.9344609042 | W98: 0.9317971093 | X98: 0.9250579606 | Y98: 0.9214317202 | Z98: 0.9211028579 | AA98: 0.921712985 | AB98: 0.9186538751 | AC98: 0.916013343 | AD98: 0.9096858327 | AE98: 0.9102871194 | AF98: 0.9074160922 | AG98: 0.9001112433 | AH98: 0.8958021942
A99: TOTAL CI PETROLEUM ROYALTIES MM$ | C99: =C98*(C9-C15) ->  | D99: =D98*(D9-D15) -> 
A100: TOTAL CI PETROLEUM ROYALTY NET PF/SF CONTRUB MM $ | C100: =0.6923*C99 ->  | D100: =0.6923*D99 -> 
A102: CI credits against tax liability | C102: 6.58133372 | D102: 5.858263252 | E102: 5.50687938 | F102: 5.156870237 | G102: 4.325600787 | H102: 4.315769665 | I102: 4.283359491 | J102: 0.8155812745 | K102: 0.3566484668 | L102: 0.327133123 | M102: 0.3025644248 | N102: 0.2832793271 | O102: 0.2671533517 | P102: 0.2538906472 | Q102: 0.2412326348 | R102: 0.2300196961 | S102: 0.204110587 | T102: 0.04182269143 | U102: 0.04170842178 | V102: 0.04170842178 | W102: 0.04170842178 | X102: 0.04182269143 | Y102: 0.04170842178 | Z102: 0.04170842178 | AA102: 0.04170842178 | AB102: 0.04182269143 | AC102: 0.04170842178 | AD102: 0.04170842178 | AE102: 0.04170842178 | AF102: 0.04182269143 | AG102: 0.04170842178 | AH102: 0.04170842178
A103: CI Production Tax before surcharge | C103: 15.05364711 | D103: 14.4527472 | E103: 13.91096005 | F103: 13.78328428 | G103: 11.8725114 | H103: 10.97185477 | I103: 10.92088864 | J103: 14.32940257 | K103: 14.72181011 | L103: 14.75103078 | M103: 14.70312263 | N103: 14.69120748 | O103: 14.68889319 | P103: 14.72884236 | Q103: 14.68988167 | R103: 14.69210263 | S103: 14.69561504 | T103: 14.7410293 | U103: 14.69470074 | V103: 14.70547126 | W103: 14.71181036 | X103: 14.7652628 | Y103: 14.73345226 | Z103: 14.74341878 | AA103: 14.75535767 | AB103: 14.81426655 | AC103: 14.78248983 | AD103: 14.79655369 | AE103: 14.80593628 | AF103: 14.86111737 | AG103: 14.83530152 | AH103: 14.85032637
A104: CI Hazardous Release surcharge | C104: 0.358015223 | D104: 0.2960849453 | E104: 0.2564926266 | F104: 0.2345671652 | G104: 0.2202182678 | H104: 0.2104461991 | I104: 0.2011076605 | J104: 0.1924570789 | K104: 0.1845313265 | L104: 0.1783869795 | M104: 0.1721647311 | N104: 0.1671144523 | O104: 0.1626198074 | P104: 0.1590090635 | Q104: 0.1549292517 | R104: 0.1515810136 | S104: 0.1484901719 | T104: 0.1460213024 | U104: 0.1395675259 | V104: 0.1355513514 | W104: 0.1330639699 | X104: 0.1310011271 | Y104: 0.1282857246 | Z104: 0.1259884662 | AA104: 0.1237485714 | AB104: 0.1218964416 | AC104: 0.1194304639 | AD104: 0.1173475007 | AE104: 0.1153123714 | AF104: 0.1136335658 | AG104: 0.1113778109 | AH104: 0.1094748025
A105: Total CI Production Tax | C105: =C104+C103 -> 15.41166234 | D105: 14.74883215 | E105: =E104+E103 -> 14.16745268 | F105: 14.01785144 | G105: 12.09272967 | H105: 11.18230097 | I105: 11.1219963 | J105: 14.52185965 | K105: 14.90634144 | L105: 14.92941776 | M105: 14.87528736 | N105: 14.85832193 | O105: 14.851513 | P105: 14.88785142 | Q105: 14.84481092 | R105: 14.84368364 | S105: 14.84410521 | T105: 14.8870506 | U105: 14.83426826 | V105: 14.84102261 | W105: 14.84487433 | X105: 14.89626393 | Y105: 14.86173798 | Z105: 14.86940724 | AA105: 14.87910625 | AB105: 14.936163 | AC105: 14.90192029 | AD105: 14.91390119 | AE105: 14.92124866 | AF105: 14.97475093 | AG105: 14.94667933 | AH105: 14.95980117
A107: TOTAL ME PETROLEUM ROYALTIES MM$ | C107: 0 | D107: 0 | E107: 0 | F107: 0 | G107: 0 | H107: 0 | I107: 0 | J107: 0 | K107: 0 | L107: 0 | M107: 0 | N107: 0 | O107: 0 | P107: 0 | Q107: 0 | R107: 0 | S107: 0 | T107: 0 | U107: 0 | V107: 0 | W107: 0 | X107: 0 | Y107: 0 | Z107: 0 | AA107: 0 | AB107: 0 | AC107: 0 | AD107: 0 | AE107: 0 | AF107: 0 | AG107: 0 | AH107: 0
A108: TOTAL ME PETROLEUM REVS NET PF/SF CONTRUB MM $ | C108: 0 | D108: 0 | E108: 0 | F108: 0 | G108: 0 | H108: 0 | I108: 0 | J108: 0 | K108: 0 | L108: 0 | M108: 0 | N108: 0 | O108: 0 | P108: 0 | Q108: 0 | R108: 0 | S108: 0 | T108: 0 | U108: 0 | V108: 0 | W108: 0 | X108: 0 | Y108: 0 | Z108: 0 | AA108: 0 | AB108: 0 | AC108: 0 | AD108: 0 | AE108: 0 | AF108: 0 | AG108: 0 | AH108: 0
A110: Total ME Production Tax | C110: 0 | D110: 0 | E110: 0 | F110: 0 | G110: 0 | H110: 0 | I110: 0 | J110: 0 | K110: 0 | L110: 0 | M110: 0 | N110: 0 | O110: 0 | P110: 0 | Q110: 0 | R110: 0 | S110: 0 | T110: 0 | U110: 0 | V110: 0 | W110: 0 | X110: 0 | Y110: 0 | Z110: 0 | AA110: 0 | AB110: 0 | AC110: 0 | AD110: 0 | AE110: 0 | AF110: 0 | AG110: 0 | AH110: 0
A112: Total Alaska Production Tax & Royalties MM$ | C112: =C107+C99+C96+C54+C105+C110 ->  | D112: =D107+D99+D96+D54+D105+D110 -> 
A113: Total Alaska Production Tax & Royalties LESS PF&SF& NPRA | C113: =C110+C108+C105+C100+C96+C57 ->  | D113: =D110+D108+D105+D100+D96+D57 -> 
A115: =CONCATENATE(A2, " Forecast Summary w other revenues") -> FALL 2017 Forecast Summary w other revenues
A116: Production Tax before Hazardous Release | C116: =C110+C103+C94 ->  | D116: =D110+D103+D94 ->  | E116: =E110+E103+E94 -> 
A117: Hazardous Release | C117: =C104+C95 ->  | D117: =D104+D95 ->  | E117: =E104+E95 -> 
A118: Total Production tax | C118: =C116+C117 ->  | D118: =D116+D117 ->  | E118: =E116+E117 -> 
A119: Royalties - net | C119: =C108+C100+C57 -> 
A120: Property Tax | B120: Linked to TotRev | C120: 110.0366956 | D120: 107.1002988 | E120: 105.2954415 | F120: 103.8924269 | G120: 102.3159533 | H120: 100.5882555 | I120: 98.70266213 | J120: 96.39491542 | K120: 93.99684806 | L120: 91.5347231 | M120: 89.1370903 | N120: 86.80226037 | O120: 84.52858827 | P120: 82.31447204 | Q120: 80.1583517 | R120: 78.05870813 | S120: 76.01406198 | T120: 74.02297268 | U120: 72.08403736 | V120: 70.19588993 | W120: 68.35720006 | X120: 66.56667228 | Y120: 64.82304503 | Z120: 63.12508984 | AA120: 61.47161036 | AB120: 59.86144163 | AC120: 58.29344916 | AD120: 56.76652822 | AE120: 55.27960298 | AF120: 53.83162581 | AG120: 52.42157652 | AH120: 51.04846163
A121: Corporate Petroleum - BASE FORECAST | B121: Linked to TotRev | C121: 190 | D121: 205 | E121: 205 | F121: 210 | G121: 215 | H121: 215 | I121: 225 | J121: 235 | K121: 235 | L121: 295 | M121: 300 | N121: 305 | O121: 305 | P121: 310 | Q121: 310 | R121: 315 | S121: 320 | T121: 320 | U121: 325 | V121: 330 | W121: 330 | X121: 335 | Y121: 340 | Z121: 340 | AA121: 345 | AB121: 350 | AC121: 350 | AD121: 355 | AE121: 360 | AF121: 360 | AG121: 365 | AH121: 370
A122: Corporate Petroleum - Revised Forecast w Sensitivity | C122: =MAX(0,(C9-C140)*(0.019816+0.01876)*(C29*C5)+C121) ->  | D122: =MAX(0,(D9-D140)*(0.019816+0.01876)*(D29*D5)+D121) -> 
A123: Bonuses, Rents, Interest (net of PF& SF) | B123: Linked to TotRev | C123: 23.83775 | D123: 23.83775 | E123: 23.83775 | F123: 23.83775 | G123: 23.83775 | H123: 23.83775 | I123: 23.83775 | J123: 23.83775 | K123: 23.83775 | L123: 23.83775 | M123: 23.83775 | N123: 23.83775 | O123: 23.83775 | P123: 23.83775 | Q123: 23.83775 | R123: 23.83775 | S123: 23.83775 | T123: 23.83775 | U123: 23.83775 | V123: 23.83775 | W123: 23.83775 | X123: 23.83775 | Y123: 23.83775 | Z123: 23.83775 | AA123: 23.83775 | AB123: 23.83775 | AC123: 23.83775 | AD123: 23.83775 | AE123: 23.83775 | AF123: 23.83775 | AG123: 23.83775 | AH123: 23.83775
A124: =CONCATENATE(A2, " GFUR Oil Revenue") -> FALL 2017 GFUR Oil Revenue | C124: =SUM(C118:C120)+SUM(C122:C123) ->  | D124: =SUM(D118:D120)+SUM(D122:D123) ->  | AA124: =SUM(AA118:AA120)+SUM(AA122:AA123) -> 
C125: =C119+C123 -> 
A126: Corporate Income Tax - General | B126: Linked to TotRev | C126: 145 | D126: 145 | E126: 145 | F126: 150 | G126: 160 | H126: 165 | I126: 170 | J126: 175 | K126: 180 | L126: 185 | M126: 189.1625 | N126: 193.4186562 | O126: 197.770576 | P126: 202.220414 | Q126: 206.7703733 | R126: 211.4227067 | S126: 216.1797176 | T126: 221.0437612 | U126: 226.0172459 | V126: 231.1026339 | W126: 236.3024432 | X126: 241.6192481 | Y126: 247.0556812 | Z126: 252.614434 | AA126: 258.2982588 | AB126: 264.1099696 | AC126: 270.0524439 | AD126: 276.1286239 | AE126: 282.341518 | AF126: 288.6942021 | AG126: 295.1898217 | AH126: 301.8315927
A127: Other Non-oil taxes | B127: Linked to TotRev | C127: 214.3476201 | D127: 220.4467791 | E127: 227.8325064 | F127: 232.8370793 | G127: 238.0409817 | H127: 243.4493027 | I127: 249.0669811 | J127: 254.8995789 | K127: 260.9681485 | L127: 265.1848873 | M127: 268.6641961 | N127: 272.2389045 | O127: 275.9102146 | P127: 279.6793806 | Q127: 283.5477088 | R127: 287.5165586 | S127: 291.5873423 | T127: 295.7615263 | U127: 300.0406309 | V127: 304.4262316 | W127: 308.919959 | X127: 313.5234998 | Y127: 318.2385975 | Z127: 323.0670528 | AA127: 328.0107245 | AB127: 333.0715303 | AC127: 338.2514474 | AD127: 343.5525137 | AE127: 348.9768279 | AF127: 354.5265514 | AG127: 360.2039082 | AH127: 366.0111867
A128: Licenses, Fines, CFS, R&R, Other | B128: Linked to TotRev | C128: 182.9307922 | D128: 183.2907922 | E128: 183.6536722 | F128: 184.0194552 | G128: 184.3881645 | H128: 184.7598235 | I128: 185.1344557 | J128: 185.512085 | K128: 185.8927354 | L128: 186.2764309 | M128: 186.663196 | N128: 187.0530553 | O128: 187.4460334 | P128: 187.8421553 | Q128: 188.2414462 | R128: 188.6439314 | S128: 189.0496366 | T128: 189.4585873 | U128: 189.8708097 | V128: 190.2863298 | W128: 190.7051741 | X128: 191.1273692 | Y128: 191.5529418 | Z128: 191.981919 | AA128: 192.414328 | AB128: 192.8501963 | AC128: 193.2895515 | AD128: 193.7324216 | AE128: 194.1788346 | AF128: 194.628819 | AG128: 195.0824032 | AH128: 195.5396161
A129: Unrestricted Investment Revenue | B129: Linked to TotRev | C129: 77.6 | D129: 80.9 | E129: 84.4 | F129: 88 | G129: 91.8 | H129: 95.8 | I129: 100.1 | J129: 104.5 | K129: 109.3 | L129: 114.3 | M129: 114.3 | N129: 114.3 | O129: 114.3 | P129: 114.3 | Q129: 114.3 | R129: 114.3 | S129: 114.3 | T129: 114.3 | U129: 114.3 | V129: 114.3 | W129: 114.3 | X129: 114.3 | Y129: 114.3 | Z129: 114.3 | AA129: 114.3 | AB129: 114.3 | AC129: 114.3 | AD129: 114.3 | AE129: 114.3 | AF129: 114.3 | AG129: 114.3 | AH129: 114.3
A130: =CONCATENATE(A2, " GFUR non-oil Revenue") -> FALL 2017 GFUR non-oil Revenue | C130: =SUM(C126:C129) -> 619.8784123 | D130: =SUM(D126:D129) -> 629.6375712 | E130: 640.8861785 | F130: 654.8565345 | G130: 674.2291462 | H130: 689.0091262 | I130: 704.3014369 | J130: 719.9116639 | K130: 736.1608839 | L130: 750.7613183 | M130: 758.7898921 | N130: 767.010616 | O130: 775.426824 | P130: 784.0419498 | Q130: 792.8595283 | R130: 801.8831967 | S130: 811.1166965 | T130: 820.5638748 | U130: 830.2286865 | V130: 840.1151953 | W130: 850.2275763 | X130: 860.5701171 | Y130: 871.1472205 | Z130: 881.9634058 | AA130: 893.0233113 | AB130: 904.3316962 | AC130: 915.8934429 | AD130: 927.7135592 | AE130: 939.7971805 | AF130: 952.1495725 | AG130: 964.7761331 | AH130: 977.6823955
A132: =CONCATENATE(A2, " Total GFUR") -> FALL 2017 Total GFUR | C132: =C124+C130 -> 
A134: Tax credits for state repurchase
A136: PRICE AND PRUDCTION INPUTS SECTION | C136: FY 19 | D136: FY 20 | E136: FY 21 | F136: FY 22 | G136: FY 23 | H136: FY 24 | I136: FY 25 | J136: FY 26 | K136: FY 27 | L136: FY 28
A137: ="Actual Prices (To use, pick 'Actual' on line "&ROW(8:8)&")" -> Actual Prices (To use, pick 'Actual' on line 8)
A138: ="Actual Production (To use, pick 'Actual' on line "&ROW(28:28)&")" -> Actual Production (To use, pick 'Actual' on line 28)
A140: ="Forecasted Prices (To use, pick 'Forecasted' on line "&ROW(8:8)&")" -> Forecasted Prices (To use, pick 'Forecasted' on line 8) | C140: 57 | D140: 58 | E140: 61 | F140: 64 | G140: 65 | H140: 66 | I140: 69 | J140: 72 | K140: 75 | L140: 78 | M140: =L140*(1+0.0225) -> 79.755 | N140: =M140*(1+0.0225) -> 81.5494875 | O140: 83.38435097 | P140: 85.26049887 | Q140: 87.17886009 | R140: 89.14038444 | S140: 91.14604309 | T140: 93.19682906 | U140: 95.29375772 | V140: 97.43786726 | W140: 99.63021928 | X140: 101.8718992 | Y140: 104.1640169 | Z140: 106.5077073 | AA140: 108.9041307 | AB140: 111.3544737 | AC140: 113.8599493 | AD140: 116.4217982 | AE140: 119.0412887 | AF140: 121.7197177 | AG140: 124.4584113 | AH140: 127.2587256
A141: ="Forecasted Production (To use, pick 'Forecasted' on line "&ROW(28:28)&")" -> Forecasted Production (To use, pick 'Forecasted' on line 28) | C141: 0.5256834912 | D141: 0.52681152 | E141: 0.5183083319 | F141: 0.5025304226 | G141: 0.4926089471 | H141: 0.4911444283 | I141: 0.4934346263 | J141: 0.4948521483 | K141: 0.4928902239 | L141: 0.4841271239 | M141: 0.4811897488 | N141: 0.4773892147 | O141: 0.473418493 | P141: 0.4691971243 | Q141: 0.4624730916 | R141: 0.4531129105 | S141: 0.4448656993 | T141: 0.4372733251 | U141: 0.4294380883 | V141: 0.4226726178 | W141: 0.416741665 | X141: 0.4115916665 | Y141: 0.4072470436 | Z141: 0.4037898558 | AA141: 0.4013651781 | AB141: 0.4001980095 | AC141: 0.4006195932 | AD141: 0.4031049138 | AE141: 0.4083250851 | AF141: 0.4172201109 | AG141: 0.4310996978 | AH141: 0.4517827651
A143: ="User Input Prices (To use, pick 'User Input' on line "&ROW(8:8)&")" -> User Input Prices (To use, pick 'User Input' on line 8) | C143: =C209 ->  | D143: =D209 -> 
A144: ="User Input Production (To use, pick 'User Input' on line "&ROW(28:28)&")" -> User Input Production (To use, pick 'User Input' on line 28) | C144: =C215 ->  | D144: =D215 -> 
A146: Contributions to PF & School Fund
A148: Unrestricted Bonus / Rent / Interest FC | C148: 18.3 | D148: 18.3 | E148: 18.3 | F148: 18.3 | G148: 18.3 | H148: 18.3 | I148: 18.3 | J148: 18.3 | K148: 18.3 | L148: 18.3 | M148: 18.3 | N148: 18.3 | O148: 18.3 | P148: 18.3 | Q148: 18.3 | R148: 18.3 | S148: 18.3 | T148: 18.3 | U148: 18.3 | V148: 18.3 | W148: 18.3 | X148: 18.3 | Y148: 18.3 | Z148: 18.3 | AA148: 18.3 | AB148: 18.3 | AC148: 18.3 | AD148: 18.3 | AE148: 18.3 | AF148: 18.3 | AG148: 18.3 | AH148: 18.3
A149: Total Bonus / Rent / Interest FC | C149: =C148/C56 -> 26.24411355 | D149: =D148/D56 -> 26.22195207 | E149: =E148/E56 -> 26.17080875 | F149: 26.1246079 | G149: 26.10159859 | H149: 26.19806322 | I149: 26.34391402 | J149: 26.46183923 | K149: 26.51373186 | L149: 26.53498309 | M149: 26.54678585 | N149: 26.56058132 | O149: 26.57185535 | P149: 26.57512928 | Q149: 26.53951428 | R149: 26.46356405 | S149: 26.37562967 | T149: 26.2934338 | U149: 26.2183806 | V149: 26.1693289 | W149: 26.12428877 | X149: 26.08299957 | Y149: 26.04485852 | Z149: 26.00980746 | AA149: 25.97751426 | AB149: 25.94782067 | AC149: 25.92021488 | AD149: 25.89477254 | AE149: 25.8711901 | AF149: 25.84940818 | AG149: 25.82908289 | AH149: 25.8102363
A151: Permanent Fund Royalty | C151: =C54+C99-C100-C57-C155 -> 
A152: Permanent Fund Bonus / Rent / Interest | C152: =C149-C156-C148 -> 7.812892984 | D152: =D149-D156-D148 -> 7.790842311 | E152: =E149-E156-E148 -> 7.739954708 | F152: 7.693984865 | G152: 7.671090597 | H152: 7.767072904 | I152: 7.912194447 | J152: 8.029530029 | K152: 8.081163202 | L152: 8.102308179 | M152: 8.11405192 | N152: 8.127778415 | O152: 8.138996078 | P152: 8.142253629 | Q152: 8.106816708 | R152: 8.031246228 | S152: 7.943751518 | T152: 7.861966632 | U152: 7.787288692 | V152: 7.73848226 | W152: 7.69366733 | X152: 7.652584567 | Y152: 7.614634227 | Z152: 7.579758419 | AA152: 7.547626691 | AB152: 7.518081568 | AC152: 7.490613801 | AD152: 7.46529868 | AE152: 7.441834145 | AF152: 7.420161144 | AG152: 7.399937473 | AH152: 7.381185123
A153: Total Oil $ to Perm Fund | C153: =C151+C152 ->  | D153: =D151+D152 ->  | E153: =E151+E152 -> 
A155: School Fund Royalty | C155: =(C99+C54)*0.005 -> 
A156: School Fund Bonus / Rent / Interest | C156: =C149*0.005 -> 0.1312205678 | D156: =D149*0.005 -> 0.1311097604 | E156: =E149*0.005 -> 0.1308540438 | F156: =F149*0.005 -> 0.1306230395 | G156: 0.1305079929 | H156: 0.1309903161 | I156: 0.1317195701 | J156: 0.1323091961 | K156: 0.1325686593 | L156: 0.1326749155 | M156: 0.1327339292 | N156: 0.1328029066 | O156: 0.1328592768 | P156: 0.1328756464 | Q156: 0.1326975714 | R156: 0.1323178202 | S156: 0.1318781483 | T156: 0.131467169 | U156: 0.131091903 | V156: 0.1308466445 | W156: 0.1306214439 | X156: 0.1304149978 | Y156: 0.1302242926 | Z156: 0.1300490373 | AA156: 0.1298875713 | AB156: 0.1297391034 | AC156: 0.1296010744 | AD156: 0.1294738627 | AE156: 0.1293559505 | AF156: 0.1292470409 | AG156: 0.1291454144 | AH156: 0.1290511815
A157: Total Oil $ to School Fund | C157: =C155+C156 -> 
A159: Total Oil $ to PF & SF | C159: =C157+C153 ->  | E159: =E157+E153 -> 
A161: Permanent Fund from Mineral Royalty & Bonus | C161: 6.662579563 | D161: 6.662579563 | E161: 6.662579563 | F161: 6.662579563 | G161: 6.662579563 | H161: 6.662579563 | I161: 6.662579563 | J161: 6.662579563 | K161: 6.662579563 | L161: 6.662579563 | M161: 6.662579563 | N161: 6.662579563 | O161: 6.662579563 | P161: 6.662579563 | Q161: 6.662579563 | R161: 6.662579563 | S161: 6.662579563 | T161: 6.662579563 | U161: 6.662579563 | V161: 6.662579563 | W161: 6.662579563 | X161: 6.662579563 | Y161: 6.662579563 | Z161: 6.662579563 | AA161: 6.662579563 | AB161: 6.662579563 | AC161: 6.662579563 | AD161: 6.662579563 | AE161: 6.662579563 | AF161: 6.662579563 | AG161: 6.662579563 | AH161: 6.662579563
A163: Total $ to Perm Fund from Minerals and Oil | C163: =C161+C153 -> 
A170: Minimum Tax Rate Lookup Table | C170: Oil Price | D170: Min Tax Rate
A171: need to roll this table when rolling model | C171: 0.01 | D171: 0
C172: 15.01 | D172: 0.01
C173: 17.51 | D173: 0.02
C174: 20.01 | D174: 0.03
C175: 25.01 | D175: 0.04
C176: 50.01 | D176: 0.04
A179: SB 21 per-barrel credit lookup table | C179: Oil Wellhead | D179: Credit
A180: need to roll this table when rolling model | C180: -1 | D180: 8
C181: 10 | D181: 8
C182: 20 | D182: 8
C183: 30 | D183: 8
C184: 40 | D184: 8
C185: 50 | D185: 8
C186: 60 | D186: 8
C187: 70 | D187: 8
C188: 80 | D188: 7
C189: 90 | D189: 6
C190: 100 | D190: 5
C191: 110 | D191: 4
C192: 120 | D192: 3
C193: 130 | D193: 2
C194: 140 | D194: 1
C195: 150 | D195: 0
C196: 160 | D196: 0
C204: Year 1 | D204: Year 2 | E204: Year 3 | F204: Year 4 | G204: Year 5 | H204: Year 6 | I204: Year 7 | J204: Year 8 | K204: Year 9 | L204: Year 10 | M204: Year 11 | N204: Year 12 | O204: Year 13 | P204: Year 14 | Q204: Year 15 | R204: Year 16 | S204: Year 17 | T204: Year 18 | U204: Year 19 | V204: Year 20 | W204: Year 21 | X204: Year 22 | Y204: Year 23 | Z204: Year 24 | AA204: Year 25 | AB204: Year 26 | AC204: Year 27 | AD204: Year 28 | AE204: Year 29 | AF204: Year 30 | AG204: Year 31 | AH204: Year 32
B205: Price Distribution | C205: 2019 | D205: 2020 | E205: 2021 | F205: 2022 | G205: 2023 | H205: 2024 | I205: 2025 | J205: 2026 | K205: 2027 | L205: 2028 | M205: =L205+1 -> 2029 | N205: =M205+1 -> 2030 | O205: 2031 | P205: 2032 | Q205: 2033 | R205: 2034 | S205: 2035 | T205: 2036 | U205: 2037 | V205: 2038 | W205: 2039 | X205: 2040 | Y205: 2041 | Z205: 2042 | AA205: 2043 | AB205: 2044 | AC205: 2045 | AD205: 2046 | AE205: 2047 | AF205: 2048 | AG205: 2049 | AH205: 2050
B206: High | C206: =INDEX(Assumptions!$C$79:$C$103,'Petroleum Model'!C205-'Petroleum Model'!$C$205+1) -> 80.18178993 | D206: =INDEX(Assumptions!$C$79:$C$103,'Petroleum Model'!D205-'Petroleum Model'!$C$205+1) -> 82.48274854 | E206: =INDEX(Assumptions!$C$79:$C$103,'Petroleum Model'!E205-'Petroleum Model'!$C$205+1) -> 88.59081544 | F206: =INDEX(Assumptions!$C$79:$C$103,'Petroleum Model'!F205-'Petroleum Model'!$C$205+1) -> 91.81504807 | G206: =INDEX(Assumptions!$C$79:$C$103,'Petroleum Model'!G205-'Petroleum Model'!$C$205+1) -> 95.47244558 | H206: =INDEX(Assumptions!$C$79:$C$103,'Petroleum Model'!H205-'Petroleum Model'!$C$205+1) -> 101.6634567 | I206: =INDEX(Assumptions!$C$79:$C$103,'Petroleum Model'!I205-'Petroleum Model'!$C$205+1) -> 109.2799928 | J206: =INDEX(Assumptions!$C$79:$C$103,'Petroleum Model'!J205-'Petroleum Model'!$C$205+1) -> 113.5462521 | K206: =INDEX(Assumptions!$C$79:$C$103,'Petroleum Model'!K205-'Petroleum Model'!$C$205+1) -> 115.9555432 | L206: =INDEX(Assumptions!$C$79:$C$103,'Petroleum Model'!L205-'Petroleum Model'!$C$205+1) -> 120.5058559 | M206: =INDEX(Assumptions!$C$79:$C$103,'Petroleum Model'!M205-'Petroleum Model'!$C$205+1) -> 123.2140921 | N206: =INDEX(Assumptions!$C$79:$C$103,'Petroleum Model'!N205-'Petroleum Model'!$C$205+1) -> 125.9864091 | O206: =INDEX(Assumptions!$C$79:$C$103,'Petroleum Model'!O205-'Petroleum Model'!$C$205+1) -> 128.8211034 | P206: =INDEX(Assumptions!$C$79:$C$103,'Petroleum Model'!P205-'Petroleum Model'!$C$205+1) -> 131.7195782 | Q206: =INDEX(Assumptions!$C$79:$C$103,'Petroleum Model'!Q205-'Petroleum Model'!$C$205+1) -> 134.6832687 | R206: =INDEX(Assumptions!$C$79:$C$103,'Petroleum Model'!R205-'Petroleum Model'!$C$205+1) -> 137.7136422 | S206: =INDEX(Assumptions!$C$79:$C$103,'Petroleum Model'!S205-'Petroleum Model'!$C$205+1) -> 140.8121992 | T206: =INDEX(Assumptions!$C$79:$C$103,'Petroleum Model'!T205-'Petroleum Model'!$C$205+1) -> 143.9804737 | U206: =INDEX(Assumptions!$C$79:$C$103,'Petroleum Model'!U205-'Petroleum Model'!$C$205+1) -> 147.2200343 | V206: =INDEX(Assumptions!$C$79:$C$103,'Petroleum Model'!V205-'Petroleum Model'!$C$205+1) -> 150.5324851 | W206: =INDEX(Assumptions!$C$79:$C$103,'Petroleum Model'!W205-'Petroleum Model'!$C$205+1) -> 153.919466 | X206: =INDEX(Assumptions!$C$79:$C$103,'Petroleum Model'!X205-'Petroleum Model'!$C$205+1) -> 157.382654 | Y206: =INDEX(Assumptions!$C$79:$C$103,'Petroleum Model'!Y205-'Petroleum Model'!$C$205+1) -> 160.9237637 | Z206: =INDEX(Assumptions!$C$79:$C$103,'Petroleum Model'!Z205-'Petroleum Model'!$C$205+1) -> 164.5445484 | AA206: =INDEX(Assumptions!$C$79:$C$103,'Petroleum Model'!AA205-'Petroleum Model'!$C$205+1) -> 168.2468007 | AB206: =AA206*1.0225 -> 172.0323537 | AC206: 175.9030817 | AD206: =AC206*1.0225 -> 179.860901 | AE206: 183.9077713 | AF206: 188.0456962 | AG206: 192.2767243 | AH206: 196.6029506
B207: Median | C207: =INDEX(Assumptions!$D$79:$D$103,'Petroleum Model'!C205-'Petroleum Model'!$C$205+1) -> 63 | D207: =INDEX(Assumptions!$D$79:$D$103,'Petroleum Model'!D205-'Petroleum Model'!$C$205+1) -> 64 | E207: =INDEX(Assumptions!$D$79:$D$103,'Petroleum Model'!E205-'Petroleum Model'!$C$205+1) -> 66 | F207: =INDEX(Assumptions!$D$79:$D$103,'Petroleum Model'!F205-'Petroleum Model'!$C$205+1) -> 67 | G207: =INDEX(Assumptions!$D$79:$D$103,'Petroleum Model'!G205-'Petroleum Model'!$C$205+1) -> 69 | H207: =INDEX(Assumptions!$D$79:$D$103,'Petroleum Model'!H205-'Petroleum Model'!$C$205+1) -> 70 | I207: =INDEX(Assumptions!$D$79:$D$103,'Petroleum Model'!I205-'Petroleum Model'!$C$205+1) -> 72 | J207: =INDEX(Assumptions!$D$79:$D$103,'Petroleum Model'!J205-'Petroleum Model'!$C$205+1) -> 74 | K207: =INDEX(Assumptions!$D$79:$D$103,'Petroleum Model'!K205-'Petroleum Model'!$C$205+1) -> 75 | L207: =INDEX(Assumptions!$D$79:$D$103,'Petroleum Model'!L205-'Petroleum Model'!$C$205+1) -> 76.97 | M207: =INDEX(Assumptions!$D$79:$D$103,'Petroleum Model'!M205-'Petroleum Model'!$C$205+1) -> 78.69981587 | N207: =INDEX(Assumptions!$D$79:$D$103,'Petroleum Model'!N205-'Petroleum Model'!$C$205+1) -> 80.47056172 | O207: =INDEX(Assumptions!$D$79:$D$103,'Petroleum Model'!O205-'Petroleum Model'!$C$205+1) -> 82.28114936 | P207: =INDEX(Assumptions!$D$79:$D$103,'Petroleum Model'!P205-'Petroleum Model'!$C$205+1) -> 84.13247522 | Q207: =INDEX(Assumptions!$D$79:$D$103,'Petroleum Model'!Q205-'Petroleum Model'!$C$205+1) -> 86.02545592 | R207: =INDEX(Assumptions!$D$79:$D$103,'Petroleum Model'!R205-'Petroleum Model'!$C$205+1) -> 87.96102867 | S207: =INDEX(Assumptions!$D$79:$D$103,'Petroleum Model'!S205-'Petroleum Model'!$C$205+1) -> 89.94015182 | T207: =INDEX(Assumptions!$D$79:$D$103,'Petroleum Model'!T205-'Petroleum Model'!$C$205+1) -> 91.96380524 | U207: =INDEX(Assumptions!$D$79:$D$103,'Petroleum Model'!U205-'Petroleum Model'!$C$205+1) -> 94.03299085 | V207: =INDEX(Assumptions!$D$79:$D$103,'Petroleum Model'!V205-'Petroleum Model'!$C$205+1) -> 96.14873315 | W207: =INDEX(Assumptions!$D$79:$D$103,'Petroleum Model'!W205-'Petroleum Model'!$C$205+1) -> 98.31207964 | X207: =INDEX(Assumptions!$D$79:$D$103,'Petroleum Model'!X205-'Petroleum Model'!$C$205+1) -> 100.5241014 | Y207: =INDEX(Assumptions!$D$79:$D$103,'Petroleum Model'!Y205-'Petroleum Model'!$C$205+1) -> 102.7858937 | Z207: =INDEX(Assumptions!$D$79:$D$103,'Petroleum Model'!Z205-'Petroleum Model'!$C$205+1) -> 105.0985763 | AA207: =INDEX(Assumptions!$D$79:$D$103,'Petroleum Model'!AA205-'Petroleum Model'!$C$205+1) -> 107.4632943 | AB207: =AA207*1.0225 -> 109.8812184 | AC207: 112.3535458 | AD207: 114.8815006 | AE207: 117.4663344 | AF207: 120.1093269 | AG207: 122.8117868 | AH207: 125.575052
B208: Low | C208: =INDEX(Assumptions!$E$79:$E$103,'Petroleum Model'!C205-'Petroleum Model'!$C$205+1) -> 45.81816942 | D208: =INDEX(Assumptions!$E$79:$E$103,'Petroleum Model'!D205-'Petroleum Model'!$C$205+1) -> 42.68333217 | E208: =INDEX(Assumptions!$E$79:$E$103,'Petroleum Model'!E205-'Petroleum Model'!$C$205+1) -> 41.99430702 | F208: =INDEX(Assumptions!$E$79:$E$103,'Petroleum Model'!F205-'Petroleum Model'!$C$205+1) -> 40.16909001 | G208: =INDEX(Assumptions!$E$79:$E$103,'Petroleum Model'!G205-'Petroleum Model'!$C$205+1) -> 40.66413405 | H208: =INDEX(Assumptions!$E$79:$E$103,'Petroleum Model'!H205-'Petroleum Model'!$C$205+1) -> 38.12380156 | I208: =INDEX(Assumptions!$E$79:$E$103,'Petroleum Model'!I205-'Petroleum Model'!$C$205+1) -> 36.42657901 | J208: =INDEX(Assumptions!$E$79:$E$103,'Petroleum Model'!J205-'Petroleum Model'!$C$205+1) -> 36.8258128 | K208: =INDEX(Assumptions!$E$79:$E$103,'Petroleum Model'!K205-'Petroleum Model'!$C$205+1) -> 36.61749781 | L208: =INDEX(Assumptions!$E$79:$E$103,'Petroleum Model'!L205-'Petroleum Model'!$C$205+1) -> 36.88951746 | M208: =INDEX(Assumptions!$E$79:$E$103,'Petroleum Model'!M205-'Petroleum Model'!$C$205+1) -> 37.71856869 | N208: =INDEX(Assumptions!$E$79:$E$103,'Petroleum Model'!N205-'Petroleum Model'!$C$205+1) -> 38.56723648 | O208: =INDEX(Assumptions!$E$79:$E$103,'Petroleum Model'!O205-'Petroleum Model'!$C$205+1) -> 39.4349993 | P208: =INDEX(Assumptions!$E$79:$E$103,'Petroleum Model'!P205-'Petroleum Model'!$C$205+1) -> 40.32228679 | Q208: =INDEX(Assumptions!$E$79:$E$103,'Petroleum Model'!Q205-'Petroleum Model'!$C$205+1) -> 41.22953824 | R208: =INDEX(Assumptions!$E$79:$E$103,'Petroleum Model'!R205-'Petroleum Model'!$C$205+1) -> 42.15720285 | S208: =INDEX(Assumptions!$E$79:$E$103,'Petroleum Model'!S205-'Petroleum Model'!$C$205+1) -> 43.10573991 | T208: =INDEX(Assumptions!$E$79:$E$103,'Petroleum Model'!T205-'Petroleum Model'!$C$205+1) -> 44.07561906 | U208: =INDEX(Assumptions!$E$79:$E$103,'Petroleum Model'!U205-'Petroleum Model'!$C$205+1) -> 45.06732049 | V208: =INDEX(Assumptions!$E$79:$E$103,'Petroleum Model'!V205-'Petroleum Model'!$C$205+1) -> 46.0813352 | W208: =INDEX(Assumptions!$E$79:$E$103,'Petroleum Model'!W205-'Petroleum Model'!$C$205+1) -> 47.11816524 | X208: =INDEX(Assumptions!$E$79:$E$103,'Petroleum Model'!X205-'Petroleum Model'!$C$205+1) -> 48.17832396 | Y208: =INDEX(Assumptions!$E$79:$E$103,'Petroleum Model'!Y205-'Petroleum Model'!$C$205+1) -> 49.26233625 | Z208: =INDEX(Assumptions!$E$79:$E$103,'Petroleum Model'!Z205-'Petroleum Model'!$C$205+1) -> 50.37073882 | AA208: =INDEX(Assumptions!$E$79:$E$103,'Petroleum Model'!AA205-'Petroleum Model'!$C$205+1) -> 51.50408044 | AB208: 52.66292225 | AC208: 53.847838 | AD208: 55.05941435 | AE208: 56.29825118 | AF208: 57.56496183 | AG208: 58.86017347 | AH208: 60.18452737
B209: Probabalistic Result | C209: =_xll.RiskPertAlt(10%,C208,"m.likely",C207,90%,C206,_xll.RiskCorrmat('Fund Model'!$K$7:$M$9,3,C204),_xll.RiskStatic(C207)) ->  | D209: =_xll.RiskPertAlt(10%,D208,"m.likely",D207,90%,D206,_xll.RiskCorrmat('Fund Model'!$K$7:$M$9,3,D204),_xll.RiskStatic(D207)) ->  | E209: =_xll.RiskPertAlt(10%,E208,"m.likely",E207,90%,E206,_xll.RiskCorrmat('Fund Model'!$K$7:$M$9,3,E204),_xll.RiskStatic(E207)) ->  | F209: =_xll.RiskPertAlt(10%,F208,"m.likely",F207,90%,F206,_xll.RiskCorrmat('Fund Model'!$K$7:$M$9,3,F204),_xll.RiskStatic(F207)) ->  | G209: =_xll.RiskPertAlt(10%,G208,"m.likely",G207,90%,G206,_xll.RiskCorrmat('Fund Model'!$K$7:$M$9,3,G204),_xll.RiskStatic(G207)) ->  | H209: =_xll.RiskPertAlt(10%,H208,"m.likely",H207,90%,H206,_xll.RiskCorrmat('Fund Model'!$K$7:$M$9,3,H204),_xll.RiskStatic(H207)) ->  | I209: =_xll.RiskPertAlt(10%,I208,"m.likely",I207,90%,I206,_xll.RiskCorrmat('Fund Model'!$K$7:$M$9,3,I204),_xll.RiskStatic(I207)) ->  | J209: =_xll.RiskPertAlt(10%,J208,"m.likely",J207,90%,J206,_xll.RiskCorrmat('Fund Model'!$K$7:$M$9,3,J204),_xll.RiskStatic(J207)) ->  | K209: =_xll.RiskPertAlt(10%,K208,"m.likely",K207,90%,K206,_xll.RiskCorrmat('Fund Model'!$K$7:$M$9,3,K204),_xll.RiskStatic(K207)) ->  | L209: =_xll.RiskPertAlt(10%,L208,"m.likely",L207,90%,L206,_xll.RiskCorrmat('Fund Model'!$K$7:$M$9,3,L204),_xll.RiskStatic(L207)) ->  | M209: =_xll.RiskPertAlt(10%,M208,"m.likely",M207,90%,M206,_xll.RiskCorrmat('Fund Model'!$K$7:$M$9,3,M204),_xll.RiskStatic(M207)) ->  | N209: =_xll.RiskPertAlt(10%,N208,"m.likely",N207,90%,N206,_xll.RiskCorrmat('Fund Model'!$K$7:$M$9,3,N204),_xll.RiskStatic(N207)) ->  | O209: =_xll.RiskPertAlt(10%,O208,"m.likely",O207,90%,O206,_xll.RiskCorrmat('Fund Model'!$K$7:$M$9,3,O204),_xll.RiskStatic(O207)) ->  | P209: =_xll.RiskPertAlt(10%,P208,"m.likely",P207,90%,P206,_xll.RiskCorrmat('Fund Model'!$K$7:$M$9,3,P204),_xll.RiskStatic(P207)) ->  | Q209: =_xll.RiskPertAlt(10%,Q208,"m.likely",Q207,90%,Q206,_xll.RiskCorrmat('Fund Model'!$K$7:$M$9,3,Q204),_xll.RiskStatic(Q207)) ->  | R209: =_xll.RiskPertAlt(10%,R208,"m.likely",R207,90%,R206,_xll.RiskCorrmat('Fund Model'!$K$7:$M$9,3,R204),_xll.RiskStatic(R207)) ->  | S209: =_xll.RiskPertAlt(10%,S208,"m.likely",S207,90%,S206,_xll.RiskCorrmat('Fund Model'!$K$7:$M$9,3,S204),_xll.RiskStatic(S207)) ->  | T209: =_xll.RiskPertAlt(10%,T208,"m.likely",T207,90%,T206,_xll.RiskCorrmat('Fund Model'!$K$7:$M$9,3,T204),_xll.RiskStatic(T207)) ->  | U209: =_xll.RiskPertAlt(10%,U208,"m.likely",U207,90%,U206,_xll.RiskCorrmat('Fund Model'!$K$7:$M$9,3,U204),_xll.RiskStatic(U207)) ->  | V209: =_xll.RiskPertAlt(10%,V208,"m.likely",V207,90%,V206,_xll.RiskCorrmat('Fund Model'!$K$7:$M$9,3,V204),_xll.RiskStatic(V207)) ->  | W209: =_xll.RiskPertAlt(10%,W208,"m.likely",W207,90%,W206,_xll.RiskCorrmat('Fund Model'!$K$7:$M$9,3,W204),_xll.RiskStatic(W207)) ->  | X209: =_xll.RiskPertAlt(10%,X208,"m.likely",X207,90%,X206,_xll.RiskCorrmat('Fund Model'!$K$7:$M$9,3,X204),_xll.RiskStatic(X207)) ->  | Y209: =_xll.RiskPertAlt(10%,Y208,"m.likely",Y207,90%,Y206,_xll.RiskCorrmat('Fund Model'!$K$7:$M$9,3,Y204),_xll.RiskStatic(Y207)) ->  | Z209: =_xll.RiskPertAlt(10%,Z208,"m.likely",Z207,90%,Z206,_xll.RiskCorrmat('Fund Model'!$K$7:$M$9,3,Z204),_xll.RiskStatic(Z207)) ->  | AA209: =_xll.RiskPertAlt(10%,AA208,"m.likely",AA207,90%,AA206,_xll.RiskCorrmat('Fund Model'!$K$7:$M$9,3,AA204),_xll.RiskStatic(AA207)) ->  | AB209: =_xll.RiskPertAlt(10%,AB208,"m.likely",AB207,90%,AB206,_xll.RiskCorrmat('Fund Model'!$K$7:$M$9,3,AB204),_xll.RiskStatic(AB207)) ->  | AC209: =_xll.RiskPertAlt(10%,AC208,"m.likely",AC207,90%,AC206,_xll.RiskCorrmat('Fund Model'!$K$7:$M$9,3,AC204),_xll.RiskStatic(AC207)) ->  | AD209: =_xll.RiskPertAlt(10%,AD208,"m.likely",AD207,90%,AD206,_xll.RiskCorrmat('Fund Model'!$K$7:$M$9,3,AD204),_xll.RiskStatic(AD207)) ->  | AE209: =_xll.RiskPertAlt(10%,AE208,"m.likely",AE207,90%,AE206,_xll.RiskCorrmat('Fund Model'!$K$7:$M$9,3,AE204),_xll.RiskStatic(AE207)) ->  | AF209: =_xll.RiskPertAlt(10%,AF208,"m.likely",AF207,90%,AF206,_xll.RiskCorrmat('Fund Model'!$K$7:$M$9,3,AF204),_xll.RiskStatic(AF207)) ->  | AG209: =_xll.RiskPertAlt(10%,AG208,"m.likely",AG207,90%,AG206,_xll.RiskCorrmat('Fund Model'!$K$7:$M$9,3,AG204),_xll.RiskStatic(AG207)) ->  | AH209: =_xll.RiskPertAlt(10%,AH208,"m.likely",AH207,90%,AH206,_xll.RiskCorrmat('Fund Model'!$K$7:$M$9,3,AH204),_xll.RiskStatic(AH207)) -> 
B211: Production Distribution | C211: 2019 | D211: 2020 | E211: 2021 | F211: 2022 | G211: 2023 | H211: 2024 | I211: 2025 | J211: 2026 | K211: 2027 | L211: =K211+1 -> 2028 | M211: =L211+1 -> 2029 | N211: 2030 | O211: 2031 | P211: 2032 | Q211: 2033 | R211: 2034 | S211: 2035 | T211: 2036 | U211: 2037 | V211: 2038 | W211: 2039 | X211: 2040 | Y211: 2041 | Z211: 2042 | AA211: 2043 | AB211: 2044 | AC211: 2045 | AD211: 2046 | AE211: 2047 | AF211: 2048 | AG211: 2049 | AH211: 2050
B212: High | C212: =INDEX(Assumptions!$F$79:$F$103,'Petroleum Model'!C211-'Petroleum Model'!$C$211+1) -> 0.5873124491 | D212: =INDEX(Assumptions!$F$79:$F$103,'Petroleum Model'!D211-'Petroleum Model'!$C$211+1) -> 0.6194579947 | E212: =INDEX(Assumptions!$F$79:$F$103,'Petroleum Model'!E211-'Petroleum Model'!$C$211+1) -> 0.6020727976 | F212: =INDEX(Assumptions!$F$79:$F$103,'Petroleum Model'!F211-'Petroleum Model'!$C$211+1) -> 0.5800751813 | G212: =INDEX(Assumptions!$F$79:$F$103,'Petroleum Model'!G211-'Petroleum Model'!$C$211+1) -> 0.5836036577 | H212: =INDEX(Assumptions!$F$79:$F$103,'Petroleum Model'!H211-'Petroleum Model'!$C$211+1) -> 0.6119135223 | I212: =INDEX(Assumptions!$F$79:$F$103,'Petroleum Model'!I211-'Petroleum Model'!$C$211+1) -> 0.6510402254 | J212: =INDEX(Assumptions!$F$79:$F$103,'Petroleum Model'!J211-'Petroleum Model'!$C$211+1) -> 0.6716414406 | K212: =INDEX(Assumptions!$F$79:$F$103,'Petroleum Model'!K211-'Petroleum Model'!$C$211+1) -> 0.6864186874 | L212: =INDEX(Assumptions!$F$79:$F$103,'Petroleum Model'!L211-'Petroleum Model'!$C$211+1) -> 0.694297329 | M212: =INDEX(Assumptions!$F$79:$F$103,'Petroleum Model'!M211-'Petroleum Model'!$C$211+1) -> 0.6977208239 | N212: =INDEX(Assumptions!$F$79:$F$103,'Petroleum Model'!N211-'Petroleum Model'!$C$211+1) -> 0.6948997896 | O212: =INDEX(Assumptions!$F$79:$F$103,'Petroleum Model'!O211-'Petroleum Model'!$C$211+1) -> 0.6908752685 | P212: =INDEX(Assumptions!$F$79:$F$103,'Petroleum Model'!P211-'Petroleum Model'!$C$211+1) -> 0.6847013499 | Q212: =INDEX(Assumptions!$F$79:$F$103,'Petroleum Model'!Q211-'Petroleum Model'!$C$211+1) -> 0.6674813305 | R212: =INDEX(Assumptions!$F$79:$F$103,'Petroleum Model'!R211-'Petroleum Model'!$C$211+1) -> 0.6401469904 | S212: =INDEX(Assumptions!$F$79:$F$103,'Petroleum Model'!S211-'Petroleum Model'!$C$211+1) -> 0.6106411131 | T212: =INDEX(Assumptions!$F$79:$F$103,'Petroleum Model'!T211-'Petroleum Model'!$C$211+1) -> 0.5858442758 | U212: =INDEX(Assumptions!$F$79:$F$103,'Petroleum Model'!U211-'Petroleum Model'!$C$211+1) -> 0.5637582531 | V212: =INDEX(Assumptions!$F$79:$F$103,'Petroleum Model'!V211-'Petroleum Model'!$C$211+1) -> 0.5548458694 | W212: =INDEX(Assumptions!$F$79:$F$103,'Petroleum Model'!W211-'Petroleum Model'!$C$211+1) -> 0.5473148771 | X212: =INDEX(Assumptions!$F$79:$F$103,'Petroleum Model'!X211-'Petroleum Model'!$C$211+1) -> 0.540338965 | Y212: =INDEX(Assumptions!$F$79:$F$103,'Petroleum Model'!Y211-'Petroleum Model'!$C$211+1) -> 0.5338564337 | Z212: =INDEX(Assumptions!$F$79:$F$103,'Petroleum Model'!Z211-'Petroleum Model'!$C$211+1) -> 0.5278133991 | AA212: =INDEX(Assumptions!$F$79:$F$103,'Petroleum Model'!AA211-'Petroleum Model'!$C$211+1) -> 0.5221626358 | AB212: =AA212*AB213/AA213 -> 0.5168626311 | AC212: 0.5118768045 | AD212: 0.5071728543 | AE212: 0.5027222063 | AF212: 0.4984995446 | AG212: 0.4944824092 | AH212: 0.4906508494
B213: Mean | C213: =INDEX(Assumptions!$G$79:$G$103,'Petroleum Model'!C211-'Petroleum Model'!$C$211+1) -> 0.5266436124 | D213: =INDEX(Assumptions!$G$79:$G$103,'Petroleum Model'!D211-'Petroleum Model'!$C$211+1) -> 0.536139828 | E213: =INDEX(Assumptions!$G$79:$G$103,'Petroleum Model'!E211-'Petroleum Model'!$C$211+1) -> 0.5253024177 | F213: =INDEX(Assumptions!$G$79:$G$103,'Petroleum Model'!F211-'Petroleum Model'!$C$211+1) -> 0.5087433137 | G213: =INDEX(Assumptions!$G$79:$G$103,'Petroleum Model'!G211-'Petroleum Model'!$C$211+1) -> 0.4969373322 | H213: =INDEX(Assumptions!$G$79:$G$103,'Petroleum Model'!H211-'Petroleum Model'!$C$211+1) -> 0.4938856272 | I213: =INDEX(Assumptions!$G$79:$G$103,'Petroleum Model'!I211-'Petroleum Model'!$C$211+1) -> 0.4952839641 | J213: =INDEX(Assumptions!$G$79:$G$103,'Petroleum Model'!J211-'Petroleum Model'!$C$211+1) -> 0.4958527656 | K213: =INDEX(Assumptions!$G$79:$G$103,'Petroleum Model'!K211-'Petroleum Model'!$C$211+1) -> 0.4930285784 | L213: =INDEX(Assumptions!$G$79:$G$103,'Petroleum Model'!L211-'Petroleum Model'!$C$211+1) -> 0.489551683 | M213: =INDEX(Assumptions!$G$79:$G$103,'Petroleum Model'!M211-'Petroleum Model'!$C$211+1) -> 0.4856733909 | N213: =INDEX(Assumptions!$G$79:$G$103,'Petroleum Model'!N211-'Petroleum Model'!$C$211+1) -> 0.4813407103 | O213: =INDEX(Assumptions!$G$79:$G$103,'Petroleum Model'!O211-'Petroleum Model'!$C$211+1) -> 0.4767059195 | P213: =INDEX(Assumptions!$G$79:$G$103,'Petroleum Model'!P211-'Petroleum Model'!$C$211+1) -> 0.4718631439 | Q213: =INDEX(Assumptions!$G$79:$G$103,'Petroleum Model'!Q211-'Petroleum Model'!$C$211+1) -> 0.4649886003 | R213: =INDEX(Assumptions!$G$79:$G$103,'Petroleum Model'!R211-'Petroleum Model'!$C$211+1) -> 0.4558754262 | S213: =INDEX(Assumptions!$G$79:$G$103,'Petroleum Model'!S211-'Petroleum Model'!$C$211+1) -> 0.447026628 | T213: =INDEX(Assumptions!$G$79:$G$103,'Petroleum Model'!T211-'Petroleum Model'!$C$211+1) -> 0.4389908446 | U213: =INDEX(Assumptions!$G$79:$G$103,'Petroleum Model'!U211-'Petroleum Model'!$C$211+1) -> 0.4307119422 | V213: =INDEX(Assumptions!$G$79:$G$103,'Petroleum Model'!V211-'Petroleum Model'!$C$211+1) -> 0.423902871 | W213: =INDEX(Assumptions!$G$79:$G$103,'Petroleum Model'!W211-'Petroleum Model'!$C$211+1) -> 0.4181491844 | X213: =INDEX(Assumptions!$G$79:$G$103,'Petroleum Model'!X211-'Petroleum Model'!$C$211+1) -> 0.4128195797 | Y213: =INDEX(Assumptions!$G$79:$G$103,'Petroleum Model'!Y211-'Petroleum Model'!$C$211+1) -> 0.4078669184 | Z213: =INDEX(Assumptions!$G$79:$G$103,'Petroleum Model'!Z211-'Petroleum Model'!$C$211+1) -> 0.4032500332 | AA213: =INDEX(Assumptions!$G$79:$G$103,'Petroleum Model'!AA211-'Petroleum Model'!$C$211+1) -> 0.3989328436 | AB213: 0.394883634 | AC213: 0.3910744569 | AD213: 0.3874806336 | AE213: 0.3840803335 | AF213: 0.3808542152 | AG213: 0.3777851192 | AH213: 0.3748578032
B214: Low | C214: =INDEX(Assumptions!$H$79:$H$103,'Petroleum Model'!C211-'Petroleum Model'!$C$211+1) -> 0.4711586996 | D214: =INDEX(Assumptions!$H$79:$H$103,'Petroleum Model'!D211-'Petroleum Model'!$C$211+1) -> 0.4599846574 | E214: =INDEX(Assumptions!$H$79:$H$103,'Petroleum Model'!E211-'Petroleum Model'!$C$211+1) -> 0.4440415194 | F214: =INDEX(Assumptions!$H$79:$H$103,'Petroleum Model'!F211-'Petroleum Model'!$C$211+1) -> 0.4304835065 | G214: =INDEX(Assumptions!$H$79:$H$103,'Petroleum Model'!G211-'Petroleum Model'!$C$211+1) -> 0.4191230177 | H214: =INDEX(Assumptions!$H$79:$H$103,'Petroleum Model'!H211-'Petroleum Model'!$C$211+1) -> 0.409552015 | I214: =INDEX(Assumptions!$H$79:$H$103,'Petroleum Model'!I211-'Petroleum Model'!$C$211+1) -> 0.4014057963 | J214: =INDEX(Assumptions!$H$79:$H$103,'Petroleum Model'!J211-'Petroleum Model'!$C$211+1) -> 0.394363446 | K214: =INDEX(Assumptions!$H$79:$H$103,'Petroleum Model'!K211-'Petroleum Model'!$C$211+1) -> 0.3881945651 | L214: =INDEX(Assumptions!$H$79:$H$103,'Petroleum Model'!L211-'Petroleum Model'!$C$211+1) -> 0.382648326 | M214: =INDEX(Assumptions!$H$79:$H$103,'Petroleum Model'!M211-'Petroleum Model'!$C$211+1) -> 0.3777880459 | N214: =INDEX(Assumptions!$H$79:$H$103,'Petroleum Model'!N211-'Petroleum Model'!$C$211+1) -> 0.3735393599 | O214: =INDEX(Assumptions!$H$79:$H$103,'Petroleum Model'!O211-'Petroleum Model'!$C$211+1) -> 0.3696149332 | P214: =INDEX(Assumptions!$H$79:$H$103,'Petroleum Model'!P211-'Petroleum Model'!$C$211+1) -> 0.3662017775 | Q214: =INDEX(Assumptions!$H$79:$H$103,'Petroleum Model'!Q211-'Petroleum Model'!$C$211+1) -> 0.3629934982 | R214: =INDEX(Assumptions!$H$79:$H$103,'Petroleum Model'!R211-'Petroleum Model'!$C$211+1) -> 0.3597035714 | S214: =INDEX(Assumptions!$H$79:$H$103,'Petroleum Model'!S211-'Petroleum Model'!$C$211+1) -> 0.356922431 | T214: =INDEX(Assumptions!$H$79:$H$103,'Petroleum Model'!T211-'Petroleum Model'!$C$211+1) -> 0.3544726824 | U214: =INDEX(Assumptions!$H$79:$H$103,'Petroleum Model'!U211-'Petroleum Model'!$C$211+1) -> 0.3512953492 | V214: =INDEX(Assumptions!$H$79:$H$103,'Petroleum Model'!V211-'Petroleum Model'!$C$211+1) -> 0.3457417649 | W214: =INDEX(Assumptions!$H$79:$H$103,'Petroleum Model'!W211-'Petroleum Model'!$C$211+1) -> 0.3410489688 | X214: =INDEX(Assumptions!$H$79:$H$103,'Petroleum Model'!X211-'Petroleum Model'!$C$211+1) -> 0.3367020604 | Y214: =INDEX(Assumptions!$H$79:$H$103,'Petroleum Model'!Y211-'Petroleum Model'!$C$211+1) -> 0.3326625929 | Z214: =INDEX(Assumptions!$H$79:$H$103,'Petroleum Model'!Z211-'Petroleum Model'!$C$211+1) -> 0.3288969897 | AA214: =INDEX(Assumptions!$H$79:$H$103,'Petroleum Model'!AA211-'Petroleum Model'!$C$211+1) -> 0.3253758228 | AB214: =AA214*AB213/AA213 -> 0.3220732246 | AC214: 0.3189664005 | AD214: 0.3160352224 | AE214: 0.3132618849 | AF214: 0.3106306127 | AG214: 0.3081274104 | AH214: 0.3057398459
B215: Probabalistic Result | C215: =MAX(0,_xll.RiskTheoPercentile(C217,$C$216)) ->  | D215: =MAX(0,_xll.RiskTheoPercentile(D217,$C$216)) ->  | E215: =MAX(0,_xll.RiskTheoPercentile(E217,$C$216)) ->  | F215: =MAX(0,_xll.RiskTheoPercentile(F217,$C$216)) ->  | G215: =MAX(0,_xll.RiskTheoPercentile(G217,$C$216)) ->  | H215: =MAX(0,_xll.RiskTheoPercentile(H217,$C$216)) ->  | I215: =MAX(0,_xll.RiskTheoPercentile(I217,$C$216)) ->  | J215: =MAX(0,_xll.RiskTheoPercentile(J217,$C$216)) ->  | K215: =MAX(0,_xll.RiskTheoPercentile(K217,$C$216)) ->  | L215: =MAX(0,_xll.RiskTheoPercentile(L217,$C$216)) ->  | M215: =MAX(0,_xll.RiskTheoPercentile(M217,$C$216)) ->  | N215: =MAX(0,_xll.RiskTheoPercentile(N217,$C$216)) ->  | O215: =MAX(0,_xll.RiskTheoPercentile(O217,$C$216)) ->  | P215: =MAX(0,_xll.RiskTheoPercentile(P217,$C$216)) ->  | Q215: =MAX(0,_xll.RiskTheoPercentile(Q217,$C$216)) ->  | R215: =MAX(0,_xll.RiskTheoPercentile(R217,$C$216)) ->  | S215: =MAX(0,_xll.RiskTheoPercentile(S217,$C$216)) ->  | T215: =MAX(0,_xll.RiskTheoPercentile(T217,$C$216)) ->  | U215: =MAX(0,_xll.RiskTheoPercentile(U217,$C$216)) ->  | V215: =MAX(0,_xll.RiskTheoPercentile(V217,$C$216)) ->  | W215: =MAX(0,_xll.RiskTheoPercentile(W217,$C$216)) ->  | X215: =MAX(0,_xll.RiskTheoPercentile(X217,$C$216)) ->  | Y215: =MAX(0,_xll.RiskTheoPercentile(Y217,$C$216)) ->  | Z215: =MAX(0,_xll.RiskTheoPercentile(Z217,$C$216)) ->  | AA215: =MAX(0,_xll.RiskTheoPercentile(AA217,$C$216)) ->  | AB215: =MAX(0,_xll.RiskTheoPercentile(AB217,$C$216)) ->  | AC215: =MAX(0,_xll.RiskTheoPercentile(AC217,$C$216)) ->  | AD215: =MAX(0,_xll.RiskTheoPercentile(AD217,$C$216)) ->  | AE215: =MAX(0,_xll.RiskTheoPercentile(AE217,$C$216)) ->  | AF215: =MAX(0,_xll.RiskTheoPercentile(AF217,$C$216)) ->  | AG215: =MAX(0,_xll.RiskTheoPercentile(AG217,$C$216)) ->  | AH215: =MAX(0,_xll.RiskTheoPercentile(AH217,$C$216)) -> 
B216: True Percentile Path | C216: =_xll.RiskUniform(0,1) -> 
B217: Defined Distribution | C217: =_xll.RiskPert(C214,C213,C212,_xll.RiskLock()) ->  | D217: =_xll.RiskPert(D214,D213,D212,_xll.RiskLock()) ->  | E217: =_xll.RiskPert(E214,E213,E212,_xll.RiskLock()) ->  | F217: =_xll.RiskPert(F214,F213,F212,_xll.RiskLock()) ->  | G217: =_xll.RiskPert(G214,G213,G212,_xll.RiskLock()) ->  | H217: =_xll.RiskPert(H214,H213,H212,_xll.RiskLock()) ->  | I217: =_xll.RiskPert(I214,I213,I212,_xll.RiskLock()) ->  | J217: =_xll.RiskPert(J214,J213,J212,_xll.RiskLock()) ->  | K217: =_xll.RiskPert(K214,K213,K212,_xll.RiskLock()) ->  | L217: =_xll.RiskPert(L214,L213,L212,_xll.RiskLock()) ->  | M217: =_xll.RiskPert(M214,M213,M212,_xll.RiskLock()) ->  | N217: =_xll.RiskPert(N214,N213,N212,_xll.RiskLock()) ->  | O217: =_xll.RiskPert(O214,O213,O212,_xll.RiskLock()) ->  | P217: =_xll.RiskPert(P214,P213,P212,_xll.RiskLock()) ->  | Q217: =_xll.RiskPert(Q214,Q213,Q212,_xll.RiskLock()) ->  | R217: =_xll.RiskPert(R214,R213,R212,_xll.RiskLock()) ->  | S217: =_xll.RiskPert(S214,S213,S212,_xll.RiskLock()) ->  | T217: =_xll.RiskPert(T214,T213,T212,_xll.RiskLock()) ->  | U217: =_xll.RiskPert(U214,U213,U212,_xll.RiskLock()) ->  | V217: =_xll.RiskPert(V214,V213,V212,_xll.RiskLock()) ->  | W217: =_xll.RiskPert(W214,W213,W212,_xll.RiskLock()) ->  | X217: =_xll.RiskPert(X214,X213,X212,_xll.RiskLock()) ->  | Y217: =_xll.RiskPert(Y214,Y213,Y212,_xll.RiskLock()) ->  | Z217: =_xll.RiskPert(Z214,Z213,Z212,_xll.RiskLock()) ->  | AA217: =_xll.RiskPert(AA214,AA213,AA212,_xll.RiskLock()) ->  | AB217: =_xll.RiskPert(AB214,AB213,AB212,_xll.RiskLock()) ->  | AC217: =_xll.RiskPert(AC214,AC213,AC212,_xll.RiskLock()) ->  | AD217: =_xll.RiskPert(AD214,AD213,AD212,_xll.RiskLock()) ->  | AE217: =_xll.RiskPert(AE214,AE213,AE212,_xll.RiskLock()) ->  | AF217: =_xll.RiskPert(AF214,AF213,AF212,_xll.RiskLock()) ->  | AG217: =_xll.RiskPert(AG214,AG213,AG212,_xll.RiskLock()) ->  | AH217: =_xll.RiskPert(AH214,AH213,AH212,_xll.RiskLock()) -> 
C219: =C205 -> 2019 | D219: =D205 -> 2020 | E219: 2021 | F219: 2022 | G219: 2023 | H219: 2024 | I219: 2025 | J219: 2026 | K219: 2027 | L219: 2028 | M219: 2029 | N219: 2030 | O219: 2031 | P219: 2032 | Q219: 2033 | R219: 2034 | S219: 2035 | T219: 2036 | U219: 2037 | V219: 2038 | W219: 2039 | X219: 2040 | Y219: 2041 | Z219: 2042 | AA219: 2043 | AB219: 2044 | AC219: 2045 | AD219: 2046 | AE219: 2047 | AF219: 2048 | AG219: 2049 | AH219: 2050
B220: Total Production Tax | C220: =_xll.RiskOutput()+IFERROR(C118 + C461,0) ->  | D220: =_xll.RiskOutput()+IFERROR(D118 + D461,0) ->  | E220: =_xll.RiskOutput()+IFERROR(E118 + E461,0) ->  | F220: =_xll.RiskOutput()+IFERROR(F118 + F461,0) ->  | G220: =_xll.RiskOutput()+IFERROR(G118 + G461,0) ->  | H220: =_xll.RiskOutput()+IFERROR(H118 + H461,0) ->  | I220: =_xll.RiskOutput()+IFERROR(I118 + I461,0) ->  | J220: =_xll.RiskOutput()+IFERROR(J118 + J461,0) ->  | K220: =_xll.RiskOutput()+IFERROR(K118 + K461,0) ->  | L220: =_xll.RiskOutput()+IFERROR(L118 + L461,0) ->  | M220: =_xll.RiskOutput()+IFERROR(M118 + M461,0) ->  | N220: =_xll.RiskOutput()+IFERROR(N118 + N461,0) ->  | O220: =_xll.RiskOutput()+IFERROR(O118 + O461,0) ->  | P220: =_xll.RiskOutput()+IFERROR(P118 + P461,0) ->  | Q220: =_xll.RiskOutput()+IFERROR(Q118 + Q461,0) ->  | R220: =_xll.RiskOutput()+IFERROR(R118 + R461,0) ->  | S220: =_xll.RiskOutput()+IFERROR(S118 + S461,0) ->  | T220: =_xll.RiskOutput()+IFERROR(T118 + T461,0) ->  | U220: =_xll.RiskOutput()+IFERROR(U118 + U461,0) ->  | V220: =_xll.RiskOutput()+IFERROR(V118 + V461,0) ->  | W220: =_xll.RiskOutput()+IFERROR(W118 + W461,0) ->  | X220: =_xll.RiskOutput()+IFERROR(X118 + X461,0) ->  | Y220: =_xll.RiskOutput()+IFERROR(Y118 + Y461,0) ->  | Z220: =_xll.RiskOutput()+IFERROR(Z118 + Z461,0) ->  | AA220: =_xll.RiskOutput()+IFERROR(AA118 + AA461,0) ->  | AB220: =_xll.RiskOutput()+IFERROR(AB118 + AB461,0) ->  | AC220: =_xll.RiskOutput()+IFERROR(AC118 + AC461,0) ->  | AD220: =_xll.RiskOutput()+IFERROR(AD118 + AD461,0) ->  | AE220: =_xll.RiskOutput()+IFERROR(AE118 + AE461,0) ->  | AF220: =_xll.RiskOutput()+IFERROR(AF118 + AF461,0) ->  | AG220: =_xll.RiskOutput()+IFERROR(AG118 + AG461,0) ->  | AH220: =_xll.RiskOutput()+IFERROR(AH118 + AH461,0) -> 
B221: Total Royalties | C221: =_xll.RiskOutput()+IFERROR(C54+C99,0) ->  | D221: =_xll.RiskOutput()+IFERROR(D54+D99,0) ->  | E221: =_xll.RiskOutput()+IFERROR(E54+E99,0) ->  | F221: =_xll.RiskOutput()+IFERROR(F54+F99,0) ->  | G221: =_xll.RiskOutput()+IFERROR(G54+G99,0) ->  | H221: =_xll.RiskOutput()+IFERROR(H54+H99,0) ->  | I221: =_xll.RiskOutput()+IFERROR(I54+I99,0) ->  | J221: =_xll.RiskOutput()+IFERROR(J54+J99,0) ->  | K221: =_xll.RiskOutput()+IFERROR(K54+K99,0) ->  | L221: =_xll.RiskOutput()+IFERROR(L54+L99,0) ->  | M221: =_xll.RiskOutput()+IFERROR(M54+M99,0) ->  | N221: =_xll.RiskOutput()+IFERROR(N54+N99,0) ->  | O221: =_xll.RiskOutput()+IFERROR(O54+O99,0) ->  | P221: =_xll.RiskOutput()+IFERROR(P54+P99,0) ->  | Q221: =_xll.RiskOutput()+IFERROR(Q54+Q99,0) ->  | R221: =_xll.RiskOutput()+IFERROR(R54+R99,0) ->  | S221: =_xll.RiskOutput()+IFERROR(S54+S99,0) ->  | T221: =_xll.RiskOutput()+IFERROR(T54+T99,0) ->  | U221: =_xll.RiskOutput()+IFERROR(U54+U99,0) ->  | V221: =_xll.RiskOutput()+IFERROR(V54+V99,0) ->  | W221: =_xll.RiskOutput()+IFERROR(W54+W99,0) ->  | X221: =_xll.RiskOutput()+IFERROR(X54+X99,0) ->  | Y221: =_xll.RiskOutput()+IFERROR(Y54+Y99,0) ->  | Z221: =_xll.RiskOutput()+IFERROR(Z54+Z99,0) ->  | AA221: =_xll.RiskOutput()+IFERROR(AA54+AA99,0) ->  | AB221: =_xll.RiskOutput()+IFERROR(AB54+AB99,0) ->  | AC221: =_xll.RiskOutput()+IFERROR(AC54+AC99,0) ->  | AD221: =_xll.RiskOutput()+IFERROR(AD54+AD99,0) ->  | AE221: =_xll.RiskOutput()+IFERROR(AE54+AE99,0) ->  | AF221: =_xll.RiskOutput()+IFERROR(AF54+AF99,0) ->  | AG221: =_xll.RiskOutput()+IFERROR(AG54+AG99,0) ->  | AH221: =_xll.RiskOutput()+IFERROR(AH54+AH99,0) -> 
B224: Production Tax | C224: 2019 | D224: 2020 | E224: 2021 | F224: 2022 | G224: 2023 | H224: 2024 | I224: 2025 | J224: 2026 | K224: 2027 | L224: 2028 | M224: 2029 | N224: 2030 | O224: 2031 | P224: 2032 | Q224: 2033 | R224: 2034 | S224: 2035 | T224: 2036 | U224: 2037 | V224: 2038 | W224: 2039 | X224: 2040 | Y224: 2041 | Z224: 2042 | AA224: 2043 | AB224: 2044 | AC224: 2045 | AD224: 2046 | AE224: 2047 | AF224: 2048 | AG224: 2049 | AH224: 2050
B225: 0.1 | C225: =_xll.RiskPercentile(C$220,$B225) ->  | D225: =_xll.RiskPercentile(D$220,$B225) ->  | E225: =_xll.RiskPercentile(E$220,$B225) ->  | F225: =_xll.RiskPercentile(F$220,$B225) ->  | G225: =_xll.RiskPercentile(G$220,$B225) ->  | H225: =_xll.RiskPercentile(H$220,$B225) ->  | I225: =_xll.RiskPercentile(I$220,$B225) ->  | J225: =_xll.RiskPercentile(J$220,$B225) ->  | K225: =_xll.RiskPercentile(K$220,$B225) ->  | L225: =_xll.RiskPercentile(L$220,$B225) ->  | M225: =_xll.RiskPercentile(M$220,$B225) ->  | N225: =_xll.RiskPercentile(N$220,$B225) ->  | O225: =_xll.RiskPercentile(O$220,$B225) ->  | P225: =_xll.RiskPercentile(P$220,$B225) ->  | Q225: =_xll.RiskPercentile(Q$220,$B225) ->  | R225: =_xll.RiskPercentile(R$220,$B225) ->  | S225: =_xll.RiskPercentile(S$220,$B225) ->  | T225: =_xll.RiskPercentile(T$220,$B225) ->  | U225: =_xll.RiskPercentile(U$220,$B225) ->  | V225: =_xll.RiskPercentile(V$220,$B225) ->  | W225: =_xll.RiskPercentile(W$220,$B225) ->  | X225: =_xll.RiskPercentile(X$220,$B225) ->  | Y225: =_xll.RiskPercentile(Y$220,$B225) ->  | Z225: =_xll.RiskPercentile(Z$220,$B225) ->  | AA225: =_xll.RiskPercentile(AA$220,$B225) ->  | AB225: =_xll.RiskPercentile(AB$220,$B225) ->  | AC225: =_xll.RiskPercentile(AC$220,$B225) ->  | AD225: =_xll.RiskPercentile(AD$220,$B225) ->  | AE225: =_xll.RiskPercentile(AE$220,$B225) ->  | AF225: =_xll.RiskPercentile(AF$220,$B225) ->  | AG225: =_xll.RiskPercentile(AG$220,$B225) ->  | AH225: =_xll.RiskPercentile(AH$220,$B225) -> 
B226: =B225+0.1 -> 0.2 | C226: =_xll.RiskPercentile(C$220,$B226) ->  | D226: =_xll.RiskPercentile(D$220,$B226) ->  | E226: =_xll.RiskPercentile(E$220,$B226) ->  | F226: =_xll.RiskPercentile(F$220,$B226) ->  | G226: =_xll.RiskPercentile(G$220,$B226) ->  | H226: =_xll.RiskPercentile(H$220,$B226) ->  | I226: =_xll.RiskPercentile(I$220,$B226) ->  | J226: =_xll.RiskPercentile(J$220,$B226) ->  | K226: =_xll.RiskPercentile(K$220,$B226) ->  | L226: =_xll.RiskPercentile(L$220,$B226) ->  | M226: =_xll.RiskPercentile(M$220,$B226) ->  | N226: =_xll.RiskPercentile(N$220,$B226) ->  | O226: =_xll.RiskPercentile(O$220,$B226) ->  | P226: =_xll.RiskPercentile(P$220,$B226) ->  | Q226: =_xll.RiskPercentile(Q$220,$B226) ->  | R226: =_xll.RiskPercentile(R$220,$B226) ->  | S226: =_xll.RiskPercentile(S$220,$B226) ->  | T226: =_xll.RiskPercentile(T$220,$B226) ->  | U226: =_xll.RiskPercentile(U$220,$B226) ->  | V226: =_xll.RiskPercentile(V$220,$B226) ->  | W226: =_xll.RiskPercentile(W$220,$B226) ->  | X226: =_xll.RiskPercentile(X$220,$B226) ->  | Y226: =_xll.RiskPercentile(Y$220,$B226) ->  | Z226: =_xll.RiskPercentile(Z$220,$B226) ->  | AA226: =_xll.RiskPercentile(AA$220,$B226) ->  | AB226: =_xll.RiskPercentile(AB$220,$B226) ->  | AC226: =_xll.RiskPercentile(AC$220,$B226) ->  | AD226: =_xll.RiskPercentile(AD$220,$B226) ->  | AE226: =_xll.RiskPercentile(AE$220,$B226) ->  | AF226: =_xll.RiskPercentile(AF$220,$B226) ->  | AG226: =_xll.RiskPercentile(AG$220,$B226) ->  | AH226: =_xll.RiskPercentile(AH$220,$B226) -> 
B227: =B226+0.1 -> 0.3 | C227: =_xll.RiskPercentile(C$220,$B227) ->  | D227: =_xll.RiskPercentile(D$220,$B227) ->  | E227: =_xll.RiskPercentile(E$220,$B227) ->  | F227: =_xll.RiskPercentile(F$220,$B227) ->  | G227: =_xll.RiskPercentile(G$220,$B227) ->  | H227: =_xll.RiskPercentile(H$220,$B227) ->  | I227: =_xll.RiskPercentile(I$220,$B227) ->  | J227: =_xll.RiskPercentile(J$220,$B227) ->  | K227: =_xll.RiskPercentile(K$220,$B227) ->  | L227: =_xll.RiskPercentile(L$220,$B227) ->  | M227: =_xll.RiskPercentile(M$220,$B227) ->  | N227: =_xll.RiskPercentile(N$220,$B227) ->  | O227: =_xll.RiskPercentile(O$220,$B227) ->  | P227: =_xll.RiskPercentile(P$220,$B227) ->  | Q227: =_xll.RiskPercentile(Q$220,$B227) ->  | R227: =_xll.RiskPercentile(R$220,$B227) ->  | S227: =_xll.RiskPercentile(S$220,$B227) ->  | T227: =_xll.RiskPercentile(T$220,$B227) ->  | U227: =_xll.RiskPercentile(U$220,$B227) ->  | V227: =_xll.RiskPercentile(V$220,$B227) ->  | W227: =_xll.RiskPercentile(W$220,$B227) ->  | X227: =_xll.RiskPercentile(X$220,$B227) ->  | Y227: =_xll.RiskPercentile(Y$220,$B227) ->  | Z227: =_xll.RiskPercentile(Z$220,$B227) ->  | AA227: =_xll.RiskPercentile(AA$220,$B227) ->  | AB227: =_xll.RiskPercentile(AB$220,$B227) ->  | AC227: =_xll.RiskPercentile(AC$220,$B227) ->  | AD227: =_xll.RiskPercentile(AD$220,$B227) ->  | AE227: =_xll.RiskPercentile(AE$220,$B227) ->  | AF227: =_xll.RiskPercentile(AF$220,$B227) ->  | AG227: =_xll.RiskPercentile(AG$220,$B227) ->  | AH227: =_xll.RiskPercentile(AH$220,$B227) -> 
B228: 0.4 | C228: =_xll.RiskPercentile(C$220,$B228) ->  | D228: =_xll.RiskPercentile(D$220,$B228) ->  | E228: =_xll.RiskPercentile(E$220,$B228) ->  | F228: =_xll.RiskPercentile(F$220,$B228) ->  | G228: =_xll.RiskPercentile(G$220,$B228) ->  | H228: =_xll.RiskPercentile(H$220,$B228) ->  | I228: =_xll.RiskPercentile(I$220,$B228) ->  | J228: =_xll.RiskPercentile(J$220,$B228) ->  | K228: =_xll.RiskPercentile(K$220,$B228) ->  | L228: =_xll.RiskPercentile(L$220,$B228) ->  | M228: =_xll.RiskPercentile(M$220,$B228) ->  | N228: =_xll.RiskPercentile(N$220,$B228) ->  | O228: =_xll.RiskPercentile(O$220,$B228) ->  | P228: =_xll.RiskPercentile(P$220,$B228) ->  | Q228: =_xll.RiskPercentile(Q$220,$B228) ->  | R228: =_xll.RiskPercentile(R$220,$B228) ->  | S228: =_xll.RiskPercentile(S$220,$B228) ->  | T228: =_xll.RiskPercentile(T$220,$B228) ->  | U228: =_xll.RiskPercentile(U$220,$B228) ->  | V228: =_xll.RiskPercentile(V$220,$B228) ->  | W228: =_xll.RiskPercentile(W$220,$B228) ->  | X228: =_xll.RiskPercentile(X$220,$B228) ->  | Y228: =_xll.RiskPercentile(Y$220,$B228) ->  | Z228: =_xll.RiskPercentile(Z$220,$B228) ->  | AA228: =_xll.RiskPercentile(AA$220,$B228) ->  | AB228: =_xll.RiskPercentile(AB$220,$B228) ->  | AC228: =_xll.RiskPercentile(AC$220,$B228) ->  | AD228: =_xll.RiskPercentile(AD$220,$B228) ->  | AE228: =_xll.RiskPercentile(AE$220,$B228) ->  | AF228: =_xll.RiskPercentile(AF$220,$B228) ->  | AG228: =_xll.RiskPercentile(AG$220,$B228) ->  | AH228: =_xll.RiskPercentile(AH$220,$B228) -> 
B229: 0.5 | C229: =_xll.RiskPercentile(C$220,$B229) ->  | D229: =_xll.RiskPercentile(D$220,$B229) ->  | E229: =_xll.RiskPercentile(E$220,$B229) ->  | F229: =_xll.RiskPercentile(F$220,$B229) ->  | G229: =_xll.RiskPercentile(G$220,$B229) ->  | H229: =_xll.RiskPercentile(H$220,$B229) ->  | I229: =_xll.RiskPercentile(I$220,$B229) ->  | J229: =_xll.RiskPercentile(J$220,$B229) ->  | K229: =_xll.RiskPercentile(K$220,$B229) ->  | L229: =_xll.RiskPercentile(L$220,$B229) ->  | M229: =_xll.RiskPercentile(M$220,$B229) ->  | N229: =_xll.RiskPercentile(N$220,$B229) ->  | O229: =_xll.RiskPercentile(O$220,$B229) ->  | P229: =_xll.RiskPercentile(P$220,$B229) ->  | Q229: =_xll.RiskPercentile(Q$220,$B229) ->  | R229: =_xll.RiskPercentile(R$220,$B229) ->  | S229: =_xll.RiskPercentile(S$220,$B229) ->  | T229: =_xll.RiskPercentile(T$220,$B229) ->  | U229: =_xll.RiskPercentile(U$220,$B229) ->  | V229: =_xll.RiskPercentile(V$220,$B229) ->  | W229: =_xll.RiskPercentile(W$220,$B229) ->  | X229: =_xll.RiskPercentile(X$220,$B229) ->  | Y229: =_xll.RiskPercentile(Y$220,$B229) ->  | Z229: =_xll.RiskPercentile(Z$220,$B229) ->  | AA229: =_xll.RiskPercentile(AA$220,$B229) ->  | AB229: =_xll.RiskPercentile(AB$220,$B229) ->  | AC229: =_xll.RiskPercentile(AC$220,$B229) ->  | AD229: =_xll.RiskPercentile(AD$220,$B229) ->  | AE229: =_xll.RiskPercentile(AE$220,$B229) ->  | AF229: =_xll.RiskPercentile(AF$220,$B229) ->  | AG229: =_xll.RiskPercentile(AG$220,$B229) ->  | AH229: =_xll.RiskPercentile(AH$220,$B229) -> 
B230: 0.6 | C230: =_xll.RiskPercentile(C$220,$B230) ->  | D230: =_xll.RiskPercentile(D$220,$B230) ->  | E230: =_xll.RiskPercentile(E$220,$B230) ->  | F230: =_xll.RiskPercentile(F$220,$B230) ->  | G230: =_xll.RiskPercentile(G$220,$B230) ->  | H230: =_xll.RiskPercentile(H$220,$B230) ->  | I230: =_xll.RiskPercentile(I$220,$B230) ->  | J230: =_xll.RiskPercentile(J$220,$B230) ->  | K230: =_xll.RiskPercentile(K$220,$B230) ->  | L230: =_xll.RiskPercentile(L$220,$B230) ->  | M230: =_xll.RiskPercentile(M$220,$B230) ->  | N230: =_xll.RiskPercentile(N$220,$B230) ->  | O230: =_xll.RiskPercentile(O$220,$B230) ->  | P230: =_xll.RiskPercentile(P$220,$B230) ->  | Q230: =_xll.RiskPercentile(Q$220,$B230) ->  | R230: =_xll.RiskPercentile(R$220,$B230) ->  | S230: =_xll.RiskPercentile(S$220,$B230) ->  | T230: =_xll.RiskPercentile(T$220,$B230) ->  | U230: =_xll.RiskPercentile(U$220,$B230) ->  | V230: =_xll.RiskPercentile(V$220,$B230) ->  | W230: =_xll.RiskPercentile(W$220,$B230) ->  | X230: =_xll.RiskPercentile(X$220,$B230) ->  | Y230: =_xll.RiskPercentile(Y$220,$B230) ->  | Z230: =_xll.RiskPercentile(Z$220,$B230) ->  | AA230: =_xll.RiskPercentile(AA$220,$B230) ->  | AB230: =_xll.RiskPercentile(AB$220,$B230) ->  | AC230: =_xll.RiskPercentile(AC$220,$B230) ->  | AD230: =_xll.RiskPercentile(AD$220,$B230) ->  | AE230: =_xll.RiskPercentile(AE$220,$B230) ->  | AF230: =_xll.RiskPercentile(AF$220,$B230) ->  | AG230: =_xll.RiskPercentile(AG$220,$B230) ->  | AH230: =_xll.RiskPercentile(AH$220,$B230) -> 
B231: 0.7 | C231: =_xll.RiskPercentile(C$220,$B231) ->  | D231: =_xll.RiskPercentile(D$220,$B231) ->  | E231: =_xll.RiskPercentile(E$220,$B231) ->  | F231: =_xll.RiskPercentile(F$220,$B231) ->  | G231: =_xll.RiskPercentile(G$220,$B231) ->  | H231: =_xll.RiskPercentile(H$220,$B231) ->  | I231: =_xll.RiskPercentile(I$220,$B231) ->  | J231: =_xll.RiskPercentile(J$220,$B231) ->  | K231: =_xll.RiskPercentile(K$220,$B231) ->  | L231: =_xll.RiskPercentile(L$220,$B231) ->  | M231: =_xll.RiskPercentile(M$220,$B231) ->  | N231: =_xll.RiskPercentile(N$220,$B231) ->  | O231: =_xll.RiskPercentile(O$220,$B231) ->  | P231: =_xll.RiskPercentile(P$220,$B231) ->  | Q231: =_xll.RiskPercentile(Q$220,$B231) ->  | R231: =_xll.RiskPercentile(R$220,$B231) ->  | S231: =_xll.RiskPercentile(S$220,$B231) ->  | T231: =_xll.RiskPercentile(T$220,$B231) ->  | U231: =_xll.RiskPercentile(U$220,$B231) ->  | V231: =_xll.RiskPercentile(V$220,$B231) ->  | W231: =_xll.RiskPercentile(W$220,$B231) ->  | X231: =_xll.RiskPercentile(X$220,$B231) ->  | Y231: =_xll.RiskPercentile(Y$220,$B231) ->  | Z231: =_xll.RiskPercentile(Z$220,$B231) ->  | AA231: =_xll.RiskPercentile(AA$220,$B231) ->  | AB231: =_xll.RiskPercentile(AB$220,$B231) ->  | AC231: =_xll.RiskPercentile(AC$220,$B231) ->  | AD231: =_xll.RiskPercentile(AD$220,$B231) ->  | AE231: =_xll.RiskPercentile(AE$220,$B231) ->  | AF231: =_xll.RiskPercentile(AF$220,$B231) ->  | AG231: =_xll.RiskPercentile(AG$220,$B231) ->  | AH231: =_xll.RiskPercentile(AH$220,$B231) -> 
B232: 0.8 | C232: =_xll.RiskPercentile(C$220,$B232) ->  | D232: =_xll.RiskPercentile(D$220,$B232) ->  | E232: =_xll.RiskPercentile(E$220,$B232) ->  | F232: =_xll.RiskPercentile(F$220,$B232) ->  | G232: =_xll.RiskPercentile(G$220,$B232) ->  | H232: =_xll.RiskPercentile(H$220,$B232) ->  | I232: =_xll.RiskPercentile(I$220,$B232) ->  | J232: =_xll.RiskPercentile(J$220,$B232) ->  | K232: =_xll.RiskPercentile(K$220,$B232) ->  | L232: =_xll.RiskPercentile(L$220,$B232) ->  | M232: =_xll.RiskPercentile(M$220,$B232) ->  | N232: =_xll.RiskPercentile(N$220,$B232) ->  | O232: =_xll.RiskPercentile(O$220,$B232) ->  | P232: =_xll.RiskPercentile(P$220,$B232) ->  | Q232: =_xll.RiskPercentile(Q$220,$B232) ->  | R232: =_xll.RiskPercentile(R$220,$B232) ->  | S232: =_xll.RiskPercentile(S$220,$B232) ->  | T232: =_xll.RiskPercentile(T$220,$B232) ->  | U232: =_xll.RiskPercentile(U$220,$B232) ->  | V232: =_xll.RiskPercentile(V$220,$B232) ->  | W232: =_xll.RiskPercentile(W$220,$B232) ->  | X232: =_xll.RiskPercentile(X$220,$B232) ->  | Y232: =_xll.RiskPercentile(Y$220,$B232) ->  | Z232: =_xll.RiskPercentile(Z$220,$B232) ->  | AA232: =_xll.RiskPercentile(AA$220,$B232) ->  | AB232: =_xll.RiskPercentile(AB$220,$B232) ->  | AC232: =_xll.RiskPercentile(AC$220,$B232) ->  | AD232: =_xll.RiskPercentile(AD$220,$B232) ->  | AE232: =_xll.RiskPercentile(AE$220,$B232) ->  | AF232: =_xll.RiskPercentile(AF$220,$B232) ->  | AG232: =_xll.RiskPercentile(AG$220,$B232) ->  | AH232: =_xll.RiskPercentile(AH$220,$B232) -> 
B233: 0.9 | C233: =_xll.RiskPercentile(C$220,$B233) ->  | D233: =_xll.RiskPercentile(D$220,$B233) ->  | E233: =_xll.RiskPercentile(E$220,$B233) ->  | F233: =_xll.RiskPercentile(F$220,$B233) ->  | G233: =_xll.RiskPercentile(G$220,$B233) ->  | H233: =_xll.RiskPercentile(H$220,$B233) ->  | I233: =_xll.RiskPercentile(I$220,$B233) ->  | J233: =_xll.RiskPercentile(J$220,$B233) ->  | K233: =_xll.RiskPercentile(K$220,$B233) ->  | L233: =_xll.RiskPercentile(L$220,$B233) ->  | M233: =_xll.RiskPercentile(M$220,$B233) ->  | N233: =_xll.RiskPercentile(N$220,$B233) ->  | O233: =_xll.RiskPercentile(O$220,$B233) ->  | P233: =_xll.RiskPercentile(P$220,$B233) ->  | Q233: =_xll.RiskPercentile(Q$220,$B233) ->  | R233: =_xll.RiskPercentile(R$220,$B233) ->  | S233: =_xll.RiskPercentile(S$220,$B233) ->  | T233: =_xll.RiskPercentile(T$220,$B233) ->  | U233: =_xll.RiskPercentile(U$220,$B233) ->  | V233: =_xll.RiskPercentile(V$220,$B233) ->  | W233: =_xll.RiskPercentile(W$220,$B233) ->  | X233: =_xll.RiskPercentile(X$220,$B233) ->  | Y233: =_xll.RiskPercentile(Y$220,$B233) ->  | Z233: =_xll.RiskPercentile(Z$220,$B233) ->  | AA233: =_xll.RiskPercentile(AA$220,$B233) ->  | AB233: =_xll.RiskPercentile(AB$220,$B233) ->  | AC233: =_xll.RiskPercentile(AC$220,$B233) ->  | AD233: =_xll.RiskPercentile(AD$220,$B233) ->  | AE233: =_xll.RiskPercentile(AE$220,$B233) ->  | AF233: =_xll.RiskPercentile(AF$220,$B233) ->  | AG233: =_xll.RiskPercentile(AG$220,$B233) ->  | AH233: =_xll.RiskPercentile(AH$220,$B233) -> 
B234: Mean | C234: =_xll.RiskMean(C220) ->  | D234: =_xll.RiskMean(D220) ->  | E234: =_xll.RiskMean(E220) ->  | F234: =_xll.RiskMean(F220) ->  | G234: =_xll.RiskMean(G220) ->  | H234: =_xll.RiskMean(H220) ->  | I234: =_xll.RiskMean(I220) ->  | J234: =_xll.RiskMean(J220) ->  | K234: =_xll.RiskMean(K220) ->  | L234: =_xll.RiskMean(L220) ->  | M234: =_xll.RiskMean(M220) ->  | N234: =_xll.RiskMean(N220) ->  | O234: =_xll.RiskMean(O220) ->  | P234: =_xll.RiskMean(P220) ->  | Q234: =_xll.RiskMean(Q220) ->  | R234: =_xll.RiskMean(R220) ->  | S234: =_xll.RiskMean(S220) ->  | T234: =_xll.RiskMean(T220) ->  | U234: =_xll.RiskMean(U220) ->  | V234: =_xll.RiskMean(V220) ->  | W234: =_xll.RiskMean(W220) ->  | X234: =_xll.RiskMean(X220) ->  | Y234: =_xll.RiskMean(Y220) ->  | Z234: =_xll.RiskMean(Z220) ->  | AA234: =_xll.RiskMean(AA220) ->  | AB234: =_xll.RiskMean(AB220) ->  | AC234: =_xll.RiskMean(AC220) ->  | AD234: =_xll.RiskMean(AD220) ->  | AE234: =_xll.RiskMean(AE220) ->  | AF234: =_xll.RiskMean(AF220) ->  | AG234: =_xll.RiskMean(AG220) ->  | AH234: =_xll.RiskMean(AH220) -> 
B236: Royalties | C236: 2019 | D236: 2020 | E236: 2021 | F236: 2022 | G236: 2023 | H236: 2024 | I236: 2025 | J236: 2026 | K236: 2027 | L236: 2028 | M236: 2029 | N236: 2030 | O236: 2031 | P236: 2032 | Q236: 2033 | R236: 2034 | S236: 2035 | T236: 2036 | U236: 2037 | V236: 2038 | W236: 2039 | X236: 2040 | Y236: 2041 | Z236: 2042 | AA236: 2043 | AB236: 2044 | AC236: 2045 | AD236: 2046 | AE236: 2047 | AF236: 2048 | AG236: 2049 | AH236: 2050
B237: 0.1 | C237: =_xll.RiskPercentile(C$221,$B237) ->  | D237: =_xll.RiskPercentile(D$221,$B237) ->  | E237: =_xll.RiskPercentile(E$221,$B237) ->  | F237: =_xll.RiskPercentile(F$221,$B237) ->  | G237: =_xll.RiskPercentile(G$221,$B237) ->  | H237: =_xll.RiskPercentile(H$221,$B237) ->  | I237: =_xll.RiskPercentile(I$221,$B237) ->  | J237: =_xll.RiskPercentile(J$221,$B237) ->  | K237: =_xll.RiskPercentile(K$221,$B237) ->  | L237: =_xll.RiskPercentile(L$221,$B237) ->  | M237: =_xll.RiskPercentile(M$221,$B237) ->  | N237: =_xll.RiskPercentile(N$221,$B237) ->  | O237: =_xll.RiskPercentile(O$221,$B237) ->  | P237: =_xll.RiskPercentile(P$221,$B237) ->  | Q237: =_xll.RiskPercentile(Q$221,$B237) ->  | R237: =_xll.RiskPercentile(R$221,$B237) ->  | S237: =_xll.RiskPercentile(S$221,$B237) ->  | T237: =_xll.RiskPercentile(T$221,$B237) ->  | U237: =_xll.RiskPercentile(U$221,$B237) ->  | V237: =_xll.RiskPercentile(V$221,$B237) ->  | W237: =_xll.RiskPercentile(W$221,$B237) ->  | X237: =_xll.RiskPercentile(X$221,$B237) ->  | Y237: =_xll.RiskPercentile(Y$221,$B237) ->  | Z237: =_xll.RiskPercentile(Z$221,$B237) ->  | AA237: =_xll.RiskPercentile(AA$221,$B237) ->  | AB237: =_xll.RiskPercentile(AB$221,$B237) ->  | AC237: =_xll.RiskPercentile(AC$221,$B237) ->  | AD237: =_xll.RiskPercentile(AD$221,$B237) ->  | AE237: =_xll.RiskPercentile(AE$221,$B237) ->  | AF237: =_xll.RiskPercentile(AF$221,$B237) ->  | AG237: =_xll.RiskPercentile(AG$221,$B237) ->  | AH237: =_xll.RiskPercentile(AH$221,$B237) -> 
B238: =B237+0.1 -> 0.2 | C238: =_xll.RiskPercentile(C$221,$B238) ->  | D238: =_xll.RiskPercentile(D$221,$B238) ->  | E238: =_xll.RiskPercentile(E$221,$B238) ->  | F238: =_xll.RiskPercentile(F$221,$B238) ->  | G238: =_xll.RiskPercentile(G$221,$B238) ->  | H238: =_xll.RiskPercentile(H$221,$B238) ->  | I238: =_xll.RiskPercentile(I$221,$B238) ->  | J238: =_xll.RiskPercentile(J$221,$B238) ->  | K238: =_xll.RiskPercentile(K$221,$B238) ->  | L238: =_xll.RiskPercentile(L$221,$B238) ->  | M238: =_xll.RiskPercentile(M$221,$B238) ->  | N238: =_xll.RiskPercentile(N$221,$B238) ->  | O238: =_xll.RiskPercentile(O$221,$B238) ->  | P238: =_xll.RiskPercentile(P$221,$B238) ->  | Q238: =_xll.RiskPercentile(Q$221,$B238) ->  | R238: =_xll.RiskPercentile(R$221,$B238) ->  | S238: =_xll.RiskPercentile(S$221,$B238) ->  | T238: =_xll.RiskPercentile(T$221,$B238) ->  | U238: =_xll.RiskPercentile(U$221,$B238) ->  | V238: =_xll.RiskPercentile(V$221,$B238) ->  | W238: =_xll.RiskPercentile(W$221,$B238) ->  | X238: =_xll.RiskPercentile(X$221,$B238) ->  | Y238: =_xll.RiskPercentile(Y$221,$B238) ->  | Z238: =_xll.RiskPercentile(Z$221,$B238) ->  | AA238: =_xll.RiskPercentile(AA$221,$B238) ->  | AB238: =_xll.RiskPercentile(AB$221,$B238) ->  | AC238: =_xll.RiskPercentile(AC$221,$B238) ->  | AD238: =_xll.RiskPercentile(AD$221,$B238) ->  | AE238: =_xll.RiskPercentile(AE$221,$B238) ->  | AF238: =_xll.RiskPercentile(AF$221,$B238) ->  | AG238: =_xll.RiskPercentile(AG$221,$B238) ->  | AH238: =_xll.RiskPercentile(AH$221,$B238) -> 
B239: =B238+0.1 -> 0.3 | C239: =_xll.RiskPercentile(C$221,$B239) ->  | D239: =_xll.RiskPercentile(D$221,$B239) ->  | E239: =_xll.RiskPercentile(E$221,$B239) ->  | F239: =_xll.RiskPercentile(F$221,$B239) ->  | G239: =_xll.RiskPercentile(G$221,$B239) ->  | H239: =_xll.RiskPercentile(H$221,$B239) ->  | I239: =_xll.RiskPercentile(I$221,$B239) ->  | J239: =_xll.RiskPercentile(J$221,$B239) ->  | K239: =_xll.RiskPercentile(K$221,$B239) ->  | L239: =_xll.RiskPercentile(L$221,$B239) ->  | M239: =_xll.RiskPercentile(M$221,$B239) ->  | N239: =_xll.RiskPercentile(N$221,$B239) ->  | O239: =_xll.RiskPercentile(O$221,$B239) ->  | P239: =_xll.RiskPercentile(P$221,$B239) ->  | Q239: =_xll.RiskPercentile(Q$221,$B239) ->  | R239: =_xll.RiskPercentile(R$221,$B239) ->  | S239: =_xll.RiskPercentile(S$221,$B239) ->  | T239: =_xll.RiskPercentile(T$221,$B239) ->  | U239: =_xll.RiskPercentile(U$221,$B239) ->  | V239: =_xll.RiskPercentile(V$221,$B239) ->  | W239: =_xll.RiskPercentile(W$221,$B239) ->  | X239: =_xll.RiskPercentile(X$221,$B239) ->  | Y239: =_xll.RiskPercentile(Y$221,$B239) ->  | Z239: =_xll.RiskPercentile(Z$221,$B239) ->  | AA239: =_xll.RiskPercentile(AA$221,$B239) ->  | AB239: =_xll.RiskPercentile(AB$221,$B239) ->  | AC239: =_xll.RiskPercentile(AC$221,$B239) ->  | AD239: =_xll.RiskPercentile(AD$221,$B239) ->  | AE239: =_xll.RiskPercentile(AE$221,$B239) ->  | AF239: =_xll.RiskPercentile(AF$221,$B239) ->  | AG239: =_xll.RiskPercentile(AG$221,$B239) ->  | AH239: =_xll.RiskPercentile(AH$221,$B239) -> 
B240: 0.4 | C240: =_xll.RiskPercentile(C$221,$B240) ->  | D240: =_xll.RiskPercentile(D$221,$B240) ->  | E240: =_xll.RiskPercentile(E$221,$B240) ->  | F240: =_xll.RiskPercentile(F$221,$B240) ->  | G240: =_xll.RiskPercentile(G$221,$B240) ->  | H240: =_xll.RiskPercentile(H$221,$B240) ->  | I240: =_xll.RiskPercentile(I$221,$B240) ->  | J240: =_xll.RiskPercentile(J$221,$B240) ->  | K240: =_xll.RiskPercentile(K$221,$B240) ->  | L240: =_xll.RiskPercentile(L$221,$B240) ->  | M240: =_xll.RiskPercentile(M$221,$B240) ->  | N240: =_xll.RiskPercentile(N$221,$B240) ->  | O240: =_xll.RiskPercentile(O$221,$B240) ->  | P240: =_xll.RiskPercentile(P$221,$B240) ->  | Q240: =_xll.RiskPercentile(Q$221,$B240) ->  | R240: =_xll.RiskPercentile(R$221,$B240) ->  | S240: =_xll.RiskPercentile(S$221,$B240) ->  | T240: =_xll.RiskPercentile(T$221,$B240) ->  | U240: =_xll.RiskPercentile(U$221,$B240) ->  | V240: =_xll.RiskPercentile(V$221,$B240) ->  | W240: =_xll.RiskPercentile(W$221,$B240) ->  | X240: =_xll.RiskPercentile(X$221,$B240) ->  | Y240: =_xll.RiskPercentile(Y$221,$B240) ->  | Z240: =_xll.RiskPercentile(Z$221,$B240) ->  | AA240: =_xll.RiskPercentile(AA$221,$B240) ->  | AB240: =_xll.RiskPercentile(AB$221,$B240) ->  | AC240: =_xll.RiskPercentile(AC$221,$B240) ->  | AD240: =_xll.RiskPercentile(AD$221,$B240) ->  | AE240: =_xll.RiskPercentile(AE$221,$B240) ->  | AF240: =_xll.RiskPercentile(AF$221,$B240) ->  | AG240: =_xll.RiskPercentile(AG$221,$B240) ->  | AH240: =_xll.RiskPercentile(AH$221,$B240) -> 
B241: 0.5 | C241: =_xll.RiskPercentile(C$221,$B241) ->  | D241: =_xll.RiskPercentile(D$221,$B241) ->  | E241: =_xll.RiskPercentile(E$221,$B241) ->  | F241: =_xll.RiskPercentile(F$221,$B241) ->  | G241: =_xll.RiskPercentile(G$221,$B241) ->  | H241: =_xll.RiskPercentile(H$221,$B241) ->  | I241: =_xll.RiskPercentile(I$221,$B241) ->  | J241: =_xll.RiskPercentile(J$221,$B241) ->  | K241: =_xll.RiskPercentile(K$221,$B241) ->  | L241: =_xll.RiskPercentile(L$221,$B241) ->  | M241: =_xll.RiskPercentile(M$221,$B241) ->  | N241: =_xll.RiskPercentile(N$221,$B241) ->  | O241: =_xll.RiskPercentile(O$221,$B241) ->  | P241: =_xll.RiskPercentile(P$221,$B241) ->  | Q241: =_xll.RiskPercentile(Q$221,$B241) ->  | R241: =_xll.RiskPercentile(R$221,$B241) ->  | S241: =_xll.RiskPercentile(S$221,$B241) ->  | T241: =_xll.RiskPercentile(T$221,$B241) ->  | U241: =_xll.RiskPercentile(U$221,$B241) ->  | V241: =_xll.RiskPercentile(V$221,$B241) ->  | W241: =_xll.RiskPercentile(W$221,$B241) ->  | X241: =_xll.RiskPercentile(X$221,$B241) ->  | Y241: =_xll.RiskPercentile(Y$221,$B241) ->  | Z241: =_xll.RiskPercentile(Z$221,$B241) ->  | AA241: =_xll.RiskPercentile(AA$221,$B241) ->  | AB241: =_xll.RiskPercentile(AB$221,$B241) ->  | AC241: =_xll.RiskPercentile(AC$221,$B241) ->  | AD241: =_xll.RiskPercentile(AD$221,$B241) ->  | AE241: =_xll.RiskPercentile(AE$221,$B241) ->  | AF241: =_xll.RiskPercentile(AF$221,$B241) ->  | AG241: =_xll.RiskPercentile(AG$221,$B241) ->  | AH241: =_xll.RiskPercentile(AH$221,$B241) -> 
B242: 0.6 | C242: =_xll.RiskPercentile(C$221,$B242) ->  | D242: =_xll.RiskPercentile(D$221,$B242) ->  | E242: =_xll.RiskPercentile(E$221,$B242) ->  | F242: =_xll.RiskPercentile(F$221,$B242) ->  | G242: =_xll.RiskPercentile(G$221,$B242) ->  | H242: =_xll.RiskPercentile(H$221,$B242) ->  | I242: =_xll.RiskPercentile(I$221,$B242) ->  | J242: =_xll.RiskPercentile(J$221,$B242) ->  | K242: =_xll.RiskPercentile(K$221,$B242) ->  | L242: =_xll.RiskPercentile(L$221,$B242) ->  | M242: =_xll.RiskPercentile(M$221,$B242) ->  | N242: =_xll.RiskPercentile(N$221,$B242) ->  | O242: =_xll.RiskPercentile(O$221,$B242) ->  | P242: =_xll.RiskPercentile(P$221,$B242) ->  | Q242: =_xll.RiskPercentile(Q$221,$B242) ->  | R242: =_xll.RiskPercentile(R$221,$B242) ->  | S242: =_xll.RiskPercentile(S$221,$B242) ->  | T242: =_xll.RiskPercentile(T$221,$B242) ->  | U242: =_xll.RiskPercentile(U$221,$B242) ->  | V242: =_xll.RiskPercentile(V$221,$B242) ->  | W242: =_xll.RiskPercentile(W$221,$B242) ->  | X242: =_xll.RiskPercentile(X$221,$B242) ->  | Y242: =_xll.RiskPercentile(Y$221,$B242) ->  | Z242: =_xll.RiskPercentile(Z$221,$B242) ->  | AA242: =_xll.RiskPercentile(AA$221,$B242) ->  | AB242: =_xll.RiskPercentile(AB$221,$B242) ->  | AC242: =_xll.RiskPercentile(AC$221,$B242) ->  | AD242: =_xll.RiskPercentile(AD$221,$B242) ->  | AE242: =_xll.RiskPercentile(AE$221,$B242) ->  | AF242: =_xll.RiskPercentile(AF$221,$B242) ->  | AG242: =_xll.RiskPercentile(AG$221,$B242) ->  | AH242: =_xll.RiskPercentile(AH$221,$B242) -> 
B243: 0.7 | C243: =_xll.RiskPercentile(C$221,$B243) ->  | D243: =_xll.RiskPercentile(D$221,$B243) ->  | E243: =_xll.RiskPercentile(E$221,$B243) ->  | F243: =_xll.RiskPercentile(F$221,$B243) ->  | G243: =_xll.RiskPercentile(G$221,$B243) ->  | H243: =_xll.RiskPercentile(H$221,$B243) ->  | I243: =_xll.RiskPercentile(I$221,$B243) ->  | J243: =_xll.RiskPercentile(J$221,$B243) ->  | K243: =_xll.RiskPercentile(K$221,$B243) ->  | L243: =_xll.RiskPercentile(L$221,$B243) ->  | M243: =_xll.RiskPercentile(M$221,$B243) ->  | N243: =_xll.RiskPercentile(N$221,$B243) ->  | O243: =_xll.RiskPercentile(O$221,$B243) ->  | P243: =_xll.RiskPercentile(P$221,$B243) ->  | Q243: =_xll.RiskPercentile(Q$221,$B243) ->  | R243: =_xll.RiskPercentile(R$221,$B243) ->  | S243: =_xll.RiskPercentile(S$221,$B243) ->  | T243: =_xll.RiskPercentile(T$221,$B243) ->  | U243: =_xll.RiskPercentile(U$221,$B243) ->  | V243: =_xll.RiskPercentile(V$221,$B243) ->  | W243: =_xll.RiskPercentile(W$221,$B243) ->  | X243: =_xll.RiskPercentile(X$221,$B243) ->  | Y243: =_xll.RiskPercentile(Y$221,$B243) ->  | Z243: =_xll.RiskPercentile(Z$221,$B243) ->  | AA243: =_xll.RiskPercentile(AA$221,$B243) ->  | AB243: =_xll.RiskPercentile(AB$221,$B243) ->  | AC243: =_xll.RiskPercentile(AC$221,$B243) ->  | AD243: =_xll.RiskPercentile(AD$221,$B243) ->  | AE243: =_xll.RiskPercentile(AE$221,$B243) ->  | AF243: =_xll.RiskPercentile(AF$221,$B243) ->  | AG243: =_xll.RiskPercentile(AG$221,$B243) ->  | AH243: =_xll.RiskPercentile(AH$221,$B243) -> 
B244: 0.8 | C244: =_xll.RiskPercentile(C$221,$B244) ->  | D244: =_xll.RiskPercentile(D$221,$B244) ->  | E244: =_xll.RiskPercentile(E$221,$B244) ->  | F244: =_xll.RiskPercentile(F$221,$B244) ->  | G244: =_xll.RiskPercentile(G$221,$B244) ->  | H244: =_xll.RiskPercentile(H$221,$B244) ->  | I244: =_xll.RiskPercentile(I$221,$B244) ->  | J244: =_xll.RiskPercentile(J$221,$B244) ->  | K244: =_xll.RiskPercentile(K$221,$B244) ->  | L244: =_xll.RiskPercentile(L$221,$B244) ->  | M244: =_xll.RiskPercentile(M$221,$B244) ->  | N244: =_xll.RiskPercentile(N$221,$B244) ->  | O244: =_xll.RiskPercentile(O$221,$B244) ->  | P244: =_xll.RiskPercentile(P$221,$B244) ->  | Q244: =_xll.RiskPercentile(Q$221,$B244) ->  | R244: =_xll.RiskPercentile(R$221,$B244) ->  | S244: =_xll.RiskPercentile(S$221,$B244) ->  | T244: =_xll.RiskPercentile(T$221,$B244) ->  | U244: =_xll.RiskPercentile(U$221,$B244) ->  | V244: =_xll.RiskPercentile(V$221,$B244) ->  | W244: =_xll.RiskPercentile(W$221,$B244) ->  | X244: =_xll.RiskPercentile(X$221,$B244) ->  | Y244: =_xll.RiskPercentile(Y$221,$B244) ->  | Z244: =_xll.RiskPercentile(Z$221,$B244) ->  | AA244: =_xll.RiskPercentile(AA$221,$B244) ->  | AB244: =_xll.RiskPercentile(AB$221,$B244) ->  | AC244: =_xll.RiskPercentile(AC$221,$B244) ->  | AD244: =_xll.RiskPercentile(AD$221,$B244) ->  | AE244: =_xll.RiskPercentile(AE$221,$B244) ->  | AF244: =_xll.RiskPercentile(AF$221,$B244) ->  | AG244: =_xll.RiskPercentile(AG$221,$B244) ->  | AH244: =_xll.RiskPercentile(AH$221,$B244) -> 
B245: 0.9 | C245: =_xll.RiskPercentile(C$221,$B245) ->  | D245: =_xll.RiskPercentile(D$221,$B245) ->  | E245: =_xll.RiskPercentile(E$221,$B245) ->  | F245: =_xll.RiskPercentile(F$221,$B245) ->  | G245: =_xll.RiskPercentile(G$221,$B245) ->  | H245: =_xll.RiskPercentile(H$221,$B245) ->  | I245: =_xll.RiskPercentile(I$221,$B245) ->  | J245: =_xll.RiskPercentile(J$221,$B245) ->  | K245: =_xll.RiskPercentile(K$221,$B245) ->  | L245: =_xll.RiskPercentile(L$221,$B245) ->  | M245: =_xll.RiskPercentile(M$221,$B245) ->  | N245: =_xll.RiskPercentile(N$221,$B245) ->  | O245: =_xll.RiskPercentile(O$221,$B245) ->  | P245: =_xll.RiskPercentile(P$221,$B245) ->  | Q245: =_xll.RiskPercentile(Q$221,$B245) ->  | R245: =_xll.RiskPercentile(R$221,$B245) ->  | S245: =_xll.RiskPercentile(S$221,$B245) ->  | T245: =_xll.RiskPercentile(T$221,$B245) ->  | U245: =_xll.RiskPercentile(U$221,$B245) ->  | V245: =_xll.RiskPercentile(V$221,$B245) ->  | W245: =_xll.RiskPercentile(W$221,$B245) ->  | X245: =_xll.RiskPercentile(X$221,$B245) ->  | Y245: =_xll.RiskPercentile(Y$221,$B245) ->  | Z245: =_xll.RiskPercentile(Z$221,$B245) ->  | AA245: =_xll.RiskPercentile(AA$221,$B245) ->  | AB245: =_xll.RiskPercentile(AB$221,$B245) ->  | AC245: =_xll.RiskPercentile(AC$221,$B245) ->  | AD245: =_xll.RiskPercentile(AD$221,$B245) ->  | AE245: =_xll.RiskPercentile(AE$221,$B245) ->  | AF245: =_xll.RiskPercentile(AF$221,$B245) ->  | AG245: =_xll.RiskPercentile(AG$221,$B245) ->  | AH245: =_xll.RiskPercentile(AH$221,$B245) -> 
B246: Mean | C246: =_xll.RiskMean(C221) ->  | D246: =_xll.RiskMean(D221) ->  | E246: =_xll.RiskMean(E221) ->  | F246: =_xll.RiskMean(F221) ->  | G246: =_xll.RiskMean(G221) ->  | H246: =_xll.RiskMean(H221) ->  | I246: =_xll.RiskMean(I221) ->  | J246: =_xll.RiskMean(J221) ->  | K246: =_xll.RiskMean(K221) ->  | L246: =_xll.RiskMean(L221) ->  | M246: =_xll.RiskMean(M221) ->  | N246: =_xll.RiskMean(N221) ->  | O246: =_xll.RiskMean(O221) ->  | P246: =_xll.RiskMean(P221) ->  | Q246: =_xll.RiskMean(Q221) ->  | R246: =_xll.RiskMean(R221) ->  | S246: =_xll.RiskMean(S221) ->  | T246: =_xll.RiskMean(T221) ->  | U246: =_xll.RiskMean(U221) ->  | V246: =_xll.RiskMean(V221) ->  | W246: =_xll.RiskMean(W221) ->  | X246: =_xll.RiskMean(X221) ->  | Y246: =_xll.RiskMean(Y221) ->  | Z246: =_xll.RiskMean(Z221) ->  | AA246: =_xll.RiskMean(AA221) ->  | AB246: =_xll.RiskMean(AB221) ->  | AC246: =_xll.RiskMean(AC221) ->  | AD246: =_xll.RiskMean(AD221) ->  | AE246: =_xll.RiskMean(AE221) ->  | AF246: =_xll.RiskMean(AF221) ->  | AG246: =_xll.RiskMean(AG221) ->  | AH246: =_xll.RiskMean(AH221) -> 
B250: Production Tax | C250: 2019 | D250: 2020 | E250: 2021 | F250: 2022 | G250: 2023 | H250: 2024 | I250: 2025 | J250: 2026 | K250: 2027 | L250: 2028 | M250: 2029 | N250: 2030 | O250: 2031 | P250: 2032 | Q250: 2033 | R250: 2034 | S250: 2035 | T250: 2036 | U250: 2037 | V250: 2038 | W250: 2039 | X250: 2040 | Y250: 2041 | Z250: 2042 | AA250: 2043 | AB250: 2044 | AC250: 2045 | AD250: 2046 | AE250: 2047 | AF250: 2048 | AG250: 2049 | AH250: 2050
B251: 0.1 | C251: 236.5925883 | D251: 212.5476584 | E251: 193.9285512 | F251: 170.5987655 | G251: 174.4767107 | H251: 161.1429106 | I251: 161.7361764 | J251: 175.6763962 | K251: 183.5349562 | L251: 196.183847 | M251: 210.6552903 | N251: 211.2961956 | O251: 213.4954363 | P251: 214.8342951 | Q251: 213.0435213 | R251: 212.6091945 | S251: 211.2439937 | T251: 210.1348118 | U251: 207.1844108 | V251: 208.9573358 | W251: 208.5193018 | X251: 209.9070051 | Y251: 218.5120475 | Z251: 221.1569064 | AA251: 224.9289574 | AB251: 234.0886623 | AC251: 238.0091325 | AD251: 238.4854915 | AE251: 242.2541901 | AF251: 247.5748544 | AG251: 250.8746715 | AH251: 254.4154581
B252: 0.2 | C252: 277.010595 | D252: 286.4435411 | E252: 285.638931 | F252: 266.7807744 | G252: 269.994208 | H252: 268.0823107 | I252: 264.7250538 | J252: 274.4314587 | K252: 277.4179905 | L252: 284.5433599 | M252: 299.9484132 | N252: 299.4412871 | O252: 304.0145185 | P252: 305.3886438 | Q252: 306.6713244 | R252: 303.8169155 | S252: 301.3922763 | T252: 300.1555522 | U252: 300.0672737 | V252: 298.590121 | W252: 300.0217091 | X252: 306.4673835 | Y252: 308.0823243 | Z252: 316.7468491 | AA252: 322.8084726 | AB252: 330.8092872 | AC252: 333.7045574 | AD252: 339.0408663 | AE252: 344.1891339 | AF252: 355.9623038 | AG252: 363.6261277 | AH252: 376.5039073
B253: 0.3 | C253: 306.7696208 | D253: 324.9936302 | E253: 327.0923504 | F253: 310.7003912 | G253: 327.1792568 | H253: 322.6264467 | I253: 328.00378 | J253: 339.6528842 | K253: 344.7981061 | L253: 351.8362031 | M253: 372.3098676 | N253: 374.2730821 | O253: 382.8901024 | P253: 387.644535 | Q253: 384.1616281 | R253: 386.7170758 | S253: 385.6860831 | T253: 393.0628671 | U253: 394.6935112 | V253: 401.8787364 | W253: 406.0571037 | X253: 429.1862539 | Y253: 437.6356042 | Z253: 471.3597896 | AA253: 542.5875739 | AB253: 627.6818823 | AC253: 664.642567 | AD253: 731.182851 | AE253: 778.9646979 | AF253: 851.9264962 | AG253: 912.2970517 | AH253: 950.8095366
B254: 0.4 | C254: 331.7678021 | D254: 355.0838264 | E254: 376.6310752 | F254: 352.4165683 | G254: 368.1861587 | H254: 371.8732823 | I254: 383.2296924 | J254: 420.0761413 | K254: 470.4052057 | L254: 559.071893 | M254: 591.7239128 | N254: 621.3556842 | O254: 647.6252879 | P254: 694.6247112 | Q254: 691.0643353 | R254: 697.8265969 | S254: 731.9197849 | T254: 738.8736661 | U254: 754.4366166 | V254: 787.2937906 | W254: 823.8533173 | X254: 903.8659577 | Y254: 950.256912 | Z254: 1036.793286 | AA254: 1133.006573 | AB254: 1278.952636 | AC254: 1331.322291 | AD254: 1400.729243 | AE254: 1503.636269 | AF254: 1566.300886 | AG254: 1621.347519 | AH254: 1709.936353
B255: 0.5 | C255: 354.552123 | D255: 384.6637812 | E255: 414.457083 | F255: 416.2844966 | G255: 423.9795298 | H255: 446.3431803 | I255: 601.3025015 | J255: 749.8248124 | K255: 828.6027173 | L255: 945.5427749 | M255: 1012.161741 | N255: 1066.673263 | O255: 1096.294744 | P255: 1143.83216 | Q255: 1164.318998 | R255: 1191.572428 | S255: 1204.130324 | T255: 1272.998914 | U255: 1299.452336 | V255: 1360.905293 | W255: 1410.694138 | X255: 1497.190506 | Y255: 1557.50291 | Z255: 1669.572872 | AA255: 1774.861668 | AB255: 1911.648259 | AC255: 1998.472917 | AD255: 2076.175891 | AE255: 2172.372488 | AF255: 2276.082567 | AG255: 2349.751252 | AH255: 2428.239241
B256: 0.6 | C256: 394.6052645 | D256: 436.0833117 | E256: 505.0886123 | F256: 552.0846037 | G256: 645.3900581 | H256: 727.0921101 | I256: 952.2163267 | J256: 1120.475812 | K256: 1249.902608 | L256: 1411.118391 | M256: 1500.776554 | N256: 1569.016369 | O256: 1624.379132 | P256: 1697.726033 | Q256: 1727.55179 | R256: 1781.881853 | S256: 1799.036662 | T256: 1853.669874 | U256: 1899.314405 | V256: 1976.501668 | W256: 2048.906285 | X256: 2115.80806 | Y256: 2222.126791 | Z256: 2316.598359 | AA256: 2443.154522 | AB256: 2586.407385 | AC256: 2676.962002 | AD256: 2775.427029 | AE256: 2858.456399 | AF256: 3006.088894 | AG256: 3068.826257 | AH256: 3195.18242
B257: 0.7 | C257: 525.5966747 | D257: 545.6588144 | E257: 689.1058001 | F257: 817.7001645 | G257: 914.1298953 | H257: 1051.24529 | I257: 1350.721713 | J257: 1609.47304 | K257: 1772.360393 | L257: 2026.545794 | M257: 2085.400858 | N257: 2199.39771 | O257: 2259.980956 | P257: 2366.007881 | Q257: 2375.474775 | R257: 2395.441417 | S257: 2450.83517 | T257: 2539.485252 | U257: 2550.440716 | V257: 2623.544548 | W257: 2743.887398 | X257: 2825.734105 | Y257: 2934.775498 | Z257: 3021.821225 | AA257: 3176.77534 | AB257: 3343.644486 | AC257: 3451.089041 | AD257: 3535.076428 | AE257: 3664.287592 | AF257: 3801.733183 | AG257: 3859.33536 | AH257: 4015.961109
B258: 0.8 | C258: 709.825315 | D258: 768.5771371 | E258: 945.7400094 | F258: 1114.344113 | G258: 1245.882703 | H258: 1442.935348 | I258: 1919.322911 | J258: 2210.813194 | K258: 2449.912097 | L258: 2710.276123 | M258: 2838.862539 | N258: 2929.942659 | O258: 3007.222901 | P258: 3101.570197 | Q258: 3147.921119 | R258: 3198.196311 | S258: 3220.639388 | T258: 3315.790634 | U258: 3340.674359 | V258: 3418.658554 | W258: 3514.38696 | X258: 3654.429584 | Y258: 3737.206534 | Z258: 3864.098758 | AA258: 4005.394547 | AB258: 4205.657743 | AC258: 4304.284761 | AD258: 4455.857034 | AE258: 4522.536554 | AF258: 4702.564659 | AG258: 4745.597523 | AH258: 4858.796352
B259: 0.9 | C259: 923.9966976 | D259: 1016.770958 | E259: 1298.522355 | F259: 1501.473225 | G259: 1708.152496 | H259: 2029.143354 | I259: 2657.488593 | J259: 3046.536385 | K259: 3338.871975 | L259: 3698.781584 | M259: 3868.651775 | N259: 3932.960022 | O259: 4028.3888 | P259: 4161.43478 | Q259: 4250.857265 | R259: 4260.765543 | S259: 4264.780436 | T259: 4342.645864 | U259: 4391.460737 | V259: 4491.110813 | W259: 4620.223327 | X259: 4707.852368 | Y259: 4799.046447 | Z259: 4936.881503 | AA259: 5112.002332 | AB259: 5290.064574 | AC259: 5392.399379 | AD259: 5470.38471 | AE259: 5601.417084 | AF259: 5731.016403 | AG259: 5806.063661 | AH259: 5896.847344
B260: Mean | C260: 474.9826576 | D260: 508.504976 | E260: 599.5250304 | F260: 665.9291099 | G260: 736.7289478 | H260: 838.6754265 | I260: 1059.224592 | J260: 1225.291995 | K260: 1343.904023 | L260: 1496.304189 | M260: 1568.248729 | N260: 1614.355985 | O260: 1656.513687 | P260: 1713.99592 | Q260: 1742.584647 | R260: 1750.924597 | S260: 1763.20648 | T260: 1801.98574 | U260: 1820.223531 | V260: 1868.815042 | W260: 1924.866133 | X260: 1989.274426 | Y260: 2045.490257 | Z260: 2123.760792 | AA260: 2219.65376 | AB260: 2331.233365 | AC260: 2391.946487 | AD260: 2464.025806 | AE260: 2536.584603 | AF260: 2621.907357 | AG260: 2681.05465 | AH260: 2754.028651
... 174 more rows

Sheet Fund Size
H1: Total Permanent Fund Balance
H2: Preliminary Run
A32: =H2&"; "&H1 -> Preliminary Run; Total Permanent Fund Balance
A33: Labels | B33: 0.95 | C33: 0.75 | D33: 0.5 | E33: 0.25 | F33: 0.05
A34: FY 2019 | B34: =_xll.RiskPercentile('Fund Model'!$P20,B$33,_xll.RiskStatic(NA())) ->  | C34: =_xll.RiskPercentile('Fund Model'!$P20,'Fund Size'!C$33,_xll.RiskStatic(NA())) ->  | D34: =_xll.RiskPercentile('Fund Model'!$P20,'Fund Size'!D$33,_xll.RiskStatic(NA())) ->  | E34: =_xll.RiskPercentile('Fund Model'!$P20,'Fund Size'!E$33,_xll.RiskStatic(NA())) ->  | F34: =_xll.RiskPercentile('Fund Model'!$P20,'Fund Size'!F$33,_xll.RiskStatic(NA())) -> 
A35: FY 2020 | B35: =_xll.RiskPercentile('Fund Model'!$P21,B$33,_xll.RiskStatic(NA())) ->  | C35: =_xll.RiskPercentile('Fund Model'!$P21,'Fund Size'!C$33,_xll.RiskStatic(NA())) ->  | D35: =_xll.RiskPercentile('Fund Model'!$P21,'Fund Size'!D$33,_xll.RiskStatic(NA())) ->  | E35: =_xll.RiskPercentile('Fund Model'!$P21,'Fund Size'!E$33,_xll.RiskStatic(NA())) ->  | F35: =_xll.RiskPercentile('Fund Model'!$P21,'Fund Size'!F$33,_xll.RiskStatic(NA())) -> 
A36: FY 2021 | B36: =_xll.RiskPercentile('Fund Model'!$P22,B$33,_xll.RiskStatic(NA())) ->  | C36: =_xll.RiskPercentile('Fund Model'!$P22,'Fund Size'!C$33,_xll.RiskStatic(NA())) ->  | D36: =_xll.RiskPercentile('Fund Model'!$P22,'Fund Size'!D$33,_xll.RiskStatic(NA())) ->  | E36: =_xll.RiskPercentile('Fund Model'!$P22,'Fund Size'!E$33,_xll.RiskStatic(NA())) ->  | F36: =_xll.RiskPercentile('Fund Model'!$P22,'Fund Size'!F$33,_xll.RiskStatic(NA())) -> 
A37: FY 2022 | B37: =_xll.RiskPercentile('Fund Model'!$P23,B$33,_xll.RiskStatic(NA())) ->  | C37: =_xll.RiskPercentile('Fund Model'!$P23,'Fund Size'!C$33,_xll.RiskStatic(NA())) ->  | D37: =_xll.RiskPercentile('Fund Model'!$P23,'Fund Size'!D$33,_xll.RiskStatic(NA())) ->  | E37: =_xll.RiskPercentile('Fund Model'!$P23,'Fund Size'!E$33,_xll.RiskStatic(NA())) ->  | F37: =_xll.RiskPercentile('Fund Model'!$P23,'Fund Size'!F$33,_xll.RiskStatic(NA())) -> 
A38: FY 2023 | B38: =_xll.RiskPercentile('Fund Model'!$P24,B$33,_xll.RiskStatic(NA())) ->  | C38: =_xll.RiskPercentile('Fund Model'!$P24,'Fund Size'!C$33,_xll.RiskStatic(NA())) ->  | D38: =_xll.RiskPercentile('Fund Model'!$P24,'Fund Size'!D$33,_xll.RiskStatic(NA())) ->  | E38: =_xll.RiskPercentile('Fund Model'!$P24,'Fund Size'!E$33,_xll.RiskStatic(NA())) ->  | F38: =_xll.RiskPercentile('Fund Model'!$P24,'Fund Size'!F$33,_xll.RiskStatic(NA())) -> 
A39: FY 2024 | B39: =_xll.RiskPercentile('Fund Model'!$P25,B$33,_xll.RiskStatic(NA())) ->  | C39: =_xll.RiskPercentile('Fund Model'!$P25,'Fund Size'!C$33,_xll.RiskStatic(NA())) ->  | D39: =_xll.RiskPercentile('Fund Model'!$P25,'Fund Size'!D$33,_xll.RiskStatic(NA())) ->  | E39: =_xll.RiskPercentile('Fund Model'!$P25,'Fund Size'!E$33,_xll.RiskStatic(NA())) ->  | F39: =_xll.RiskPercentile('Fund Model'!$P25,'Fund Size'!F$33,_xll.RiskStatic(NA())) -> 
A40: FY 2025 | B40: =_xll.RiskPercentile('Fund Model'!$P26,B$33,_xll.RiskStatic(NA())) ->  | C40: =_xll.RiskPercentile('Fund Model'!$P26,'Fund Size'!C$33,_xll.RiskStatic(NA())) ->  | D40: =_xll.RiskPercentile('Fund Model'!$P26,'Fund Size'!D$33,_xll.RiskStatic(NA())) ->  | E40: =_xll.RiskPercentile('Fund Model'!$P26,'Fund Size'!E$33,_xll.RiskStatic(NA())) ->  | F40: =_xll.RiskPercentile('Fund Model'!$P26,'Fund Size'!F$33,_xll.RiskStatic(NA())) -> 
A41: FY 2026 | B41: =_xll.RiskPercentile('Fund Model'!$P27,B$33,_xll.RiskStatic(NA())) ->  | C41: =_xll.RiskPercentile('Fund Model'!$P27,'Fund Size'!C$33,_xll.RiskStatic(NA())) ->  | D41: =_xll.RiskPercentile('Fund Model'!$P27,'Fund Size'!D$33,_xll.RiskStatic(NA())) ->  | E41: =_xll.RiskPercentile('Fund Model'!$P27,'Fund Size'!E$33,_xll.RiskStatic(NA())) ->  | F41: =_xll.RiskPercentile('Fund Model'!$P27,'Fund Size'!F$33,_xll.RiskStatic(NA())) -> 
A42: FY 2027 | B42: =_xll.RiskPercentile('Fund Model'!$P28,B$33,_xll.RiskStatic(NA())) ->  | C42: =_xll.RiskPercentile('Fund Model'!$P28,'Fund Size'!C$33,_xll.RiskStatic(NA())) ->  | D42: =_xll.RiskPercentile('Fund Model'!$P28,'Fund Size'!D$33,_xll.RiskStatic(NA())) ->  | E42: =_xll.RiskPercentile('Fund Model'!$P28,'Fund Size'!E$33,_xll.RiskStatic(NA())) ->  | F42: =_xll.RiskPercentile('Fund Model'!$P28,'Fund Size'!F$33,_xll.RiskStatic(NA())) -> 
A43: FY 2028 | B43: =_xll.RiskPercentile('Fund Model'!$P29,B$33,_xll.RiskStatic(NA())) ->  | C43: =_xll.RiskPercentile('Fund Model'!$P29,'Fund Size'!C$33,_xll.RiskStatic(NA())) ->  | D43: =_xll.RiskPercentile('Fund Model'!$P29,'Fund Size'!D$33,_xll.RiskStatic(NA())) ->  | E43: =_xll.RiskPercentile('Fund Model'!$P29,'Fund Size'!E$33,_xll.RiskStatic(NA())) ->  | F43: =_xll.RiskPercentile('Fund Model'!$P29,'Fund Size'!F$33,_xll.RiskStatic(NA())) -> 
A44: FY 2029 | B44: =_xll.RiskPercentile('Fund Model'!$P30,B$33,_xll.RiskStatic(NA())) ->  | C44: =_xll.RiskPercentile('Fund Model'!$P30,'Fund Size'!C$33,_xll.RiskStatic(NA())) ->  | D44: =_xll.RiskPercentile('Fund Model'!$P30,'Fund Size'!D$33,_xll.RiskStatic(NA())) ->  | E44: =_xll.RiskPercentile('Fund Model'!$P30,'Fund Size'!E$33,_xll.RiskStatic(NA())) ->  | F44: =_xll.RiskPercentile('Fund Model'!$P30,'Fund Size'!F$33,_xll.RiskStatic(NA())) -> 
A45: FY 2030 | B45: =_xll.RiskPercentile('Fund Model'!$P31,B$33,_xll.RiskStatic(NA())) ->  | C45: =_xll.RiskPercentile('Fund Model'!$P31,'Fund Size'!C$33,_xll.RiskStatic(NA())) ->  | D45: =_xll.RiskPercentile('Fund Model'!$P31,'Fund Size'!D$33,_xll.RiskStatic(NA())) ->  | E45: =_xll.RiskPercentile('Fund Model'!$P31,'Fund Size'!E$33,_xll.RiskStatic(NA())) ->  | F45: =_xll.RiskPercentile('Fund Model'!$P31,'Fund Size'!F$33,_xll.RiskStatic(NA())) -> 
A46: FY 2031 | B46: =_xll.RiskPercentile('Fund Model'!$P32,B$33,_xll.RiskStatic(NA())) ->  | C46: =_xll.RiskPercentile('Fund Model'!$P32,'Fund Size'!C$33,_xll.RiskStatic(NA())) ->  | D46: =_xll.RiskPercentile('Fund Model'!$P32,'Fund Size'!D$33,_xll.RiskStatic(NA())) ->  | E46: =_xll.RiskPercentile('Fund Model'!$P32,'Fund Size'!E$33,_xll.RiskStatic(NA())) ->  | F46: =_xll.RiskPercentile('Fund Model'!$P32,'Fund Size'!F$33,_xll.RiskStatic(NA())) -> 
A47: FY 2032 | B47: =_xll.RiskPercentile('Fund Model'!$P33,B$33,_xll.RiskStatic(NA())) ->  | C47: =_xll.RiskPercentile('Fund Model'!$P33,'Fund Size'!C$33,_xll.RiskStatic(NA())) ->  | D47: =_xll.RiskPercentile('Fund Model'!$P33,'Fund Size'!D$33,_xll.RiskStatic(NA())) ->  | E47: =_xll.RiskPercentile('Fund Model'!$P33,'Fund Size'!E$33,_xll.RiskStatic(NA())) ->  | F47: =_xll.RiskPercentile('Fund Model'!$P33,'Fund Size'!F$33,_xll.RiskStatic(NA())) -> 
A48: FY 2033 | B48: =_xll.RiskPercentile('Fund Model'!$P34,B$33,_xll.RiskStatic(NA())) ->  | C48: =_xll.RiskPercentile('Fund Model'!$P34,'Fund Size'!C$33,_xll.RiskStatic(NA())) ->  | D48: =_xll.RiskPercentile('Fund Model'!$P34,'Fund Size'!D$33,_xll.RiskStatic(NA())) ->  | E48: =_xll.RiskPercentile('Fund Model'!$P34,'Fund Size'!E$33,_xll.RiskStatic(NA())) ->  | F48: =_xll.RiskPercentile('Fund Model'!$P34,'Fund Size'!F$33,_xll.RiskStatic(NA())) -> 
A49: FY 2034 | B49: =_xll.RiskPercentile('Fund Model'!$P35,B$33,_xll.RiskStatic(NA())) ->  | C49: =_xll.RiskPercentile('Fund Model'!$P35,'Fund Size'!C$33,_xll.RiskStatic(NA())) ->  | D49: =_xll.RiskPercentile('Fund Model'!$P35,'Fund Size'!D$33,_xll.RiskStatic(NA())) ->  | E49: =_xll.RiskPercentile('Fund Model'!$P35,'Fund Size'!E$33,_xll.RiskStatic(NA())) ->  | F49: =_xll.RiskPercentile('Fund Model'!$P35,'Fund Size'!F$33,_xll.RiskStatic(NA())) -> 
A50: FY 2035 | B50: =_xll.RiskPercentile('Fund Model'!$P36,B$33,_xll.RiskStatic(NA())) ->  | C50: =_xll.RiskPercentile('Fund Model'!$P36,'Fund Size'!C$33,_xll.RiskStatic(NA())) ->  | D50: =_xll.RiskPercentile('Fund Model'!$P36,'Fund Size'!D$33,_xll.RiskStatic(NA())) ->  | E50: =_xll.RiskPercentile('Fund Model'!$P36,'Fund Size'!E$33,_xll.RiskStatic(NA())) ->  | F50: =_xll.RiskPercentile('Fund Model'!$P36,'Fund Size'!F$33,_xll.RiskStatic(NA())) -> 
A51: FY 2036 | B51: =_xll.RiskPercentile('Fund Model'!$P37,B$33,_xll.RiskStatic(NA())) ->  | C51: =_xll.RiskPercentile('Fund Model'!$P37,'Fund Size'!C$33,_xll.RiskStatic(NA())) ->  | D51: =_xll.RiskPercentile('Fund Model'!$P37,'Fund Size'!D$33,_xll.RiskStatic(NA())) ->  | E51: =_xll.RiskPercentile('Fund Model'!$P37,'Fund Size'!E$33,_xll.RiskStatic(NA())) ->  | F51: =_xll.RiskPercentile('Fund Model'!$P37,'Fund Size'!F$33,_xll.RiskStatic(NA())) -> 
A52: FY 2037 | B52: =_xll.RiskPercentile('Fund Model'!$P38,B$33,_xll.RiskStatic(NA())) ->  | C52: =_xll.RiskPercentile('Fund Model'!$P38,'Fund Size'!C$33,_xll.RiskStatic(NA())) ->  | D52: =_xll.RiskPercentile('Fund Model'!$P38,'Fund Size'!D$33,_xll.RiskStatic(NA())) ->  | E52: =_xll.RiskPercentile('Fund Model'!$P38,'Fund Size'!E$33,_xll.RiskStatic(NA())) ->  | F52: =_xll.RiskPercentile('Fund Model'!$P38,'Fund Size'!F$33,_xll.RiskStatic(NA())) -> 
A53: FY 2038 | B53: =_xll.RiskPercentile('Fund Model'!$P39,B$33,_xll.RiskStatic(NA())) ->  | C53: =_xll.RiskPercentile('Fund Model'!$P39,'Fund Size'!C$33,_xll.RiskStatic(NA())) ->  | D53: =_xll.RiskPercentile('Fund Model'!$P39,'Fund Size'!D$33,_xll.RiskStatic(NA())) ->  | E53: =_xll.RiskPercentile('Fund Model'!$P39,'Fund Size'!E$33,_xll.RiskStatic(NA())) ->  | F53: =_xll.RiskPercentile('Fund Model'!$P39,'Fund Size'!F$33,_xll.RiskStatic(NA())) -> 
A54: FY 2039 | B54: =_xll.RiskPercentile('Fund Model'!$P40,B$33,_xll.RiskStatic(NA())) ->  | C54: =_xll.RiskPercentile('Fund Model'!$P40,'Fund Size'!C$33,_xll.RiskStatic(NA())) ->  | D54: =_xll.RiskPercentile('Fund Model'!$P40,'Fund Size'!D$33,_xll.RiskStatic(NA())) ->  | E54: =_xll.RiskPercentile('Fund Model'!$P40,'Fund Size'!E$33,_xll.RiskStatic(NA())) ->  | F54: =_xll.RiskPercentile('Fund Model'!$P40,'Fund Size'!F$33,_xll.RiskStatic(NA())) -> 
A55: FY 2040 | B55: =_xll.RiskPercentile('Fund Model'!$P41,B$33,_xll.RiskStatic(NA())) ->  | C55: =_xll.RiskPercentile('Fund Model'!$P41,'Fund Size'!C$33,_xll.RiskStatic(NA())) ->  | D55: =_xll.RiskPercentile('Fund Model'!$P41,'Fund Size'!D$33,_xll.RiskStatic(NA())) ->  | E55: =_xll.RiskPercentile('Fund Model'!$P41,'Fund Size'!E$33,_xll.RiskStatic(NA())) ->  | F55: =_xll.RiskPercentile('Fund Model'!$P41,'Fund Size'!F$33,_xll.RiskStatic(NA())) -> 
A56: FY 2041 | B56: =_xll.RiskPercentile('Fund Model'!$P42,B$33,_xll.RiskStatic(NA())) ->  | C56: =_xll.RiskPercentile('Fund Model'!$P42,'Fund Size'!C$33,_xll.RiskStatic(NA())) ->  | D56: =_xll.RiskPercentile('Fund Model'!$P42,'Fund Size'!D$33,_xll.RiskStatic(NA())) ->  | E56: =_xll.RiskPercentile('Fund Model'!$P42,'Fund Size'!E$33,_xll.RiskStatic(NA())) ->  | F56: =_xll.RiskPercentile('Fund Model'!$P42,'Fund Size'!F$33,_xll.RiskStatic(NA())) -> 
A57: FY 2042 | B57: =_xll.RiskPercentile('Fund Model'!$P43,B$33,_xll.RiskStatic(NA())) ->  | C57: =_xll.RiskPercentile('Fund Model'!$P43,'Fund Size'!C$33,_xll.RiskStatic(NA())) ->  | D57: =_xll.RiskPercentile('Fund Model'!$P43,'Fund Size'!D$33,_xll.RiskStatic(NA())) ->  | E57: =_xll.RiskPercentile('Fund Model'!$P43,'Fund Size'!E$33,_xll.RiskStatic(NA())) ->  | F57: =_xll.RiskPercentile('Fund Model'!$P43,'Fund Size'!F$33,_xll.RiskStatic(NA())) -> 
A58: FY 2043 | B58: =_xll.RiskPercentile('Fund Model'!$P44,B$33,_xll.RiskStatic(NA())) ->  | C58: =_xll.RiskPercentile('Fund Model'!$P44,'Fund Size'!C$33,_xll.RiskStatic(NA())) ->  | D58: =_xll.RiskPercentile('Fund Model'!$P44,'Fund Size'!D$33,_xll.RiskStatic(NA())) ->  | E58: =_xll.RiskPercentile('Fund Model'!$P44,'Fund Size'!E$33,_xll.RiskStatic(NA())) ->  | F58: =_xll.RiskPercentile('Fund Model'!$P44,'Fund Size'!F$33,_xll.RiskStatic(NA())) -> 
C60: FY 2043 Balance in FY 2019 Dollars: | D60: =_xll.RiskOutput(,,1)+D58/((1+'Fund Model'!$R$9)^('Fund Model'!$B44-'Fund Model'!$B$19)) -> 
B2501: B Mean | C2501: B Mean Size | D2501: B Box | E2501: Center | F2501: T Box | G2501: T Mean | H2501: T Mean Size | I2501: T Whisker | J2501: B Whisker
A2503: =$A$34 -> FY 2019 | B2503: =0 -> 0 | C2503: =0 -> 0 | D2503: =$E$34+0 ->  | E2503: =$D$34-$E$34 ->  | F2503: =$C$34-$D$34 ->  | H2503: =0 -> 0 | I2503: =$B$34-$C$34 ->  | J2503: =$E$34-$F$34 -> 
A2504: =$A$35 -> FY 2020 | B2504: =0 -> 0 | C2504: =0 -> 0 | D2504: =$E$35+0 ->  | E2504: =$D$35-$E$35 ->  | F2504: =$C$35-$D$35 ->  | H2504: =0 -> 0 | I2504: =$B$35-$C$35 ->  | J2504: =$E$35-$F$35 -> 
A2505: =$A$36 -> FY 2021 | B2505: =0 -> 0 | C2505: =0 -> 0 | D2505: =$E$36+0 ->  | E2505: =$D$36-$E$36 ->  | F2505: =$C$36-$D$36 ->  | H2505: =0 -> 0 | I2505: =$B$36-$C$36 ->  | J2505: =$E$36-$F$36 -> 
A2506: =$A$37 -> FY 2022 | B2506: =0 -> 0 | C2506: =0 -> 0 | D2506: =$E$37+0 ->  | E2506: =$D$37-$E$37 ->  | F2506: =$C$37-$D$37 ->  | H2506: =0 -> 0 | I2506: =$B$37-$C$37 ->  | J2506: =$E$37-$F$37 -> 
A2507: =$A$38 -> FY 2023 | B2507: =0 -> 0 | C2507: =0 -> 0 | D2507: =$E$38+0 ->  | E2507: =$D$38-$E$38 ->  | F2507: =$C$38-$D$38 ->  | H2507: =0 -> 0 | I2507: =$B$38-$C$38 ->  | J2507: =$E$38-$F$38 -> 
A2508: =$A$39 -> FY 2024 | B2508: =0 -> 0 | C2508: =0 -> 0 | D2508: =$E$39+0 ->  | E2508: =$D$39-$E$39 ->  | F2508: =$C$39-$D$39 ->  | H2508: =0 -> 0 | I2508: =$B$39-$C$39 ->  | J2508: =$E$39-$F$39 -> 
A2509: =$A$40 -> FY 2025 | B2509: =0 -> 0 | C2509: =0 -> 0 | D2509: =$E$40+0 ->  | E2509: =$D$40-$E$40 ->  | F2509: =$C$40-$D$40 ->  | H2509: =0 -> 0 | I2509: =$B$40-$C$40 ->  | J2509: =$E$40-$F$40 -> 
A2510: =$A$41 -> FY 2026 | B2510: =0 -> 0 | C2510: =0 -> 0 | D2510: =$E$41+0 ->  | E2510: =$D$41-$E$41 ->  | F2510: =$C$41-$D$41 ->  | H2510: =0 -> 0 | I2510: =$B$41-$C$41 ->  | J2510: =$E$41-$F$41 -> 
A2511: =$A$42 -> FY 2027 | B2511: =0 -> 0 | C2511: =0 -> 0 | D2511: =$E$42+0 ->  | E2511: =$D$42-$E$42 ->  | F2511: =$C$42-$D$42 ->  | H2511: =0 -> 0 | I2511: =$B$42-$C$42 ->  | J2511: =$E$42-$F$42 -> 
A2512: =$A$43 -> FY 2028 | B2512: =0 -> 0 | C2512: =0 -> 0 | D2512: =$E$43+0 ->  | E2512: =$D$43-$E$43 ->  | F2512: =$C$43-$D$43 ->  | H2512: =0 -> 0 | I2512: =$B$43-$C$43 ->  | J2512: =$E$43-$F$43 -> 
A2513: =$A$44 -> FY 2029 | B2513: =0 -> 0 | C2513: =0 -> 0 | D2513: =$E$44+0 ->  | E2513: =$D$44-$E$44 ->  | F2513: =$C$44-$D$44 ->  | H2513: =0 -> 0 | I2513: =$B$44-$C$44 ->  | J2513: =$E$44-$F$44 -> 
A2514: =$A$45 -> FY 2030 | B2514: =0 -> 0 | C2514: =0 -> 0 | D2514: =$E$45+0 ->  | E2514: =$D$45-$E$45 ->  | F2514: =$C$45-$D$45 ->  | H2514: =0 -> 0 | I2514: =$B$45-$C$45 ->  | J2514: =$E$45-$F$45 -> 
A2515: =$A$46 -> FY 2031 | B2515: =0 -> 0 | C2515: =0 -> 0 | D2515: =$E$46+0 ->  | E2515: =$D$46-$E$46 ->  | F2515: =$C$46-$D$46 ->  | H2515: =0 -> 0 | I2515: =$B$46-$C$46 ->  | J2515: =$E$46-$F$46 -> 
A2516: =$A$47 -> FY 2032 | B2516: =0 -> 0 | C2516: =0 -> 0 | D2516: =$E$47+0 ->  | E2516: =$D$47-$E$47 ->  | F2516: =$C$47-$D$47 ->  | H2516: =0 -> 0 | I2516: =$B$47-$C$47 ->  | J2516: =$E$47-$F$47 -> 
A2517: =$A$48 -> FY 2033 | B2517: =0 -> 0 | C2517: =0 -> 0 | D2517: =$E$48+0 ->  | E2517: =$D$48-$E$48 ->  | F2517: =$C$48-$D$48 ->  | H2517: =0 -> 0 | I2517: =$B$48-$C$48 ->  | J2517: =$E$48-$F$48 -> 
A2518: =$A$49 -> FY 2034 | B2518: =0 -> 0 | C2518: =0 -> 0 | D2518: =$E$49+0 ->  | E2518: =$D$49-$E$49 ->  | F2518: =$C$49-$D$49 ->  | H2518: =0 -> 0 | I2518: =$B$49-$C$49 ->  | J2518: =$E$49-$F$49 -> 
A2519: =$A$50 -> FY 2035 | B2519: =0 -> 0 | C2519: =0 -> 0 | D2519: =$E$50+0 ->  | E2519: =$D$50-$E$50 ->  | F2519: =$C$50-$D$50 ->  | H2519: =0 -> 0 | I2519: =$B$50-$C$50 ->  | J2519: =$E$50-$F$50 -> 
A2520: =$A$51 -> FY 2036 | B2520: =0 -> 0 | C2520: =0 -> 0 | D2520: =$E$51+0 ->  | E2520: =$D$51-$E$51 ->  | F2520: =$C$51-$D$51 ->  | H2520: =0 -> 0 | I2520: =$B$51-$C$51 ->  | J2520: =$E$51-$F$51 -> 
A2521: =$A$52 -> FY 2037 | B2521: =0 -> 0 | C2521: =0 -> 0 | D2521: =$E$52+0 ->  | E2521: =$D$52-$E$52 ->  | F2521: =$C$52-$D$52 ->  | H2521: =0 -> 0 | I2521: =$B$52-$C$52 ->  | J2521: =$E$52-$F$52 -> 
A2522: =$A$53 -> FY 2038 | B2522: =0 -> 0 | C2522: =0 -> 0 | D2522: =$E$53+0 ->  | E2522: =$D$53-$E$53 ->  | F2522: =$C$53-$D$53 ->  | H2522: =0 -> 0 | I2522: =$B$53-$C$53 ->  | J2522: =$E$53-$F$53 -> 
A2523: =$A$54 -> FY 2039 | B2523: =0 -> 0 | C2523: =0 -> 0 | D2523: =$E$54+0 ->  | E2523: =$D$54-$E$54 ->  | F2523: =$C$54-$D$54 ->  | H2523: =0 -> 0 | I2523: =$B$54-$C$54 ->  | J2523: =$E$54-$F$54 -> 
A2524: =A55 -> FY 2040 | B2524: =0 -> 0 | C2524: =0 -> 0 | D2524: =E55+0 ->  | E2524: =D55-E55 ->  | F2524: =C55-D55 ->  | H2524: =0 -> 0 | I2524: =B55-C55 ->  | J2524: =E55-F55 -> 
A2525: =A56 -> FY 2041 | B2525: =0 -> 0 | C2525: =0 -> 0 | D2525: =E56+0 ->  | E2525: =D56-E56 ->  | F2525: =C56-D56 ->  | H2525: =0 -> 0 | I2525: =B56-C56 ->  | J2525: =E56-F56 -> 
A2526: FY 2042 | B2526: =0 -> 0 | C2526: =0 -> 0 | H2526: =0 -> 0
A2527: FY 2043 | B2527: =0 -> 0 | C2527: =0 -> 0 | H2527: =0 -> 0

Sheet Dividend
H1: Per Person Dividend
H2: ='Fund Size'!H2 -> Preliminary Run
A32: =H2&"; "&H1 -> Preliminary Run; Per Person Dividend
A33: Labels | B33: 0.95 | C33: 0.75 | D33: 0.5 | E33: 0.25 | F33: 0.05
A34: CY 2018 | B34: =_xll.RiskPercentile('Fund Model'!$Z20,B$33,_xll.RiskStatic(NA()))+50 ->  | C34: =_xll.RiskPercentile('Fund Model'!$Z20,C$33,_xll.RiskStatic(NA()))+25 ->  | D34: =_xll.RiskPercentile('Fund Model'!$Z20,D$33,_xll.RiskStatic(NA())) ->  | E34: =_xll.RiskPercentile('Fund Model'!$Z20,E$33,_xll.RiskStatic(NA()))-25 ->  | F34: =_xll.RiskPercentile('Fund Model'!$Z20,F$33,_xll.RiskStatic(NA()))-50 -> 
A35: CY 2019 | B35: =_xll.RiskPercentile('Fund Model'!$Z21,B$33,_xll.RiskStatic(NA()))+50 ->  | C35: =_xll.RiskPercentile('Fund Model'!$Z21,C$33,_xll.RiskStatic(NA()))+25 ->  | D35: =_xll.RiskPercentile('Fund Model'!$Z21,D$33,_xll.RiskStatic(NA())) ->  | E35: =_xll.RiskPercentile('Fund Model'!$Z21,E$33,_xll.RiskStatic(NA()))-25 ->  | F35: =_xll.RiskPercentile('Fund Model'!$Z21,F$33,_xll.RiskStatic(NA()))-50 -> 
A36: CY 2020 | B36: =_xll.RiskPercentile('Fund Model'!$Z22,B$33,_xll.RiskStatic(NA())) ->  | C36: =_xll.RiskPercentile('Fund Model'!$Z22,C$33,_xll.RiskStatic(NA())) ->  | D36: =_xll.RiskPercentile('Fund Model'!$Z22,D$33,_xll.RiskStatic(NA())) ->  | E36: =_xll.RiskPercentile('Fund Model'!$Z22,E$33,_xll.RiskStatic(NA())) ->  | F36: =_xll.RiskPercentile('Fund Model'!$Z22,F$33,_xll.RiskStatic(NA())) -> 
A37: CY 2021 | B37: =_xll.RiskPercentile('Fund Model'!$Z23,B$33,_xll.RiskStatic(NA())) ->  | C37: =_xll.RiskPercentile('Fund Model'!$Z23,C$33,_xll.RiskStatic(NA())) ->  | D37: =_xll.RiskPercentile('Fund Model'!$Z23,D$33,_xll.RiskStatic(NA())) ->  | E37: =_xll.RiskPercentile('Fund Model'!$Z23,E$33,_xll.RiskStatic(NA())) ->  | F37: =_xll.RiskPercentile('Fund Model'!$Z23,F$33,_xll.RiskStatic(NA())) -> 
A38: CY 2022 | B38: =_xll.RiskPercentile('Fund Model'!$Z24,B$33,_xll.RiskStatic(NA())) ->  | C38: =_xll.RiskPercentile('Fund Model'!$Z24,C$33,_xll.RiskStatic(NA())) ->  | D38: =_xll.RiskPercentile('Fund Model'!$Z24,D$33,_xll.RiskStatic(NA())) ->  | E38: =_xll.RiskPercentile('Fund Model'!$Z24,E$33,_xll.RiskStatic(NA())) ->  | F38: =_xll.RiskPercentile('Fund Model'!$Z24,F$33,_xll.RiskStatic(NA())) -> 
A39: CY 2023 | B39: =_xll.RiskPercentile('Fund Model'!$Z25,B$33,_xll.RiskStatic(NA())) ->  | C39: =_xll.RiskPercentile('Fund Model'!$Z25,C$33,_xll.RiskStatic(NA())) ->  | D39: =_xll.RiskPercentile('Fund Model'!$Z25,D$33,_xll.RiskStatic(NA())) ->  | E39: =_xll.RiskPercentile('Fund Model'!$Z25,E$33,_xll.RiskStatic(NA())) ->  | F39: =_xll.RiskPercentile('Fund Model'!$Z25,F$33,_xll.RiskStatic(NA())) -> 
A40: CY 2024 | B40: =_xll.RiskPercentile('Fund Model'!$Z26,B$33,_xll.RiskStatic(NA())) ->  | C40: =_xll.RiskPercentile('Fund Model'!$Z26,C$33,_xll.RiskStatic(NA())) ->  | D40: =_xll.RiskPercentile('Fund Model'!$Z26,D$33,_xll.RiskStatic(NA())) ->  | E40: =_xll.RiskPercentile('Fund Model'!$Z26,E$33,_xll.RiskStatic(NA())) ->  | F40: =_xll.RiskPercentile('Fund Model'!$Z26,F$33,_xll.RiskStatic(NA())) -> 
A41: CY 2025 | B41: =_xll.RiskPercentile('Fund Model'!$Z27,B$33,_xll.RiskStatic(NA())) ->  | C41: =_xll.RiskPercentile('Fund Model'!$Z27,C$33,_xll.RiskStatic(NA())) ->  | D41: =_xll.RiskPercentile('Fund Model'!$Z27,D$33,_xll.RiskStatic(NA())) ->  | E41: =_xll.RiskPercentile('Fund Model'!$Z27,E$33,_xll.RiskStatic(NA())) ->  | F41: =_xll.RiskPercentile('Fund Model'!$Z27,F$33,_xll.RiskStatic(NA())) -> 
A42: CY 2026 | B42: =_xll.RiskPercentile('Fund Model'!$Z28,B$33,_xll.RiskStatic(NA())) ->  | C42: =_xll.RiskPercentile('Fund Model'!$Z28,C$33,_xll.RiskStatic(NA())) ->  | D42: =_xll.RiskPercentile('Fund Model'!$Z28,D$33,_xll.RiskStatic(NA())) ->  | E42: =_xll.RiskPercentile('Fund Model'!$Z28,E$33,_xll.RiskStatic(NA())) ->  | F42: =_xll.RiskPercentile('Fund Model'!$Z28,F$33,_xll.RiskStatic(NA())) -> 
A43: CY 2027 | B43: =_xll.RiskPercentile('Fund Model'!$Z29,B$33,_xll.RiskStatic(NA())) ->  | C43: =_xll.RiskPercentile('Fund Model'!$Z29,C$33,_xll.RiskStatic(NA())) ->  | D43: =_xll.RiskPercentile('Fund Model'!$Z29,D$33,_xll.RiskStatic(NA())) ->  | E43: =_xll.RiskPercentile('Fund Model'!$Z29,E$33,_xll.RiskStatic(NA())) ->  | F43: =_xll.RiskPercentile('Fund Model'!$Z29,F$33,_xll.RiskStatic(NA())) -> 
A44: CY 2028 | B44: =_xll.RiskPercentile('Fund Model'!$Z30,B$33,_xll.RiskStatic(NA())) ->  | C44: =_xll.RiskPercentile('Fund Model'!$Z30,C$33,_xll.RiskStatic(NA())) ->  | D44: =_xll.RiskPercentile('Fund Model'!$Z30,D$33,_xll.RiskStatic(NA())) ->  | E44: =_xll.RiskPercentile('Fund Model'!$Z30,E$33,_xll.RiskStatic(NA())) ->  | F44: =_xll.RiskPercentile('Fund Model'!$Z30,F$33,_xll.RiskStatic(NA())) -> 
A45: CY 2029 | B45: =_xll.RiskPercentile('Fund Model'!$Z31,B$33,_xll.RiskStatic(NA())) ->  | C45: =_xll.RiskPercentile('Fund Model'!$Z31,C$33,_xll.RiskStatic(NA())) ->  | D45: =_xll.RiskPercentile('Fund Model'!$Z31,D$33,_xll.RiskStatic(NA())) ->  | E45: =_xll.RiskPercentile('Fund Model'!$Z31,E$33,_xll.RiskStatic(NA())) ->  | F45: =_xll.RiskPercentile('Fund Model'!$Z31,F$33,_xll.RiskStatic(NA())) -> 
A46: CY 2030 | B46: =_xll.RiskPercentile('Fund Model'!$Z32,B$33,_xll.RiskStatic(NA())) ->  | C46: =_xll.RiskPercentile('Fund Model'!$Z32,C$33,_xll.RiskStatic(NA())) ->  | D46: =_xll.RiskPercentile('Fund Model'!$Z32,D$33,_xll.RiskStatic(NA())) ->  | E46: =_xll.RiskPercentile('Fund Model'!$Z32,E$33,_xll.RiskStatic(NA())) ->  | F46: =_xll.RiskPercentile('Fund Model'!$Z32,F$33,_xll.RiskStatic(NA())) -> 
A47: CY 2031 | B47: =_xll.RiskPercentile('Fund Model'!$Z33,B$33,_xll.RiskStatic(NA())) ->  | C47: =_xll.RiskPercentile('Fund Model'!$Z33,C$33,_xll.RiskStatic(NA())) ->  | D47: =_xll.RiskPercentile('Fund Model'!$Z33,D$33,_xll.RiskStatic(NA())) ->  | E47: =_xll.RiskPercentile('Fund Model'!$Z33,E$33,_xll.RiskStatic(NA())) ->  | F47: =_xll.RiskPercentile('Fund Model'!$Z33,F$33,_xll.RiskStatic(NA())) -> 
A48: CY 2032 | B48: =_xll.RiskPercentile('Fund Model'!$Z34,B$33,_xll.RiskStatic(NA())) ->  | C48: =_xll.RiskPercentile('Fund Model'!$Z34,C$33,_xll.RiskStatic(NA())) ->  | D48: =_xll.RiskPercentile('Fund Model'!$Z34,D$33,_xll.RiskStatic(NA())) ->  | E48: =_xll.RiskPercentile('Fund Model'!$Z34,E$33,_xll.RiskStatic(NA())) ->  | F48: =_xll.RiskPercentile('Fund Model'!$Z34,F$33,_xll.RiskStatic(NA())) -> 
A49: CY 2033 | B49: =_xll.RiskPercentile('Fund Model'!$Z35,B$33,_xll.RiskStatic(NA())) ->  | C49: =_xll.RiskPercentile('Fund Model'!$Z35,C$33,_xll.RiskStatic(NA())) ->  | D49: =_xll.RiskPercentile('Fund Model'!$Z35,D$33,_xll.RiskStatic(NA())) ->  | E49: =_xll.RiskPercentile('Fund Model'!$Z35,E$33,_xll.RiskStatic(NA())) ->  | F49: =_xll.RiskPercentile('Fund Model'!$Z35,F$33,_xll.RiskStatic(NA())) -> 
A50: CY 2034 | B50: =_xll.RiskPercentile('Fund Model'!$Z36,B$33,_xll.RiskStatic(NA())) ->  | C50: =_xll.RiskPercentile('Fund Model'!$Z36,C$33,_xll.RiskStatic(NA())) ->  | D50: =_xll.RiskPercentile('Fund Model'!$Z36,D$33,_xll.RiskStatic(NA())) ->  | E50: =_xll.RiskPercentile('Fund Model'!$Z36,E$33,_xll.RiskStatic(NA())) ->  | F50: =_xll.RiskPercentile('Fund Model'!$Z36,F$33,_xll.RiskStatic(NA())) -> 
A51: CY 2035 | B51: =_xll.RiskPercentile('Fund Model'!$Z37,B$33,_xll.RiskStatic(NA())) ->  | C51: =_xll.RiskPercentile('Fund Model'!$Z37,C$33,_xll.RiskStatic(NA())) ->  | D51: =_xll.RiskPercentile('Fund Model'!$Z37,D$33,_xll.RiskStatic(NA())) ->  | E51: =_xll.RiskPercentile('Fund Model'!$Z37,E$33,_xll.RiskStatic(NA())) ->  | F51: =_xll.RiskPercentile('Fund Model'!$Z37,F$33,_xll.RiskStatic(NA())) -> 
A52: CY 2036 | B52: =_xll.RiskPercentile('Fund Model'!$Z38,B$33,_xll.RiskStatic(NA())) ->  | C52: =_xll.RiskPercentile('Fund Model'!$Z38,C$33,_xll.RiskStatic(NA())) ->  | D52: =_xll.RiskPercentile('Fund Model'!$Z38,D$33,_xll.RiskStatic(NA())) ->  | E52: =_xll.RiskPercentile('Fund Model'!$Z38,E$33,_xll.RiskStatic(NA())) ->  | F52: =_xll.RiskPercentile('Fund Model'!$Z38,F$33,_xll.RiskStatic(NA())) -> 
A53: CY 2037 | B53: =_xll.RiskPercentile('Fund Model'!$Z39,B$33,_xll.RiskStatic(NA())) ->  | C53: =_xll.RiskPercentile('Fund Model'!$Z39,C$33,_xll.RiskStatic(NA())) ->  | D53: =_xll.RiskPercentile('Fund Model'!$Z39,D$33,_xll.RiskStatic(NA())) ->  | E53: =_xll.RiskPercentile('Fund Model'!$Z39,E$33,_xll.RiskStatic(NA())) ->  | F53: =_xll.RiskPercentile('Fund Model'!$Z39,F$33,_xll.RiskStatic(NA())) -> 
A54: CY 2038 | B54: =_xll.RiskPercentile('Fund Model'!$Z40,B$33,_xll.RiskStatic(NA())) ->  | C54: =_xll.RiskPercentile('Fund Model'!$Z40,C$33,_xll.RiskStatic(NA())) ->  | D54: =_xll.RiskPercentile('Fund Model'!$Z40,D$33,_xll.RiskStatic(NA())) ->  | E54: =_xll.RiskPercentile('Fund Model'!$Z40,E$33,_xll.RiskStatic(NA())) ->  | F54: =_xll.RiskPercentile('Fund Model'!$Z40,F$33,_xll.RiskStatic(NA())) -> 
A55: CY 2039 | B55: =_xll.RiskPercentile('Fund Model'!$Z41,B$33,_xll.RiskStatic(NA())) ->  | C55: =_xll.RiskPercentile('Fund Model'!$Z41,C$33,_xll.RiskStatic(NA())) ->  | D55: =_xll.RiskPercentile('Fund Model'!$Z41,D$33,_xll.RiskStatic(NA())) ->  | E55: =_xll.RiskPercentile('Fund Model'!$Z41,E$33,_xll.RiskStatic(NA())) ->  | F55: =_xll.RiskPercentile('Fund Model'!$Z41,F$33,_xll.RiskStatic(NA())) -> 
A56: CY 2040 | B56: =_xll.RiskPercentile('Fund Model'!$Z42,B$33,_xll.RiskStatic(NA())) ->  | C56: =_xll.RiskPercentile('Fund Model'!$Z42,C$33,_xll.RiskStatic(NA())) ->  | D56: =_xll.RiskPercentile('Fund Model'!$Z42,D$33,_xll.RiskStatic(NA())) ->  | E56: =_xll.RiskPercentile('Fund Model'!$Z42,E$33,_xll.RiskStatic(NA())) ->  | F56: =_xll.RiskPercentile('Fund Model'!$Z42,F$33,_xll.RiskStatic(NA())) -> 
A57: CY 2041 | B57: =_xll.RiskPercentile('Fund Model'!$Z43,B$33,_xll.RiskStatic(NA())) ->  | C57: =_xll.RiskPercentile('Fund Model'!$Z43,C$33,_xll.RiskStatic(NA())) ->  | D57: =_xll.RiskPercentile('Fund Model'!$Z43,D$33,_xll.RiskStatic(NA())) ->  | E57: =_xll.RiskPercentile('Fund Model'!$Z43,E$33,_xll.RiskStatic(NA())) ->  | F57: =_xll.RiskPercentile('Fund Model'!$Z43,F$33,_xll.RiskStatic(NA())) -> 
A58: CY 2042 | B58: =_xll.RiskPercentile('Fund Model'!$Z44,B$33,_xll.RiskStatic(NA())) ->  | C58: =_xll.RiskPercentile('Fund Model'!$Z44,C$33,_xll.RiskStatic(NA())) ->  | D58: =_xll.RiskPercentile('Fund Model'!$Z44,D$33,_xll.RiskStatic(NA())) ->  | E58: =_xll.RiskPercentile('Fund Model'!$Z44,E$33,_xll.RiskStatic(NA())) ->  | F58: =_xll.RiskPercentile('Fund Model'!$Z44,F$33,_xll.RiskStatic(NA())) -> 
C60: CY 2042 Dividend in CY 2018 Dollars: | D60: =_xll.RiskOutput(,,1)+D58/((1+'Fund Model'!$R$9)^('Fund Model'!$B44-'Fund Model'!$B$19)) -> 
B2502: B Mean | C2502: B Mean Size | D2502: B Box | E2502: Center | F2502: T Box | G2502: T Mean | H2502: T Mean Size | I2502: T Whisker | J2502: B Whisker
A2504: =$A$34 -> CY 2018 | B2504: =0 -> 0 | C2504: =0 -> 0 | D2504: =$E$34+0 ->  | E2504: =$D$34-$E$34 ->  | F2504: =$C$34-$D$34 ->  | H2504: =0 -> 0 | I2504: =$B$34-$C$34 ->  | J2504: =$E$34-$F$34 -> 
A2505: =$A$35 -> CY 2019 | B2505: =0 -> 0 | C2505: =0 -> 0 | D2505: =$E$35+0 ->  | E2505: =$D$35-$E$35 ->  | F2505: =$C$35-$D$35 ->  | H2505: =0 -> 0 | I2505: =$B$35-$C$35 ->  | J2505: =$E$35-$F$35 -> 
A2506: =$A$36 -> CY 2020 | B2506: =0 -> 0 | C2506: =0 -> 0 | D2506: =$E$36+0 ->  | E2506: =$D$36-$E$36 ->  | F2506: =$C$36-$D$36 ->  | H2506: =0 -> 0 | I2506: =$B$36-$C$36 ->  | J2506: =$E$36-$F$36 -> 
A2507: =$A$37 -> CY 2021 | B2507: =0 -> 0 | C2507: =0 -> 0 | D2507: =$E$37+0 ->  | E2507: =$D$37-$E$37 ->  | F2507: =$C$37-$D$37 ->  | H2507: =0 -> 0 | I2507: =$B$37-$C$37 ->  | J2507: =$E$37-$F$37 -> 
A2508: =$A$38 -> CY 2022 | B2508: =0 -> 0 | C2508: =0 -> 0 | D2508: =$E$38+0 ->  | E2508: =$D$38-$E$38 ->  | F2508: =$C$38-$D$38 ->  | H2508: =0 -> 0 | I2508: =$B$38-$C$38 ->  | J2508: =$E$38-$F$38 -> 
A2509: =$A$39 -> CY 2023 | B2509: =0 -> 0 | C2509: =0 -> 0 | D2509: =$E$39+0 ->  | E2509: =$D$39-$E$39 ->  | F2509: =$C$39-$D$39 ->  | H2509: =0 -> 0 | I2509: =$B$39-$C$39 ->  | J2509: =$E$39-$F$39 -> 
A2510: =$A$40 -> CY 2024 | B2510: =0 -> 0 | C2510: =0 -> 0 | D2510: =$E$40+0 ->  | E2510: =$D$40-$E$40 ->  | F2510: =$C$40-$D$40 ->  | H2510: =0 -> 0 | I2510: =$B$40-$C$40 ->  | J2510: =$E$40-$F$40 -> 
A2511: =$A$41 -> CY 2025 | B2511: =0 -> 0 | C2511: =0 -> 0 | D2511: =$E$41+0 ->  | E2511: =$D$41-$E$41 ->  | F2511: =$C$41-$D$41 ->  | H2511: =0 -> 0 | I2511: =$B$41-$C$41 ->  | J2511: =$E$41-$F$41 -> 
A2512: =$A$42 -> CY 2026 | B2512: =0 -> 0 | C2512: =0 -> 0 | D2512: =$E$42+0 ->  | E2512: =$D$42-$E$42 ->  | F2512: =$C$42-$D$42 ->  | H2512: =0 -> 0 | I2512: =$B$42-$C$42 ->  | J2512: =$E$42-$F$42 -> 
A2513: =$A$43 -> CY 2027 | B2513: =0 -> 0 | C2513: =0 -> 0 | D2513: =$E$43+0 ->  | E2513: =$D$43-$E$43 ->  | F2513: =$C$43-$D$43 ->  | H2513: =0 -> 0 | I2513: =$B$43-$C$43 ->  | J2513: =$E$43-$F$43 -> 
A2514: =$A$44 -> CY 2028 | B2514: =0 -> 0 | C2514: =0 -> 0 | D2514: =$E$44+0 ->  | E2514: =$D$44-$E$44 ->  | F2514: =$C$44-$D$44 ->  | H2514: =0 -> 0 | I2514: =$B$44-$C$44 ->  | J2514: =$E$44-$F$44 -> 
A2515: =$A$45 -> CY 2029 | B2515: =0 -> 0 | C2515: =0 -> 0 | D2515: =$E$45+0 ->  | E2515: =$D$45-$E$45 ->  | F2515: =$C$45-$D$45 ->  | H2515: =0 -> 0 | I2515: =$B$45-$C$45 ->  | J2515: =$E$45-$F$45 -> 
A2516: =$A$46 -> CY 2030 | B2516: =0 -> 0 | C2516: =0 -> 0 | D2516: =$E$46+0 ->  | E2516: =$D$46-$E$46 ->  | F2516: =$C$46-$D$46 ->  | H2516: =0 -> 0 | I2516: =$B$46-$C$46 ->  | J2516: =$E$46-$F$46 -> 
A2517: =$A$47 -> CY 2031 | B2517: =0 -> 0 | C2517: =0 -> 0 | D2517: =$E$47+0 ->  | E2517: =$D$47-$E$47 ->  | F2517: =$C$47-$D$47 ->  | H2517: =0 -> 0 | I2517: =$B$47-$C$47 ->  | J2517: =$E$47-$F$47 -> 
A2518: =$A$48 -> CY 2032 | B2518: =0 -> 0 | C2518: =0 -> 0 | D2518: =$E$48+0 ->  | E2518: =$D$48-$E$48 ->  | F2518: =$C$48-$D$48 ->  | H2518: =0 -> 0 | I2518: =$B$48-$C$48 ->  | J2518: =$E$48-$F$48 -> 
A2519: =$A$49 -> CY 2033 | B2519: =0 -> 0 | C2519: =0 -> 0 | D2519: =$E$49+0 ->  | E2519: =$D$49-$E$49 ->  | F2519: =$C$49-$D$49 ->  | H2519: =0 -> 0 | I2519: =$B$49-$C$49 ->  | J2519: =$E$49-$F$49 -> 
A2520: =$A$50 -> CY 2034 | B2520: =0 -> 0 | C2520: =0 -> 0 | D2520: =$E$50+0 ->  | E2520: =$D$50-$E$50 ->  | F2520: =$C$50-$D$50 ->  | H2520: =0 -> 0 | I2520: =$B$50-$C$50 ->  | J2520: =$E$50-$F$50 -> 
A2521: =$A$51 -> CY 2035 | B2521: =0 -> 0 | C2521: =0 -> 0 | D2521: =$E$51+0 ->  | E2521: =$D$51-$E$51 ->  | F2521: =$C$51-$D$51 ->  | H2521: =0 -> 0 | I2521: =$B$51-$C$51 ->  | J2521: =$E$51-$F$51 -> 
A2522: =$A$52 -> CY 2036 | B2522: =0 -> 0 | C2522: =0 -> 0 | D2522: =$E$52+0 ->  | E2522: =$D$52-$E$52 ->  | F2522: =$C$52-$D$52 ->  | H2522: =0 -> 0 | I2522: =$B$52-$C$52 ->  | J2522: =$E$52-$F$52 -> 
A2523: =$A$53 -> CY 2037 | B2523: =0 -> 0 | C2523: =0 -> 0 | D2523: =$E$53+0 ->  | E2523: =$D$53-$E$53 ->  | F2523: =$C$53-$D$53 ->  | H2523: =0 -> 0 | I2523: =$B$53-$C$53 ->  | J2523: =$E$53-$F$53 -> 
A2524: =$A$54 -> CY 2038 | B2524: =0 -> 0 | C2524: =0 -> 0 | D2524: =$E$54+0 ->  | E2524: =$D$54-$E$54 ->  | F2524: =$C$54-$D$54 ->  | H2524: =0 -> 0 | I2524: =$B$54-$C$54 ->  | J2524: =$E$54-$F$54 -> 
A2525: =A55 -> CY 2039 | B2525: =0 -> 0 | C2525: =0 -> 0 | D2525: =E55+0 ->  | E2525: =D55-E55 ->  | F2525: =C55-D55 ->  | H2525: =0 -> 0 | I2525: =B55-C55 ->  | J2525: =E55-F55 -> 
A2526: =A56 -> CY 2040 | B2526: =0 -> 0 | C2526: =0 -> 0 | D2526: =E56+0 ->  | E2526: =D56-E56 ->  | F2526: =C56-D56 ->  | H2526: =0 -> 0 | I2526: =B56-C56 ->  | J2526: =E56-F56 -> 
A2527: CY 2041 | B2527: =0 -> 0 | C2527: =0 -> 0 | H2527: =0 -> 0
A2528: CY 2042 | B2528: =0 -> 0 | C2528: =0 -> 0 | H2528: =0 -> 0

Sheet POMV to GF
H1: Net POMV
H2: ='Fund Size'!H2 -> Preliminary Run
A32: =H2&"; "&H1 -> Preliminary Run; Net POMV
A33: Labels | B33: 0.95 | C33: 0.75 | D33: 0.5 | E33: 0.25 | F33: 0.05
A34: FY 2019 | B34: =_xll.RiskPercentile('Fund Model'!$AE20,B$33,_xll.RiskStatic(NA()))+50 ->  | C34: =_xll.RiskPercentile('Fund Model'!$AE20,C$33,_xll.RiskStatic(NA()))+25 ->  | D34: =_xll.RiskPercentile('Fund Model'!$AE20,D$33,_xll.RiskStatic(NA())) ->  | E34: =_xll.RiskPercentile('Fund Model'!$AE20,E$33,_xll.RiskStatic(NA()))-25 ->  | F34: =_xll.RiskPercentile('Fund Model'!$AE20,F$33,_xll.RiskStatic(NA()))-50 -> 
A35: FY 2020 | B35: =_xll.RiskPercentile('Fund Model'!$AE21,B$33,_xll.RiskStatic(NA()))+50 ->  | C35: =_xll.RiskPercentile('Fund Model'!$AE21,C$33,_xll.RiskStatic(NA()))+25 ->  | D35: =_xll.RiskPercentile('Fund Model'!$AE21,D$33,_xll.RiskStatic(NA())) ->  | E35: =_xll.RiskPercentile('Fund Model'!$AE21,E$33,_xll.RiskStatic(NA()))-25 ->  | F35: =_xll.RiskPercentile('Fund Model'!$AE21,F$33,_xll.RiskStatic(NA()))-50 -> 
A36: FY 2021 | B36: =_xll.RiskPercentile('Fund Model'!$AE22,B$33,_xll.RiskStatic(NA())) ->  | C36: =_xll.RiskPercentile('Fund Model'!$AE22,C$33,_xll.RiskStatic(NA())) ->  | D36: =_xll.RiskPercentile('Fund Model'!$AE22,D$33,_xll.RiskStatic(NA())) ->  | E36: =_xll.RiskPercentile('Fund Model'!$AE22,E$33,_xll.RiskStatic(NA())) ->  | F36: =_xll.RiskPercentile('Fund Model'!$AE22,F$33,_xll.RiskStatic(NA())) -> 
A37: FY 2022 | B37: =_xll.RiskPercentile('Fund Model'!$AE23,B$33,_xll.RiskStatic(NA())) ->  | C37: =_xll.RiskPercentile('Fund Model'!$AE23,C$33,_xll.RiskStatic(NA())) ->  | D37: =_xll.RiskPercentile('Fund Model'!$AE23,D$33,_xll.RiskStatic(NA())) ->  | E37: =_xll.RiskPercentile('Fund Model'!$AE23,E$33,_xll.RiskStatic(NA())) ->  | F37: =_xll.RiskPercentile('Fund Model'!$AE23,F$33,_xll.RiskStatic(NA())) -> 
A38: FY 2023 | B38: =_xll.RiskPercentile('Fund Model'!$AE24,B$33,_xll.RiskStatic(NA())) ->  | C38: =_xll.RiskPercentile('Fund Model'!$AE24,C$33,_xll.RiskStatic(NA())) ->  | D38: =_xll.RiskPercentile('Fund Model'!$AE24,D$33,_xll.RiskStatic(NA())) ->  | E38: =_xll.RiskPercentile('Fund Model'!$AE24,E$33,_xll.RiskStatic(NA())) ->  | F38: =_xll.RiskPercentile('Fund Model'!$AE24,F$33,_xll.RiskStatic(NA())) -> 
A39: FY 2024 | B39: =_xll.RiskPercentile('Fund Model'!$AE25,B$33,_xll.RiskStatic(NA())) ->  | C39: =_xll.RiskPercentile('Fund Model'!$AE25,C$33,_xll.RiskStatic(NA())) ->  | D39: =_xll.RiskPercentile('Fund Model'!$AE25,D$33,_xll.RiskStatic(NA())) ->  | E39: =_xll.RiskPercentile('Fund Model'!$AE25,E$33,_xll.RiskStatic(NA())) ->  | F39: =_xll.RiskPercentile('Fund Model'!$AE25,F$33,_xll.RiskStatic(NA())) -> 
A40: FY 2025 | B40: =_xll.RiskPercentile('Fund Model'!$AE26,B$33,_xll.RiskStatic(NA())) ->  | C40: =_xll.RiskPercentile('Fund Model'!$AE26,C$33,_xll.RiskStatic(NA())) ->  | D40: =_xll.RiskPercentile('Fund Model'!$AE26,D$33,_xll.RiskStatic(NA())) ->  | E40: =_xll.RiskPercentile('Fund Model'!$AE26,E$33,_xll.RiskStatic(NA())) ->  | F40: =_xll.RiskPercentile('Fund Model'!$AE26,F$33,_xll.RiskStatic(NA())) -> 
A41: FY 2026 | B41: =_xll.RiskPercentile('Fund Model'!$AE27,B$33,_xll.RiskStatic(NA())) ->  | C41: =_xll.RiskPercentile('Fund Model'!$AE27,C$33,_xll.RiskStatic(NA())) ->  | D41: =_xll.RiskPercentile('Fund Model'!$AE27,D$33,_xll.RiskStatic(NA())) ->  | E41: =_xll.RiskPercentile('Fund Model'!$AE27,E$33,_xll.RiskStatic(NA())) ->  | F41: =_xll.RiskPercentile('Fund Model'!$AE27,F$33,_xll.RiskStatic(NA())) -> 
A42: FY 2027 | B42: =_xll.RiskPercentile('Fund Model'!$AE28,B$33,_xll.RiskStatic(NA())) ->  | C42: =_xll.RiskPercentile('Fund Model'!$AE28,C$33,_xll.RiskStatic(NA())) ->  | D42: =_xll.RiskPercentile('Fund Model'!$AE28,D$33,_xll.RiskStatic(NA())) ->  | E42: =_xll.RiskPercentile('Fund Model'!$AE28,E$33,_xll.RiskStatic(NA())) ->  | F42: =_xll.RiskPercentile('Fund Model'!$AE28,F$33,_xll.RiskStatic(NA())) -> 
A43: FY 2028 | B43: =_xll.RiskPercentile('Fund Model'!$AE29,B$33,_xll.RiskStatic(NA())) ->  | C43: =_xll.RiskPercentile('Fund Model'!$AE29,C$33,_xll.RiskStatic(NA())) ->  | D43: =_xll.RiskPercentile('Fund Model'!$AE29,D$33,_xll.RiskStatic(NA())) ->  | E43: =_xll.RiskPercentile('Fund Model'!$AE29,E$33,_xll.RiskStatic(NA())) ->  | F43: =_xll.RiskPercentile('Fund Model'!$AE29,F$33,_xll.RiskStatic(NA())) -> 
A44: FY 2029 | B44: =_xll.RiskPercentile('Fund Model'!$AE30,B$33,_xll.RiskStatic(NA())) ->  | C44: =_xll.RiskPercentile('Fund Model'!$AE30,C$33,_xll.RiskStatic(NA())) ->  | D44: =_xll.RiskPercentile('Fund Model'!$AE30,D$33,_xll.RiskStatic(NA())) ->  | E44: =_xll.RiskPercentile('Fund Model'!$AE30,E$33,_xll.RiskStatic(NA())) ->  | F44: =_xll.RiskPercentile('Fund Model'!$AE30,F$33,_xll.RiskStatic(NA())) -> 
A45: FY 2030 | B45: =_xll.RiskPercentile('Fund Model'!$AE31,B$33,_xll.RiskStatic(NA())) ->  | C45: =_xll.RiskPercentile('Fund Model'!$AE31,C$33,_xll.RiskStatic(NA())) ->  | D45: =_xll.RiskPercentile('Fund Model'!$AE31,D$33,_xll.RiskStatic(NA())) ->  | E45: =_xll.RiskPercentile('Fund Model'!$AE31,E$33,_xll.RiskStatic(NA())) ->  | F45: =_xll.RiskPercentile('Fund Model'!$AE31,F$33,_xll.RiskStatic(NA())) -> 
A46: FY 2031 | B46: =_xll.RiskPercentile('Fund Model'!$AE32,B$33,_xll.RiskStatic(NA())) ->  | C46: =_xll.RiskPercentile('Fund Model'!$AE32,C$33,_xll.RiskStatic(NA())) ->  | D46: =_xll.RiskPercentile('Fund Model'!$AE32,D$33,_xll.RiskStatic(NA())) ->  | E46: =_xll.RiskPercentile('Fund Model'!$AE32,E$33,_xll.RiskStatic(NA())) ->  | F46: =_xll.RiskPercentile('Fund Model'!$AE32,F$33,_xll.RiskStatic(NA())) -> 
A47: FY 2032 | B47: =_xll.RiskPercentile('Fund Model'!$AE33,B$33,_xll.RiskStatic(NA())) ->  | C47: =_xll.RiskPercentile('Fund Model'!$AE33,C$33,_xll.RiskStatic(NA())) ->  | D47: =_xll.RiskPercentile('Fund Model'!$AE33,D$33,_xll.RiskStatic(NA())) ->  | E47: =_xll.RiskPercentile('Fund Model'!$AE33,E$33,_xll.RiskStatic(NA())) ->  | F47: =_xll.RiskPercentile('Fund Model'!$AE33,F$33,_xll.RiskStatic(NA())) -> 
A48: FY 2033 | B48: =_xll.RiskPercentile('Fund Model'!$AE34,B$33,_xll.RiskStatic(NA())) ->  | C48: =_xll.RiskPercentile('Fund Model'!$AE34,C$33,_xll.RiskStatic(NA())) ->  | D48: =_xll.RiskPercentile('Fund Model'!$AE34,D$33,_xll.RiskStatic(NA())) ->  | E48: =_xll.RiskPercentile('Fund Model'!$AE34,E$33,_xll.RiskStatic(NA())) ->  | F48: =_xll.RiskPercentile('Fund Model'!$AE34,F$33,_xll.RiskStatic(NA())) -> 
A49: FY 2034 | B49: =_xll.RiskPercentile('Fund Model'!$AE35,B$33,_xll.RiskStatic(NA())) ->  | C49: =_xll.RiskPercentile('Fund Model'!$AE35,C$33,_xll.RiskStatic(NA())) ->  | D49: =_xll.RiskPercentile('Fund Model'!$AE35,D$33,_xll.RiskStatic(NA())) ->  | E49: =_xll.RiskPercentile('Fund Model'!$AE35,E$33,_xll.RiskStatic(NA())) ->  | F49: =_xll.RiskPercentile('Fund Model'!$AE35,F$33,_xll.RiskStatic(NA())) -> 
A50: FY 2035 | B50: =_xll.RiskPercentile('Fund Model'!$AE36,B$33,_xll.RiskStatic(NA())) ->  | C50: =_xll.RiskPercentile('Fund Model'!$AE36,C$33,_xll.RiskStatic(NA())) ->  | D50: =_xll.RiskPercentile('Fund Model'!$AE36,D$33,_xll.RiskStatic(NA())) ->  | E50: =_xll.RiskPercentile('Fund Model'!$AE36,E$33,_xll.RiskStatic(NA())) ->  | F50: =_xll.RiskPercentile('Fund Model'!$AE36,F$33,_xll.RiskStatic(NA())) -> 
A51: FY 2036 | B51: =_xll.RiskPercentile('Fund Model'!$AE37,B$33,_xll.RiskStatic(NA())) ->  | C51: =_xll.RiskPercentile('Fund Model'!$AE37,C$33,_xll.RiskStatic(NA())) ->  | D51: =_xll.RiskPercentile('Fund Model'!$AE37,D$33,_xll.RiskStatic(NA())) ->  | E51: =_xll.RiskPercentile('Fund Model'!$AE37,E$33,_xll.RiskStatic(NA())) ->  | F51: =_xll.RiskPercentile('Fund Model'!$AE37,F$33,_xll.RiskStatic(NA())) -> 
A52: FY 2037 | B52: =_xll.RiskPercentile('Fund Model'!$AE38,B$33,_xll.RiskStatic(NA())) ->  | C52: =_xll.RiskPercentile('Fund Model'!$AE38,C$33,_xll.RiskStatic(NA())) ->  | D52: =_xll.RiskPercentile('Fund Model'!$AE38,D$33,_xll.RiskStatic(NA())) ->  | E52: =_xll.RiskPercentile('Fund Model'!$AE38,E$33,_xll.RiskStatic(NA())) ->  | F52: =_xll.RiskPercentile('Fund Model'!$AE38,F$33,_xll.RiskStatic(NA())) -> 
A53: FY 2038 | B53: =_xll.RiskPercentile('Fund Model'!$AE39,B$33,_xll.RiskStatic(NA())) ->  | C53: =_xll.RiskPercentile('Fund Model'!$AE39,C$33,_xll.RiskStatic(NA())) ->  | D53: =_xll.RiskPercentile('Fund Model'!$AE39,D$33,_xll.RiskStatic(NA())) ->  | E53: =_xll.RiskPercentile('Fund Model'!$AE39,E$33,_xll.RiskStatic(NA())) ->  | F53: =_xll.RiskPercentile('Fund Model'!$AE39,F$33,_xll.RiskStatic(NA())) -> 
A54: FY 2039 | B54: =_xll.RiskPercentile('Fund Model'!$AE40,B$33,_xll.RiskStatic(NA())) ->  | C54: =_xll.RiskPercentile('Fund Model'!$AE40,C$33,_xll.RiskStatic(NA())) ->  | D54: =_xll.RiskPercentile('Fund Model'!$AE40,D$33,_xll.RiskStatic(NA())) ->  | E54: =_xll.RiskPercentile('Fund Model'!$AE40,E$33,_xll.RiskStatic(NA())) ->  | F54: =_xll.RiskPercentile('Fund Model'!$AE40,F$33,_xll.RiskStatic(NA())) -> 
A55: FY 2040 | B55: =_xll.RiskPercentile('Fund Model'!$AE41,B$33,_xll.RiskStatic(NA())) ->  | C55: =_xll.RiskPercentile('Fund Model'!$AE41,C$33,_xll.RiskStatic(NA())) ->  | D55: =_xll.RiskPercentile('Fund Model'!$AE41,D$33,_xll.RiskStatic(NA())) ->  | E55: =_xll.RiskPercentile('Fund Model'!$AE41,E$33,_xll.RiskStatic(NA())) ->  | F55: =_xll.RiskPercentile('Fund Model'!$AE41,F$33,_xll.RiskStatic(NA())) -> 
A56: FY 2041 | B56: =_xll.RiskPercentile('Fund Model'!$AE42,B$33,_xll.RiskStatic(NA())) ->  | C56: =_xll.RiskPercentile('Fund Model'!$AE42,C$33,_xll.RiskStatic(NA())) ->  | D56: =_xll.RiskPercentile('Fund Model'!$AE42,D$33,_xll.RiskStatic(NA())) ->  | E56: =_xll.RiskPercentile('Fund Model'!$AE42,E$33,_xll.RiskStatic(NA())) ->  | F56: =_xll.RiskPercentile('Fund Model'!$AE42,F$33,_xll.RiskStatic(NA())) -> 
A57: FY 2042 | B57: =_xll.RiskPercentile('Fund Model'!$AE43,B$33,_xll.RiskStatic(NA())) ->  | C57: =_xll.RiskPercentile('Fund Model'!$AE43,C$33,_xll.RiskStatic(NA())) ->  | D57: =_xll.RiskPercentile('Fund Model'!$AE43,D$33,_xll.RiskStatic(NA())) ->  | E57: =_xll.RiskPercentile('Fund Model'!$AE43,E$33,_xll.RiskStatic(NA())) ->  | F57: =_xll.RiskPercentile('Fund Model'!$AE43,F$33,_xll.RiskStatic(NA())) -> 
A58: FY 2043 | B58: =_xll.RiskPercentile('Fund Model'!$AE44,B$33,_xll.RiskStatic(NA())) ->  | C58: =_xll.RiskPercentile('Fund Model'!$AE44,C$33,_xll.RiskStatic(NA())) ->  | D58: =_xll.RiskPercentile('Fund Model'!$AE44,D$33,_xll.RiskStatic(NA())) ->  | E58: =_xll.RiskPercentile('Fund Model'!$AE44,E$33,_xll.RiskStatic(NA())) ->  | F58: =_xll.RiskPercentile('Fund Model'!$AE44,F$33,_xll.RiskStatic(NA())) -> 
C60: FY 2043 Total in FY 2019 Dollars: | D60: =_xll.RiskOutput(,,1)+D58/((1+'Fund Model'!$R$9)^('Fund Model'!$B44-'Fund Model'!$B$20+0.5)) -> 
B2502: B Mean | C2502: B Mean Size | D2502: B Box | E2502: Center | F2502: T Box | G2502: T Mean | H2502: T Mean Size | I2502: T Whisker | J2502: B Whisker
A2504: =$A$34 -> FY 2019 | B2504: =0 -> 0 | C2504: =0 -> 0 | D2504: =$E$34+0 ->  | E2504: =$D$34-$E$34 ->  | F2504: =$C$34-$D$34 ->  | H2504: =0 -> 0 | I2504: =$B$34-$C$34 ->  | J2504: =$E$34-$F$34 -> 
A2505: =$A$35 -> FY 2020 | B2505: =0 -> 0 | C2505: =0 -> 0 | D2505: =$E$35+0 ->  | E2505: =$D$35-$E$35 ->  | F2505: =$C$35-$D$35 ->  | H2505: =0 -> 0 | I2505: =$B$35-$C$35 ->  | J2505: =$E$35-$F$35 -> 
A2506: =$A$36 -> FY 2021 | B2506: =0 -> 0 | C2506: =0 -> 0 | D2506: =$E$36+0 ->  | E2506: =$D$36-$E$36 ->  | F2506: =$C$36-$D$36 ->  | H2506: =0 -> 0 | I2506: =$B$36-$C$36 ->  | J2506: =$E$36-$F$36 -> 
A2507: =$A$37 -> FY 2022 | B2507: =0 -> 0 | C2507: =0 -> 0 | D2507: =$E$37+0 ->  | E2507: =$D$37-$E$37 ->  | F2507: =$C$37-$D$37 ->  | H2507: =0 -> 0 | I2507: =$B$37-$C$37 ->  | J2507: =$E$37-$F$37 -> 
A2508: =$A$38 -> FY 2023 | B2508: =0 -> 0 | C2508: =0 -> 0 | D2508: =$E$38+0 ->  | E2508: =$D$38-$E$38 ->  | F2508: =$C$38-$D$38 ->  | H2508: =0 -> 0 | I2508: =$B$38-$C$38 ->  | J2508: =$E$38-$F$38 -> 
A2509: =$A$39 -> FY 2024 | B2509: =0 -> 0 | C2509: =0 -> 0 | D2509: =$E$39+0 ->  | E2509: =$D$39-$E$39 ->  | F2509: =$C$39-$D$39 ->  | H2509: =0 -> 0 | I2509: =$B$39-$C$39 ->  | J2509: =$E$39-$F$39 -> 
A2510: =$A$40 -> FY 2025 | B2510: =0 -> 0 | C2510: =0 -> 0 | D2510: =$E$40+0 ->  | E2510: =$D$40-$E$40 ->  | F2510: =$C$40-$D$40 ->  | H2510: =0 -> 0 | I2510: =$B$40-$C$40 ->  | J2510: =$E$40-$F$40 -> 
A2511: =$A$41 -> FY 2026 | B2511: =0 -> 0 | C2511: =0 -> 0 | D2511: =$E$41+0 ->  | E2511: =$D$41-$E$41 ->  | F2511: =$C$41-$D$41 ->  | H2511: =0 -> 0 | I2511: =$B$41-$C$41 ->  | J2511: =$E$41-$F$41 -> 
A2512: =$A$42 -> FY 2027 | B2512: =0 -> 0 | C2512: =0 -> 0 | D2512: =$E$42+0 ->  | E2512: =$D$42-$E$42 ->  | F2512: =$C$42-$D$42 ->  | H2512: =0 -> 0 | I2512: =$B$42-$C$42 ->  | J2512: =$E$42-$F$42 -> 
A2513: =$A$43 -> FY 2028 | B2513: =0 -> 0 | C2513: =0 -> 0 | D2513: =$E$43+0 ->  | E2513: =$D$43-$E$43 ->  | F2513: =$C$43-$D$43 ->  | H2513: =0 -> 0 | I2513: =$B$43-$C$43 ->  | J2513: =$E$43-$F$43 -> 
A2514: =$A$44 -> FY 2029 | B2514: =0 -> 0 | C2514: =0 -> 0 | D2514: =$E$44+0 ->  | E2514: =$D$44-$E$44 ->  | F2514: =$C$44-$D$44 ->  | H2514: =0 -> 0 | I2514: =$B$44-$C$44 ->  | J2514: =$E$44-$F$44 -> 
A2515: =$A$45 -> FY 2030 | B2515: =0 -> 0 | C2515: =0 -> 0 | D2515: =$E$45+0 ->  | E2515: =$D$45-$E$45 ->  | F2515: =$C$45-$D$45 ->  | H2515: =0 -> 0 | I2515: =$B$45-$C$45 ->  | J2515: =$E$45-$F$45 -> 
A2516: =$A$46 -> FY 2031 | B2516: =0 -> 0 | C2516: =0 -> 0 | D2516: =$E$46+0 ->  | E2516: =$D$46-$E$46 ->  | F2516: =$C$46-$D$46 ->  | H2516: =0 -> 0 | I2516: =$B$46-$C$46 ->  | J2516: =$E$46-$F$46 -> 
A2517: =$A$47 -> FY 2032 | B2517: =0 -> 0 | C2517: =0 -> 0 | D2517: =$E$47+0 ->  | E2517: =$D$47-$E$47 ->  | F2517: =$C$47-$D$47 ->  | H2517: =0 -> 0 | I2517: =$B$47-$C$47 ->  | J2517: =$E$47-$F$47 -> 
A2518: =$A$48 -> FY 2033 | B2518: =0 -> 0 | C2518: =0 -> 0 | D2518: =$E$48+0 ->  | E2518: =$D$48-$E$48 ->  | F2518: =$C$48-$D$48 ->  | H2518: =0 -> 0 | I2518: =$B$48-$C$48 ->  | J2518: =$E$48-$F$48 -> 
A2519: =$A$49 -> FY 2034 | B2519: =0 -> 0 | C2519: =0 -> 0 | D2519: =$E$49+0 ->  | E2519: =$D$49-$E$49 ->  | F2519: =$C$49-$D$49 ->  | H2519: =0 -> 0 | I2519: =$B$49-$C$49 ->  | J2519: =$E$49-$F$49 -> 
A2520: =$A$50 -> FY 2035 | B2520: =0 -> 0 | C2520: =0 -> 0 | D2520: =$E$50+0 ->  | E2520: =$D$50-$E$50 ->  | F2520: =$C$50-$D$50 ->  | H2520: =0 -> 0 | I2520: =$B$50-$C$50 ->  | J2520: =$E$50-$F$50 -> 
A2521: =$A$51 -> FY 2036 | B2521: =0 -> 0 | C2521: =0 -> 0 | D2521: =$E$51+0 ->  | E2521: =$D$51-$E$51 ->  | F2521: =$C$51-$D$51 ->  | H2521: =0 -> 0 | I2521: =$B$51-$C$51 ->  | J2521: =$E$51-$F$51 -> 
A2522: =$A$52 -> FY 2037 | B2522: =0 -> 0 | C2522: =0 -> 0 | D2522: =$E$52+0 ->  | E2522: =$D$52-$E$52 ->  | F2522: =$C$52-$D$52 ->  | H2522: =0 -> 0 | I2522: =$B$52-$C$52 ->  | J2522: =$E$52-$F$52 -> 
A2523: =A53 -> FY 2038 | B2523: =0 -> 0 | C2523: =0 -> 0 | D2523: =E53+0 ->  | E2523: =D53-E53 ->  | F2523: =C53-D53 ->  | H2523: =0 -> 0 | I2523: =B53-C53 ->  | J2523: =E53-F53 -> 
A2524: =A54 -> FY 2039 | B2524: =0 -> 0 | C2524: =0 -> 0 | D2524: =E54+0 ->  | E2524: =D54-E54 ->  | F2524: =C54-D54 ->  | H2524: =0 -> 0 | I2524: =B54-C54 ->  | J2524: =E54-F54 -> 
A2525: FY 2040 | B2525: =0 -> 0 | C2525: =0 -> 0 | H2525: =0 -> 0
A2526: FY 2041 | B2526: =0 -> 0 | C2526: =0 -> 0 | H2526: =0 -> 0
A2527: FY 2042 | B2527: =0 -> 0 | C2527: =0 -> 0 | H2527: =0 -> 0
A2528: FY 2043 | B2528: =0 -> 0 | C2528: =0 -> 0 | H2528: =0 -> 0

Sheet POMV+Roy&Prod
H1: POMV + Royalty and Production Tax
H2: ='Fund Size'!H2 -> Preliminary Run
A32: =H2&"; "&H1 -> Preliminary Run; POMV + Royalty and Production Tax
A33: Labels | B33: 0.95 | C33: 0.75 | D33: 0.5 | E33: 0.25 | F33: 0.05
A34: FY 2019 | B34: =_xll.RiskPercentile('Fund Model'!$AH20,B$33,_xll.RiskStatic(NA())) ->  | C34: =_xll.RiskPercentile('Fund Model'!$AH20,C$33,_xll.RiskStatic(NA())) ->  | D34: =_xll.RiskPercentile('Fund Model'!$AH20,D$33,_xll.RiskStatic(NA())) ->  | E34: =_xll.RiskPercentile('Fund Model'!$AH20,E$33,_xll.RiskStatic(NA())) ->  | F34: =_xll.RiskPercentile('Fund Model'!$AH20,F$33,_xll.RiskStatic(NA())) -> 
A35: FY 2020 | B35: =_xll.RiskPercentile('Fund Model'!$AH21,B$33,_xll.RiskStatic(NA())) ->  | C35: =_xll.RiskPercentile('Fund Model'!$AH21,C$33,_xll.RiskStatic(NA())) ->  | D35: =_xll.RiskPercentile('Fund Model'!$AH21,D$33,_xll.RiskStatic(NA())) ->  | E35: =_xll.RiskPercentile('Fund Model'!$AH21,E$33,_xll.RiskStatic(NA())) ->  | F35: =_xll.RiskPercentile('Fund Model'!$AH21,F$33,_xll.RiskStatic(NA())) -> 
A36: FY 2021 | B36: =_xll.RiskPercentile('Fund Model'!$AH22,B$33,_xll.RiskStatic(NA())) ->  | C36: =_xll.RiskPercentile('Fund Model'!$AH22,C$33,_xll.RiskStatic(NA())) ->  | D36: =_xll.RiskPercentile('Fund Model'!$AH22,D$33,_xll.RiskStatic(NA())) ->  | E36: =_xll.RiskPercentile('Fund Model'!$AH22,E$33,_xll.RiskStatic(NA())) ->  | F36: =_xll.RiskPercentile('Fund Model'!$AH22,F$33,_xll.RiskStatic(NA())) -> 
A37: FY 2022 | B37: =_xll.RiskPercentile('Fund Model'!$AH23,B$33,_xll.RiskStatic(NA())) ->  | C37: =_xll.RiskPercentile('Fund Model'!$AH23,C$33,_xll.RiskStatic(NA())) ->  | D37: =_xll.RiskPercentile('Fund Model'!$AH23,D$33,_xll.RiskStatic(NA())) ->  | E37: =_xll.RiskPercentile('Fund Model'!$AH23,E$33,_xll.RiskStatic(NA())) ->  | F37: =_xll.RiskPercentile('Fund Model'!$AH23,F$33,_xll.RiskStatic(NA())) -> 
A38: FY 2023 | B38: =_xll.RiskPercentile('Fund Model'!$AH24,B$33,_xll.RiskStatic(NA())) ->  | C38: =_xll.RiskPercentile('Fund Model'!$AH24,C$33,_xll.RiskStatic(NA())) ->  | D38: =_xll.RiskPercentile('Fund Model'!$AH24,D$33,_xll.RiskStatic(NA())) ->  | E38: =_xll.RiskPercentile('Fund Model'!$AH24,E$33,_xll.RiskStatic(NA())) ->  | F38: =_xll.RiskPercentile('Fund Model'!$AH24,F$33,_xll.RiskStatic(NA())) -> 
A39: FY 2024 | B39: =_xll.RiskPercentile('Fund Model'!$AH25,B$33,_xll.RiskStatic(NA())) ->  | C39: =_xll.RiskPercentile('Fund Model'!$AH25,C$33,_xll.RiskStatic(NA())) ->  | D39: =_xll.RiskPercentile('Fund Model'!$AH25,D$33,_xll.RiskStatic(NA())) ->  | E39: =_xll.RiskPercentile('Fund Model'!$AH25,E$33,_xll.RiskStatic(NA())) ->  | F39: =_xll.RiskPercentile('Fund Model'!$AH25,F$33,_xll.RiskStatic(NA())) -> 
A40: FY 2025 | B40: =_xll.RiskPercentile('Fund Model'!$AH26,B$33,_xll.RiskStatic(NA())) ->  | C40: =_xll.RiskPercentile('Fund Model'!$AH26,C$33,_xll.RiskStatic(NA())) ->  | D40: =_xll.RiskPercentile('Fund Model'!$AH26,D$33,_xll.RiskStatic(NA())) ->  | E40: =_xll.RiskPercentile('Fund Model'!$AH26,E$33,_xll.RiskStatic(NA())) ->  | F40: =_xll.RiskPercentile('Fund Model'!$AH26,F$33,_xll.RiskStatic(NA())) -> 
A41: FY 2026 | B41: =_xll.RiskPercentile('Fund Model'!$AH27,B$33,_xll.RiskStatic(NA())) ->  | C41: =_xll.RiskPercentile('Fund Model'!$AH27,C$33,_xll.RiskStatic(NA())) ->  | D41: =_xll.RiskPercentile('Fund Model'!$AH27,D$33,_xll.RiskStatic(NA())) ->  | E41: =_xll.RiskPercentile('Fund Model'!$AH27,E$33,_xll.RiskStatic(NA())) ->  | F41: =_xll.RiskPercentile('Fund Model'!$AH27,F$33,_xll.RiskStatic(NA())) -> 
A42: FY 2027 | B42: =_xll.RiskPercentile('Fund Model'!$AH28,B$33,_xll.RiskStatic(NA())) ->  | C42: =_xll.RiskPercentile('Fund Model'!$AH28,C$33,_xll.RiskStatic(NA())) ->  | D42: =_xll.RiskPercentile('Fund Model'!$AH28,D$33,_xll.RiskStatic(NA())) ->  | E42: =_xll.RiskPercentile('Fund Model'!$AH28,E$33,_xll.RiskStatic(NA())) ->  | F42: =_xll.RiskPercentile('Fund Model'!$AH28,F$33,_xll.RiskStatic(NA())) -> 
A43: FY 2028 | B43: =_xll.RiskPercentile('Fund Model'!$AH29,B$33,_xll.RiskStatic(NA())) ->  | C43: =_xll.RiskPercentile('Fund Model'!$AH29,C$33,_xll.RiskStatic(NA())) ->  | D43: =_xll.RiskPercentile('Fund Model'!$AH29,D$33,_xll.RiskStatic(NA())) ->  | E43: =_xll.RiskPercentile('Fund Model'!$AH29,E$33,_xll.RiskStatic(NA())) ->  | F43: =_xll.RiskPercentile('Fund Model'!$AH29,F$33,_xll.RiskStatic(NA())) -> 
A44: FY 2029 | B44: =_xll.RiskPercentile('Fund Model'!$AH30,B$33,_xll.RiskStatic(NA())) ->  | C44: =_xll.RiskPercentile('Fund Model'!$AH30,C$33,_xll.RiskStatic(NA())) ->  | D44: =_xll.RiskPercentile('Fund Model'!$AH30,D$33,_xll.RiskStatic(NA())) ->  | E44: =_xll.RiskPercentile('Fund Model'!$AH30,E$33,_xll.RiskStatic(NA())) ->  | F44: =_xll.RiskPercentile('Fund Model'!$AH30,F$33,_xll.RiskStatic(NA())) -> 
A45: FY 2030 | B45: =_xll.RiskPercentile('Fund Model'!$AH31,B$33,_xll.RiskStatic(NA())) ->  | C45: =_xll.RiskPercentile('Fund Model'!$AH31,C$33,_xll.RiskStatic(NA())) ->  | D45: =_xll.RiskPercentile('Fund Model'!$AH31,D$33,_xll.RiskStatic(NA())) ->  | E45: =_xll.RiskPercentile('Fund Model'!$AH31,E$33,_xll.RiskStatic(NA())) ->  | F45: =_xll.RiskPercentile('Fund Model'!$AH31,F$33,_xll.RiskStatic(NA())) -> 
A46: FY 2031 | B46: =_xll.RiskPercentile('Fund Model'!$AH32,B$33,_xll.RiskStatic(NA())) ->  | C46: =_xll.RiskPercentile('Fund Model'!$AH32,C$33,_xll.RiskStatic(NA())) ->  | D46: =_xll.RiskPercentile('Fund Model'!$AH32,D$33,_xll.RiskStatic(NA())) ->  | E46: =_xll.RiskPercentile('Fund Model'!$AH32,E$33,_xll.RiskStatic(NA())) ->  | F46: =_xll.RiskPercentile('Fund Model'!$AH32,F$33,_xll.RiskStatic(NA())) -> 
A47: FY 2032 | B47: =_xll.RiskPercentile('Fund Model'!$AH33,B$33,_xll.RiskStatic(NA())) ->  | C47: =_xll.RiskPercentile('Fund Model'!$AH33,C$33,_xll.RiskStatic(NA())) ->  | D47: =_xll.RiskPercentile('Fund Model'!$AH33,D$33,_xll.RiskStatic(NA())) ->  | E47: =_xll.RiskPercentile('Fund Model'!$AH33,E$33,_xll.RiskStatic(NA())) ->  | F47: =_xll.RiskPercentile('Fund Model'!$AH33,F$33,_xll.RiskStatic(NA())) -> 
A48: FY 2033 | B48: =_xll.RiskPercentile('Fund Model'!$AH34,B$33,_xll.RiskStatic(NA())) ->  | C48: =_xll.RiskPercentile('Fund Model'!$AH34,C$33,_xll.RiskStatic(NA())) ->  | D48: =_xll.RiskPercentile('Fund Model'!$AH34,D$33,_xll.RiskStatic(NA())) ->  | E48: =_xll.RiskPercentile('Fund Model'!$AH34,E$33,_xll.RiskStatic(NA())) ->  | F48: =_xll.RiskPercentile('Fund Model'!$AH34,F$33,_xll.RiskStatic(NA())) -> 
A49: FY 2034 | B49: =_xll.RiskPercentile('Fund Model'!$AH35,B$33,_xll.RiskStatic(NA())) ->  | C49: =_xll.RiskPercentile('Fund Model'!$AH35,C$33,_xll.RiskStatic(NA())) ->  | D49: =_xll.RiskPercentile('Fund Model'!$AH35,D$33,_xll.RiskStatic(NA())) ->  | E49: =_xll.RiskPercentile('Fund Model'!$AH35,E$33,_xll.RiskStatic(NA())) ->  | F49: =_xll.RiskPercentile('Fund Model'!$AH35,F$33,_xll.RiskStatic(NA())) -> 
A50: FY 2035 | B50: =_xll.RiskPercentile('Fund Model'!$AH36,B$33,_xll.RiskStatic(NA())) ->  | C50: =_xll.RiskPercentile('Fund Model'!$AH36,C$33,_xll.RiskStatic(NA())) ->  | D50: =_xll.RiskPercentile('Fund Model'!$AH36,D$33,_xll.RiskStatic(NA())) ->  | E50: =_xll.RiskPercentile('Fund Model'!$AH36,E$33,_xll.RiskStatic(NA())) ->  | F50: =_xll.RiskPercentile('Fund Model'!$AH36,F$33,_xll.RiskStatic(NA())) -> 
A51: FY 2036 | B51: =_xll.RiskPercentile('Fund Model'!$AH37,B$33,_xll.RiskStatic(NA())) ->  | C51: =_xll.RiskPercentile('Fund Model'!$AH37,C$33,_xll.RiskStatic(NA())) ->  | D51: =_xll.RiskPercentile('Fund Model'!$AH37,D$33,_xll.RiskStatic(NA())) ->  | E51: =_xll.RiskPercentile('Fund Model'!$AH37,E$33,_xll.RiskStatic(NA())) ->  | F51: =_xll.RiskPercentile('Fund Model'!$AH37,F$33,_xll.RiskStatic(NA())) -> 
A52: FY 2037 | B52: =_xll.RiskPercentile('Fund Model'!$AH38,B$33,_xll.RiskStatic(NA())) ->  | C52: =_xll.RiskPercentile('Fund Model'!$AH38,C$33,_xll.RiskStatic(NA())) ->  | D52: =_xll.RiskPercentile('Fund Model'!$AH38,D$33,_xll.RiskStatic(NA())) ->  | E52: =_xll.RiskPercentile('Fund Model'!$AH38,E$33,_xll.RiskStatic(NA())) ->  | F52: =_xll.RiskPercentile('Fund Model'!$AH38,F$33,_xll.RiskStatic(NA())) -> 
A53: FY 2038 | B53: =_xll.RiskPercentile('Fund Model'!$AH39,B$33,_xll.RiskStatic(NA())) ->  | C53: =_xll.RiskPercentile('Fund Model'!$AH39,C$33,_xll.RiskStatic(NA())) ->  | D53: =_xll.RiskPercentile('Fund Model'!$AH39,D$33,_xll.RiskStatic(NA())) ->  | E53: =_xll.RiskPercentile('Fund Model'!$AH39,E$33,_xll.RiskStatic(NA())) ->  | F53: =_xll.RiskPercentile('Fund Model'!$AH39,F$33,_xll.RiskStatic(NA())) -> 
A54: FY 2039 | B54: =_xll.RiskPercentile('Fund Model'!$AH40,B$33,_xll.RiskStatic(NA())) ->  | C54: =_xll.RiskPercentile('Fund Model'!$AH40,C$33,_xll.RiskStatic(NA())) ->  | D54: =_xll.RiskPercentile('Fund Model'!$AH40,D$33,_xll.RiskStatic(NA())) ->  | E54: =_xll.RiskPercentile('Fund Model'!$AH40,E$33,_xll.RiskStatic(NA())) ->  | F54: =_xll.RiskPercentile('Fund Model'!$AH40,F$33,_xll.RiskStatic(NA())) -> 
A55: FY 2040 | B55: =_xll.RiskPercentile('Fund Model'!$AH41,B$33,_xll.RiskStatic(NA())) ->  | C55: =_xll.RiskPercentile('Fund Model'!$AH41,C$33,_xll.RiskStatic(NA())) ->  | D55: =_xll.RiskPercentile('Fund Model'!$AH41,D$33,_xll.RiskStatic(NA())) ->  | E55: =_xll.RiskPercentile('Fund Model'!$AH41,E$33,_xll.RiskStatic(NA())) ->  | F55: =_xll.RiskPercentile('Fund Model'!$AH41,F$33,_xll.RiskStatic(NA())) -> 
A56: FY 2041 | B56: =_xll.RiskPercentile('Fund Model'!$AH42,B$33,_xll.RiskStatic(NA())) ->  | C56: =_xll.RiskPercentile('Fund Model'!$AH42,C$33,_xll.RiskStatic(NA())) ->  | D56: =_xll.RiskPercentile('Fund Model'!$AH42,D$33,_xll.RiskStatic(NA())) ->  | E56: =_xll.RiskPercentile('Fund Model'!$AH42,E$33,_xll.RiskStatic(NA())) ->  | F56: =_xll.RiskPercentile('Fund Model'!$AH42,F$33,_xll.RiskStatic(NA())) -> 
A57: FY 2042 | B57: =_xll.RiskPercentile('Fund Model'!$AH43,B$33,_xll.RiskStatic(NA())) ->  | C57: =_xll.RiskPercentile('Fund Model'!$AH43,C$33,_xll.RiskStatic(NA())) ->  | D57: =_xll.RiskPercentile('Fund Model'!$AH43,D$33,_xll.RiskStatic(NA())) ->  | E57: =_xll.RiskPercentile('Fund Model'!$AH43,E$33,_xll.RiskStatic(NA())) ->  | F57: =_xll.RiskPercentile('Fund Model'!$AH43,F$33,_xll.RiskStatic(NA())) -> 
A58: FY 2043 | B58: =_xll.RiskPercentile('Fund Model'!$AH44,B$33,_xll.RiskStatic(NA())) ->  | C58: =_xll.RiskPercentile('Fund Model'!$AH44,C$33,_xll.RiskStatic(NA())) ->  | D58: =_xll.RiskPercentile('Fund Model'!$AH44,D$33,_xll.RiskStatic(NA())) ->  | E58: =_xll.RiskPercentile('Fund Model'!$AH44,E$33,_xll.RiskStatic(NA())) ->  | F58: =_xll.RiskPercentile('Fund Model'!$AH44,F$33,_xll.RiskStatic(NA())) -> 
C60: FY 2043 Total in FY 2019 Dollars: | D60: =_xll.RiskOutput(,,1)+D58/((1+'Fund Model'!$R$9)^('Fund Model'!$B44-'Fund Model'!$B$20+0.5)) -> 
B2502: B Mean | C2502: B Mean Size | D2502: B Box | E2502: Center | F2502: T Box | G2502: T Mean | H2502: T Mean Size | I2502: T Whisker | J2502: B Whisker
A2504: =$A$34 -> FY 2019 | B2504: =0 -> 0 | C2504: =0 -> 0 | D2504: =$E$34+0 ->  | E2504: =$D$34-$E$34 ->  | F2504: =$C$34-$D$34 ->  | H2504: =0 -> 0 | I2504: =$B$34-$C$34 ->  | J2504: =$E$34-$F$34 -> 
A2505: =$A$35 -> FY 2020 | B2505: =0 -> 0 | C2505: =0 -> 0 | D2505: =$E$35+0 ->  | E2505: =$D$35-$E$35 ->  | F2505: =$C$35-$D$35 ->  | H2505: =0 -> 0 | I2505: =$B$35-$C$35 ->  | J2505: =$E$35-$F$35 -> 
A2506: =$A$36 -> FY 2021 | B2506: =0 -> 0 | C2506: =0 -> 0 | D2506: =$E$36+0 ->  | E2506: =$D$36-$E$36 ->  | F2506: =$C$36-$D$36 ->  | H2506: =0 -> 0 | I2506: =$B$36-$C$36 ->  | J2506: =$E$36-$F$36 -> 
A2507: =$A$37 -> FY 2022 | B2507: =0 -> 0 | C2507: =0 -> 0 | D2507: =$E$37+0 ->  | E2507: =$D$37-$E$37 ->  | F2507: =$C$37-$D$37 ->  | H2507: =0 -> 0 | I2507: =$B$37-$C$37 ->  | J2507: =$E$37-$F$37 -> 
A2508: =$A$38 -> FY 2023 | B2508: =0 -> 0 | C2508: =0 -> 0 | D2508: =$E$38+0 ->  | E2508: =$D$38-$E$38 ->  | F2508: =$C$38-$D$38 ->  | H2508: =0 -> 0 | I2508: =$B$38-$C$38 ->  | J2508: =$E$38-$F$38 -> 
A2509: =$A$39 -> FY 2024 | B2509: =0 -> 0 | C2509: =0 -> 0 | D2509: =$E$39+0 ->  | E2509: =$D$39-$E$39 ->  | F2509: =$C$39-$D$39 ->  | H2509: =0 -> 0 | I2509: =$B$39-$C$39 ->  | J2509: =$E$39-$F$39 -> 
A2510: =$A$40 -> FY 2025 | B2510: =0 -> 0 | C2510: =0 -> 0 | D2510: =$E$40+0 ->  | E2510: =$D$40-$E$40 ->  | F2510: =$C$40-$D$40 ->  | H2510: =0 -> 0 | I2510: =$B$40-$C$40 ->  | J2510: =$E$40-$F$40 -> 
A2511: =$A$41 -> FY 2026 | B2511: =0 -> 0 | C2511: =0 -> 0 | D2511: =$E$41+0 ->  | E2511: =$D$41-$E$41 ->  | F2511: =$C$41-$D$41 ->  | H2511: =0 -> 0 | I2511: =$B$41-$C$41 ->  | J2511: =$E$41-$F$41 -> 
A2512: =$A$42 -> FY 2027 | B2512: =0 -> 0 | C2512: =0 -> 0 | D2512: =$E$42+0 ->  | E2512: =$D$42-$E$42 ->  | F2512: =$C$42-$D$42 ->  | H2512: =0 -> 0 | I2512: =$B$42-$C$42 ->  | J2512: =$E$42-$F$42 -> 
A2513: =$A$43 -> FY 2028 | B2513: =0 -> 0 | C2513: =0 -> 0 | D2513: =$E$43+0 ->  | E2513: =$D$43-$E$43 ->  | F2513: =$C$43-$D$43 ->  | H2513: =0 -> 0 | I2513: =$B$43-$C$43 ->  | J2513: =$E$43-$F$43 -> 
A2514: =$A$44 -> FY 2029 | B2514: =0 -> 0 | C2514: =0 -> 0 | D2514: =$E$44+0 ->  | E2514: =$D$44-$E$44 ->  | F2514: =$C$44-$D$44 ->  | H2514: =0 -> 0 | I2514: =$B$44-$C$44 ->  | J2514: =$E$44-$F$44 -> 
A2515: =$A$45 -> FY 2030 | B2515: =0 -> 0 | C2515: =0 -> 0 | D2515: =$E$45+0 ->  | E2515: =$D$45-$E$45 ->  | F2515: =$C$45-$D$45 ->  | H2515: =0 -> 0 | I2515: =$B$45-$C$45 ->  | J2515: =$E$45-$F$45 -> 
A2516: =$A$46 -> FY 2031 | B2516: =0 -> 0 | C2516: =0 -> 0 | D2516: =$E$46+0 ->  | E2516: =$D$46-$E$46 ->  | F2516: =$C$46-$D$46 ->  | H2516: =0 -> 0 | I2516: =$B$46-$C$46 ->  | J2516: =$E$46-$F$46 -> 
A2517: =$A$47 -> FY 2032 | B2517: =0 -> 0 | C2517: =0 -> 0 | D2517: =$E$47+0 ->  | E2517: =$D$47-$E$47 ->  | F2517: =$C$47-$D$47 ->  | H2517: =0 -> 0 | I2517: =$B$47-$C$47 ->  | J2517: =$E$47-$F$47 -> 
A2518: =$A$48 -> FY 2033 | B2518: =0 -> 0 | C2518: =0 -> 0 | D2518: =$E$48+0 ->  | E2518: =$D$48-$E$48 ->  | F2518: =$C$48-$D$48 ->  | H2518: =0 -> 0 | I2518: =$B$48-$C$48 ->  | J2518: =$E$48-$F$48 -> 
A2519: =$A$49 -> FY 2034 | B2519: =0 -> 0 | C2519: =0 -> 0 | D2519: =$E$49+0 ->  | E2519: =$D$49-$E$49 ->  | F2519: =$C$49-$D$49 ->  | H2519: =0 -> 0 | I2519: =$B$49-$C$49 ->  | J2519: =$E$49-$F$49 -> 
A2520: =$A$50 -> FY 2035 | B2520: =0 -> 0 | C2520: =0 -> 0 | D2520: =$E$50+0 ->  | E2520: =$D$50-$E$50 ->  | F2520: =$C$50-$D$50 ->  | H2520: =0 -> 0 | I2520: =$B$50-$C$50 ->  | J2520: =$E$50-$F$50 -> 
A2521: =$A$51 -> FY 2036 | B2521: =0 -> 0 | C2521: =0 -> 0 | D2521: =$E$51+0 ->  | E2521: =$D$51-$E$51 ->  | F2521: =$C$51-$D$51 ->  | H2521: =0 -> 0 | I2521: =$B$51-$C$51 ->  | J2521: =$E$51-$F$51 -> 
A2522: =$A$52 -> FY 2037 | B2522: =0 -> 0 | C2522: =0 -> 0 | D2522: =$E$52+0 ->  | E2522: =$D$52-$E$52 ->  | F2522: =$C$52-$D$52 ->  | H2522: =0 -> 0 | I2522: =$B$52-$C$52 ->  | J2522: =$E$52-$F$52 -> 
A2523: =A53 -> FY 2038 | B2523: =0 -> 0 | C2523: =0 -> 0 | D2523: =E53+0 ->  | E2523: =D53-E53 ->  | F2523: =C53-D53 ->  | H2523: =0 -> 0 | I2523: =B53-C53 ->  | J2523: =E53-F53 -> 
A2524: =A54 -> FY 2039 | B2524: =0 -> 0 | C2524: =0 -> 0 | D2524: =E54+0 ->  | E2524: =D54-E54 ->  | F2524: =C54-D54 ->  | H2524: =0 -> 0 | I2524: =B54-C54 ->  | J2524: =E54-F54 -> 
A2525: FY 2040 | B2525: =0 -> 0 | C2525: =0 -> 0 | H2525: =0 -> 0
A2526: FY 2041 | B2526: =0 -> 0 | C2526: =0 -> 0 | H2526: =0 -> 0
A2527: FY 2042 | B2527: =0 -> 0 | C2527: =0 -> 0 | H2527: =0 -> 0
A2528: FY 2043 | B2528: =0 -> 0 | C2528: =0 -> 0 | H2528: =0 -> 0

Sheet POMV+Total UGF
H1: Total UGF
H2: ='Fund Size'!H2 -> Preliminary Run
A32: =H2&"; "&H1 -> Preliminary Run; Total UGF
A33: Labels | B33: 0.95 | C33: 0.75 | D33: 0.5 | E33: 0.25 | F33: 0.05
A34: FY 2019 | B34: =_xll.RiskPercentile('Fund Model'!$AQ20,B$33,_xll.RiskStatic(NA())) ->  | C34: =_xll.RiskPercentile('Fund Model'!$AQ20,C$33,_xll.RiskStatic(NA())) ->  | D34: =_xll.RiskPercentile('Fund Model'!$AQ20,D$33,_xll.RiskStatic(NA())) ->  | E34: =_xll.RiskPercentile('Fund Model'!$AQ20,E$33,_xll.RiskStatic(NA())) ->  | F34: =_xll.RiskPercentile('Fund Model'!$AQ20,F$33,_xll.RiskStatic(NA())) -> 
A35: FY 2020 | B35: =_xll.RiskPercentile('Fund Model'!$AQ21,B$33,_xll.RiskStatic(NA())) ->  | C35: =_xll.RiskPercentile('Fund Model'!$AQ21,C$33,_xll.RiskStatic(NA())) ->  | D35: =_xll.RiskPercentile('Fund Model'!$AQ21,D$33,_xll.RiskStatic(NA())) ->  | E35: =_xll.RiskPercentile('Fund Model'!$AQ21,E$33,_xll.RiskStatic(NA())) ->  | F35: =_xll.RiskPercentile('Fund Model'!$AQ21,F$33,_xll.RiskStatic(NA())) -> 
A36: FY 2021 | B36: =_xll.RiskPercentile('Fund Model'!$AQ22,B$33,_xll.RiskStatic(NA())) ->  | C36: =_xll.RiskPercentile('Fund Model'!$AQ22,C$33,_xll.RiskStatic(NA())) ->  | D36: =_xll.RiskPercentile('Fund Model'!$AQ22,D$33,_xll.RiskStatic(NA())) ->  | E36: =_xll.RiskPercentile('Fund Model'!$AQ22,E$33,_xll.RiskStatic(NA())) ->  | F36: =_xll.RiskPercentile('Fund Model'!$AQ22,F$33,_xll.RiskStatic(NA())) -> 
A37: FY 2022 | B37: =_xll.RiskPercentile('Fund Model'!$AQ23,B$33,_xll.RiskStatic(NA())) ->  | C37: =_xll.RiskPercentile('Fund Model'!$AQ23,C$33,_xll.RiskStatic(NA())) ->  | D37: =_xll.RiskPercentile('Fund Model'!$AQ23,D$33,_xll.RiskStatic(NA())) ->  | E37: =_xll.RiskPercentile('Fund Model'!$AQ23,E$33,_xll.RiskStatic(NA())) ->  | F37: =_xll.RiskPercentile('Fund Model'!$AQ23,F$33,_xll.RiskStatic(NA())) -> 
A38: FY 2023 | B38: =_xll.RiskPercentile('Fund Model'!$AQ24,B$33,_xll.RiskStatic(NA())) ->  | C38: =_xll.RiskPercentile('Fund Model'!$AQ24,C$33,_xll.RiskStatic(NA())) ->  | D38: =_xll.RiskPercentile('Fund Model'!$AQ24,D$33,_xll.RiskStatic(NA())) ->  | E38: =_xll.RiskPercentile('Fund Model'!$AQ24,E$33,_xll.RiskStatic(NA())) ->  | F38: =_xll.RiskPercentile('Fund Model'!$AQ24,F$33,_xll.RiskStatic(NA())) -> 
A39: FY 2024 | B39: =_xll.RiskPercentile('Fund Model'!$AQ25,B$33,_xll.RiskStatic(NA())) ->  | C39: =_xll.RiskPercentile('Fund Model'!$AQ25,C$33,_xll.RiskStatic(NA())) ->  | D39: =_xll.RiskPercentile('Fund Model'!$AQ25,D$33,_xll.RiskStatic(NA())) ->  | E39: =_xll.RiskPercentile('Fund Model'!$AQ25,E$33,_xll.RiskStatic(NA())) ->  | F39: =_xll.RiskPercentile('Fund Model'!$AQ25,F$33,_xll.RiskStatic(NA())) -> 
A40: FY 2025 | B40: =_xll.RiskPercentile('Fund Model'!$AQ26,B$33,_xll.RiskStatic(NA())) ->  | C40: =_xll.RiskPercentile('Fund Model'!$AQ26,C$33,_xll.RiskStatic(NA())) ->  | D40: =_xll.RiskPercentile('Fund Model'!$AQ26,D$33,_xll.RiskStatic(NA())) ->  | E40: =_xll.RiskPercentile('Fund Model'!$AQ26,E$33,_xll.RiskStatic(NA())) ->  | F40: =_xll.RiskPercentile('Fund Model'!$AQ26,F$33,_xll.RiskStatic(NA())) -> 
A41: FY 2026 | B41: =_xll.RiskPercentile('Fund Model'!$AQ27,B$33,_xll.RiskStatic(NA())) ->  | C41: =_xll.RiskPercentile('Fund Model'!$AQ27,C$33,_xll.RiskStatic(NA())) ->  | D41: =_xll.RiskPercentile('Fund Model'!$AQ27,D$33,_xll.RiskStatic(NA())) ->  | E41: =_xll.RiskPercentile('Fund Model'!$AQ27,E$33,_xll.RiskStatic(NA())) ->  | F41: =_xll.RiskPercentile('Fund Model'!$AQ27,F$33,_xll.RiskStatic(NA())) -> 
A42: FY 2027 | B42: =_xll.RiskPercentile('Fund Model'!$AQ28,B$33,_xll.RiskStatic(NA())) ->  | C42: =_xll.RiskPercentile('Fund Model'!$AQ28,C$33,_xll.RiskStatic(NA())) ->  | D42: =_xll.RiskPercentile('Fund Model'!$AQ28,D$33,_xll.RiskStatic(NA())) ->  | E42: =_xll.RiskPercentile('Fund Model'!$AQ28,E$33,_xll.RiskStatic(NA())) ->  | F42: =_xll.RiskPercentile('Fund Model'!$AQ28,F$33,_xll.RiskStatic(NA())) -> 
A43: FY 2028 | B43: =_xll.RiskPercentile('Fund Model'!$AQ29,B$33,_xll.RiskStatic(NA())) ->  | C43: =_xll.RiskPercentile('Fund Model'!$AQ29,C$33,_xll.RiskStatic(NA())) ->  | D43: =_xll.RiskPercentile('Fund Model'!$AQ29,D$33,_xll.RiskStatic(NA())) ->  | E43: =_xll.RiskPercentile('Fund Model'!$AQ29,E$33,_xll.RiskStatic(NA())) ->  | F43: =_xll.RiskPercentile('Fund Model'!$AQ29,F$33,_xll.RiskStatic(NA())) -> 
A44: FY 2029 | B44: =_xll.RiskPercentile('Fund Model'!$AQ30,B$33,_xll.RiskStatic(NA())) ->  | C44: =_xll.RiskPercentile('Fund Model'!$AQ30,C$33,_xll.RiskStatic(NA())) ->  | D44: =_xll.RiskPercentile('Fund Model'!$AQ30,D$33,_xll.RiskStatic(NA())) ->  | E44: =_xll.RiskPercentile('Fund Model'!$AQ30,E$33,_xll.RiskStatic(NA())) ->  | F44: =_xll.RiskPercentile('Fund Model'!$AQ30,F$33,_xll.RiskStatic(NA())) -> 
A45: FY 2030 | B45: =_xll.RiskPercentile('Fund Model'!$AQ31,B$33,_xll.RiskStatic(NA())) ->  | C45: =_xll.RiskPercentile('Fund Model'!$AQ31,C$33,_xll.RiskStatic(NA())) ->  | D45: =_xll.RiskPercentile('Fund Model'!$AQ31,D$33,_xll.RiskStatic(NA())) ->  | E45: =_xll.RiskPercentile('Fund Model'!$AQ31,E$33,_xll.RiskStatic(NA())) ->  | F45: =_xll.RiskPercentile('Fund Model'!$AQ31,F$33,_xll.RiskStatic(NA())) -> 
A46: FY 2031 | B46: =_xll.RiskPercentile('Fund Model'!$AQ32,B$33,_xll.RiskStatic(NA())) ->  | C46: =_xll.RiskPercentile('Fund Model'!$AQ32,C$33,_xll.RiskStatic(NA())) ->  | D46: =_xll.RiskPercentile('Fund Model'!$AQ32,D$33,_xll.RiskStatic(NA())) ->  | E46: =_xll.RiskPercentile('Fund Model'!$AQ32,E$33,_xll.RiskStatic(NA())) ->  | F46: =_xll.RiskPercentile('Fund Model'!$AQ32,F$33,_xll.RiskStatic(NA())) -> 
A47: FY 2032 | B47: =_xll.RiskPercentile('Fund Model'!$AQ33,B$33,_xll.RiskStatic(NA())) ->  | C47: =_xll.RiskPercentile('Fund Model'!$AQ33,C$33,_xll.RiskStatic(NA())) ->  | D47: =_xll.RiskPercentile('Fund Model'!$AQ33,D$33,_xll.RiskStatic(NA())) ->  | E47: =_xll.RiskPercentile('Fund Model'!$AQ33,E$33,_xll.RiskStatic(NA())) ->  | F47: =_xll.RiskPercentile('Fund Model'!$AQ33,F$33,_xll.RiskStatic(NA())) -> 
A48: FY 2033 | B48: =_xll.RiskPercentile('Fund Model'!$AQ34,B$33,_xll.RiskStatic(NA())) ->  | C48: =_xll.RiskPercentile('Fund Model'!$AQ34,C$33,_xll.RiskStatic(NA())) ->  | D48: =_xll.RiskPercentile('Fund Model'!$AQ34,D$33,_xll.RiskStatic(NA())) ->  | E48: =_xll.RiskPercentile('Fund Model'!$AQ34,E$33,_xll.RiskStatic(NA())) ->  | F48: =_xll.RiskPercentile('Fund Model'!$AQ34,F$33,_xll.RiskStatic(NA())) -> 
A49: FY 2034 | B49: =_xll.RiskPercentile('Fund Model'!$AQ35,B$33,_xll.RiskStatic(NA())) ->  | C49: =_xll.RiskPercentile('Fund Model'!$AQ35,C$33,_xll.RiskStatic(NA())) ->  | D49: =_xll.RiskPercentile('Fund Model'!$AQ35,D$33,_xll.RiskStatic(NA())) ->  | E49: =_xll.RiskPercentile('Fund Model'!$AQ35,E$33,_xll.RiskStatic(NA())) ->  | F49: =_xll.RiskPercentile('Fund Model'!$AQ35,F$33,_xll.RiskStatic(NA())) -> 
A50: FY 2035 | B50: =_xll.RiskPercentile('Fund Model'!$AQ36,B$33,_xll.RiskStatic(NA())) ->  | C50: =_xll.RiskPercentile('Fund Model'!$AQ36,C$33,_xll.RiskStatic(NA())) ->  | D50: =_xll.RiskPercentile('Fund Model'!$AQ36,D$33,_xll.RiskStatic(NA())) ->  | E50: =_xll.RiskPercentile('Fund Model'!$AQ36,E$33,_xll.RiskStatic(NA())) ->  | F50: =_xll.RiskPercentile('Fund Model'!$AQ36,F$33,_xll.RiskStatic(NA())) -> 
A51: FY 2036 | B51: =_xll.RiskPercentile('Fund Model'!$AQ37,B$33,_xll.RiskStatic(NA())) ->  | C51: =_xll.RiskPercentile('Fund Model'!$AQ37,C$33,_xll.RiskStatic(NA())) ->  | D51: =_xll.RiskPercentile('Fund Model'!$AQ37,D$33,_xll.RiskStatic(NA())) ->  | E51: =_xll.RiskPercentile('Fund Model'!$AQ37,E$33,_xll.RiskStatic(NA())) ->  | F51: =_xll.RiskPercentile('Fund Model'!$AQ37,F$33,_xll.RiskStatic(NA())) -> 
A52: FY 2037 | B52: =_xll.RiskPercentile('Fund Model'!$AQ38,B$33,_xll.RiskStatic(NA())) ->  | C52: =_xll.RiskPercentile('Fund Model'!$AQ38,C$33,_xll.RiskStatic(NA())) ->  | D52: =_xll.RiskPercentile('Fund Model'!$AQ38,D$33,_xll.RiskStatic(NA())) ->  | E52: =_xll.RiskPercentile('Fund Model'!$AQ38,E$33,_xll.RiskStatic(NA())) ->  | F52: =_xll.RiskPercentile('Fund Model'!$AQ38,F$33,_xll.RiskStatic(NA())) -> 
A53: FY 2038 | B53: =_xll.RiskPercentile('Fund Model'!$AQ39,B$33,_xll.RiskStatic(NA())) ->  | C53: =_xll.RiskPercentile('Fund Model'!$AQ39,C$33,_xll.RiskStatic(NA())) ->  | D53: =_xll.RiskPercentile('Fund Model'!$AQ39,D$33,_xll.RiskStatic(NA())) ->  | E53: =_xll.RiskPercentile('Fund Model'!$AQ39,E$33,_xll.RiskStatic(NA())) ->  | F53: =_xll.RiskPercentile('Fund Model'!$AQ39,F$33,_xll.RiskStatic(NA())) -> 
A54: FY 2039 | B54: =_xll.RiskPercentile('Fund Model'!$AQ40,B$33,_xll.RiskStatic(NA())) ->  | C54: =_xll.RiskPercentile('Fund Model'!$AQ40,C$33,_xll.RiskStatic(NA())) ->  | D54: =_xll.RiskPercentile('Fund Model'!$AQ40,D$33,_xll.RiskStatic(NA())) ->  | E54: =_xll.RiskPercentile('Fund Model'!$AQ40,E$33,_xll.RiskStatic(NA())) ->  | F54: =_xll.RiskPercentile('Fund Model'!$AQ40,F$33,_xll.RiskStatic(NA())) -> 
A55: FY 2040 | B55: =_xll.RiskPercentile('Fund Model'!$AQ41,B$33,_xll.RiskStatic(NA())) ->  | C55: =_xll.RiskPercentile('Fund Model'!$AQ41,C$33,_xll.RiskStatic(NA())) ->  | D55: =_xll.RiskPercentile('Fund Model'!$AQ41,D$33,_xll.RiskStatic(NA())) ->  | E55: =_xll.RiskPercentile('Fund Model'!$AQ41,E$33,_xll.RiskStatic(NA())) ->  | F55: =_xll.RiskPercentile('Fund Model'!$AQ41,F$33,_xll.RiskStatic(NA())) -> 
A56: FY 2041 | B56: =_xll.RiskPercentile('Fund Model'!$AQ42,B$33,_xll.RiskStatic(NA())) ->  | C56: =_xll.RiskPercentile('Fund Model'!$AQ42,C$33,_xll.RiskStatic(NA())) ->  | D56: =_xll.RiskPercentile('Fund Model'!$AQ42,D$33,_xll.RiskStatic(NA())) ->  | E56: =_xll.RiskPercentile('Fund Model'!$AQ42,E$33,_xll.RiskStatic(NA())) ->  | F56: =_xll.RiskPercentile('Fund Model'!$AQ42,F$33,_xll.RiskStatic(NA())) -> 
A57: FY 2042 | B57: =_xll.RiskPercentile('Fund Model'!$AQ43,B$33,_xll.RiskStatic(NA())) ->  | C57: =_xll.RiskPercentile('Fund Model'!$AQ43,C$33,_xll.RiskStatic(NA())) ->  | D57: =_xll.RiskPercentile('Fund Model'!$AQ43,D$33,_xll.RiskStatic(NA())) ->  | E57: =_xll.RiskPercentile('Fund Model'!$AQ43,E$33,_xll.RiskStatic(NA())) ->  | F57: =_xll.RiskPercentile('Fund Model'!$AQ43,F$33,_xll.RiskStatic(NA())) -> 
A58: FY 2043 | B58: =_xll.RiskPercentile('Fund Model'!$AQ44,B$33,_xll.RiskStatic(NA())) ->  | C58: =_xll.RiskPercentile('Fund Model'!$AQ44,C$33,_xll.RiskStatic(NA())) ->  | D58: =_xll.RiskPercentile('Fund Model'!$AQ44,D$33,_xll.RiskStatic(NA())) ->  | E58: =_xll.RiskPercentile('Fund Model'!$AQ44,E$33,_xll.RiskStatic(NA())) ->  | F58: =_xll.RiskPercentile('Fund Model'!$AQ44,F$33,_xll.RiskStatic(NA())) -> 
C60: FY 2043 Total in FY 2019 Dollars: | D60: =_xll.RiskOutput(,,1)+D58/((1+'Fund Model'!$R$9)^('Fund Model'!$B44-'Fund Model'!$B$20+0.5)) -> 
A62: Median SD total UGF | D62: ='Fund Model'!AQ50 -> 
A63: Median coefficient of variation total UGF | D63: ='Fund Model'!AQ51 -> 
B2502: B Mean | C2502: B Mean Size | D2502: B Box | E2502: Center | F2502: T Box | G2502: T Mean | H2502: T Mean Size | I2502: T Whisker | J2502: B Whisker
A2504: =$A$34 -> FY 2019 | B2504: =0 -> 0 | C2504: =0 -> 0 | D2504: =$E$34+0 ->  | E2504: =$D$34-$E$34 ->  | F2504: =$C$34-$D$34 ->  | H2504: =0 -> 0 | I2504: =$B$34-$C$34 ->  | J2504: =$E$34-$F$34 -> 
A2505: =$A$35 -> FY 2020 | B2505: =0 -> 0 | C2505: =0 -> 0 | D2505: =$E$35+0 ->  | E2505: =$D$35-$E$35 ->  | F2505: =$C$35-$D$35 ->  | H2505: =0 -> 0 | I2505: =$B$35-$C$35 ->  | J2505: =$E$35-$F$35 -> 
A2506: =$A$36 -> FY 2021 | B2506: =0 -> 0 | C2506: =0 -> 0 | D2506: =$E$36+0 ->  | E2506: =$D$36-$E$36 ->  | F2506: =$C$36-$D$36 ->  | H2506: =0 -> 0 | I2506: =$B$36-$C$36 ->  | J2506: =$E$36-$F$36 -> 
A2507: =$A$37 -> FY 2022 | B2507: =0 -> 0 | C2507: =0 -> 0 | D2507: =$E$37+0 ->  | E2507: =$D$37-$E$37 ->  | F2507: =$C$37-$D$37 ->  | H2507: =0 -> 0 | I2507: =$B$37-$C$37 ->  | J2507: =$E$37-$F$37 -> 
A2508: =$A$38 -> FY 2023 | B2508: =0 -> 0 | C2508: =0 -> 0 | D2508: =$E$38+0 ->  | E2508: =$D$38-$E$38 ->  | F2508: =$C$38-$D$38 ->  | H2508: =0 -> 0 | I2508: =$B$38-$C$38 ->  | J2508: =$E$38-$F$38 -> 
A2509: =$A$39 -> FY 2024 | B2509: =0 -> 0 | C2509: =0 -> 0 | D2509: =$E$39+0 ->  | E2509: =$D$39-$E$39 ->  | F2509: =$C$39-$D$39 ->  | H2509: =0 -> 0 | I2509: =$B$39-$C$39 ->  | J2509: =$E$39-$F$39 -> 
A2510: =$A$40 -> FY 2025 | B2510: =0 -> 0 | C2510: =0 -> 0 | D2510: =$E$40+0 ->  | E2510: =$D$40-$E$40 ->  | F2510: =$C$40-$D$40 ->  | H2510: =0 -> 0 | I2510: =$B$40-$C$40 ->  | J2510: =$E$40-$F$40 -> 
A2511: =$A$41 -> FY 2026 | B2511: =0 -> 0 | C2511: =0 -> 0 | D2511: =$E$41+0 ->  | E2511: =$D$41-$E$41 ->  | F2511: =$C$41-$D$41 ->  | H2511: =0 -> 0 | I2511: =$B$41-$C$41 ->  | J2511: =$E$41-$F$41 -> 
A2512: =$A$42 -> FY 2027 | B2512: =0 -> 0 | C2512: =0 -> 0 | D2512: =$E$42+0 ->  | E2512: =$D$42-$E$42 ->  | F2512: =$C$42-$D$42 ->  | H2512: =0 -> 0 | I2512: =$B$42-$C$42 ->  | J2512: =$E$42-$F$42 -> 
A2513: =$A$43 -> FY 2028 | B2513: =0 -> 0 | C2513: =0 -> 0 | D2513: =$E$43+0 ->  | E2513: =$D$43-$E$43 ->  | F2513: =$C$43-$D$43 ->  | H2513: =0 -> 0 | I2513: =$B$43-$C$43 ->  | J2513: =$E$43-$F$43 -> 
A2514: =$A$44 -> FY 2029 | B2514: =0 -> 0 | C2514: =0 -> 0 | D2514: =$E$44+0 ->  | E2514: =$D$44-$E$44 ->  | F2514: =$C$44-$D$44 ->  | H2514: =0 -> 0 | I2514: =$B$44-$C$44 ->  | J2514: =$E$44-$F$44 -> 
A2515: =$A$45 -> FY 2030 | B2515: =0 -> 0 | C2515: =0 -> 0 | D2515: =$E$45+0 ->  | E2515: =$D$45-$E$45 ->  | F2515: =$C$45-$D$45 ->  | H2515: =0 -> 0 | I2515: =$B$45-$C$45 ->  | J2515: =$E$45-$F$45 -> 
A2516: =$A$46 -> FY 2031 | B2516: =0 -> 0 | C2516: =0 -> 0 | D2516: =$E$46+0 ->  | E2516: =$D$46-$E$46 ->  | F2516: =$C$46-$D$46 ->  | H2516: =0 -> 0 | I2516: =$B$46-$C$46 ->  | J2516: =$E$46-$F$46 -> 
A2517: =$A$47 -> FY 2032 | B2517: =0 -> 0 | C2517: =0 -> 0 | D2517: =$E$47+0 ->  | E2517: =$D$47-$E$47 ->  | F2517: =$C$47-$D$47 ->  | H2517: =0 -> 0 | I2517: =$B$47-$C$47 ->  | J2517: =$E$47-$F$47 -> 
A2518: =$A$48 -> FY 2033 | B2518: =0 -> 0 | C2518: =0 -> 0 | D2518: =$E$48+0 ->  | E2518: =$D$48-$E$48 ->  | F2518: =$C$48-$D$48 ->  | H2518: =0 -> 0 | I2518: =$B$48-$C$48 ->  | J2518: =$E$48-$F$48 -> 
A2519: =$A$49 -> FY 2034 | B2519: =0 -> 0 | C2519: =0 -> 0 | D2519: =$E$49+0 ->  | E2519: =$D$49-$E$49 ->  | F2519: =$C$49-$D$49 ->  | H2519: =0 -> 0 | I2519: =$B$49-$C$49 ->  | J2519: =$E$49-$F$49 -> 
A2520: =$A$50 -> FY 2035 | B2520: =0 -> 0 | C2520: =0 -> 0 | D2520: =$E$50+0 ->  | E2520: =$D$50-$E$50 ->  | F2520: =$C$50-$D$50 ->  | H2520: =0 -> 0 | I2520: =$B$50-$C$50 ->  | J2520: =$E$50-$F$50 -> 
A2521: =$A$51 -> FY 2036 | B2521: =0 -> 0 | C2521: =0 -> 0 | D2521: =$E$51+0 ->  | E2521: =$D$51-$E$51 ->  | F2521: =$C$51-$D$51 ->  | H2521: =0 -> 0 | I2521: =$B$51-$C$51 ->  | J2521: =$E$51-$F$51 -> 
A2522: =$A$52 -> FY 2037 | B2522: =0 -> 0 | C2522: =0 -> 0 | D2522: =$E$52+0 ->  | E2522: =$D$52-$E$52 ->  | F2522: =$C$52-$D$52 ->  | H2522: =0 -> 0 | I2522: =$B$52-$C$52 ->  | J2522: =$E$52-$F$52 -> 
A2523: =$A$53 -> FY 2038 | B2523: =0 -> 0 | C2523: =0 -> 0 | D2523: =$E$53+0 ->  | E2523: =$D$53-$E$53 ->  | F2523: =$C$53-$D$53 ->  | H2523: =0 -> 0 | I2523: =$B$53-$C$53 ->  | J2523: =$E$53-$F$53 -> 
A2524: =$A$54 -> FY 2039 | B2524: =0 -> 0 | C2524: =0 -> 0 | D2524: =$E$54+0 ->  | E2524: =$D$54-$E$54 ->  | F2524: =$C$54-$D$54 ->  | H2524: =0 -> 0 | I2524: =$B$54-$C$54 ->  | J2524: =$E$54-$F$54 -> 
A2525: =A55 -> FY 2040 | B2525: =0 -> 0 | C2525: =0 -> 0 | D2525: =E55+0 ->  | E2525: =D55-E55 ->  | F2525: =C55-D55 ->  | H2525: =0 -> 0 | I2525: =B55-C55 ->  | J2525: =E55-F55 -> 
A2526: =A56 -> FY 2041 | B2526: =0 -> 0 | C2526: =0 -> 0 | D2526: =E56+0 ->  | E2526: =D56-E56 ->  | F2526: =C56-D56 ->  | H2526: =0 -> 0 | I2526: =B56-C56 ->  | J2526: =E56-F56 -> 
A2527: FY 2042 | B2527: =0 -> 0 | C2527: =0 -> 0 | H2527: =0 -> 0
A2528: FY 2043 | B2528: =0 -> 0 | C2528: =0 -> 0 | H2528: =0 -> 0

Sheet ER Fail Rate
H1: ER Fail Rate
H2: ='Fund Size'!H2 -> Preliminary Run
A32: =H2&"; "&H1 -> Preliminary Run; ER Fail Rate
A33: FY | B33: Cumulative Fail Rate | C33: Median ER Balance | D33: Median Principal Balance | E33: Median Unrealized Gain Balance | G33: Median Total POMV before Reductions (Div + GF)
A34: FY 2019 | B34: ='Fund Model'!D86 ->  | C34: =_xll.RiskPercentile('Fund Model'!D57,0.5) ->  | D34: =_xll.RiskPercentile('Fund Model'!C57,0.5) ->  | E34: =_xll.RiskPercentile('Fund Model'!E57,0.5) ->  | G34: =_xll.RiskPercentile('Fund Model'!S20,0.5) -> 
A35: FY 2020 | B35: ='Fund Model'!D87 ->  | C35: =_xll.RiskPercentile('Fund Model'!D58,0.5) ->  | D35: =_xll.RiskPercentile('Fund Model'!C58,0.5) ->  | E35: =_xll.RiskPercentile('Fund Model'!E58,0.5) ->  | G35: =_xll.RiskPercentile('Fund Model'!S21,0.5) -> 
A36: FY 2021 | B36: ='Fund Model'!D88 ->  | C36: =_xll.RiskPercentile('Fund Model'!D59,0.5) ->  | D36: =_xll.RiskPercentile('Fund Model'!C59,0.5) ->  | E36: =_xll.RiskPercentile('Fund Model'!E59,0.5) ->  | G36: =_xll.RiskPercentile('Fund Model'!S22,0.5) -> 
A37: FY 2022 | B37: ='Fund Model'!D89 ->  | C37: =_xll.RiskPercentile('Fund Model'!D60,0.5) ->  | D37: =_xll.RiskPercentile('Fund Model'!C60,0.5) ->  | E37: =_xll.RiskPercentile('Fund Model'!E60,0.5) ->  | G37: =_xll.RiskPercentile('Fund Model'!S23,0.5) -> 
A38: FY 2023 | B38: ='Fund Model'!D90 ->  | C38: =_xll.RiskPercentile('Fund Model'!D61,0.5) ->  | D38: =_xll.RiskPercentile('Fund Model'!C61,0.5) ->  | E38: =_xll.RiskPercentile('Fund Model'!E61,0.5) ->  | G38: =_xll.RiskPercentile('Fund Model'!S24,0.5) -> 
A39: FY 2024 | B39: ='Fund Model'!D91 ->  | C39: =_xll.RiskPercentile('Fund Model'!D62,0.5) ->  | D39: =_xll.RiskPercentile('Fund Model'!C62,0.5) ->  | E39: =_xll.RiskPercentile('Fund Model'!E62,0.5) ->  | G39: =_xll.RiskPercentile('Fund Model'!S25,0.5) -> 
A40: FY 2025 | B40: ='Fund Model'!D92 ->  | C40: =_xll.RiskPercentile('Fund Model'!D63,0.5) ->  | D40: =_xll.RiskPercentile('Fund Model'!C63,0.5) ->  | E40: =_xll.RiskPercentile('Fund Model'!E63,0.5) ->  | G40: =_xll.RiskPercentile('Fund Model'!S26,0.5) -> 
A41: FY 2026 | B41: ='Fund Model'!D93 ->  | C41: =_xll.RiskPercentile('Fund Model'!D64,0.5) ->  | D41: =_xll.RiskPercentile('Fund Model'!C64,0.5) ->  | E41: =_xll.RiskPercentile('Fund Model'!E64,0.5) ->  | G41: =_xll.RiskPercentile('Fund Model'!S27,0.5) -> 
A42: FY 2027 | B42: ='Fund Model'!D94 ->  | C42: =_xll.RiskPercentile('Fund Model'!D65,0.5) ->  | D42: =_xll.RiskPercentile('Fund Model'!C65,0.5) ->  | E42: =_xll.RiskPercentile('Fund Model'!E65,0.5) ->  | G42: =_xll.RiskPercentile('Fund Model'!S28,0.5) -> 
A43: FY 2028 | B43: ='Fund Model'!D95 ->  | C43: =_xll.RiskPercentile('Fund Model'!D66,0.5) ->  | D43: =_xll.RiskPercentile('Fund Model'!C66,0.5) ->  | E43: =_xll.RiskPercentile('Fund Model'!E66,0.5) ->  | G43: =_xll.RiskPercentile('Fund Model'!S29,0.5) -> 
A44: FY 2029 | B44: ='Fund Model'!D96 ->  | C44: =_xll.RiskPercentile('Fund Model'!D67,0.5) ->  | D44: =_xll.RiskPercentile('Fund Model'!C67,0.5) ->  | E44: =_xll.RiskPercentile('Fund Model'!E67,0.5) ->  | G44: =_xll.RiskPercentile('Fund Model'!S30,0.5) -> 
A45: FY 2030 | B45: ='Fund Model'!D97 ->  | C45: =_xll.RiskPercentile('Fund Model'!D68,0.5) ->  | D45: =_xll.RiskPercentile('Fund Model'!C68,0.5) ->  | E45: =_xll.RiskPercentile('Fund Model'!E68,0.5) ->  | G45: =_xll.RiskPercentile('Fund Model'!S31,0.5) -> 
A46: FY 2031 | B46: ='Fund Model'!D98 ->  | C46: =_xll.RiskPercentile('Fund Model'!D69,0.5) ->  | D46: =_xll.RiskPercentile('Fund Model'!C69,0.5) ->  | E46: =_xll.RiskPercentile('Fund Model'!E69,0.5) ->  | G46: =_xll.RiskPercentile('Fund Model'!S32,0.5) -> 
A47: FY 2032 | B47: ='Fund Model'!D99 ->  | C47: =_xll.RiskPercentile('Fund Model'!D70,0.5) ->  | D47: =_xll.RiskPercentile('Fund Model'!C70,0.5) ->  | E47: =_xll.RiskPercentile('Fund Model'!E70,0.5) ->  | G47: =_xll.RiskPercentile('Fund Model'!S33,0.5) -> 
A48: FY 2033 | B48: ='Fund Model'!D100 ->  | C48: =_xll.RiskPercentile('Fund Model'!D71,0.5) ->  | D48: =_xll.RiskPercentile('Fund Model'!C71,0.5) ->  | E48: =_xll.RiskPercentile('Fund Model'!E71,0.5) ->  | G48: =_xll.RiskPercentile('Fund Model'!S34,0.5) -> 
A49: FY 2034 | B49: ='Fund Model'!D101 ->  | C49: =_xll.RiskPercentile('Fund Model'!D72,0.5) ->  | D49: =_xll.RiskPercentile('Fund Model'!C72,0.5) ->  | E49: =_xll.RiskPercentile('Fund Model'!E72,0.5) ->  | G49: =_xll.RiskPercentile('Fund Model'!S35,0.5) -> 
A50: FY 2035 | B50: ='Fund Model'!D102 ->  | C50: =_xll.RiskPercentile('Fund Model'!D73,0.5) ->  | D50: =_xll.RiskPercentile('Fund Model'!C73,0.5) ->  | E50: =_xll.RiskPercentile('Fund Model'!E73,0.5) ->  | G50: =_xll.RiskPercentile('Fund Model'!S36,0.5) -> 
A51: FY 2036 | B51: ='Fund Model'!D103 ->  | C51: =_xll.RiskPercentile('Fund Model'!D74,0.5) ->  | D51: =_xll.RiskPercentile('Fund Model'!C74,0.5) ->  | E51: =_xll.RiskPercentile('Fund Model'!E74,0.5) ->  | G51: =_xll.RiskPercentile('Fund Model'!S37,0.5) -> 
A52: FY 2037 | B52: ='Fund Model'!D104 ->  | C52: =_xll.RiskPercentile('Fund Model'!D75,0.5) ->  | D52: =_xll.RiskPercentile('Fund Model'!C75,0.5) ->  | E52: =_xll.RiskPercentile('Fund Model'!E75,0.5) ->  | G52: =_xll.RiskPercentile('Fund Model'!S38,0.5) -> 
A53: FY 2038 | B53: ='Fund Model'!D105 ->  | C53: =_xll.RiskPercentile('Fund Model'!D76,0.5) ->  | D53: =_xll.RiskPercentile('Fund Model'!C76,0.5) ->  | E53: =_xll.RiskPercentile('Fund Model'!E76,0.5) ->  | G53: =_xll.RiskPercentile('Fund Model'!S39,0.5) -> 
A54: FY 2039 | B54: ='Fund Model'!D106 ->  | C54: =_xll.RiskPercentile('Fund Model'!D77,0.5) ->  | D54: =_xll.RiskPercentile('Fund Model'!C77,0.5) ->  | E54: =_xll.RiskPercentile('Fund Model'!E77,0.5) ->  | G54: =_xll.RiskPercentile('Fund Model'!S40,0.5) -> 
A55: FY 2040 | B55: ='Fund Model'!D107 ->  | C55: =_xll.RiskPercentile('Fund Model'!D78,0.5) ->  | D55: =_xll.RiskPercentile('Fund Model'!C78,0.5) ->  | E55: =_xll.RiskPercentile('Fund Model'!E78,0.5) ->  | G55: =_xll.RiskPercentile('Fund Model'!S41,0.5) -> 
A56: FY 2041 | B56: ='Fund Model'!D108 ->  | C56: =_xll.RiskPercentile('Fund Model'!D79,0.5) ->  | D56: =_xll.RiskPercentile('Fund Model'!C79,0.5) ->  | E56: =_xll.RiskPercentile('Fund Model'!E79,0.5) ->  | G56: =_xll.RiskPercentile('Fund Model'!S42,0.5) -> 
A57: FY 2042 | B57: ='Fund Model'!D109 ->  | C57: =_xll.RiskPercentile('Fund Model'!D80,0.5) ->  | D57: =_xll.RiskPercentile('Fund Model'!C80,0.5) ->  | E57: =_xll.RiskPercentile('Fund Model'!E80,0.5) ->  | G57: =_xll.RiskPercentile('Fund Model'!S43,0.5) -> 
A58: FY 2043 | B58: ='Fund Model'!D110 ->  | C58: =_xll.RiskPercentile('Fund Model'!D81,0.5) ->  | D58: =_xll.RiskPercentile('Fund Model'!C81,0.5) ->  | E58: =_xll.RiskPercentile('Fund Model'!E81,0.5) ->  | G58: =_xll.RiskPercentile('Fund Model'!S44,0.5) -> 

Sheet Back-up>>
A1: Intentionally left blank

Sheet Key Definitions
B1: Item Title | C1: Definition | D1: Explanation of Calculation
B2: Fiscal Year | C2: The current Fiscal Year. | D2: Prior Value Incremented by 1.
B3: Year No. | C3: The number of years from the beginning of the model. | D3: Prior Value Incremented by 1.
B4: Total Return | C4: Investment return for the year. | D4: In probabilistic model calculated based on Long Run Geometric Mean and Standard Deviation inputs. In deterministic model fixed at Long Run Geometric Mean input.
B5: Petroleum Deposits | C5: Deposits into the fund from petroleum deposits | D5: 25% of Royalties estimated for the FY from Petroleum Model.
B6: Asset Base BOY | C6: Assets invested by the Permanent Fund on July 1 of the current Fiscal Year. | D6: Initial value from input; subsequent value is prior year's calculated Asset Base End of Year value.
B7: Asset Base BOY Real | C7: Asset Base BOY in Real July 1, 2019 dollars assuming the given inflation rate. | D7: Calculated with the Formula: Asset Base BOY * (1 + Inflation Rate) ^ (Fiscal Year - 2019)
B8: Investment Revenue | C8: Investment revenue generated for the year. | D8: Calculated with the Formula: Total Return * (Asset Base Beginning of Year + .5 *(Total Petroleum Deposits - Withdrawals)).
B9: Expenses | C9: Expenses incurred by the Permanent Fund. | D9: Initial value from input; subsequent years are increased/decreased proportional to the change of Asset Base BOY.
B10: AM HESS Transfer | C10: Transfer of statutory revenues associated with the Amerada Hess et al. settlement. | D10: Calculated by taking the $424.4 Million Amerada Hess asset base times the Statutory Return Rate. This asset base does not grow by statute.
B11: General Fund Transfer | C11: Transfer to the General Fund of the yearly payout. | D11: Based on the percentage of market value (POMV) input, of the average of the Permanent Fund balance, less any excluded amount, for the trailing 5 of the last 6 fiscal years. After removing the percentage input for the PFD and any POMV Reductions, the General Fund Transfer remains.
B12: Change in Asset Base | C12: Change in the asset base over the year. | D12: The sum of Petroleum Deposits and Investment Revenue subtracted by the sum of Expenses, AM Hess Transfer, Total Funds For Dividend, Uncovered Withdrawals, and General Fund Transfer.
B13: Uncovered Withdrawal | C13: In "Budget Enabled" mode, the amount necessary to fill any remaining fiscal gap after the structured POMV transfer. | D13: Unrestricted General Fund budget minus Unrestricted General Fund revenue
B14: Asset Base EOY | C14: Assets invested by the Permanent Fund on June 30 of the current Fiscal Year. | D14: Asset Base BOY plus Change in Asset Base.
B15: Asset Base EOY Real | C15: Asset Base EOY in Real July 1, 2018 dollars assuming the given inflation rate. | D15: Calculated with the Formula: Asset Base EOY * (1 + Inflation Rate) ^ (Fiscal Year - 2018).
B16: Principal | C16: The constitutionally protected corpus of the Permanent Fund. | D16: Deposits dedicated to the principal added to Prior Year Principal or Initial Value Principal input.
B17: Earnings Reserve | C17: The accumulated realized earning of the Principal not yet distributed. | D17: Calculated with the formula: Asset Base End of Year less Principal less Unrealized Gains.
B18: Unrealized Gains | C18: The unrealized gains or losses associated with both the Principal and the Earnings Reserve. | D18: Prior Year Unrealized Gains or Initial Value Unrealized Gains plus Investment Revenue less Statutory Earnings.
B19: Principal Deposits | C19: Deposits dedicated to the Principal by constitution and by the chosen inflation-proofing method. | D19: Calculated by taking 25% of Total Royalties from Petroleum Model.
B20: Statutory Earnings | C20: The realized earnings of the fund for the Fiscal Year | D20: Calculated with the Formula: Statutory Return Rate * (Asset Base Beginning of Year + .5 *(Total Petroleum Deposits - Withdrawals)).
B21: Statutory Return | C21: The realized return of the fund for the year. | D21: In probabilistic model calculated based on Long Run Geometric Mean and Standard Deviation inputs. In deterministic model fixed at Long Run Geometric Mean input.
B22: Total Funds for Dividend | C22: Total funds for distribution to of the dividend; "felon funds" not removed. | D22: Calculated by taking the user-supplied percentage of the unreduced POMV payout, plus a percentage of royalties, if applicable.
B23: POMV Reductions | C23: Reduction in POMV draw due to high oil revenues | D23: If enabled, once oil revenues increase past a user-supplied threshold, the POMV is reduced by a user-supplied percentage of the excess, down to a minimum of 0. This does not affect the funds available for a Dividend.
B24: Program Costs | C24: Costs associated with dividend distribution. | D24: Includes costs associated with the Permanent Fund Dividend, and also HSS's "hold harmless" provision. From User input.
B25: Population in Dividend Program | C25: Population of the given year that receives a dividend, including felons whose dividends will eventually be redirected to felon funds. | D25: From input.
B26: Per Person Dividend Amount | C26: The per person dividend amount. | D26: Calculated with the formula: (Total Funds for Dividend less Program Costs) times 1,000,000 divided by Population in Dividend Program.
B27: Binary Fail Checker | C27: An indicator of if the Earnings reserve lacks funds for a withdrawal at or before the given year. | D27: If the lowest value of the earnings reserve since the start of the timeframe is negative a 1 or FALSE is displayed.
B28: Mean Result from Last Run | C28: The mean result of the last probabilistic run of the year's Binary Fail Checker. | D28: The @risk function RiskMean() is used on Binary Fail Checker. In deterministic mode, set at "N/A".
B29: Lowest Earning Reserve | C29: The lowest value of the Earnings Reserve at or before the given year. | D29: If the lowest value of the earnings reserve since the start of the timeframe.
B30: Risk Target Result from Last Run | C30: A @risk estimation of the probability of the Lowest Earning Reserve being negative. | D30: The @risk function RiskTarget() is used on Lowest Earning Reserve with a parameter of 0. In deterministic mode, set as "N/A".
B31: Long-term earn rate | C31: Rate of return on CBR balance projected to be unnecessary in the next five years | D31: The balance of the CBR less five times the prior year's draw (or 0, whichever is greater), is invested at this rate.
B32: Short-term earn rate | C32: Rate of return on CBR balance projected to be needed in the next five years | D32: Five times the prior year's draw (up to the total balance of the CBR) is invested at this rate.
B37: Term | C37: Definition
B38: BOY | C38: Beginning of Year
B39: EOY | C39: End of Year
B40: PERT | C40: Project Evaluation and Review Techniques, A probabilistic distribution.
